Workbook

Sheet Velkomst

Sheet Tabel 1 ØJ
A1: Tabel 1. Forsikrede medlemmer
A3: Østjylland
C5: Mænd | E5: Kvinder | G5: I alt
A7: Civ. ing. | C7: 3384 | E7: 1125 | G7: 4509
A8: Diplom ing. | C8: 5905 | E8: 1292 | G8: 7197
A9: Cand. Scient. Tek. | C9: 1971 | E9: 1324 | G9: 3295
A10: MA. Hum. | C10: 2700 | E10: 5761 | G10: 8461
A11: MA. Nat. | C11: 1585 | E11: 1334 | G11: 2919
A12: MA. Ph.d. | C12: 325 | E12: 261 | G12: 586
A13: MA. Samf. | C13: 195 | E13: 686 | G13: 881
A14: Øvrige Mag. | C14: 221 | E14: 412 | G14: 633
A15: Agronom | C15: 186 | E15: 149 | G15: 335
A16: Landsk. Arkt. | C16: 13 | E16: 28 | G16: 41
A17: Hortonom | C17: 12 | E17: 14 | G17: 26
A18: Forstkand. | C18: 40 | E18: 13 | G18: 53
A19: Jordbrugsakad. | C19: 251 | E19: 204 | G19: 455
A20: Mejeriing. | C20: 57 | E20: 31 | G20: 88
A21: Levn.m.kand. | C21: 4 | E21: 30 | G21: 34
A22: Dyrlæge | C22: 39 | E22: 206 | G22: 245
A23: Farmaceut | C23: 80 | E23: 280 | G23: 360
A24: Læge | C24: 819 | E24: 1925 | G24: 2744
A25: Tandlæge | C25: 74 | E25: 401 | G25: 475
A26: Arkitekt | C26: 696 | E26: 861 | G26: 1557
A27: Landinspek. | C27: 100 | E27: 43 | G27: 143
A28: Bibliotekar | C28: 72 | E28: 269 | G28: 341
A29: Musikudd. | C29: 66 | E29: 76 | G29: 142
A30: Teolog | C30: 124 | E30: 203 | G30: 327
A31: Psykolog | C31: 343 | E31: 1669 | G31: 2012
A32: Jurist | C32: 881 | E32: 1615 | G32: 2496
A33: Økonom | C33: 937 | E33: 526 | G33: 1463
A34: Samf. Adm. | C34: 1417 | E34: 2006 | G34: 3423
A35: Cand. Merc. | C35: 3813 | E35: 3473 | G35: 7286
A36: HA | C36: 618 | E36: 532 | G36: 1150
A37: HD | C37: 453 | E37: 379 | G37: 832
A38: Komm. og Sprog | C38: 173 | E38: 1092 | G38: 1265
A39: Bygningskonst. | C39: 2001 | E39: 361 | G39: 2362
A40: Cand. IT. | C40: 548 | E40: 523 | G40: 1071
A41: Bac. Samf. | C41: 97 | E41: 89 | G41: 186
A42: Bac. Hum. | C42: 346 | E42: 587 | G42: 933
A43: Bac. Nat. | C43: 595 | E43: 218 | G43: 813
A44: Andre | C44: 1730 | E44: 1587 | G44: 3317
A46: Total | C46: 32620 | E46: 31381 | G46: 64001
A48: Ingeniører i alt | C48: 9289 | E48: 2417 | G48: 11706
A49: Magistre i alt | C49: 5026 | E49: 8454 | G49: 13480
A50: DJØF'ere i alt | C50: 7666 | E50: 8152 | G50: 15818
A57: Horsens
C59: Mænd | E59: Kvinder | G59: I alt
A61: Civ. ing. | C61: 233 | E61: 89 | G61: 322
A62: Diplom ing. | C62: 711 | E62: 236 | G62: 947
A63: Cand. Scient. Tek. | C63: 99 | E63: 78 | G63: 177
A64: MA. Hum. | C64: 133 | E64: 295 | G64: 428
A65: MA. Nat. | C65: 64 | E65: 76 | G65: 140
A66: MA. Ph.d. | C66: 5 | E66: 6 | G66: 11
A67: MA. Samf. | C67: 9 | E67: 27 | G67: 36
A68: Øvrige Mag. | C68: 17 | E68: 16 | G68: 33
A69: Agronom | C69: 18 | E69: 17 | G69: 35
A70: Landsk. Arkt. | C70: 1 | E70: 1 | G70: 2
A71: Hortonom | C71: 0 | E71: 1 | G71: 1
A72: Forstkand. | C72: 6 | E72: 0 | G72: 6
A73: Jordbrugsakad. | C73: 25 | E73: 19 | G73: 44
A74: Mejeriing. | C74: 5 | E74: 1 | G74: 6
A75: Levn.m.kand. | C75: 0 | E75: 1 | G75: 1
A76: Dyrlæge | C76: 6 | E76: 15 | G76: 21
A77: Farmaceut | C77: 4 | E77: 17 | G77: 21
A78: Læge | C78: 27 | E78: 76 | G78: 103
A79: Tandlæge | C79: 4 | E79: 20 | G79: 24
A80: Arkitekt | C80: 31 | E80: 36 | G80: 67
A81: Landinspek. | C81: 12 | E81: 6 | G81: 18
A82: Bibliotekar | C82: 6 | E82: 25 | G82: 31
A83: Musikudd. | C83: 3 | E83: 5 | G83: 8
A84: Teolog | C84: 8 | E84: 8 | G84: 16
A85: Psykolog | C85: 15 | E85: 86 | G85: 101
A86: Jurist | C86: 48 | E86: 110 | G86: 158
A87: Økonom | C87: 33 | E87: 38 | G87: 71
A88: Samf. Adm. | C88: 79 | E88: 111 | G88: 190
A89: Cand. Merc. | C89: 240 | E89: 269 | G89: 509
A90: HA | C90: 50 | E90: 45 | G90: 95
A91: HD | C91: 36 | E91: 28 | G91: 64
A92: Komm. og Sprog | C92: 11 | E92: 68 | G92: 79
A93: Bygningskonst. | C93: 413 | E93: 89 | G93: 502
A94: Cand. IT. | C94: 21 | E94: 29 | G94: 50
A95: Bac. Samf. | C95: 7 | E95: 10 | G95: 17
A96: Bac. Hum. | C96: 13 | E96: 34 | G96: 47
A97: Bac. Nat. | C97: 107 | E97: 29 | G97: 136
A98: Andre | C98: 150 | E98: 106 | G98: 256
A100: Total | C100: 2625 | E100: 2104 | G100: 4729
A102: Ingeniører i alt | C102: 944 | E102: 325 | G102: 1269
A103: Magistre i alt | C103: 228 | E103: 420 | G103: 648
A104: DJØF'ere i alt | C104: 450 | E104: 573 | G104: 1023
A111: Syddjurs
C113: Mænd | E113: Kvinder | G113: I alt
A115: Civ. ing. | C115: 66 | E115: 91 | G115: 157
A116: Diplom ing. | C116: 0 | E116: 0 | G116: 0
A117: Cand. Scient. Tek. | C117: 208 | E117: 241 | G117: 449
A118: MA. Hum. | C118: 43 | E118: 86 | G118: 129
A119: MA. Nat. | C119: 82 | E119: 273 | G119: 355
A120: MA. Ph.d. | C120: 67 | E120: 117 | G120: 184
A121: MA. Samf. | C121: 13 | E121: 26 | G121: 39
A122: Øvrige Mag. | C122: 6 | E122: 25 | G122: 31
A123: Agronom | C123: 7 | E123: 25 | G123: 32
A124: Landsk. Arkt. | C124: 17 | E124: 28 | G124: 45
A125: Hortonom | C125: 0 | E125: 4 | G125: 4
A126: Forstkand. | C126: 2 | E126: 3 | G126: 5
A127: Jordbrugsakad. | C127: 26 | E127: 60 | G127: 86
A128: Mejeriing. | C128: 2 | E128: 3 | G128: 5
A129: Levn.m.kand. | C129: 2 | E129: 2 | G129: 4
A130: Dyrlæge | C130: 3 | E130: 11 | G130: 14
A131: Farmaceut | C131: 2 | E131: 8 | G131: 10
A132: Læge | C132: 12 | E132: 51 | G132: 63
A133: Tandlæge | C133: 3 | E133: 19 | G133: 22
A134: Arkitekt | C134: 27 | E134: 77 | G134: 104
A135: Landinspek. | C135: 2 | E135: 6 | G135: 8
A136: Bibliotekar | C136: 2 | E136: 13 | G136: 15
A137: Musikudd. | C137: 4 | E137: 7 | G137: 11
A138: Teolog | C138: 4 | E138: 17 | G138: 21
A139: Psykolog | C139: 10 | E139: 71 | G139: 81
A140: Jurist | C140: 19 | E140: 55 | G140: 74
A141: Økonom | C141: 17 | E141: 28 | G141: 45
A142: Samf. Adm. | C142: 22 | E142: 82 | G142: 104
A143: Cand. Merc. | C143: 69 | E143: 139 | G143: 208
A144: HA | C144: 15 | E144: 42 | G144: 57
A145: HD | C145: 13 | E145: 28 | G145: 41
A146: Komm. og Sprog | C146: 4 | E146: 45 | G146: 49
A147: Bygningskonst. | C147: 64 | E147: 74 | G147: 138
A148: Cand. IT. | C148: 16 | E148: 26 | G148: 42
A149: Bac. Samf. | C149: 1 | E149: 2 | G149: 3
A150: Bac. Hum. | C150: 12 | E150: 21 | G150: 33
A151: Bac. Nat. | C151: 10 | E151: 14 | G151: 24
A152: Andre | C152: 61 | E152: 113 | G152: 174
A154: Total | C154: 907 | E154: 1873 | G154: 2780
A156: Ingeniører i alt | C156: 66 | E156: 91 | G156: 157
A157: Magistre i alt | C157: 211 | E157: 527 | G157: 738
A158: DJØF'ere i alt | C158: 142 | E158: 346 | G158: 488
A165: Norddjurs
C167: Mænd | E167: Kvinder | G167: I alt
A169: Civ. ing. | C169: 17 | E169: 26 | G169: 43
A170: Diplom ing. | C170: 72 | E170: 95 | G170: 167
A171: Cand. Scient. Tek. | C171: 13 | E171: 20 | G171: 33
A172: MA. Hum. | C172: 24 | E172: 80 | G172: 104
A173: MA. Nat. | C173: 19 | E173: 32 | G173: 51
A174: MA. Ph.d. | C174: 4 | E174: 7 | G174: 11
A175: MA. Samf. | C175: 2 | E175: 5 | G175: 7
A176: Øvrige Mag. | C176: 1 | E176: 7 | G176: 8
A177: Agronom | C177: 4 | E177: 9 | G177: 13
A178: Landsk. Arkt. | C178: 0 | E178: 0 | G178: 0
A179: Hortonom | C179: 1 | E179: 1 | G179: 2
A180: Forstkand. | C180: 2 | E180: 2 | G180: 4
A181: Jordbrugsakad. | C181: 7 | E181: 12 | G181: 19
A182: Mejeriing. | C182: 0 | E182: 0 | G182: 0
A183: Levn.m.kand. | C183: 0 | E183: 3 | G183: 3
A184: Dyrlæge | C184: 0 | E184: 8 | G184: 8
A185: Farmaceut | C185: 1 | E185: 2 | G185: 3
A186: Læge | C186: 1 | E186: 4 | G186: 5
A187: Tandlæge | C187: 0 | E187: 5 | G187: 5
A188: Arkitekt | C188: 4 | E188: 7 | G188: 11
A189: Landinspek. | C189: 2 | E189: 2 | G189: 4
A190: Bibliotekar | C190: 1 | E190: 6 | G190: 7
A191: Musikudd. | C191: 2 | E191: 3 | G191: 5
A192: Teolog | C192: 5 | E192: 13 | G192: 18
A193: Psykolog | C193: 2 | E193: 13 | G193: 15
A194: Jurist | C194: 4 | E194: 15 | G194: 19
A195: Økonom | C195: 4 | E195: 6 | G195: 10
A196: Samf. Adm. | C196: 13 | E196: 18 | G196: 31
A197: Cand. Merc. | C197: 21 | E197: 43 | G197: 64
A198: HA | C198: 9 | E198: 15 | G198: 24
A199: HD | C199: 7 | E199: 10 | G199: 17
A200: Komm. og Sprog | C200: 0 | E200: 9 | G200: 9
A201: Bygningskonst. | C201: 29 | E201: 33 | G201: 62
A202: Cand. IT. | C202: 3 | E202: 5 | G202: 8
A203: Bac. Samf. | C203: 1 | E203: 2 | G203: 3
A204: Bac. Hum. | C204: 2 | E204: 8 | G204: 10
A205: Bac. Nat. | C205: 1 | E205: 4 | G205: 5
A206: Andre | C206: 23 | E206: 37 | G206: 60
A208: Total | C208: 294 | E208: 555 | G208: 849
A210: Ingeniører i alt | C210: 89 | E210: 121 | G210: 210
A211: Magistre i alt | C211: 50 | E211: 131 | G211: 181
A212: DJØF'ere i alt | C212: 51 | E212: 97 | G212: 148
A219: Favrskov
C221: Mænd | E221: Kvinder | G221: I alt
A223: Civ. ing. | C223: 221 | E223: 74 | G223: 295
A224: Diplom ing. | C224: 368 | E224: 62 | G224: 430
A225: Cand. Scient. Tek. | C225: 82 | E225: 73 | G225: 155
A226: MA. Hum. | C226: 86 | E226: 255 | G226: 341
A227: MA. Nat. | C227: 98 | E227: 81 | G227: 179
A228: MA. Ph.d. | C228: 10 | E228: 8 | G228: 18
A229: MA. Samf. | C229: 6 | E229: 15 | G229: 21
A230: Øvrige Mag. | C230: 9 | E230: 12 | G230: 21
A231: Agronom | C231: 27 | E231: 20 | G231: 47
A232: Landsk. Arkt. | C232: 2 | E232: 2 | G232: 4
A233: Hortonom | C233: 2 | E233: 2 | G233: 4
A234: Forstkand. | C234: 5 | E234: 1 | G234: 6
A235: Jordbrugsakad. | C235: 36 | E235: 25 | G235: 61
A236: Mejeriing. | C236: 3 | E236: 1 | G236: 4
A237: Levn.m.kand. | C237: 0 | E237: 1 | G237: 1
A238: Dyrlæge | C238: 2 | E238: 20 | G238: 22
A239: Farmaceut | C239: 1 | E239: 10 | G239: 11
A240: Læge | C240: 42 | E240: 102 | G240: 144
A241: Tandlæge | C241: 4 | E241: 21 | G241: 25
A242: Arkitekt | C242: 12 | E242: 21 | G242: 33
A243: Landinspek. | C243: 10 | E243: 2 | G243: 12
... 330 more rows

Sheet Tabel 2 ØJ
A1: Tabel 2. Antal bruttoledighedsberørte og gennemsnitlig antal ledige brutto
A3: Østjylland
C5: Mænd | F5: Kvinder | I5: I alt
C6: Ledigheds- berørte | D6: Gns. brutto- ledighed | F6: Ledigheds- berørte | G6: Gns. brutto- ledighed | I6: Ledigheds- berørte | J6: Gns. brutto- ledighed
A9: Civ. ing. | C9: 71 | D9: 65.08264205 | F9: 28 | G9: 23.84956028 | I9: 99 | J9: 88.93220233
A10: Diplom ing. | C10: 141 | D10: 118.9933263 | F10: 35 | G10: 29.43054949 | I10: 176 | J10: 148.4238758
A11: Cand. Scient. Tek. | C11: 113 | D11: 96.86209693 | F11: 89 | G11: 75.76810329 | I11: 202 | J11: 172.6302002
A12: MA. Hum. | C12: 270 | D12: 235.6308863 | F12: 476 | G12: 403.8059003 | I12: 746 | J12: 639.4367866
A13: MA. Nat. | C13: 50 | D13: 39.97193289 | F13: 45 | G13: 35.8236138 | I13: 95 | J13: 75.79554668
A14: MA. Ph.d. | C14: 5 | D14: 4.814445207 | F14: 12 | G14: 9.479199152 | I14: 17 | J14: 14.29364436
A15: MA. Samf. | C15: 21 | D15: 17.67167717 | F15: 83 | G15: 70.45406349 | I15: 104 | J15: 88.12574066
A16: Øvrige Mag. | C16: 18 | D16: 14.85436288 | F16: 41 | G16: 32.09380652 | I16: 59 | J16: 46.9481694
A17: Agronom | C17: 2 | D17: 1.999625772 | F17: 4 | G17: 3.235826109 | I17: 6 | J17: 5.23545188
A18: Landsk. Arkt. | C18: 0 | D18: 0 | F18: 1 | G18: 0.2756814071 | I18: 1 | J18: 0.2756814071
A19: Hortonom | C19: 0 | D19: 0 | F19: 1 | G19: 0.9998128859 | I19: 1 | J19: 0.9998128859
A20: Forstkand. | C20: 2 | D20: 1.618536768 | F20: 0 | G20: 0 | I20: 2 | J20: 1.618536768
A21: Jordbrugsakad. | C21: 4 | D21: 3.61816254 | F21: 6 | G21: 4.511320402 | I21: 10 | J21: 8.129482941
A22: Mejeriing. | C22: 1 | D22: 0.83203393 | F22: 1 | G22: 0.3074908002 | I22: 2 | J22: 1.13952473
A23: Levn.m.kand. | C23: 2 | D23: 1.999625772 | F23: 0 | G23: 0 | I23: 2 | J23: 1.999625772
A24: Dyrlæge | C24: 0 | D24: 0 | F24: 1 | G24: 0.9998128859 | I24: 1 | J24: 0.9998128859
A25: Farmaceut | C25: 6 | D25: 5.62963887 | F25: 20 | G25: 15.61342232 | I25: 26 | J25: 21.24306119
A26: Læge | C26: 23 | D26: 21.00480259 | F26: 43 | G26: 34.9198528 | I26: 66 | J26: 55.9246554
A27: Tandlæge | C27: 2 | D27: 1.519366307 | F27: 2 | G27: 1.999625772 | I27: 4 | J27: 3.518992079
A28: Arkitekt | C28: 31 | D28: 26.66687457 | F28: 55 | G28: 47.64797605 | I28: 86 | J28: 74.31485062
A29: Landinspek. | C29: 0 | D29: 0 | F29: 0 | G29: 0 | I29: 0 | J29: 0
A30: Bibliotekar | C30: 2 | D30: 1.722696938 | F30: 9 | G30: 7.301191293 | I30: 11 | J30: 9.023888231
A31: Musikudd. | C31: 3 | D31: 2.443086135 | F31: 5 | G31: 3.81276118 | I31: 8 | J31: 6.255847315
A32: Teolog | C32: 7 | D32: 5.699494792 | F32: 8 | G32: 7.696001996 | I32: 15 | J32: 13.39549679
A33: Psykolog | C33: 19 | D33: 17.07727811 | F33: 79 | G33: 66.09555292 | I33: 98 | J33: 83.17283104
A34: Jurist | C34: 17 | D34: 15.96083079 | F34: 27 | G34: 23.93937504 | I34: 44 | J34: 39.90020583
A35: Økonom | C35: 15 | D35: 11.72144951 | F35: 10 | G35: 7.828852991 | I35: 25 | J35: 19.5503025
A36: Samf. Adm. | C36: 61 | D36: 55.99638246 | F36: 111 | G36: 91.26613859 | I36: 172 | J36: 147.2625211
A37: Cand. Merc. | C37: 90 | D37: 79.45300318 | F37: 110 | G37: 96.25272875 | I37: 200 | J37: 175.7057319
A38: HA | C38: 27 | D38: 22.04390944 | F38: 21 | G38: 17.13528348 | I38: 48 | J38: 39.17919291
A39: HD | C39: 15 | D39: 12.98446953 | F39: 9 | G39: 7.386016341 | I39: 24 | J39: 20.37048587
A40: Komm. og Sprog | C40: 13 | D40: 11.42019585 | F40: 40 | G40: 34.65040853 | I40: 53 | J40: 46.07060438
A41: Bygningskonst. | C41: 77 | D41: 69.77920539 | F41: 29 | G41: 26.59246554 | I41: 106 | J41: 96.37167093
A42: Cand. IT. | C42: 25 | D42: 22.69756128 | F42: 29 | G42: 25.78120127 | I42: 54 | J42: 48.47876255
A43: Bac. Samf. | C43: 10 | D43: 9.378781264 | F43: 9 | G43: 7.710971122 | I43: 19 | J43: 17.08975239
A44: Bac. Hum. | C44: 47 | D44: 37.44651656 | F44: 105 | G44: 82.39443647 | I44: 152 | J44: 119.840953
A45: Bac. Nat. | C45: 46 | D45: 40.638059 | F45: 25 | G45: 21.58922223 | I45: 71 | J45: 62.22728123
A46: Andre | C46: 88 | D46: 77.04172644 | F46: 109 | G46: 92.79797917 | I46: 197 | J46: 169.8397056
A48: Total | C48: 1320 | D48: 1148.656521 | F48: 1672 | G48: 1406.934884 | I48: 2992 | J48: 2555.591405
A50: Ingeniører i alt | C50: 212 | D50: 184.0759683 | F50: 63 | G50: 53.28010977 | I50: 275 | J50: 237.3560781
A51: Magistre i alt | C51: 364 | D51: 312.9433044 | F51: 657 | G51: 551.6565833 | I51: 1021 | J51: 864.5998877
A52: DJØF'ere i alt | C52: 210 | D52: 185.1755754 | F52: 279 | G52: 236.4223788 | I52: 489 | J52: 421.5979542
A57: Horsens
C59: Mænd | F59: Kvinder | I59: I alt
C60: Ledigheds- berørte | D60: Gns. brutto- ledighed | F60: Ledigheds- berørte | G60: Gns. brutto- ledighed | I60: Ledigheds- berørte | J60: Gns. brutto- ledighed
A63: Civ. ing. | C63: 6 | D63: 5.906567704 | F63: 3 | G63: 2.32582798 | I63: 9 | J63: 8.232395684
A64: Diplom ing. | C64: 12 | D64: 10.7939874 | F64: 6 | G64: 4.845007173 | I64: 18 | J64: 15.63899457
A65: Cand. Scient. Tek. | C65: 5 | D65: 4.02295266 | F65: 6 | G65: 5.491174453 | I65: 11 | J65: 9.514127113
A66: MA. Hum. | C66: 6 | D66: 4.914863095 | F66: 24 | G66: 20.26819684 | I66: 30 | J66: 25.18305994
A67: MA. Nat. | C67: 0 | D67: 0 | F67: 3 | G67: 1.692134972 | I67: 3 | J67: 1.692134972
A68: MA. Ph.d. | C68: 0 | D68: 0 | F68: 0 | G68: 0 | I68: 0 | J68: 0
A69: MA. Samf. | C69: 0 | D69: 0 | F69: 0 | G69: 0 | I69: 0 | J69: 0
A70: Øvrige Mag. | C70: 0 | D70: 0 | F70: 2 | G70: 1.030374852 | I70: 2 | J70: 1.030374852
A71: Agronom | C71: 0 | D71: 0 | F71: 1 | G71: 0.9998128859 | I71: 1 | J71: 0.9998128859
A72: Landsk. Arkt. | C72: 0 | D72: 0 | F72: 0 | G72: 0 | I72: 0 | J72: 0
A73: Hortonom | C73: 0 | D73: 0 | F73: 0 | G73: 0 | I73: 0 | J73: 0
A74: Forstkand. | C74: 0 | D74: 0 | F74: 0 | G74: 0 | I74: 0 | J74: 0
A75: Jordbrugsakad. | C75: 0 | D75: 0 | F75: 1 | G75: 0.9998128859 | I75: 1 | J75: 0.9998128859
A76: Mejeriing. | C76: 0 | D76: 0 | F76: 0 | G76: 0 | I76: 0 | J76: 0
A77: Levn.m.kand. | C77: 0 | D77: 0 | F77: 0 | G77: 0 | I77: 0 | J77: 0
A78: Dyrlæge | C78: 0 | D78: 0 | F78: 0 | G78: 0 | I78: 0 | J78: 0
A79: Farmaceut | C79: 1 | D79: 0.9998128859 | F79: 1 | G79: 0.9536580802 | I79: 2 | J79: 1.953470966
A80: Læge | C80: 1 | D80: 0.9998128859 | F80: 1 | G80: 0.9998128859 | I80: 2 | J80: 1.999625772
A81: Tandlæge | C81: 0 | D81: 0 | F81: 0 | G81: 0 | I81: 0 | J81: 0
A82: Arkitekt | C82: 0 | D82: 0 | F82: 2 | G82: 1.861161355 | I82: 2 | J82: 1.861161355
A83: Landinspek. | C83: 0 | D83: 0 | F83: 0 | G83: 0 | I83: 0 | J83: 0
A84: Bibliotekar | C84: 0 | D84: 0 | F84: 1 | G84: 0.5794299258 | I84: 1 | J84: 0.5794299258
A85: Musikudd. | C85: 1 | D85: 0.9998128859 | F85: 1 | G85: 0.9998128859 | I85: 2 | J85: 1.999625772
A86: Teolog | C86: 0 | D86: 0 | F86: 0 | G86: 0 | I86: 0 | J86: 0
A87: Psykolog | C87: 1 | D87: 0.6998066488 | F87: 9 | G87: 6.8334061 | I87: 10 | J87: 7.533212749
A88: Jurist | C88: 1 | D88: 0.9998128859 | F88: 1 | G88: 0.8613484688 | I88: 2 | J88: 1.861161355
A89: Økonom | C89: 0 | D89: 0 | F89: 0 | G89: 0 | I89: 0 | J89: 0
A90: Samf. Adm. | C90: 3 | D90: 2.101291087 | F90: 6 | G90: 4.400923096 | I90: 9 | J90: 6.502214183
A91: Cand. Merc. | C91: 5 | D91: 3.946235888 | F91: 8 | G91: 7.401609181 | I91: 13 | J91: 11.34784507
A92: HA | C92: 5 | D92: 4.99906443 | F92: 2 | G92: 1.999625772 | I92: 7 | J92: 6.998690201
A93: HD | C93: 2 | D93: 1.768851743 | F93: 3 | G93: 2.860974241 | I93: 5 | J93: 4.629825984
A94: Komm. og Sprog | C94: 1 | D94: 0.9998128859 | F94: 4 | G94: 3.399239069 | I94: 5 | J94: 4.399051955
A95: Bygningskonst. | C95: 13 | D95: 11.62284039 | F95: 8 | G95: 7.293956215 | I95: 21 | J95: 18.91679661
A96: Cand. IT. | C96: 0 | D96: 0 | F96: 4 | G96: 3.826482879 | I96: 4 | J96: 3.826482879
A97: Bac. Samf. | C97: 1 | D97: 0.9075032745 | F97: 0 | G97: 0 | I97: 1 | J97: 0.9075032745
A98: Bac. Hum. | C98: 2 | D98: 1.999625772 | F98: 5 | G98: 3.210253851 | I98: 7 | J98: 5.209879623
A99: Bac. Nat. | C99: 12 | D99: 9.930767791 | F99: 3 | G99: 2.461797543 | I99: 15 | J99: 12.39256533
A100: Andre | C100: 10 | D100: 9.330131604 | F100: 11 | G100: 9.28959022 | I100: 21 | J100: 18.61972182
A102: Total | C102: 88 | D102: 77.94355392 | F102: 115 | G102: 95.88561093 | I102: 203 | J102: 173.8291648
A104: Ingeniører i alt | C104: 18 | D104: 16.70055511 | F104: 9 | G104: 7.170835152 | I104: 27 | J104: 23.87139026
A105: Magistre i alt | C105: 6 | D105: 4.914863095 | F105: 29 | G105: 22.99070667 | I105: 35 | J105: 27.90556976
A106: DJØF'ere i alt | C106: 14 | D106: 12.04640429 | F106: 17 | G106: 14.66350652 | I106: 31 | J106: 26.70991081
A111: Syddjurs
C113: Mænd | F113: Kvinder | I113: I alt
C114: Ledigheds- berørte | D114: Gns. brutto- ledighed | F114: Ledigheds- berørte | G114: Gns. brutto- ledighed | I114: Ledigheds- berørte | J114: Gns. brutto- ledighed
A117: Civ. ing. | C117: 1 | D117: 0.9075032745 | F117: 1 | G117: 0.8613484688 | I117: 2 | J117: 1.768851743
A118: Diplom ing. | C118: 7 | D118: 4.351649722 | F118: 0 | G118: 0 | I118: 7 | J118: 4.351649722
A119: Cand. Scient. Tek. | C119: 3 | D119: 1.582985093 | F119: 6 | G119: 4.979729308 | I119: 9 | J119: 6.562714402
A120: MA. Hum. | C120: 5 | D120: 4.952909624 | F120: 20 | G120: 15.95833593 | I120: 25 | J120: 20.91124556
A121: MA. Nat. | C121: 1 | D121: 0.9998128859 | F121: 2 | G121: 1.815006549 | I121: 3 | J121: 2.814819435
A122: MA. Ph.d. | C122: 0 | D122: 0 | F122: 0 | G122: 0 | I122: 0 | J122: 0
A123: MA. Samf. | C123: 0 | D123: 0 | F123: 4 | G123: 3.533961205 | I123: 4 | J123: 3.533961205
A124: Øvrige Mag. | C124: 0 | D124: 0 | F124: 1 | G124: 0.7752759933 | I124: 1 | J124: 0.7752759933
A125: Agronom | C125: 0 | D125: 0 | F125: 1 | G125: 0.9998128859 | I125: 1 | J125: 0.9998128859
A126: Landsk. Arkt. | C126: 0 | D126: 0 | F126: 0 | G126: 0 | I126: 0 | J126: 0
A127: Hortonom | C127: 0 | D127: 0 | F127: 0 | G127: 0 | I127: 0 | J127: 0
A128: Forstkand. | C128: 1 | D128: 0.8033431048 | F128: 0 | G128: 0 | I128: 1 | J128: 0.8033431048
A129: Jordbrugsakad. | C129: 1 | D129: 0.8033431048 | F129: 1 | G129: 0.9998128859 | I129: 2 | J129: 1.803155991
A130: Mejeriing. | C130: 0 | D130: 0 | F130: 0 | G130: 0 | I130: 0 | J130: 0
A131: Levn.m.kand. | C131: 2 | D131: 1.999625772 | F131: 0 | G131: 0 | I131: 2 | J131: 1.999625772
A132: Dyrlæge | C132: 0 | D132: 0 | F132: 1 | G132: 0.9998128859 | I132: 1 | J132: 0.9998128859
A133: Farmaceut | C133: 0 | D133: 0 | F133: 0 | G133: 0 | I133: 0 | J133: 0
A134: Læge | C134: 0 | D134: 0 | F134: 0 | G134: 0 | I134: 0 | J134: 0
A135: Tandlæge | C135: 0 | D135: 0 | F135: 0 | G135: 0 | I135: 0 | J135: 0
A136: Arkitekt | C136: 1 | D136: 0.9499157987 | F136: 2 | G136: 1.488180627 | I136: 3 | J136: 2.438096426
A137: Landinspek. | C137: 0 | D137: 0 | F137: 0 | G137: 0 | I137: 0 | J137: 0
A138: Bibliotekar | C138: 0 | D138: 0 | F138: 0 | G138: 0 | I138: 0 | J138: 0
A139: Musikudd. | C139: 0 | D139: 0 | F139: 0 | G139: 0 | I139: 0 | J139: 0
A140: Teolog | C140: 1 | D140: 0.4758934697 | F140: 2 | G140: 1.999625772 | I140: 3 | J140: 2.475519242
A141: Psykolog | C141: 0 | D141: 0 | F141: 1 | G141: 0.9998128859 | I141: 1 | J141: 0.9998128859
A142: Jurist | C142: 2 | D142: 1.768851743 | F142: 0 | G142: 0 | I142: 2 | J142: 1.768851743
A143: Økonom | C143: 1 | D143: 0.9075032745 | F143: 0 | G143: 0 | I143: 1 | J143: 0.9075032745
A144: Samf. Adm. | C144: 2 | D144: 1.999625772 | F144: 6 | G144: 4.902388823 | I144: 8 | J144: 6.902014595
A145: Cand. Merc. | C145: 2 | D145: 1.953470966 | F145: 0 | G145: 0 | I145: 2 | J145: 1.953470966
A146: HA | C146: 2 | D146: 1.815006549 | F146: 1 | G146: 0.5844196345 | I146: 3 | J146: 2.399426183
A147: HD | C147: 1 | D147: 0.9998128859 | F147: 0 | G147: 0 | I147: 1 | J147: 0.9998128859
A148: Komm. og Sprog | C148: 1 | D148: 0.793987401 | F148: 2 | G148: 0.6998066488 | I148: 3 | J148: 1.49379405
A149: Bygningskonst. | C149: 0 | D149: 0 | F149: 0 | G149: 0 | I149: 0 | J149: 0
A150: Cand. IT. | C150: 1 | D150: 0.9998128859 | F150: 0 | G150: 0 | I150: 1 | J150: 0.9998128859
A151: Bac. Samf. | C151: 0 | D151: 0 | F151: 0 | G151: 0 | I151: 0 | J151: 0
A152: Bac. Hum. | C152: 0 | D152: 0 | F152: 2 | G152: 1.999625772 | I152: 2 | J152: 1.999625772
A153: Bac. Nat. | C153: 0 | D153: 0 | F153: 0 | G153: 0 | I153: 0 | J153: 0
A154: Andre | C154: 1 | D154: 0.9748643423 | F154: 2 | G154: 1.329133662 | I154: 3 | J154: 2.303998004
A156: Total | C156: 35 | D156: 29.23657456 | F156: 54 | G156: 43.92627705 | I156: 89 | J156: 73.16285162
A158: Ingeniører i alt | C158: 8 | D158: 5.259152997 | F158: 1 | G158: 0.8613484688 | I158: 9 | J158: 6.120501466
A159: Magistre i alt | C159: 6 | D159: 5.95272251 | F159: 27 | G159: 22.08257968 | I159: 33 | J159: 28.03530219
A160: DJØF'ere i alt | C160: 9 | D160: 8.444458305 | F160: 7 | G160: 5.486808458 | I160: 16 | J160: 13.93126676
A165: Norddjurs
C167: Mænd | F167: Kvinder | I167: I alt
C168: Ledigheds- berørte | D168: Gns. brutto- ledighed | F168: Ledigheds- berørte | G168: Gns. brutto- ledighed | I168: Ledigheds- berørte | J168: Gns. brutto- ledighed
A171: Civ. ing. | C171: 0 | D171: 0 | F171: 0 | G171: 0 | I171: 0 | J171: 0
A172: Diplom ing. | C172: 1 | D172: 0.9998128859 | F172: 0 | G172: 0 | I172: 1 | J172: 0.9998128859
A173: Cand. Scient. Tek. | C173: 4 | D173: 3.828977733 | F173: 2 | G173: 1.999625772 | I173: 6 | J173: 5.828603505
A174: MA. Hum. | C174: 2 | D174: 1.529345724 | F174: 4 | G174: 2.817938003 | I174: 6 | J174: 4.347283727
A175: MA. Nat. | C175: 0 | D175: 0 | F175: 0 | G175: 0 | I175: 0 | J175: 0
A176: MA. Ph.d. | C176: 1 | D176: 0.9998128859 | F176: 0 | G176: 0 | I176: 1 | J176: 0.9998128859
A177: MA. Samf. | C177: 0 | D177: 0 | F177: 1 | G177: 0.5507391006 | I177: 1 | J177: 0.5507391006
A178: Øvrige Mag. | C178: 0 | D178: 0 | F178: 2 | G178: 1.999625772 | I178: 2 | J178: 1.999625772
A179: Agronom | C179: 0 | D179: 0 | F179: 0 | G179: 0 | I179: 0 | J179: 0
A180: Landsk. Arkt. | C180: 0 | D180: 0 | F180: 0 | G180: 0 | I180: 0 | J180: 0
A181: Hortonom | C181: 0 | D181: 0 | F181: 0 | G181: 0 | I181: 0 | J181: 0
A182: Forstkand. | C182: 1 | D182: 0.8151936631 | F182: 0 | G182: 0 | I182: 1 | J182: 0.8151936631
A183: Jordbrugsakad. | C183: 1 | D183: 0.8151936631 | F183: 0 | G183: 0 | I183: 1 | J183: 0.8151936631
A184: Mejeriing. | C184: 0 | D184: 0 | F184: 0 | G184: 0 | I184: 0 | J184: 0
A185: Levn.m.kand. | C185: 0 | D185: 0 | F185: 0 | G185: 0 | I185: 0 | J185: 0
A186: Dyrlæge | C186: 0 | D186: 0 | F186: 0 | G186: 0 | I186: 0 | J186: 0
A187: Farmaceut | C187: 0 | D187: 0 | F187: 0 | G187: 0 | I187: 0 | J187: 0
A188: Læge | C188: 0 | D188: 0 | F188: 0 | G188: 0 | I188: 0 | J188: 0
A189: Tandlæge | C189: 0 | D189: 0 | F189: 0 | G189: 0 | I189: 0 | J189: 0
A190: Arkitekt | C190: 1 | D190: 0.9998128859 | F190: 0 | G190: 0 | I190: 1 | J190: 0.9998128859
A191: Landinspek. | C191: 0 | D191: 0 | F191: 0 | G191: 0 | I191: 0 | J191: 0
A192: Bibliotekar | C192: 0 | D192: 0 | F192: 0 | G192: 0 | I192: 0 | J192: 0
A193: Musikudd. | C193: 0 | D193: 0 | F193: 0 | G193: 0 | I193: 0 | J193: 0
A194: Teolog | C194: 0 | D194: 0 | F194: 1 | G194: 0.9998128859 | I194: 1 | J194: 0.9998128859
A195: Psykolog | C195: 0 | D195: 0 | F195: 1 | G195: 0.9998128859 | I195: 1 | J195: 0.9998128859
A196: Jurist | C196: 0 | D196: 0 | F196: 0 | G196: 0 | I196: 0 | J196: 0
A197: Økonom | C197: 1 | D197: 0.9998128859 | F197: 0 | G197: 0 | I197: 1 | J197: 0.9998128859
A198: Samf. Adm. | C198: 1 | D198: 0.9998128859 | F198: 0 | G198: 0 | I198: 1 | J198: 0.9998128859
A199: Cand. Merc. | C199: 1 | D199: 0.9998128859 | F199: 0 | G199: 0 | I199: 1 | J199: 0.9998128859
A200: HA | C200: 0 | D200: 0 | F200: 0 | G200: 0 | I200: 0 | J200: 0
A201: HD | C201: 0 | D201: 0 | F201: 0 | G201: 0 | I201: 0 | J201: 0
A202: Komm. og Sprog | C202: 0 | D202: 0 | F202: 0 | G202: 0 | I202: 0 | J202: 0
A203: Bygningskonst. | C203: 0 | D203: 0 | F203: 0 | G203: 0 | I203: 0 | J203: 0
A204: Cand. IT. | C204: 1 | D204: 0.9998128859 | F204: 0 | G204: 0 | I204: 1 | J204: 0.9998128859
A205: Bac. Samf. | C205: 0 | D205: 0 | F205: 0 | G205: 0 | I205: 0 | J205: 0
A206: Bac. Hum. | C206: 0 | D206: 0 | F206: 2 | G206: 1.298571696 | I206: 2 | J206: 1.298571696
A207: Bac. Nat. | C207: 0 | D207: 0 | F207: 1 | G207: 0.7690388574 | I207: 1 | J207: 0.7690388574
A208: Andre | C208: 1 | D208: 0.3262022079 | F208: 1 | G208: 0.9998128859 | I208: 2 | J208: 1.326015094
A210: Total | C210: 15 | D210: 13.49840953 | F210: 15 | G210: 12.43497786 | I210: 30 | J210: 25.93338739
A212: Ingeniører i alt | C212: 1 | D212: 0.9998128859 | F212: 0 | G212: 0 | I212: 1 | J212: 0.9998128859
A213: Magistre i alt | C213: 3 | D213: 2.52915861 | F213: 7 | G213: 5.368302875 | I213: 10 | J213: 7.897461486
A214: DJØF'ere i alt | C214: 3 | D214: 2.999438658 | F214: 0 | G214: 0 | I214: 3 | J214: 2.999438658
A219: Favrskov
C221: Mænd | F221: Kvinder | I221: I alt
C222: Ledigheds- berørte | D222: Gns. brutto- ledighed | F222: Ledigheds- berørte | G222: Gns. brutto- ledighed | I222: Ledigheds- berørte | J222: Gns. brutto- ledighed
A225: Civ. ing. | C225: 2 | D225: 1.669057569 | F225: 0 | G225: 0 | I225: 2 | J225: 1.669057569
A226: Diplom ing. | C226: 3 | D226: 1.92976985 | F226: 1 | G226: 0.9998128859 | I226: 4 | J226: 2.929582736
A227: Cand. Scient. Tek. | C227: 2 | D227: 1.491922909 | F227: 3 | G227: 2.98072725 | I227: 5 | J227: 4.472650159
A228: MA. Hum. | C228: 4 | D228: 3.855797418 | F228: 17 | G228: 13.33437286 | I228: 21 | J228: 17.19017027
A229: MA. Nat. | C229: 1 | D229: 0.4428366494 | F229: 1 | G229: 0.9998128859 | I229: 2 | J229: 1.442649535
A230: MA. Ph.d. | C230: 0 | D230: 0 | F230: 0 | G230: 0 | I230: 0 | J230: 0
A231: MA. Samf. | C231: 0 | D231: 0 | F231: 1 | G231: 0.9536580802 | I231: 1 | J231: 0.9536580802
A232: Øvrige Mag. | C232: 0 | D232: 0 | F232: 0 | G232: 0 | I232: 0 | J232: 0
A233: Agronom | C233: 1 | D233: 0.9998128859 | F233: 0 | G233: 0 | I233: 1 | J233: 0.9998128859
A234: Landsk. Arkt. | C234: 0 | D234: 0 | F234: 0 | G234: 0 | I234: 0 | J234: 0
A235: Hortonom | C235: 0 | D235: 0 | F235: 0 | G235: 0 | I235: 0 | J235: 0
A236: Forstkand. | C236: 0 | D236: 0 | F236: 0 | G236: 0 | I236: 0 | J236: 0
A237: Jordbrugsakad. | C237: 1 | D237: 0.9998128859 | F237: 0 | G237: 0 | I237: 1 | J237: 0.9998128859
A238: Mejeriing. | C238: 0 | D238: 0 | F238: 0 | G238: 0 | I238: 0 | J238: 0
A239: Levn.m.kand. | C239: 0 | D239: 0 | F239: 0 | G239: 0 | I239: 0 | J239: 0
A240: Dyrlæge | C240: 0 | D240: 0 | F240: 0 | G240: 0 | I240: 0 | J240: 0
... 341 more rows

Sheet Tabel 3 ØJ
A1: Tabel 3. Ledige i procent af forsikrede
A3: Østjylland
C5: Mænd | F5: Kvinder | I5: I alt
C6: Ledigheds- berørte | D6: Gns. brutto- ledighed | F6: Ledigheds- berørte | G6: Gns. brutto- ledighed | I6: Ledigheds- berørte | J6: Gns. brutto- ledighed
A9: Civ. ing. | C9: =IF(OR('Tabel 1 ØJ'!C7<5,'Tabel 2 ØJ'!C9<0.5),"-",IFERROR('Tabel 2 ØJ'!C9/'Tabel 1 ØJ'!C7*100,"-")) -> 2.098108747 | D9: =IF(OR('Tabel 1 ØJ'!C7<5,'Tabel 2 ØJ'!D9<0.5),"-",IFERROR('Tabel 2 ØJ'!D9/'Tabel 1 ØJ'!C7*100,"-")) -> 1.923245923 | F9: =IF(OR('Tabel 1 ØJ'!E7<5,'Tabel 2 ØJ'!F9<0.5),"-",IFERROR('Tabel 2 ØJ'!F9/'Tabel 1 ØJ'!E7*100,"-")) -> 2.488888889 | G9: =IF(OR('Tabel 1 ØJ'!E7<5,'Tabel 2 ØJ'!G9<0.5),"-",IFERROR('Tabel 2 ØJ'!G9/'Tabel 1 ØJ'!E7*100,"-")) -> 2.119960914 | I9: =IF(OR('Tabel 1 ØJ'!G7<5,'Tabel 2 ØJ'!I9<0.5),"-",IFERROR('Tabel 2 ØJ'!I9/'Tabel 1 ØJ'!G7*100,"-")) -> 2.195608782 | J9: =IF(OR('Tabel 1 ØJ'!G7<5,'Tabel 2 ØJ'!J9<0.5),"-",IFERROR('Tabel 2 ØJ'!J9/'Tabel 1 ØJ'!G7*100,"-")) -> 1.97232651
A10: Diplom ing. | C10: =IF(OR('Tabel 1 ØJ'!C8<5,'Tabel 2 ØJ'!C10<0.5),"-",IFERROR('Tabel 2 ØJ'!C10/'Tabel 1 ØJ'!C8*100,"-")) -> 2.387806943 | D10: =IF(OR('Tabel 1 ØJ'!C8<5,'Tabel 2 ØJ'!D10<0.5),"-",IFERROR('Tabel 2 ØJ'!D10/'Tabel 1 ØJ'!C8*100,"-")) -> 2.015128303 | F10: =IF(OR('Tabel 1 ØJ'!E8<5,'Tabel 2 ØJ'!F10<0.5),"-",IFERROR('Tabel 2 ØJ'!F10/'Tabel 1 ØJ'!E8*100,"-")) -> 2.708978328 | G10: =IF(OR('Tabel 1 ØJ'!E8<5,'Tabel 2 ØJ'!G10<0.5),"-",IFERROR('Tabel 2 ØJ'!G10/'Tabel 1 ØJ'!E8*100,"-")) -> 2.277906307 | I10: =IF(OR('Tabel 1 ØJ'!G8<5,'Tabel 2 ØJ'!I10<0.5),"-",IFERROR('Tabel 2 ØJ'!I10/'Tabel 1 ØJ'!G8*100,"-")) -> 2.445463388 | J10: =IF(OR('Tabel 1 ØJ'!G8<5,'Tabel 2 ØJ'!J10<0.5),"-",IFERROR('Tabel 2 ØJ'!J10/'Tabel 1 ØJ'!G8*100,"-")) -> 2.062302011
A11: Cand. Scient. Tek. | C11: =IF(OR('Tabel 1 ØJ'!C9<5,'Tabel 2 ØJ'!C11<0.5),"-",IFERROR('Tabel 2 ØJ'!C11/'Tabel 1 ØJ'!C9*100,"-")) -> 5.733130391 | D11: =IF(OR('Tabel 1 ØJ'!C9<5,'Tabel 2 ØJ'!D11<0.5),"-",IFERROR('Tabel 2 ØJ'!D11/'Tabel 1 ØJ'!C9*100,"-")) -> 4.914363111 | F11: =IF(OR('Tabel 1 ØJ'!E9<5,'Tabel 2 ØJ'!F11<0.5),"-",IFERROR('Tabel 2 ØJ'!F11/'Tabel 1 ØJ'!E9*100,"-")) -> 6.722054381 | G11: =IF(OR('Tabel 1 ØJ'!E9<5,'Tabel 2 ØJ'!G11<0.5),"-",IFERROR('Tabel 2 ØJ'!G11/'Tabel 1 ØJ'!E9*100,"-")) -> 5.722666411 | I11: =IF(OR('Tabel 1 ØJ'!G9<5,'Tabel 2 ØJ'!I11<0.5),"-",IFERROR('Tabel 2 ØJ'!I11/'Tabel 1 ØJ'!G9*100,"-")) -> 6.130500759 | J11: =IF(OR('Tabel 1 ØJ'!G9<5,'Tabel 2 ØJ'!J11<0.5),"-",IFERROR('Tabel 2 ØJ'!J11/'Tabel 1 ØJ'!G9*100,"-")) -> 5.239156304
A12: MA. Hum. | C12: =IF(OR('Tabel 1 ØJ'!C10<5,'Tabel 2 ØJ'!C12<0.5),"-",IFERROR('Tabel 2 ØJ'!C12/'Tabel 1 ØJ'!C10*100,"-")) -> 10 | D12: =IF(OR('Tabel 1 ØJ'!C10<5,'Tabel 2 ØJ'!D12<0.5),"-",IFERROR('Tabel 2 ØJ'!D12/'Tabel 1 ØJ'!C10*100,"-")) -> 8.727069863 | F12: =IF(OR('Tabel 1 ØJ'!E10<5,'Tabel 2 ØJ'!F12<0.5),"-",IFERROR('Tabel 2 ØJ'!F12/'Tabel 1 ØJ'!E10*100,"-")) -> 8.262454435 | G12: =IF(OR('Tabel 1 ØJ'!E10<5,'Tabel 2 ØJ'!G12<0.5),"-",IFERROR('Tabel 2 ØJ'!G12/'Tabel 1 ØJ'!E10*100,"-")) -> 7.00930221 | I12: =IF(OR('Tabel 1 ØJ'!G10<5,'Tabel 2 ØJ'!I12<0.5),"-",IFERROR('Tabel 2 ØJ'!I12/'Tabel 1 ØJ'!G10*100,"-")) -> 8.816924713 | J12: =IF(OR('Tabel 1 ØJ'!G10<5,'Tabel 2 ØJ'!J12<0.5),"-",IFERROR('Tabel 2 ØJ'!J12/'Tabel 1 ØJ'!G10*100,"-")) -> 7.557461135
A13: MA. Nat. | C13: =IF(OR('Tabel 1 ØJ'!C11<5,'Tabel 2 ØJ'!C13<0.5),"-",IFERROR('Tabel 2 ØJ'!C13/'Tabel 1 ØJ'!C11*100,"-")) -> 3.154574132 | D13: =IF(OR('Tabel 1 ØJ'!C11<5,'Tabel 2 ØJ'!D13<0.5),"-",IFERROR('Tabel 2 ØJ'!D13/'Tabel 1 ØJ'!C11*100,"-")) -> 2.52188851 | F13: =IF(OR('Tabel 1 ØJ'!E11<5,'Tabel 2 ØJ'!F13<0.5),"-",IFERROR('Tabel 2 ØJ'!F13/'Tabel 1 ØJ'!E11*100,"-")) -> 3.373313343 | G13: =IF(OR('Tabel 1 ØJ'!E11<5,'Tabel 2 ØJ'!G13<0.5),"-",IFERROR('Tabel 2 ØJ'!G13/'Tabel 1 ØJ'!E11*100,"-")) -> 2.685428321 | I13: =IF(OR('Tabel 1 ØJ'!G11<5,'Tabel 2 ØJ'!I13<0.5),"-",IFERROR('Tabel 2 ØJ'!I13/'Tabel 1 ØJ'!G11*100,"-")) -> 3.254539226 | J13: =IF(OR('Tabel 1 ØJ'!G11<5,'Tabel 2 ØJ'!J13<0.5),"-",IFERROR('Tabel 2 ØJ'!J13/'Tabel 1 ØJ'!G11*100,"-")) -> 2.596627156
A14: MA. Ph.d. | C14: =IF(OR('Tabel 1 ØJ'!C12<5,'Tabel 2 ØJ'!C14<0.5),"-",IFERROR('Tabel 2 ØJ'!C14/'Tabel 1 ØJ'!C12*100,"-")) -> 1.538461538 | D14: =IF(OR('Tabel 1 ØJ'!C12<5,'Tabel 2 ØJ'!D14<0.5),"-",IFERROR('Tabel 2 ØJ'!D14/'Tabel 1 ØJ'!C12*100,"-")) -> 1.481367756 | F14: =IF(OR('Tabel 1 ØJ'!E12<5,'Tabel 2 ØJ'!F14<0.5),"-",IFERROR('Tabel 2 ØJ'!F14/'Tabel 1 ØJ'!E12*100,"-")) -> 4.597701149 | G14: =IF(OR('Tabel 1 ØJ'!E12<5,'Tabel 2 ØJ'!G14<0.5),"-",IFERROR('Tabel 2 ØJ'!G14/'Tabel 1 ØJ'!E12*100,"-")) -> 3.63187707 | I14: =IF(OR('Tabel 1 ØJ'!G12<5,'Tabel 2 ØJ'!I14<0.5),"-",IFERROR('Tabel 2 ØJ'!I14/'Tabel 1 ØJ'!G12*100,"-")) -> 2.901023891 | J14: =IF(OR('Tabel 1 ØJ'!G12<5,'Tabel 2 ØJ'!J14<0.5),"-",IFERROR('Tabel 2 ØJ'!J14/'Tabel 1 ØJ'!G12*100,"-")) -> 2.439188457
A15: MA. Samf. | C15: =IF(OR('Tabel 1 ØJ'!C13<5,'Tabel 2 ØJ'!C15<0.5),"-",IFERROR('Tabel 2 ØJ'!C15/'Tabel 1 ØJ'!C13*100,"-")) -> 10.76923077 | D15: =IF(OR('Tabel 1 ØJ'!C13<5,'Tabel 2 ØJ'!D15<0.5),"-",IFERROR('Tabel 2 ØJ'!D15/'Tabel 1 ØJ'!C13*100,"-")) -> 9.062398547 | F15: =IF(OR('Tabel 1 ØJ'!E13<5,'Tabel 2 ØJ'!F15<0.5),"-",IFERROR('Tabel 2 ØJ'!F15/'Tabel 1 ØJ'!E13*100,"-")) -> 12.09912536 | G15: =IF(OR('Tabel 1 ØJ'!E13<5,'Tabel 2 ØJ'!G15<0.5),"-",IFERROR('Tabel 2 ØJ'!G15/'Tabel 1 ØJ'!E13*100,"-")) -> 10.27027165 | I15: =IF(OR('Tabel 1 ØJ'!G13<5,'Tabel 2 ØJ'!I15<0.5),"-",IFERROR('Tabel 2 ØJ'!I15/'Tabel 1 ØJ'!G13*100,"-")) -> 11.80476731 | J15: =IF(OR('Tabel 1 ØJ'!G13<5,'Tabel 2 ØJ'!J15<0.5),"-",IFERROR('Tabel 2 ØJ'!J15/'Tabel 1 ØJ'!G13*100,"-")) -> 10.00292175
A16: Øvrige Mag. | C16: =IF(OR('Tabel 1 ØJ'!C14<5,'Tabel 2 ØJ'!C16<0.5),"-",IFERROR('Tabel 2 ØJ'!C16/'Tabel 1 ØJ'!C14*100,"-")) -> 8.14479638 | D16: =IF(OR('Tabel 1 ØJ'!C14<5,'Tabel 2 ØJ'!D16<0.5),"-",IFERROR('Tabel 2 ØJ'!D16/'Tabel 1 ØJ'!C14*100,"-")) -> 6.721431166 | F16: =IF(OR('Tabel 1 ØJ'!E14<5,'Tabel 2 ØJ'!F16<0.5),"-",IFERROR('Tabel 2 ØJ'!F16/'Tabel 1 ØJ'!E14*100,"-")) -> 9.951456311 | G16: =IF(OR('Tabel 1 ØJ'!E14<5,'Tabel 2 ØJ'!G16<0.5),"-",IFERROR('Tabel 2 ØJ'!G16/'Tabel 1 ØJ'!E14*100,"-")) -> 7.789758865 | I16: =IF(OR('Tabel 1 ØJ'!G14<5,'Tabel 2 ØJ'!I16<0.5),"-",IFERROR('Tabel 2 ØJ'!I16/'Tabel 1 ØJ'!G14*100,"-")) -> 9.320695103 | J16: =IF(OR('Tabel 1 ØJ'!G14<5,'Tabel 2 ØJ'!J16<0.5),"-",IFERROR('Tabel 2 ØJ'!J16/'Tabel 1 ØJ'!G14*100,"-")) -> 7.416772417
A17: Agronom | C17: =IF(OR('Tabel 1 ØJ'!C15<5,'Tabel 2 ØJ'!C17<0.5),"-",IFERROR('Tabel 2 ØJ'!C17/'Tabel 1 ØJ'!C15*100,"-")) -> 1.075268817 | D17: =IF(OR('Tabel 1 ØJ'!C15<5,'Tabel 2 ØJ'!D17<0.5),"-",IFERROR('Tabel 2 ØJ'!D17/'Tabel 1 ØJ'!C15*100,"-")) -> 1.075067619 | F17: =IF(OR('Tabel 1 ØJ'!E15<5,'Tabel 2 ØJ'!F17<0.5),"-",IFERROR('Tabel 2 ØJ'!F17/'Tabel 1 ØJ'!E15*100,"-")) -> 2.684563758 | G17: =IF(OR('Tabel 1 ØJ'!E15<5,'Tabel 2 ØJ'!G17<0.5),"-",IFERROR('Tabel 2 ØJ'!G17/'Tabel 1 ØJ'!E15*100,"-")) -> 2.171695375 | I17: =IF(OR('Tabel 1 ØJ'!G15<5,'Tabel 2 ØJ'!I17<0.5),"-",IFERROR('Tabel 2 ØJ'!I17/'Tabel 1 ØJ'!G15*100,"-")) -> 1.791044776 | J17: =IF(OR('Tabel 1 ØJ'!G15<5,'Tabel 2 ØJ'!J17<0.5),"-",IFERROR('Tabel 2 ØJ'!J17/'Tabel 1 ØJ'!G15*100,"-")) -> 1.562821457
A18: Landsk. Arkt. | C18: =IF(OR('Tabel 1 ØJ'!C16<5,'Tabel 2 ØJ'!C18<0.5),"-",IFERROR('Tabel 2 ØJ'!C18/'Tabel 1 ØJ'!C16*100,"-")) -> - | D18: =IF(OR('Tabel 1 ØJ'!C16<5,'Tabel 2 ØJ'!D18<0.5),"-",IFERROR('Tabel 2 ØJ'!D18/'Tabel 1 ØJ'!C16*100,"-")) -> - | F18: =IF(OR('Tabel 1 ØJ'!E16<5,'Tabel 2 ØJ'!F18<0.5),"-",IFERROR('Tabel 2 ØJ'!F18/'Tabel 1 ØJ'!E16*100,"-")) -> 3.571428571 | G18: =IF(OR('Tabel 1 ØJ'!E16<5,'Tabel 2 ØJ'!G18<0.5),"-",IFERROR('Tabel 2 ØJ'!G18/'Tabel 1 ØJ'!E16*100,"-")) -> - | I18: =IF(OR('Tabel 1 ØJ'!G16<5,'Tabel 2 ØJ'!I18<0.5),"-",IFERROR('Tabel 2 ØJ'!I18/'Tabel 1 ØJ'!G16*100,"-")) -> 2.43902439 | J18: =IF(OR('Tabel 1 ØJ'!G16<5,'Tabel 2 ØJ'!J18<0.5),"-",IFERROR('Tabel 2 ØJ'!J18/'Tabel 1 ØJ'!G16*100,"-")) -> -
A19: Hortonom | C19: =IF(OR('Tabel 1 ØJ'!C17<5,'Tabel 2 ØJ'!C19<0.5),"-",IFERROR('Tabel 2 ØJ'!C19/'Tabel 1 ØJ'!C17*100,"-")) -> - | D19: =IF(OR('Tabel 1 ØJ'!C17<5,'Tabel 2 ØJ'!D19<0.5),"-",IFERROR('Tabel 2 ØJ'!D19/'Tabel 1 ØJ'!C17*100,"-")) -> - | F19: =IF(OR('Tabel 1 ØJ'!E17<5,'Tabel 2 ØJ'!F19<0.5),"-",IFERROR('Tabel 2 ØJ'!F19/'Tabel 1 ØJ'!E17*100,"-")) -> 7.142857143 | G19: =IF(OR('Tabel 1 ØJ'!E17<5,'Tabel 2 ØJ'!G19<0.5),"-",IFERROR('Tabel 2 ØJ'!G19/'Tabel 1 ØJ'!E17*100,"-")) -> 7.141520614 | I19: =IF(OR('Tabel 1 ØJ'!G17<5,'Tabel 2 ØJ'!I19<0.5),"-",IFERROR('Tabel 2 ØJ'!I19/'Tabel 1 ØJ'!G17*100,"-")) -> 3.846153846 | J19: =IF(OR('Tabel 1 ØJ'!G17<5,'Tabel 2 ØJ'!J19<0.5),"-",IFERROR('Tabel 2 ØJ'!J19/'Tabel 1 ØJ'!G17*100,"-")) -> 3.845434177
A20: Forstkand. | C20: =IF(OR('Tabel 1 ØJ'!C18<5,'Tabel 2 ØJ'!C20<0.5),"-",IFERROR('Tabel 2 ØJ'!C20/'Tabel 1 ØJ'!C18*100,"-")) -> 5 | D20: =IF(OR('Tabel 1 ØJ'!C18<5,'Tabel 2 ØJ'!D20<0.5),"-",IFERROR('Tabel 2 ØJ'!D20/'Tabel 1 ØJ'!C18*100,"-")) -> 4.04634192 | F20: =IF(OR('Tabel 1 ØJ'!E18<5,'Tabel 2 ØJ'!F20<0.5),"-",IFERROR('Tabel 2 ØJ'!F20/'Tabel 1 ØJ'!E18*100,"-")) -> - | G20: =IF(OR('Tabel 1 ØJ'!E18<5,'Tabel 2 ØJ'!G20<0.5),"-",IFERROR('Tabel 2 ØJ'!G20/'Tabel 1 ØJ'!E18*100,"-")) -> - | I20: =IF(OR('Tabel 1 ØJ'!G18<5,'Tabel 2 ØJ'!I20<0.5),"-",IFERROR('Tabel 2 ØJ'!I20/'Tabel 1 ØJ'!G18*100,"-")) -> 3.773584906 | J20: =IF(OR('Tabel 1 ØJ'!G18<5,'Tabel 2 ØJ'!J20<0.5),"-",IFERROR('Tabel 2 ØJ'!J20/'Tabel 1 ØJ'!G18*100,"-")) -> 3.053842958
A21: Jordbrugsakad. | C21: =IF(OR('Tabel 1 ØJ'!C19<5,'Tabel 2 ØJ'!C21<0.5),"-",IFERROR('Tabel 2 ØJ'!C21/'Tabel 1 ØJ'!C19*100,"-")) -> 1.593625498 | D21: =IF(OR('Tabel 1 ØJ'!C19<5,'Tabel 2 ØJ'!D21<0.5),"-",IFERROR('Tabel 2 ØJ'!D21/'Tabel 1 ØJ'!C19*100,"-")) -> 1.44149902 | F21: =IF(OR('Tabel 1 ØJ'!E19<5,'Tabel 2 ØJ'!F21<0.5),"-",IFERROR('Tabel 2 ØJ'!F21/'Tabel 1 ØJ'!E19*100,"-")) -> 2.941176471 | G21: =IF(OR('Tabel 1 ØJ'!E19<5,'Tabel 2 ØJ'!G21<0.5),"-",IFERROR('Tabel 2 ØJ'!G21/'Tabel 1 ØJ'!E19*100,"-")) -> 2.211431569 | I21: =IF(OR('Tabel 1 ØJ'!G19<5,'Tabel 2 ØJ'!I21<0.5),"-",IFERROR('Tabel 2 ØJ'!I21/'Tabel 1 ØJ'!G19*100,"-")) -> 2.197802198 | J21: =IF(OR('Tabel 1 ØJ'!G19<5,'Tabel 2 ØJ'!J21<0.5),"-",IFERROR('Tabel 2 ØJ'!J21/'Tabel 1 ØJ'!G19*100,"-")) -> 1.786699548
A22: Mejeriing. | C22: =IF(OR('Tabel 1 ØJ'!C20<5,'Tabel 2 ØJ'!C22<0.5),"-",IFERROR('Tabel 2 ØJ'!C22/'Tabel 1 ØJ'!C20*100,"-")) -> 1.754385965 | D22: =IF(OR('Tabel 1 ØJ'!C20<5,'Tabel 2 ØJ'!D22<0.5),"-",IFERROR('Tabel 2 ØJ'!D22/'Tabel 1 ØJ'!C20*100,"-")) -> 1.459708649 | F22: =IF(OR('Tabel 1 ØJ'!E20<5,'Tabel 2 ØJ'!F22<0.5),"-",IFERROR('Tabel 2 ØJ'!F22/'Tabel 1 ØJ'!E20*100,"-")) -> 3.225806452 | G22: =IF(OR('Tabel 1 ØJ'!E20<5,'Tabel 2 ØJ'!G22<0.5),"-",IFERROR('Tabel 2 ØJ'!G22/'Tabel 1 ØJ'!E20*100,"-")) -> - | I22: =IF(OR('Tabel 1 ØJ'!G20<5,'Tabel 2 ØJ'!I22<0.5),"-",IFERROR('Tabel 2 ØJ'!I22/'Tabel 1 ØJ'!G20*100,"-")) -> 2.272727273 | J22: =IF(OR('Tabel 1 ØJ'!G20<5,'Tabel 2 ØJ'!J22<0.5),"-",IFERROR('Tabel 2 ØJ'!J22/'Tabel 1 ØJ'!G20*100,"-")) -> 1.294914466
A23: Levn.m.kand. | C23: =IF(OR('Tabel 1 ØJ'!C21<5,'Tabel 2 ØJ'!C23<0.5),"-",IFERROR('Tabel 2 ØJ'!C23/'Tabel 1 ØJ'!C21*100,"-")) -> - | D23: =IF(OR('Tabel 1 ØJ'!C21<5,'Tabel 2 ØJ'!D23<0.5),"-",IFERROR('Tabel 2 ØJ'!D23/'Tabel 1 ØJ'!C21*100,"-")) -> - | F23: =IF(OR('Tabel 1 ØJ'!E21<5,'Tabel 2 ØJ'!F23<0.5),"-",IFERROR('Tabel 2 ØJ'!F23/'Tabel 1 ØJ'!E21*100,"-")) -> - | G23: =IF(OR('Tabel 1 ØJ'!E21<5,'Tabel 2 ØJ'!G23<0.5),"-",IFERROR('Tabel 2 ØJ'!G23/'Tabel 1 ØJ'!E21*100,"-")) -> - | I23: =IF(OR('Tabel 1 ØJ'!G21<5,'Tabel 2 ØJ'!I23<0.5),"-",IFERROR('Tabel 2 ØJ'!I23/'Tabel 1 ØJ'!G21*100,"-")) -> 5.882352941 | J23: =IF(OR('Tabel 1 ØJ'!G21<5,'Tabel 2 ØJ'!J23<0.5),"-",IFERROR('Tabel 2 ØJ'!J23/'Tabel 1 ØJ'!G21*100,"-")) -> 5.88125227
A24: Dyrlæge | C24: =IF(OR('Tabel 1 ØJ'!C22<5,'Tabel 2 ØJ'!C24<0.5),"-",IFERROR('Tabel 2 ØJ'!C24/'Tabel 1 ØJ'!C22*100,"-")) -> - | D24: =IF(OR('Tabel 1 ØJ'!C22<5,'Tabel 2 ØJ'!D24<0.5),"-",IFERROR('Tabel 2 ØJ'!D24/'Tabel 1 ØJ'!C22*100,"-")) -> - | F24: =IF(OR('Tabel 1 ØJ'!E22<5,'Tabel 2 ØJ'!F24<0.5),"-",IFERROR('Tabel 2 ØJ'!F24/'Tabel 1 ØJ'!E22*100,"-")) -> 0.4854368932 | G24: =IF(OR('Tabel 1 ØJ'!E22<5,'Tabel 2 ØJ'!G24<0.5),"-",IFERROR('Tabel 2 ØJ'!G24/'Tabel 1 ØJ'!E22*100,"-")) -> 0.4853460611 | I24: =IF(OR('Tabel 1 ØJ'!G22<5,'Tabel 2 ØJ'!I24<0.5),"-",IFERROR('Tabel 2 ØJ'!I24/'Tabel 1 ØJ'!G22*100,"-")) -> 0.4081632653 | J24: =IF(OR('Tabel 1 ØJ'!G22<5,'Tabel 2 ØJ'!J24<0.5),"-",IFERROR('Tabel 2 ØJ'!J24/'Tabel 1 ØJ'!G22*100,"-")) -> 0.4080868922
A25: Farmaceut | C25: =IF(OR('Tabel 1 ØJ'!C23<5,'Tabel 2 ØJ'!C25<0.5),"-",IFERROR('Tabel 2 ØJ'!C25/'Tabel 1 ØJ'!C23*100,"-")) -> 7.5 | D25: =IF(OR('Tabel 1 ØJ'!C23<5,'Tabel 2 ØJ'!D25<0.5),"-",IFERROR('Tabel 2 ØJ'!D25/'Tabel 1 ØJ'!C23*100,"-")) -> 7.037048587 | F25: =IF(OR('Tabel 1 ØJ'!E23<5,'Tabel 2 ØJ'!F25<0.5),"-",IFERROR('Tabel 2 ØJ'!F25/'Tabel 1 ØJ'!E23*100,"-")) -> 7.142857143 | G25: =IF(OR('Tabel 1 ØJ'!E23<5,'Tabel 2 ØJ'!G25<0.5),"-",IFERROR('Tabel 2 ØJ'!G25/'Tabel 1 ØJ'!E23*100,"-")) -> 5.576222256 | I25: =IF(OR('Tabel 1 ØJ'!G23<5,'Tabel 2 ØJ'!I25<0.5),"-",IFERROR('Tabel 2 ØJ'!I25/'Tabel 1 ØJ'!G23*100,"-")) -> 7.222222222 | J25: =IF(OR('Tabel 1 ØJ'!G23<5,'Tabel 2 ØJ'!J25<0.5),"-",IFERROR('Tabel 2 ØJ'!J25/'Tabel 1 ØJ'!G23*100,"-")) -> 5.90085033
A26: Læge | C26: =IF(OR('Tabel 1 ØJ'!C24<5,'Tabel 2 ØJ'!C26<0.5),"-",IFERROR('Tabel 2 ØJ'!C26/'Tabel 1 ØJ'!C24*100,"-")) -> 2.808302808 | D26: =IF(OR('Tabel 1 ØJ'!C24<5,'Tabel 2 ØJ'!D26<0.5),"-",IFERROR('Tabel 2 ØJ'!D26/'Tabel 1 ØJ'!C24*100,"-")) -> 2.564688961 | F26: =IF(OR('Tabel 1 ØJ'!E24<5,'Tabel 2 ØJ'!F26<0.5),"-",IFERROR('Tabel 2 ØJ'!F26/'Tabel 1 ØJ'!E24*100,"-")) -> 2.233766234 | G26: =IF(OR('Tabel 1 ØJ'!E24<5,'Tabel 2 ØJ'!G26<0.5),"-",IFERROR('Tabel 2 ØJ'!G26/'Tabel 1 ØJ'!E24*100,"-")) -> 1.814018327 | I26: =IF(OR('Tabel 1 ØJ'!G24<5,'Tabel 2 ØJ'!I26<0.5),"-",IFERROR('Tabel 2 ØJ'!I26/'Tabel 1 ØJ'!G24*100,"-")) -> 2.405247813 | J26: =IF(OR('Tabel 1 ØJ'!G24<5,'Tabel 2 ØJ'!J26<0.5),"-",IFERROR('Tabel 2 ØJ'!J26/'Tabel 1 ØJ'!G24*100,"-")) -> 2.038070532
A27: Tandlæge | C27: =IF(OR('Tabel 1 ØJ'!C25<5,'Tabel 2 ØJ'!C27<0.5),"-",IFERROR('Tabel 2 ØJ'!C27/'Tabel 1 ØJ'!C25*100,"-")) -> 2.702702703 | D27: =IF(OR('Tabel 1 ØJ'!C25<5,'Tabel 2 ØJ'!D27<0.5),"-",IFERROR('Tabel 2 ØJ'!D27/'Tabel 1 ØJ'!C25*100,"-")) -> 2.053197712 | F27: =IF(OR('Tabel 1 ØJ'!E25<5,'Tabel 2 ØJ'!F27<0.5),"-",IFERROR('Tabel 2 ØJ'!F27/'Tabel 1 ØJ'!E25*100,"-")) -> 0.4987531172 | G27: =IF(OR('Tabel 1 ØJ'!E25<5,'Tabel 2 ØJ'!G27<0.5),"-",IFERROR('Tabel 2 ØJ'!G27/'Tabel 1 ØJ'!E25*100,"-")) -> 0.4986597935 | I27: =IF(OR('Tabel 1 ØJ'!G25<5,'Tabel 2 ØJ'!I27<0.5),"-",IFERROR('Tabel 2 ØJ'!I27/'Tabel 1 ØJ'!G25*100,"-")) -> 0.8421052632 | J27: =IF(OR('Tabel 1 ØJ'!G25<5,'Tabel 2 ØJ'!J27<0.5),"-",IFERROR('Tabel 2 ØJ'!J27/'Tabel 1 ØJ'!G25*100,"-")) -> 0.7408404376
A28: Arkitekt | C28: =IF(OR('Tabel 1 ØJ'!C26<5,'Tabel 2 ØJ'!C28<0.5),"-",IFERROR('Tabel 2 ØJ'!C28/'Tabel 1 ØJ'!C26*100,"-")) -> 4.454022989 | D28: =IF(OR('Tabel 1 ØJ'!C26<5,'Tabel 2 ØJ'!D28<0.5),"-",IFERROR('Tabel 2 ØJ'!D28/'Tabel 1 ØJ'!C26*100,"-")) -> 3.831447496 | F28: =IF(OR('Tabel 1 ØJ'!E26<5,'Tabel 2 ØJ'!F28<0.5),"-",IFERROR('Tabel 2 ØJ'!F28/'Tabel 1 ØJ'!E26*100,"-")) -> 6.387921022 | G28: =IF(OR('Tabel 1 ØJ'!E26<5,'Tabel 2 ØJ'!G28<0.5),"-",IFERROR('Tabel 2 ØJ'!G28/'Tabel 1 ØJ'!E26*100,"-")) -> 5.534027416 | I28: =IF(OR('Tabel 1 ØJ'!G26<5,'Tabel 2 ØJ'!I28<0.5),"-",IFERROR('Tabel 2 ØJ'!I28/'Tabel 1 ØJ'!G26*100,"-")) -> 5.523442518 | J28: =IF(OR('Tabel 1 ØJ'!G26<5,'Tabel 2 ØJ'!J28<0.5),"-",IFERROR('Tabel 2 ØJ'!J28/'Tabel 1 ØJ'!G26*100,"-")) -> 4.772951228
A29: Landinspek. | C29: =IF(OR('Tabel 1 ØJ'!C27<5,'Tabel 2 ØJ'!C29<0.5),"-",IFERROR('Tabel 2 ØJ'!C29/'Tabel 1 ØJ'!C27*100,"-")) -> - | D29: =IF(OR('Tabel 1 ØJ'!C27<5,'Tabel 2 ØJ'!D29<0.5),"-",IFERROR('Tabel 2 ØJ'!D29/'Tabel 1 ØJ'!C27*100,"-")) -> - | F29: =IF(OR('Tabel 1 ØJ'!E27<5,'Tabel 2 ØJ'!F29<0.5),"-",IFERROR('Tabel 2 ØJ'!F29/'Tabel 1 ØJ'!E27*100,"-")) -> - | G29: =IF(OR('Tabel 1 ØJ'!E27<5,'Tabel 2 ØJ'!G29<0.5),"-",IFERROR('Tabel 2 ØJ'!G29/'Tabel 1 ØJ'!E27*100,"-")) -> - | I29: =IF(OR('Tabel 1 ØJ'!G27<5,'Tabel 2 ØJ'!I29<0.5),"-",IFERROR('Tabel 2 ØJ'!I29/'Tabel 1 ØJ'!G27*100,"-")) -> - | J29: =IF(OR('Tabel 1 ØJ'!G27<5,'Tabel 2 ØJ'!J29<0.5),"-",IFERROR('Tabel 2 ØJ'!J29/'Tabel 1 ØJ'!G27*100,"-")) -> -
A30: Bibliotekar | C30: =IF(OR('Tabel 1 ØJ'!C28<5,'Tabel 2 ØJ'!C30<0.5),"-",IFERROR('Tabel 2 ØJ'!C30/'Tabel 1 ØJ'!C28*100,"-")) -> 2.777777778 | D30: =IF(OR('Tabel 1 ØJ'!C28<5,'Tabel 2 ØJ'!D30<0.5),"-",IFERROR('Tabel 2 ØJ'!D30/'Tabel 1 ØJ'!C28*100,"-")) -> 2.392634636 | F30: =IF(OR('Tabel 1 ØJ'!E28<5,'Tabel 2 ØJ'!F30<0.5),"-",IFERROR('Tabel 2 ØJ'!F30/'Tabel 1 ØJ'!E28*100,"-")) -> 3.345724907 | G30: =IF(OR('Tabel 1 ØJ'!E28<5,'Tabel 2 ØJ'!G30<0.5),"-",IFERROR('Tabel 2 ØJ'!G30/'Tabel 1 ØJ'!E28*100,"-")) -> 2.714197507 | I30: =IF(OR('Tabel 1 ØJ'!G28<5,'Tabel 2 ØJ'!I30<0.5),"-",IFERROR('Tabel 2 ØJ'!I30/'Tabel 1 ØJ'!G28*100,"-")) -> 3.225806452 | J30: =IF(OR('Tabel 1 ØJ'!G28<5,'Tabel 2 ØJ'!J30<0.5),"-",IFERROR('Tabel 2 ØJ'!J30/'Tabel 1 ØJ'!G28*100,"-")) -> 2.646301534
A31: Musikudd. | C31: =IF(OR('Tabel 1 ØJ'!C29<5,'Tabel 2 ØJ'!C31<0.5),"-",IFERROR('Tabel 2 ØJ'!C31/'Tabel 1 ØJ'!C29*100,"-")) -> 4.545454545 | D31: =IF(OR('Tabel 1 ØJ'!C29<5,'Tabel 2 ØJ'!D31<0.5),"-",IFERROR('Tabel 2 ØJ'!D31/'Tabel 1 ØJ'!C29*100,"-")) -> 3.701645659 | F31: =IF(OR('Tabel 1 ØJ'!E29<5,'Tabel 2 ØJ'!F31<0.5),"-",IFERROR('Tabel 2 ØJ'!F31/'Tabel 1 ØJ'!E29*100,"-")) -> 6.578947368 | G31: =IF(OR('Tabel 1 ØJ'!E29<5,'Tabel 2 ØJ'!G31<0.5),"-",IFERROR('Tabel 2 ØJ'!G31/'Tabel 1 ØJ'!E29*100,"-")) -> 5.016791026 | I31: =IF(OR('Tabel 1 ØJ'!G29<5,'Tabel 2 ØJ'!I31<0.5),"-",IFERROR('Tabel 2 ØJ'!I31/'Tabel 1 ØJ'!G29*100,"-")) -> 5.633802817 | J31: =IF(OR('Tabel 1 ØJ'!G29<5,'Tabel 2 ØJ'!J31<0.5),"-",IFERROR('Tabel 2 ØJ'!J31/'Tabel 1 ØJ'!G29*100,"-")) -> 4.405526278
A32: Teolog | C32: =IF(OR('Tabel 1 ØJ'!C30<5,'Tabel 2 ØJ'!C32<0.5),"-",IFERROR('Tabel 2 ØJ'!C32/'Tabel 1 ØJ'!C30*100,"-")) -> 5.64516129 | D32: =IF(OR('Tabel 1 ØJ'!C30<5,'Tabel 2 ØJ'!D32<0.5),"-",IFERROR('Tabel 2 ØJ'!D32/'Tabel 1 ØJ'!C30*100,"-")) -> 4.596366768 | F32: =IF(OR('Tabel 1 ØJ'!E30<5,'Tabel 2 ØJ'!F32<0.5),"-",IFERROR('Tabel 2 ØJ'!F32/'Tabel 1 ØJ'!E30*100,"-")) -> 3.9408867 | G32: =IF(OR('Tabel 1 ØJ'!E30<5,'Tabel 2 ØJ'!G32<0.5),"-",IFERROR('Tabel 2 ØJ'!G32/'Tabel 1 ØJ'!E30*100,"-")) -> 3.791133988 | I32: =IF(OR('Tabel 1 ØJ'!G30<5,'Tabel 2 ØJ'!I32<0.5),"-",IFERROR('Tabel 2 ØJ'!I32/'Tabel 1 ØJ'!G30*100,"-")) -> 4.587155963 | J32: =IF(OR('Tabel 1 ØJ'!G30<5,'Tabel 2 ØJ'!J32<0.5),"-",IFERROR('Tabel 2 ØJ'!J32/'Tabel 1 ØJ'!G30*100,"-")) -> 4.096482198
A33: Psykolog | C33: =IF(OR('Tabel 1 ØJ'!C31<5,'Tabel 2 ØJ'!C33<0.5),"-",IFERROR('Tabel 2 ØJ'!C33/'Tabel 1 ØJ'!C31*100,"-")) -> 5.539358601 | D33: =IF(OR('Tabel 1 ØJ'!C31<5,'Tabel 2 ØJ'!D33<0.5),"-",IFERROR('Tabel 2 ØJ'!D33/'Tabel 1 ØJ'!C31*100,"-")) -> 4.978798284 | F33: =IF(OR('Tabel 1 ØJ'!E31<5,'Tabel 2 ØJ'!F33<0.5),"-",IFERROR('Tabel 2 ØJ'!F33/'Tabel 1 ØJ'!E31*100,"-")) -> 4.733373277 | G33: =IF(OR('Tabel 1 ØJ'!E31<5,'Tabel 2 ØJ'!G33<0.5),"-",IFERROR('Tabel 2 ØJ'!G33/'Tabel 1 ØJ'!E31*100,"-")) -> 3.960188911 | I33: =IF(OR('Tabel 1 ØJ'!G31<5,'Tabel 2 ØJ'!I33<0.5),"-",IFERROR('Tabel 2 ØJ'!I33/'Tabel 1 ØJ'!G31*100,"-")) -> 4.870775348 | J33: =IF(OR('Tabel 1 ØJ'!G31<5,'Tabel 2 ØJ'!J33<0.5),"-",IFERROR('Tabel 2 ØJ'!J33/'Tabel 1 ØJ'!G31*100,"-")) -> 4.133838521
A34: Jurist | C34: =IF(OR('Tabel 1 ØJ'!C32<5,'Tabel 2 ØJ'!C34<0.5),"-",IFERROR('Tabel 2 ØJ'!C34/'Tabel 1 ØJ'!C32*100,"-")) -> 1.929625426 | D34: =IF(OR('Tabel 1 ØJ'!C32<5,'Tabel 2 ØJ'!D34<0.5),"-",IFERROR('Tabel 2 ØJ'!D34/'Tabel 1 ØJ'!C32*100,"-")) -> 1.811672053 | F34: =IF(OR('Tabel 1 ØJ'!E32<5,'Tabel 2 ØJ'!F34<0.5),"-",IFERROR('Tabel 2 ØJ'!F34/'Tabel 1 ØJ'!E32*100,"-")) -> 1.671826625 | G34: =IF(OR('Tabel 1 ØJ'!E32<5,'Tabel 2 ØJ'!G34<0.5),"-",IFERROR('Tabel 2 ØJ'!G34/'Tabel 1 ØJ'!E32*100,"-")) -> 1.482314244 | I34: =IF(OR('Tabel 1 ØJ'!G32<5,'Tabel 2 ØJ'!I34<0.5),"-",IFERROR('Tabel 2 ØJ'!I34/'Tabel 1 ØJ'!G32*100,"-")) -> 1.762820513 | J34: =IF(OR('Tabel 1 ØJ'!G32<5,'Tabel 2 ØJ'!J34<0.5),"-",IFERROR('Tabel 2 ØJ'!J34/'Tabel 1 ØJ'!G32*100,"-")) -> 1.598565939
A35: Økonom | C35: =IF(OR('Tabel 1 ØJ'!C33<5,'Tabel 2 ØJ'!C35<0.5),"-",IFERROR('Tabel 2 ØJ'!C35/'Tabel 1 ØJ'!C33*100,"-")) -> 1.600853789 | D35: =IF(OR('Tabel 1 ØJ'!C33<5,'Tabel 2 ØJ'!D35<0.5),"-",IFERROR('Tabel 2 ØJ'!D35/'Tabel 1 ØJ'!C33*100,"-")) -> 1.250955124 | F35: =IF(OR('Tabel 1 ØJ'!E33<5,'Tabel 2 ØJ'!F35<0.5),"-",IFERROR('Tabel 2 ØJ'!F35/'Tabel 1 ØJ'!E33*100,"-")) -> 1.901140684 | G35: =IF(OR('Tabel 1 ØJ'!E33<5,'Tabel 2 ØJ'!G35<0.5),"-",IFERROR('Tabel 2 ØJ'!G35/'Tabel 1 ØJ'!E33*100,"-")) -> 1.488375093 | I35: =IF(OR('Tabel 1 ØJ'!G33<5,'Tabel 2 ØJ'!I35<0.5),"-",IFERROR('Tabel 2 ØJ'!I35/'Tabel 1 ØJ'!G33*100,"-")) -> 1.708817498 | J35: =IF(OR('Tabel 1 ØJ'!G33<5,'Tabel 2 ØJ'!J35<0.5),"-",IFERROR('Tabel 2 ØJ'!J35/'Tabel 1 ØJ'!G33*100,"-")) -> 1.33631596
A36: Samf. Adm. | C36: =IF(OR('Tabel 1 ØJ'!C34<5,'Tabel 2 ØJ'!C36<0.5),"-",IFERROR('Tabel 2 ØJ'!C36/'Tabel 1 ØJ'!C34*100,"-")) -> 4.304869442 | D36: =IF(OR('Tabel 1 ØJ'!C34<5,'Tabel 2 ØJ'!D36<0.5),"-",IFERROR('Tabel 2 ØJ'!D36/'Tabel 1 ØJ'!C34*100,"-")) -> 3.951755996 | F36: =IF(OR('Tabel 1 ØJ'!E34<5,'Tabel 2 ØJ'!F36<0.5),"-",IFERROR('Tabel 2 ØJ'!F36/'Tabel 1 ØJ'!E34*100,"-")) -> 5.533399801 | G36: =IF(OR('Tabel 1 ØJ'!E34<5,'Tabel 2 ØJ'!G36<0.5),"-",IFERROR('Tabel 2 ØJ'!G36/'Tabel 1 ØJ'!E34*100,"-")) -> 4.549657956 | I36: =IF(OR('Tabel 1 ØJ'!G34<5,'Tabel 2 ØJ'!I36<0.5),"-",IFERROR('Tabel 2 ØJ'!I36/'Tabel 1 ØJ'!G34*100,"-")) -> 5.024832019 | J36: =IF(OR('Tabel 1 ØJ'!G34<5,'Tabel 2 ØJ'!J36<0.5),"-",IFERROR('Tabel 2 ØJ'!J36/'Tabel 1 ØJ'!G34*100,"-")) -> 4.302147854
A37: Cand. Merc. | C37: =IF(OR('Tabel 1 ØJ'!C35<5,'Tabel 2 ØJ'!C37<0.5),"-",IFERROR('Tabel 2 ØJ'!C37/'Tabel 1 ØJ'!C35*100,"-")) -> 2.360346184 | D37: =IF(OR('Tabel 1 ØJ'!C35<5,'Tabel 2 ØJ'!D37<0.5),"-",IFERROR('Tabel 2 ØJ'!D37/'Tabel 1 ØJ'!C35*100,"-")) -> 2.083739921 | F37: =IF(OR('Tabel 1 ØJ'!E35<5,'Tabel 2 ØJ'!F37<0.5),"-",IFERROR('Tabel 2 ØJ'!F37/'Tabel 1 ØJ'!E35*100,"-")) -> 3.167290527 | G37: =IF(OR('Tabel 1 ØJ'!E35<5,'Tabel 2 ØJ'!G37<0.5),"-",IFERROR('Tabel 2 ØJ'!G37/'Tabel 1 ØJ'!E35*100,"-")) -> 2.771457781 | I37: =IF(OR('Tabel 1 ØJ'!G35<5,'Tabel 2 ØJ'!I37<0.5),"-",IFERROR('Tabel 2 ØJ'!I37/'Tabel 1 ØJ'!G35*100,"-")) -> 2.744990393 | J37: =IF(OR('Tabel 1 ØJ'!G35<5,'Tabel 2 ØJ'!J37<0.5),"-",IFERROR('Tabel 2 ØJ'!J37/'Tabel 1 ØJ'!G35*100,"-")) -> 2.41155273
A38: HA | C38: =IF(OR('Tabel 1 ØJ'!C36<5,'Tabel 2 ØJ'!C38<0.5),"-",IFERROR('Tabel 2 ØJ'!C38/'Tabel 1 ØJ'!C36*100,"-")) -> 4.368932039 | D38: =IF(OR('Tabel 1 ØJ'!C36<5,'Tabel 2 ØJ'!D38<0.5),"-",IFERROR('Tabel 2 ØJ'!D38/'Tabel 1 ØJ'!C36*100,"-")) -> 3.566975637 | F38: =IF(OR('Tabel 1 ØJ'!E36<5,'Tabel 2 ØJ'!F38<0.5),"-",IFERROR('Tabel 2 ØJ'!F38/'Tabel 1 ØJ'!E36*100,"-")) -> 3.947368421 | G38: =IF(OR('Tabel 1 ØJ'!E36<5,'Tabel 2 ØJ'!G38<0.5),"-",IFERROR('Tabel 2 ØJ'!G38/'Tabel 1 ØJ'!E36*100,"-")) -> 3.220917947 | I38: =IF(OR('Tabel 1 ØJ'!G36<5,'Tabel 2 ØJ'!I38<0.5),"-",IFERROR('Tabel 2 ØJ'!I38/'Tabel 1 ØJ'!G36*100,"-")) -> 4.173913043 | J38: =IF(OR('Tabel 1 ØJ'!G36<5,'Tabel 2 ØJ'!J38<0.5),"-",IFERROR('Tabel 2 ØJ'!J38/'Tabel 1 ØJ'!G36*100,"-")) -> 3.40688634
A39: HD | C39: =IF(OR('Tabel 1 ØJ'!C37<5,'Tabel 2 ØJ'!C39<0.5),"-",IFERROR('Tabel 2 ØJ'!C39/'Tabel 1 ØJ'!C37*100,"-")) -> 3.311258278 | D39: =IF(OR('Tabel 1 ØJ'!C37<5,'Tabel 2 ØJ'!D39<0.5),"-",IFERROR('Tabel 2 ØJ'!D39/'Tabel 1 ØJ'!C37*100,"-")) -> 2.866328815 | F39: =IF(OR('Tabel 1 ØJ'!E37<5,'Tabel 2 ØJ'!F39<0.5),"-",IFERROR('Tabel 2 ØJ'!F39/'Tabel 1 ØJ'!E37*100,"-")) -> 2.374670185 | G39: =IF(OR('Tabel 1 ØJ'!E37<5,'Tabel 2 ØJ'!G39<0.5),"-",IFERROR('Tabel 2 ØJ'!G39/'Tabel 1 ØJ'!E37*100,"-")) -> 1.948816977 | I39: =IF(OR('Tabel 1 ØJ'!G37<5,'Tabel 2 ØJ'!I39<0.5),"-",IFERROR('Tabel 2 ØJ'!I39/'Tabel 1 ØJ'!G37*100,"-")) -> 2.884615385 | J39: =IF(OR('Tabel 1 ØJ'!G37<5,'Tabel 2 ØJ'!J39<0.5),"-",IFERROR('Tabel 2 ØJ'!J39/'Tabel 1 ØJ'!G37*100,"-")) -> 2.448375706
A40: Komm. og Sprog | C40: =IF(OR('Tabel 1 ØJ'!C38<5,'Tabel 2 ØJ'!C40<0.5),"-",IFERROR('Tabel 2 ØJ'!C40/'Tabel 1 ØJ'!C38*100,"-")) -> 7.514450867 | D40: =IF(OR('Tabel 1 ØJ'!C38<5,'Tabel 2 ØJ'!D40<0.5),"-",IFERROR('Tabel 2 ØJ'!D40/'Tabel 1 ØJ'!C38*100,"-")) -> 6.601269275 | F40: =IF(OR('Tabel 1 ØJ'!E38<5,'Tabel 2 ØJ'!F40<0.5),"-",IFERROR('Tabel 2 ØJ'!F40/'Tabel 1 ØJ'!E38*100,"-")) -> 3.663003663 | G40: =IF(OR('Tabel 1 ØJ'!E38<5,'Tabel 2 ØJ'!G40<0.5),"-",IFERROR('Tabel 2 ØJ'!G40/'Tabel 1 ØJ'!E38*100,"-")) -> 3.173114334 | I40: =IF(OR('Tabel 1 ØJ'!G38<5,'Tabel 2 ØJ'!I40<0.5),"-",IFERROR('Tabel 2 ØJ'!I40/'Tabel 1 ØJ'!G38*100,"-")) -> 4.18972332 | J40: =IF(OR('Tabel 1 ØJ'!G38<5,'Tabel 2 ØJ'!J40<0.5),"-",IFERROR('Tabel 2 ØJ'!J40/'Tabel 1 ØJ'!G38*100,"-")) -> 3.64194501
A41: Bygningskonst. | C41: =IF(OR('Tabel 1 ØJ'!C39<5,'Tabel 2 ØJ'!C41<0.5),"-",IFERROR('Tabel 2 ØJ'!C41/'Tabel 1 ØJ'!C39*100,"-")) -> 3.848075962 | D41: =IF(OR('Tabel 1 ØJ'!C39<5,'Tabel 2 ØJ'!D41<0.5),"-",IFERROR('Tabel 2 ØJ'!D41/'Tabel 1 ØJ'!C39*100,"-")) -> 3.487216661 | F41: =IF(OR('Tabel 1 ØJ'!E39<5,'Tabel 2 ØJ'!F41<0.5),"-",IFERROR('Tabel 2 ØJ'!F41/'Tabel 1 ØJ'!E39*100,"-")) -> 8.033240997 | G41: =IF(OR('Tabel 1 ØJ'!E39<5,'Tabel 2 ØJ'!G41<0.5),"-",IFERROR('Tabel 2 ØJ'!G41/'Tabel 1 ØJ'!E39*100,"-")) -> 7.366333945 | I41: =IF(OR('Tabel 1 ØJ'!G39<5,'Tabel 2 ØJ'!I41<0.5),"-",IFERROR('Tabel 2 ØJ'!I41/'Tabel 1 ØJ'!G39*100,"-")) -> 4.487722269 | J41: =IF(OR('Tabel 1 ØJ'!G39<5,'Tabel 2 ØJ'!J41<0.5),"-",IFERROR('Tabel 2 ØJ'!J41/'Tabel 1 ØJ'!G39*100,"-")) -> 4.080087677
A42: Cand. IT. | C42: =IF(OR('Tabel 1 ØJ'!C40<5,'Tabel 2 ØJ'!C42<0.5),"-",IFERROR('Tabel 2 ØJ'!C42/'Tabel 1 ØJ'!C40*100,"-")) -> 4.562043796 | D42: =IF(OR('Tabel 1 ØJ'!C40<5,'Tabel 2 ØJ'!D42<0.5),"-",IFERROR('Tabel 2 ØJ'!D42/'Tabel 1 ØJ'!C40*100,"-")) -> 4.141890745 | F42: =IF(OR('Tabel 1 ØJ'!E40<5,'Tabel 2 ØJ'!F42<0.5),"-",IFERROR('Tabel 2 ØJ'!F42/'Tabel 1 ØJ'!E40*100,"-")) -> 5.544933078 | G42: =IF(OR('Tabel 1 ØJ'!E40<5,'Tabel 2 ØJ'!G42<0.5),"-",IFERROR('Tabel 2 ØJ'!G42/'Tabel 1 ØJ'!E40*100,"-")) -> 4.929483991 | I42: =IF(OR('Tabel 1 ØJ'!G40<5,'Tabel 2 ØJ'!I42<0.5),"-",IFERROR('Tabel 2 ØJ'!I42/'Tabel 1 ØJ'!G40*100,"-")) -> 5.042016807 | J42: =IF(OR('Tabel 1 ØJ'!G40<5,'Tabel 2 ØJ'!J42<0.5),"-",IFERROR('Tabel 2 ØJ'!J42/'Tabel 1 ØJ'!G40*100,"-")) -> 4.526495103
A43: Bac. Samf. | C43: =IF(OR('Tabel 1 ØJ'!C41<5,'Tabel 2 ØJ'!C43<0.5),"-",IFERROR('Tabel 2 ØJ'!C43/'Tabel 1 ØJ'!C41*100,"-")) -> 10.30927835 | D43: =IF(OR('Tabel 1 ØJ'!C41<5,'Tabel 2 ØJ'!D43<0.5),"-",IFERROR('Tabel 2 ØJ'!D43/'Tabel 1 ØJ'!C41*100,"-")) -> 9.668846664 | F43: =IF(OR('Tabel 1 ØJ'!E41<5,'Tabel 2 ØJ'!F43<0.5),"-",IFERROR('Tabel 2 ØJ'!F43/'Tabel 1 ØJ'!E41*100,"-")) -> 10.11235955 | G43: =IF(OR('Tabel 1 ØJ'!E41<5,'Tabel 2 ØJ'!G43<0.5),"-",IFERROR('Tabel 2 ØJ'!G43/'Tabel 1 ØJ'!E41*100,"-")) -> 8.664012497 | I43: =IF(OR('Tabel 1 ØJ'!G41<5,'Tabel 2 ØJ'!I43<0.5),"-",IFERROR('Tabel 2 ØJ'!I43/'Tabel 1 ØJ'!G41*100,"-")) -> 10.21505376 | J43: =IF(OR('Tabel 1 ØJ'!G41<5,'Tabel 2 ØJ'!J43<0.5),"-",IFERROR('Tabel 2 ØJ'!J43/'Tabel 1 ØJ'!G41*100,"-")) -> 9.188038917
A44: Bac. Hum. | C44: =IF(OR('Tabel 1 ØJ'!C42<5,'Tabel 2 ØJ'!C44<0.5),"-",IFERROR('Tabel 2 ØJ'!C44/'Tabel 1 ØJ'!C42*100,"-")) -> 13.58381503 | D44: =IF(OR('Tabel 1 ØJ'!C42<5,'Tabel 2 ØJ'!D44<0.5),"-",IFERROR('Tabel 2 ØJ'!D44/'Tabel 1 ØJ'!C42*100,"-")) -> 10.82269265 | F44: =IF(OR('Tabel 1 ØJ'!E42<5,'Tabel 2 ØJ'!F44<0.5),"-",IFERROR('Tabel 2 ØJ'!F44/'Tabel 1 ØJ'!E42*100,"-")) -> 17.88756388 | G44: =IF(OR('Tabel 1 ØJ'!E42<5,'Tabel 2 ØJ'!G44<0.5),"-",IFERROR('Tabel 2 ØJ'!G44/'Tabel 1 ØJ'!E42*100,"-")) -> 14.03653092 | I44: =IF(OR('Tabel 1 ØJ'!G42<5,'Tabel 2 ØJ'!I44<0.5),"-",IFERROR('Tabel 2 ØJ'!I44/'Tabel 1 ØJ'!G42*100,"-")) -> 16.29153269 | J44: =IF(OR('Tabel 1 ØJ'!G42<5,'Tabel 2 ØJ'!J44<0.5),"-",IFERROR('Tabel 2 ØJ'!J44/'Tabel 1 ØJ'!G42*100,"-")) -> 12.8446895
A45: Bac. Nat. | C45: =IF(OR('Tabel 1 ØJ'!C43<5,'Tabel 2 ØJ'!C45<0.5),"-",IFERROR('Tabel 2 ØJ'!C45/'Tabel 1 ØJ'!C43*100,"-")) -> 7.731092437 | D45: =IF(OR('Tabel 1 ØJ'!C43<5,'Tabel 2 ØJ'!D45<0.5),"-",IFERROR('Tabel 2 ØJ'!D45/'Tabel 1 ØJ'!C43*100,"-")) -> 6.829925883 | F45: =IF(OR('Tabel 1 ØJ'!E43<5,'Tabel 2 ØJ'!F45<0.5),"-",IFERROR('Tabel 2 ØJ'!F45/'Tabel 1 ØJ'!E43*100,"-")) -> 11.46788991 | G45: =IF(OR('Tabel 1 ØJ'!E43<5,'Tabel 2 ØJ'!G45<0.5),"-",IFERROR('Tabel 2 ØJ'!G45/'Tabel 1 ØJ'!E43*100,"-")) -> 9.903312949 | I45: =IF(OR('Tabel 1 ØJ'!G43<5,'Tabel 2 ØJ'!I45<0.5),"-",IFERROR('Tabel 2 ØJ'!I45/'Tabel 1 ØJ'!G43*100,"-")) -> 8.733087331 | J45: =IF(OR('Tabel 1 ØJ'!G43<5,'Tabel 2 ØJ'!J45<0.5),"-",IFERROR('Tabel 2 ØJ'!J45/'Tabel 1 ØJ'!G43*100,"-")) -> 7.654032132
A46: Andre | C46: =IF(OR('Tabel 1 ØJ'!C44<5,'Tabel 2 ØJ'!C46<0.5),"-",IFERROR('Tabel 2 ØJ'!C46/'Tabel 1 ØJ'!C44*100,"-")) -> 5.086705202 | D46: =IF(OR('Tabel 1 ØJ'!C44<5,'Tabel 2 ØJ'!D46<0.5),"-",IFERROR('Tabel 2 ØJ'!D46/'Tabel 1 ØJ'!C44*100,"-")) -> 4.453278985 | F46: =IF(OR('Tabel 1 ØJ'!E44<5,'Tabel 2 ØJ'!F46<0.5),"-",IFERROR('Tabel 2 ØJ'!F46/'Tabel 1 ØJ'!E44*100,"-")) -> 6.868304978 | G46: =IF(OR('Tabel 1 ØJ'!E44<5,'Tabel 2 ØJ'!G46<0.5),"-",IFERROR('Tabel 2 ØJ'!G46/'Tabel 1 ØJ'!E44*100,"-")) -> 5.84738369 | I46: =IF(OR('Tabel 1 ØJ'!G44<5,'Tabel 2 ØJ'!I46<0.5),"-",IFERROR('Tabel 2 ØJ'!I46/'Tabel 1 ØJ'!G44*100,"-")) -> 5.939101598 | J46: =IF(OR('Tabel 1 ØJ'!G44<5,'Tabel 2 ØJ'!J46<0.5),"-",IFERROR('Tabel 2 ØJ'!J46/'Tabel 1 ØJ'!G44*100,"-")) -> 5.120280543
A48: Total | C48: =IF(OR('Tabel 1 ØJ'!C46<5,'Tabel 2 ØJ'!C48<0.5),"-",IFERROR('Tabel 2 ØJ'!C48/'Tabel 1 ØJ'!C46*100,"-")) -> 4.04659718 | D48: =IF(OR('Tabel 1 ØJ'!C46<5,'Tabel 2 ØJ'!D48<0.5),"-",IFERROR('Tabel 2 ØJ'!D48/'Tabel 1 ØJ'!C46*100,"-")) -> 3.521325938 | F48: =IF(OR('Tabel 1 ØJ'!E46<5,'Tabel 2 ØJ'!F48<0.5),"-",IFERROR('Tabel 2 ØJ'!F48/'Tabel 1 ØJ'!E46*100,"-")) -> 5.328064753 | G48: =IF(OR('Tabel 1 ØJ'!E46<5,'Tabel 2 ØJ'!G48<0.5),"-",IFERROR('Tabel 2 ØJ'!G48/'Tabel 1 ØJ'!E46*100,"-")) -> 4.483397229 | I48: =IF(OR('Tabel 1 ØJ'!G46<5,'Tabel 2 ØJ'!I48<0.5),"-",IFERROR('Tabel 2 ØJ'!I48/'Tabel 1 ØJ'!G46*100,"-")) -> 4.674926954 | J48: =IF(OR('Tabel 1 ØJ'!G46<5,'Tabel 2 ØJ'!J48<0.5),"-",IFERROR('Tabel 2 ØJ'!J48/'Tabel 1 ØJ'!G46*100,"-")) -> 3.993049179
A50: Ingeniører i alt | C50: =IF(OR('Tabel 1 ØJ'!C48<5,'Tabel 2 ØJ'!C50<0.5),"-",IFERROR('Tabel 2 ØJ'!C50/'Tabel 1 ØJ'!C48*100,"-")) -> 2.282269351 | D50: =IF(OR('Tabel 1 ØJ'!C48<5,'Tabel 2 ØJ'!D50<0.5),"-",IFERROR('Tabel 2 ØJ'!D50/'Tabel 1 ØJ'!C48*100,"-")) -> 1.981655381 | F50: =IF(OR('Tabel 1 ØJ'!E48<5,'Tabel 2 ØJ'!F50<0.5),"-",IFERROR('Tabel 2 ØJ'!F50/'Tabel 1 ØJ'!E48*100,"-")) -> 2.606537029 | G50: =IF(OR('Tabel 1 ØJ'!E48<5,'Tabel 2 ØJ'!G50<0.5),"-",IFERROR('Tabel 2 ØJ'!G50/'Tabel 1 ØJ'!E48*100,"-")) -> 2.204390144 | I50: =IF(OR('Tabel 1 ØJ'!G48<5,'Tabel 2 ØJ'!I50<0.5),"-",IFERROR('Tabel 2 ØJ'!I50/'Tabel 1 ØJ'!G48*100,"-")) -> 2.349222621 | J50: =IF(OR('Tabel 1 ØJ'!G48<5,'Tabel 2 ØJ'!J50<0.5),"-",IFERROR('Tabel 2 ØJ'!J50/'Tabel 1 ØJ'!G48*100,"-")) -> 2.02764461
A51: Magistre i alt | C51: =IF(OR('Tabel 1 ØJ'!C49<5,'Tabel 2 ØJ'!C51<0.5),"-",IFERROR('Tabel 2 ØJ'!C51/'Tabel 1 ØJ'!C49*100,"-")) -> 7.242339833 | D51: =IF(OR('Tabel 1 ØJ'!C49<5,'Tabel 2 ØJ'!D51<0.5),"-",IFERROR('Tabel 2 ØJ'!D51/'Tabel 1 ØJ'!C49*100,"-")) -> 6.226488349 | F51: =IF(OR('Tabel 1 ØJ'!E49<5,'Tabel 2 ØJ'!F51<0.5),"-",IFERROR('Tabel 2 ØJ'!F51/'Tabel 1 ØJ'!E49*100,"-")) -> 7.771469127 | G51: =IF(OR('Tabel 1 ØJ'!E49<5,'Tabel 2 ØJ'!G51<0.5),"-",IFERROR('Tabel 2 ØJ'!G51/'Tabel 1 ØJ'!E49*100,"-")) -> 6.525391333 | I51: =IF(OR('Tabel 1 ØJ'!G49<5,'Tabel 2 ØJ'!I51<0.5),"-",IFERROR('Tabel 2 ØJ'!I51/'Tabel 1 ØJ'!G49*100,"-")) -> 7.574183976 | J51: =IF(OR('Tabel 1 ØJ'!G49<5,'Tabel 2 ØJ'!J51<0.5),"-",IFERROR('Tabel 2 ØJ'!J51/'Tabel 1 ØJ'!G49*100,"-")) -> 6.413945755
A52: DJØF'ere i alt | C52: =IF(OR('Tabel 1 ØJ'!C50<5,'Tabel 2 ØJ'!C52<0.5),"-",IFERROR('Tabel 2 ØJ'!C52/'Tabel 1 ØJ'!C50*100,"-")) -> 2.739368641 | D52: =IF(OR('Tabel 1 ØJ'!C50<5,'Tabel 2 ØJ'!D52<0.5),"-",IFERROR('Tabel 2 ØJ'!D52/'Tabel 1 ØJ'!C50*100,"-")) -> 2.415543639 | F52: =IF(OR('Tabel 1 ØJ'!E50<5,'Tabel 2 ØJ'!F52<0.5),"-",IFERROR('Tabel 2 ØJ'!F52/'Tabel 1 ØJ'!E50*100,"-")) -> 3.422473013 | G52: =IF(OR('Tabel 1 ØJ'!E50<5,'Tabel 2 ØJ'!G52<0.5),"-",IFERROR('Tabel 2 ØJ'!G52/'Tabel 1 ØJ'!E50*100,"-")) -> 2.900176384 | I52: =IF(OR('Tabel 1 ØJ'!G50<5,'Tabel 2 ØJ'!I52<0.5),"-",IFERROR('Tabel 2 ØJ'!I52/'Tabel 1 ØJ'!G50*100,"-")) -> 3.091414844 | J52: =IF(OR('Tabel 1 ØJ'!G50<5,'Tabel 2 ØJ'!J52<0.5),"-",IFERROR('Tabel 2 ØJ'!J52/'Tabel 1 ØJ'!G50*100,"-")) -> 2.665305059
A57: Horsens
C59: Mænd | F59: Kvinder | I59: I alt
C60: Ledigheds- berørte | D60: Gns. brutto- ledighed | F60: Ledigheds- berørte | G60: Gns. brutto- ledighed | I60: Ledigheds- berørte | J60: Gns. brutto- ledighed
A63: Civ. ing. | C63: =IF(OR('Tabel 1 ØJ'!C61<5,'Tabel 2 ØJ'!C63<0.5),"-",IFERROR('Tabel 2 ØJ'!C63/'Tabel 1 ØJ'!C61*100,"-")) -> 2.575107296 | D63: =IF(OR('Tabel 1 ØJ'!C61<5,'Tabel 2 ØJ'!D63<0.5),"-",IFERROR('Tabel 2 ØJ'!D63/'Tabel 1 ØJ'!C61*100,"-")) -> 2.535007598 | F63: =IF(OR('Tabel 1 ØJ'!E61<5,'Tabel 2 ØJ'!F63<0.5),"-",IFERROR('Tabel 2 ØJ'!F63/'Tabel 1 ØJ'!E61*100,"-")) -> 3.370786517 | G63: =IF(OR('Tabel 1 ØJ'!E61<5,'Tabel 2 ØJ'!G63<0.5),"-",IFERROR('Tabel 2 ØJ'!G63/'Tabel 1 ØJ'!E61*100,"-")) -> 2.613289865 | I63: =IF(OR('Tabel 1 ØJ'!G61<5,'Tabel 2 ØJ'!I63<0.5),"-",IFERROR('Tabel 2 ØJ'!I63/'Tabel 1 ØJ'!G61*100,"-")) -> 2.795031056 | J63: =IF(OR('Tabel 1 ØJ'!G61<5,'Tabel 2 ØJ'!J63<0.5),"-",IFERROR('Tabel 2 ØJ'!J63/'Tabel 1 ØJ'!G61*100,"-")) -> 2.556644622
A64: Diplom ing. | C64: =IF(OR('Tabel 1 ØJ'!C62<5,'Tabel 2 ØJ'!C64<0.5),"-",IFERROR('Tabel 2 ØJ'!C64/'Tabel 1 ØJ'!C62*100,"-")) -> 1.687763713 | D64: =IF(OR('Tabel 1 ØJ'!C62<5,'Tabel 2 ØJ'!D64<0.5),"-",IFERROR('Tabel 2 ØJ'!D64/'Tabel 1 ØJ'!C62*100,"-")) -> 1.518141688 | F64: =IF(OR('Tabel 1 ØJ'!E62<5,'Tabel 2 ØJ'!F64<0.5),"-",IFERROR('Tabel 2 ØJ'!F64/'Tabel 1 ØJ'!E62*100,"-")) -> 2.542372881 | G64: =IF(OR('Tabel 1 ØJ'!E62<5,'Tabel 2 ØJ'!G64<0.5),"-",IFERROR('Tabel 2 ØJ'!G64/'Tabel 1 ØJ'!E62*100,"-")) -> 2.052969141 | I64: =IF(OR('Tabel 1 ØJ'!G62<5,'Tabel 2 ØJ'!I64<0.5),"-",IFERROR('Tabel 2 ØJ'!I64/'Tabel 1 ØJ'!G62*100,"-")) -> 1.900739176 | J64: =IF(OR('Tabel 1 ØJ'!G62<5,'Tabel 2 ØJ'!J64<0.5),"-",IFERROR('Tabel 2 ØJ'!J64/'Tabel 1 ØJ'!G62*100,"-")) -> 1.651424981
A65: Cand. Scient. Tek. | C65: =IF(OR('Tabel 1 ØJ'!C63<5,'Tabel 2 ØJ'!C65<0.5),"-",IFERROR('Tabel 2 ØJ'!C65/'Tabel 1 ØJ'!C63*100,"-")) -> 5.050505051 | D65: =IF(OR('Tabel 1 ØJ'!C63<5,'Tabel 2 ØJ'!D65<0.5),"-",IFERROR('Tabel 2 ØJ'!D65/'Tabel 1 ØJ'!C63*100,"-")) -> 4.063588546 | F65: =IF(OR('Tabel 1 ØJ'!E63<5,'Tabel 2 ØJ'!F65<0.5),"-",IFERROR('Tabel 2 ØJ'!F65/'Tabel 1 ØJ'!E63*100,"-")) -> 7.692307692 | G65: =IF(OR('Tabel 1 ØJ'!E63<5,'Tabel 2 ØJ'!G65<0.5),"-",IFERROR('Tabel 2 ØJ'!G65/'Tabel 1 ØJ'!E63*100,"-")) -> 7.039967247 | I65: =IF(OR('Tabel 1 ØJ'!G63<5,'Tabel 2 ØJ'!I65<0.5),"-",IFERROR('Tabel 2 ØJ'!I65/'Tabel 1 ØJ'!G63*100,"-")) -> 6.214689266 | J65: =IF(OR('Tabel 1 ØJ'!G63<5,'Tabel 2 ØJ'!J65<0.5),"-",IFERROR('Tabel 2 ØJ'!J65/'Tabel 1 ØJ'!G63*100,"-")) -> 5.375213058
A66: MA. Hum. | C66: =IF(OR('Tabel 1 ØJ'!C64<5,'Tabel 2 ØJ'!C66<0.5),"-",IFERROR('Tabel 2 ØJ'!C66/'Tabel 1 ØJ'!C64*100,"-")) -> 4.511278195 | D66: =IF(OR('Tabel 1 ØJ'!C64<5,'Tabel 2 ØJ'!D66<0.5),"-",IFERROR('Tabel 2 ØJ'!D66/'Tabel 1 ØJ'!C64*100,"-")) -> 3.695385786 | F66: =IF(OR('Tabel 1 ØJ'!E64<5,'Tabel 2 ØJ'!F66<0.5),"-",IFERROR('Tabel 2 ØJ'!F66/'Tabel 1 ØJ'!E64*100,"-")) -> 8.13559322 | G66: =IF(OR('Tabel 1 ØJ'!E64<5,'Tabel 2 ØJ'!G66<0.5),"-",IFERROR('Tabel 2 ØJ'!G66/'Tabel 1 ØJ'!E64*100,"-")) -> 6.870575201 | I66: =IF(OR('Tabel 1 ØJ'!G64<5,'Tabel 2 ØJ'!I66<0.5),"-",IFERROR('Tabel 2 ØJ'!I66/'Tabel 1 ØJ'!G64*100,"-")) -> 7.009345794 | J66: =IF(OR('Tabel 1 ØJ'!G64<5,'Tabel 2 ØJ'!J66<0.5),"-",IFERROR('Tabel 2 ØJ'!J66/'Tabel 1 ØJ'!G64*100,"-")) -> 5.883892509
A67: MA. Nat. | C67: =IF(OR('Tabel 1 ØJ'!C65<5,'Tabel 2 ØJ'!C67<0.5),"-",IFERROR('Tabel 2 ØJ'!C67/'Tabel 1 ØJ'!C65*100,"-")) -> - | D67: =IF(OR('Tabel 1 ØJ'!C65<5,'Tabel 2 ØJ'!D67<0.5),"-",IFERROR('Tabel 2 ØJ'!D67/'Tabel 1 ØJ'!C65*100,"-")) -> - | F67: =IF(OR('Tabel 1 ØJ'!E65<5,'Tabel 2 ØJ'!F67<0.5),"-",IFERROR('Tabel 2 ØJ'!F67/'Tabel 1 ØJ'!E65*100,"-")) -> 3.947368421 | G67: =IF(OR('Tabel 1 ØJ'!E65<5,'Tabel 2 ØJ'!G67<0.5),"-",IFERROR('Tabel 2 ØJ'!G67/'Tabel 1 ØJ'!E65*100,"-")) -> 2.226493384 | I67: =IF(OR('Tabel 1 ØJ'!G65<5,'Tabel 2 ØJ'!I67<0.5),"-",IFERROR('Tabel 2 ØJ'!I67/'Tabel 1 ØJ'!G65*100,"-")) -> 2.142857143 | J67: =IF(OR('Tabel 1 ØJ'!G65<5,'Tabel 2 ØJ'!J67<0.5),"-",IFERROR('Tabel 2 ØJ'!J67/'Tabel 1 ØJ'!G65*100,"-")) -> 1.208667837
A68: MA. Ph.d. | C68: =IF(OR('Tabel 1 ØJ'!C66<5,'Tabel 2 ØJ'!C68<0.5),"-",IFERROR('Tabel 2 ØJ'!C68/'Tabel 1 ØJ'!C66*100,"-")) -> - | D68: =IF(OR('Tabel 1 ØJ'!C66<5,'Tabel 2 ØJ'!D68<0.5),"-",IFERROR('Tabel 2 ØJ'!D68/'Tabel 1 ØJ'!C66*100,"-")) -> - | F68: =IF(OR('Tabel 1 ØJ'!E66<5,'Tabel 2 ØJ'!F68<0.5),"-",IFERROR('Tabel 2 ØJ'!F68/'Tabel 1 ØJ'!E66*100,"-")) -> - | G68: =IF(OR('Tabel 1 ØJ'!E66<5,'Tabel 2 ØJ'!G68<0.5),"-",IFERROR('Tabel 2 ØJ'!G68/'Tabel 1 ØJ'!E66*100,"-")) -> - | I68: =IF(OR('Tabel 1 ØJ'!G66<5,'Tabel 2 ØJ'!I68<0.5),"-",IFERROR('Tabel 2 ØJ'!I68/'Tabel 1 ØJ'!G66*100,"-")) -> - | J68: =IF(OR('Tabel 1 ØJ'!G66<5,'Tabel 2 ØJ'!J68<0.5),"-",IFERROR('Tabel 2 ØJ'!J68/'Tabel 1 ØJ'!G66*100,"-")) -> -
A69: MA. Samf. | C69: =IF(OR('Tabel 1 ØJ'!C67<5,'Tabel 2 ØJ'!C69<0.5),"-",IFERROR('Tabel 2 ØJ'!C69/'Tabel 1 ØJ'!C67*100,"-")) -> - | D69: =IF(OR('Tabel 1 ØJ'!C67<5,'Tabel 2 ØJ'!D69<0.5),"-",IFERROR('Tabel 2 ØJ'!D69/'Tabel 1 ØJ'!C67*100,"-")) -> - | F69: =IF(OR('Tabel 1 ØJ'!E67<5,'Tabel 2 ØJ'!F69<0.5),"-",IFERROR('Tabel 2 ØJ'!F69/'Tabel 1 ØJ'!E67*100,"-")) -> - | G69: =IF(OR('Tabel 1 ØJ'!E67<5,'Tabel 2 ØJ'!G69<0.5),"-",IFERROR('Tabel 2 ØJ'!G69/'Tabel 1 ØJ'!E67*100,"-")) -> - | I69: =IF(OR('Tabel 1 ØJ'!G67<5,'Tabel 2 ØJ'!I69<0.5),"-",IFERROR('Tabel 2 ØJ'!I69/'Tabel 1 ØJ'!G67*100,"-")) -> - | J69: =IF(OR('Tabel 1 ØJ'!G67<5,'Tabel 2 ØJ'!J69<0.5),"-",IFERROR('Tabel 2 ØJ'!J69/'Tabel 1 ØJ'!G67*100,"-")) -> -
A70: Øvrige Mag. | C70: =IF(OR('Tabel 1 ØJ'!C68<5,'Tabel 2 ØJ'!C70<0.5),"-",IFERROR('Tabel 2 ØJ'!C70/'Tabel 1 ØJ'!C68*100,"-")) -> - | D70: =IF(OR('Tabel 1 ØJ'!C68<5,'Tabel 2 ØJ'!D70<0.5),"-",IFERROR('Tabel 2 ØJ'!D70/'Tabel 1 ØJ'!C68*100,"-")) -> - | F70: =IF(OR('Tabel 1 ØJ'!E68<5,'Tabel 2 ØJ'!F70<0.5),"-",IFERROR('Tabel 2 ØJ'!F70/'Tabel 1 ØJ'!E68*100,"-")) -> 12.5 | G70: =IF(OR('Tabel 1 ØJ'!E68<5,'Tabel 2 ØJ'!G70<0.5),"-",IFERROR('Tabel 2 ØJ'!G70/'Tabel 1 ØJ'!E68*100,"-")) -> 6.439842824 | I70: =IF(OR('Tabel 1 ØJ'!G68<5,'Tabel 2 ØJ'!I70<0.5),"-",IFERROR('Tabel 2 ØJ'!I70/'Tabel 1 ØJ'!G68*100,"-")) -> 6.060606061 | J70: =IF(OR('Tabel 1 ØJ'!G68<5,'Tabel 2 ØJ'!J70<0.5),"-",IFERROR('Tabel 2 ØJ'!J70/'Tabel 1 ØJ'!G68*100,"-")) -> 3.122348036
A71: Agronom | C71: =IF(OR('Tabel 1 ØJ'!C69<5,'Tabel 2 ØJ'!C71<0.5),"-",IFERROR('Tabel 2 ØJ'!C71/'Tabel 1 ØJ'!C69*100,"-")) -> - | D71: =IF(OR('Tabel 1 ØJ'!C69<5,'Tabel 2 ØJ'!D71<0.5),"-",IFERROR('Tabel 2 ØJ'!D71/'Tabel 1 ØJ'!C69*100,"-")) -> - | F71: =IF(OR('Tabel 1 ØJ'!E69<5,'Tabel 2 ØJ'!F71<0.5),"-",IFERROR('Tabel 2 ØJ'!F71/'Tabel 1 ØJ'!E69*100,"-")) -> 5.882352941 | G71: =IF(OR('Tabel 1 ØJ'!E69<5,'Tabel 2 ØJ'!G71<0.5),"-",IFERROR('Tabel 2 ØJ'!G71/'Tabel 1 ØJ'!E69*100,"-")) -> 5.88125227 | I71: =IF(OR('Tabel 1 ØJ'!G69<5,'Tabel 2 ØJ'!I71<0.5),"-",IFERROR('Tabel 2 ØJ'!I71/'Tabel 1 ØJ'!G69*100,"-")) -> 2.857142857 | J71: =IF(OR('Tabel 1 ØJ'!G69<5,'Tabel 2 ØJ'!J71<0.5),"-",IFERROR('Tabel 2 ØJ'!J71/'Tabel 1 ØJ'!G69*100,"-")) -> 2.856608245
A72: Landsk. Arkt. | C72: =IF(OR('Tabel 1 ØJ'!C70<5,'Tabel 2 ØJ'!C72<0.5),"-",IFERROR('Tabel 2 ØJ'!C72/'Tabel 1 ØJ'!C70*100,"-")) -> - | D72: =IF(OR('Tabel 1 ØJ'!C70<5,'Tabel 2 ØJ'!D72<0.5),"-",IFERROR('Tabel 2 ØJ'!D72/'Tabel 1 ØJ'!C70*100,"-")) -> - | F72: =IF(OR('Tabel 1 ØJ'!E70<5,'Tabel 2 ØJ'!F72<0.5),"-",IFERROR('Tabel 2 ØJ'!F72/'Tabel 1 ØJ'!E70*100,"-")) -> - | G72: =IF(OR('Tabel 1 ØJ'!E70<5,'Tabel 2 ØJ'!G72<0.5),"-",IFERROR('Tabel 2 ØJ'!G72/'Tabel 1 ØJ'!E70*100,"-")) -> - | I72: =IF(OR('Tabel 1 ØJ'!G70<5,'Tabel 2 ØJ'!I72<0.5),"-",IFERROR('Tabel 2 ØJ'!I72/'Tabel 1 ØJ'!G70*100,"-")) -> - | J72: =IF(OR('Tabel 1 ØJ'!G70<5,'Tabel 2 ØJ'!J72<0.5),"-",IFERROR('Tabel 2 ØJ'!J72/'Tabel 1 ØJ'!G70*100,"-")) -> -
A73: Hortonom | C73: =IF(OR('Tabel 1 ØJ'!C71<5,'Tabel 2 ØJ'!C73<0.5),"-",IFERROR('Tabel 2 ØJ'!C73/'Tabel 1 ØJ'!C71*100,"-")) -> - | D73: =IF(OR('Tabel 1 ØJ'!C71<5,'Tabel 2 ØJ'!D73<0.5),"-",IFERROR('Tabel 2 ØJ'!D73/'Tabel 1 ØJ'!C71*100,"-")) -> - | F73: =IF(OR('Tabel 1 ØJ'!E71<5,'Tabel 2 ØJ'!F73<0.5),"-",IFERROR('Tabel 2 ØJ'!F73/'Tabel 1 ØJ'!E71*100,"-")) -> - | G73: =IF(OR('Tabel 1 ØJ'!E71<5,'Tabel 2 ØJ'!G73<0.5),"-",IFERROR('Tabel 2 ØJ'!G73/'Tabel 1 ØJ'!E71*100,"-")) -> - | I73: =IF(OR('Tabel 1 ØJ'!G71<5,'Tabel 2 ØJ'!I73<0.5),"-",IFERROR('Tabel 2 ØJ'!I73/'Tabel 1 ØJ'!G71*100,"-")) -> - | J73: =IF(OR('Tabel 1 ØJ'!G71<5,'Tabel 2 ØJ'!J73<0.5),"-",IFERROR('Tabel 2 ØJ'!J73/'Tabel 1 ØJ'!G71*100,"-")) -> -
A74: Forstkand. | C74: =IF(OR('Tabel 1 ØJ'!C72<5,'Tabel 2 ØJ'!C74<0.5),"-",IFERROR('Tabel 2 ØJ'!C74/'Tabel 1 ØJ'!C72*100,"-")) -> - | D74: =IF(OR('Tabel 1 ØJ'!C72<5,'Tabel 2 ØJ'!D74<0.5),"-",IFERROR('Tabel 2 ØJ'!D74/'Tabel 1 ØJ'!C72*100,"-")) -> - | F74: =IF(OR('Tabel 1 ØJ'!E72<5,'Tabel 2 ØJ'!F74<0.5),"-",IFERROR('Tabel 2 ØJ'!F74/'Tabel 1 ØJ'!E72*100,"-")) -> - | G74: =IF(OR('Tabel 1 ØJ'!E72<5,'Tabel 2 ØJ'!G74<0.5),"-",IFERROR('Tabel 2 ØJ'!G74/'Tabel 1 ØJ'!E72*100,"-")) -> - | I74: =IF(OR('Tabel 1 ØJ'!G72<5,'Tabel 2 ØJ'!I74<0.5),"-",IFERROR('Tabel 2 ØJ'!I74/'Tabel 1 ØJ'!G72*100,"-")) -> - | J74: =IF(OR('Tabel 1 ØJ'!G72<5,'Tabel 2 ØJ'!J74<0.5),"-",IFERROR('Tabel 2 ØJ'!J74/'Tabel 1 ØJ'!G72*100,"-")) -> -
A75: Jordbrugsakad. | C75: =IF(OR('Tabel 1 ØJ'!C73<5,'Tabel 2 ØJ'!C75<0.5),"-",IFERROR('Tabel 2 ØJ'!C75/'Tabel 1 ØJ'!C73*100,"-")) -> - | D75: =IF(OR('Tabel 1 ØJ'!C73<5,'Tabel 2 ØJ'!D75<0.5),"-",IFERROR('Tabel 2 ØJ'!D75/'Tabel 1 ØJ'!C73*100,"-")) -> - | F75: =IF(OR('Tabel 1 ØJ'!E73<5,'Tabel 2 ØJ'!F75<0.5),"-",IFERROR('Tabel 2 ØJ'!F75/'Tabel 1 ØJ'!E73*100,"-")) -> 5.263157895 | G75: =IF(OR('Tabel 1 ØJ'!E73<5,'Tabel 2 ØJ'!G75<0.5),"-",IFERROR('Tabel 2 ØJ'!G75/'Tabel 1 ØJ'!E73*100,"-")) -> 5.262173084 | I75: =IF(OR('Tabel 1 ØJ'!G73<5,'Tabel 2 ØJ'!I75<0.5),"-",IFERROR('Tabel 2 ØJ'!I75/'Tabel 1 ØJ'!G73*100,"-")) -> 2.272727273 | J75: =IF(OR('Tabel 1 ØJ'!G73<5,'Tabel 2 ØJ'!J75<0.5),"-",IFERROR('Tabel 2 ØJ'!J75/'Tabel 1 ØJ'!G73*100,"-")) -> 2.272302013
A76: Mejeriing. | C76: =IF(OR('Tabel 1 ØJ'!C74<5,'Tabel 2 ØJ'!C76<0.5),"-",IFERROR('Tabel 2 ØJ'!C76/'Tabel 1 ØJ'!C74*100,"-")) -> - | D76: =IF(OR('Tabel 1 ØJ'!C74<5,'Tabel 2 ØJ'!D76<0.5),"-",IFERROR('Tabel 2 ØJ'!D76/'Tabel 1 ØJ'!C74*100,"-")) -> - | F76: =IF(OR('Tabel 1 ØJ'!E74<5,'Tabel 2 ØJ'!F76<0.5),"-",IFERROR('Tabel 2 ØJ'!F76/'Tabel 1 ØJ'!E74*100,"-")) -> - | G76: =IF(OR('Tabel 1 ØJ'!E74<5,'Tabel 2 ØJ'!G76<0.5),"-",IFERROR('Tabel 2 ØJ'!G76/'Tabel 1 ØJ'!E74*100,"-")) -> - | I76: =IF(OR('Tabel 1 ØJ'!G74<5,'Tabel 2 ØJ'!I76<0.5),"-",IFERROR('Tabel 2 ØJ'!I76/'Tabel 1 ØJ'!G74*100,"-")) -> - | J76: =IF(OR('Tabel 1 ØJ'!G74<5,'Tabel 2 ØJ'!J76<0.5),"-",IFERROR('Tabel 2 ØJ'!J76/'Tabel 1 ØJ'!G74*100,"-")) -> -
A77: Levn.m.kand. | C77: =IF(OR('Tabel 1 ØJ'!C75<5,'Tabel 2 ØJ'!C77<0.5),"-",IFERROR('Tabel 2 ØJ'!C77/'Tabel 1 ØJ'!C75*100,"-")) -> - | D77: =IF(OR('Tabel 1 ØJ'!C75<5,'Tabel 2 ØJ'!D77<0.5),"-",IFERROR('Tabel 2 ØJ'!D77/'Tabel 1 ØJ'!C75*100,"-")) -> - | F77: =IF(OR('Tabel 1 ØJ'!E75<5,'Tabel 2 ØJ'!F77<0.5),"-",IFERROR('Tabel 2 ØJ'!F77/'Tabel 1 ØJ'!E75*100,"-")) -> - | G77: =IF(OR('Tabel 1 ØJ'!E75<5,'Tabel 2 ØJ'!G77<0.5),"-",IFERROR('Tabel 2 ØJ'!G77/'Tabel 1 ØJ'!E75*100,"-")) -> - | I77: =IF(OR('Tabel 1 ØJ'!G75<5,'Tabel 2 ØJ'!I77<0.5),"-",IFERROR('Tabel 2 ØJ'!I77/'Tabel 1 ØJ'!G75*100,"-")) -> - | J77: =IF(OR('Tabel 1 ØJ'!G75<5,'Tabel 2 ØJ'!J77<0.5),"-",IFERROR('Tabel 2 ØJ'!J77/'Tabel 1 ØJ'!G75*100,"-")) -> -
A78: Dyrlæge | C78: =IF(OR('Tabel 1 ØJ'!C76<5,'Tabel 2 ØJ'!C78<0.5),"-",IFERROR('Tabel 2 ØJ'!C78/'Tabel 1 ØJ'!C76*100,"-")) -> - | D78: =IF(OR('Tabel 1 ØJ'!C76<5,'Tabel 2 ØJ'!D78<0.5),"-",IFERROR('Tabel 2 ØJ'!D78/'Tabel 1 ØJ'!C76*100,"-")) -> - | F78: =IF(OR('Tabel 1 ØJ'!E76<5,'Tabel 2 ØJ'!F78<0.5),"-",IFERROR('Tabel 2 ØJ'!F78/'Tabel 1 ØJ'!E76*100,"-")) -> - | G78: =IF(OR('Tabel 1 ØJ'!E76<5,'Tabel 2 ØJ'!G78<0.5),"-",IFERROR('Tabel 2 ØJ'!G78/'Tabel 1 ØJ'!E76*100,"-")) -> - | I78: =IF(OR('Tabel 1 ØJ'!G76<5,'Tabel 2 ØJ'!I78<0.5),"-",IFERROR('Tabel 2 ØJ'!I78/'Tabel 1 ØJ'!G76*100,"-")) -> - | J78: =IF(OR('Tabel 1 ØJ'!G76<5,'Tabel 2 ØJ'!J78<0.5),"-",IFERROR('Tabel 2 ØJ'!J78/'Tabel 1 ØJ'!G76*100,"-")) -> -
A79: Farmaceut | C79: =IF(OR('Tabel 1 ØJ'!C77<5,'Tabel 2 ØJ'!C79<0.5),"-",IFERROR('Tabel 2 ØJ'!C79/'Tabel 1 ØJ'!C77*100,"-")) -> - | D79: =IF(OR('Tabel 1 ØJ'!C77<5,'Tabel 2 ØJ'!D79<0.5),"-",IFERROR('Tabel 2 ØJ'!D79/'Tabel 1 ØJ'!C77*100,"-")) -> - | F79: =IF(OR('Tabel 1 ØJ'!E77<5,'Tabel 2 ØJ'!F79<0.5),"-",IFERROR('Tabel 2 ØJ'!F79/'Tabel 1 ØJ'!E77*100,"-")) -> 5.882352941 | G79: =IF(OR('Tabel 1 ØJ'!E77<5,'Tabel 2 ØJ'!G79<0.5),"-",IFERROR('Tabel 2 ØJ'!G79/'Tabel 1 ØJ'!E77*100,"-")) -> 5.609753413 | I79: =IF(OR('Tabel 1 ØJ'!G77<5,'Tabel 2 ØJ'!I79<0.5),"-",IFERROR('Tabel 2 ØJ'!I79/'Tabel 1 ØJ'!G77*100,"-")) -> 9.523809524 | J79: =IF(OR('Tabel 1 ØJ'!G77<5,'Tabel 2 ØJ'!J79<0.5),"-",IFERROR('Tabel 2 ØJ'!J79/'Tabel 1 ØJ'!G77*100,"-")) -> 9.302242696
A80: Læge | C80: =IF(OR('Tabel 1 ØJ'!C78<5,'Tabel 2 ØJ'!C80<0.5),"-",IFERROR('Tabel 2 ØJ'!C80/'Tabel 1 ØJ'!C78*100,"-")) -> 3.703703704 | D80: =IF(OR('Tabel 1 ØJ'!C78<5,'Tabel 2 ØJ'!D80<0.5),"-",IFERROR('Tabel 2 ØJ'!D80/'Tabel 1 ØJ'!C78*100,"-")) -> 3.703010689 | F80: =IF(OR('Tabel 1 ØJ'!E78<5,'Tabel 2 ØJ'!F80<0.5),"-",IFERROR('Tabel 2 ØJ'!F80/'Tabel 1 ØJ'!E78*100,"-")) -> 1.315789474 | G80: =IF(OR('Tabel 1 ØJ'!E78<5,'Tabel 2 ØJ'!G80<0.5),"-",IFERROR('Tabel 2 ØJ'!G80/'Tabel 1 ØJ'!E78*100,"-")) -> 1.315543271 | I80: =IF(OR('Tabel 1 ØJ'!G78<5,'Tabel 2 ØJ'!I80<0.5),"-",IFERROR('Tabel 2 ØJ'!I80/'Tabel 1 ØJ'!G78*100,"-")) -> 1.941747573 | J80: =IF(OR('Tabel 1 ØJ'!G78<5,'Tabel 2 ØJ'!J80<0.5),"-",IFERROR('Tabel 2 ØJ'!J80/'Tabel 1 ØJ'!G78*100,"-")) -> 1.941384245
A81: Tandlæge | C81: =IF(OR('Tabel 1 ØJ'!C79<5,'Tabel 2 ØJ'!C81<0.5),"-",IFERROR('Tabel 2 ØJ'!C81/'Tabel 1 ØJ'!C79*100,"-")) -> - | D81: =IF(OR('Tabel 1 ØJ'!C79<5,'Tabel 2 ØJ'!D81<0.5),"-",IFERROR('Tabel 2 ØJ'!D81/'Tabel 1 ØJ'!C79*100,"-")) -> - | F81: =IF(OR('Tabel 1 ØJ'!E79<5,'Tabel 2 ØJ'!F81<0.5),"-",IFERROR('Tabel 2 ØJ'!F81/'Tabel 1 ØJ'!E79*100,"-")) -> - | G81: =IF(OR('Tabel 1 ØJ'!E79<5,'Tabel 2 ØJ'!G81<0.5),"-",IFERROR('Tabel 2 ØJ'!G81/'Tabel 1 ØJ'!E79*100,"-")) -> - | I81: =IF(OR('Tabel 1 ØJ'!G79<5,'Tabel 2 ØJ'!I81<0.5),"-",IFERROR('Tabel 2 ØJ'!I81/'Tabel 1 ØJ'!G79*100,"-")) -> - | J81: =IF(OR('Tabel 1 ØJ'!G79<5,'Tabel 2 ØJ'!J81<0.5),"-",IFERROR('Tabel 2 ØJ'!J81/'Tabel 1 ØJ'!G79*100,"-")) -> -
A82: Arkitekt | C82: =IF(OR('Tabel 1 ØJ'!C80<5,'Tabel 2 ØJ'!C82<0.5),"-",IFERROR('Tabel 2 ØJ'!C82/'Tabel 1 ØJ'!C80*100,"-")) -> - | D82: =IF(OR('Tabel 1 ØJ'!C80<5,'Tabel 2 ØJ'!D82<0.5),"-",IFERROR('Tabel 2 ØJ'!D82/'Tabel 1 ØJ'!C80*100,"-")) -> - | F82: =IF(OR('Tabel 1 ØJ'!E80<5,'Tabel 2 ØJ'!F82<0.5),"-",IFERROR('Tabel 2 ØJ'!F82/'Tabel 1 ØJ'!E80*100,"-")) -> 5.555555556 | G82: =IF(OR('Tabel 1 ØJ'!E80<5,'Tabel 2 ØJ'!G82<0.5),"-",IFERROR('Tabel 2 ØJ'!G82/'Tabel 1 ØJ'!E80*100,"-")) -> 5.169892652 | I82: =IF(OR('Tabel 1 ØJ'!G80<5,'Tabel 2 ØJ'!I82<0.5),"-",IFERROR('Tabel 2 ØJ'!I82/'Tabel 1 ØJ'!G80*100,"-")) -> 2.985074627 | J82: =IF(OR('Tabel 1 ØJ'!G80<5,'Tabel 2 ØJ'!J82<0.5),"-",IFERROR('Tabel 2 ØJ'!J82/'Tabel 1 ØJ'!G80*100,"-")) -> 2.777852768
A83: Landinspek. | C83: =IF(OR('Tabel 1 ØJ'!C81<5,'Tabel 2 ØJ'!C83<0.5),"-",IFERROR('Tabel 2 ØJ'!C83/'Tabel 1 ØJ'!C81*100,"-")) -> - | D83: =IF(OR('Tabel 1 ØJ'!C81<5,'Tabel 2 ØJ'!D83<0.5),"-",IFERROR('Tabel 2 ØJ'!D83/'Tabel 1 ØJ'!C81*100,"-")) -> - | F83: =IF(OR('Tabel 1 ØJ'!E81<5,'Tabel 2 ØJ'!F83<0.5),"-",IFERROR('Tabel 2 ØJ'!F83/'Tabel 1 ØJ'!E81*100,"-")) -> - | G83: =IF(OR('Tabel 1 ØJ'!E81<5,'Tabel 2 ØJ'!G83<0.5),"-",IFERROR('Tabel 2 ØJ'!G83/'Tabel 1 ØJ'!E81*100,"-")) -> - | I83: =IF(OR('Tabel 1 ØJ'!G81<5,'Tabel 2 ØJ'!I83<0.5),"-",IFERROR('Tabel 2 ØJ'!I83/'Tabel 1 ØJ'!G81*100,"-")) -> - | J83: =IF(OR('Tabel 1 ØJ'!G81<5,'Tabel 2 ØJ'!J83<0.5),"-",IFERROR('Tabel 2 ØJ'!J83/'Tabel 1 ØJ'!G81*100,"-")) -> -
A84: Bibliotekar | C84: =IF(OR('Tabel 1 ØJ'!C82<5,'Tabel 2 ØJ'!C84<0.5),"-",IFERROR('Tabel 2 ØJ'!C84/'Tabel 1 ØJ'!C82*100,"-")) -> - | D84: =IF(OR('Tabel 1 ØJ'!C82<5,'Tabel 2 ØJ'!D84<0.5),"-",IFERROR('Tabel 2 ØJ'!D84/'Tabel 1 ØJ'!C82*100,"-")) -> - | F84: =IF(OR('Tabel 1 ØJ'!E82<5,'Tabel 2 ØJ'!F84<0.5),"-",IFERROR('Tabel 2 ØJ'!F84/'Tabel 1 ØJ'!E82*100,"-")) -> 4 | G84: =IF(OR('Tabel 1 ØJ'!E82<5,'Tabel 2 ØJ'!G84<0.5),"-",IFERROR('Tabel 2 ØJ'!G84/'Tabel 1 ØJ'!E82*100,"-")) -> 2.317719703 | I84: =IF(OR('Tabel 1 ØJ'!G82<5,'Tabel 2 ØJ'!I84<0.5),"-",IFERROR('Tabel 2 ØJ'!I84/'Tabel 1 ØJ'!G82*100,"-")) -> 3.225806452 | J84: =IF(OR('Tabel 1 ØJ'!G82<5,'Tabel 2 ØJ'!J84<0.5),"-",IFERROR('Tabel 2 ØJ'!J84/'Tabel 1 ØJ'!G82*100,"-")) -> 1.869128793
A85: Musikudd. | C85: =IF(OR('Tabel 1 ØJ'!C83<5,'Tabel 2 ØJ'!C85<0.5),"-",IFERROR('Tabel 2 ØJ'!C85/'Tabel 1 ØJ'!C83*100,"-")) -> - | D85: =IF(OR('Tabel 1 ØJ'!C83<5,'Tabel 2 ØJ'!D85<0.5),"-",IFERROR('Tabel 2 ØJ'!D85/'Tabel 1 ØJ'!C83*100,"-")) -> - | F85: =IF(OR('Tabel 1 ØJ'!E83<5,'Tabel 2 ØJ'!F85<0.5),"-",IFERROR('Tabel 2 ØJ'!F85/'Tabel 1 ØJ'!E83*100,"-")) -> 20 | G85: =IF(OR('Tabel 1 ØJ'!E83<5,'Tabel 2 ØJ'!G85<0.5),"-",IFERROR('Tabel 2 ØJ'!G85/'Tabel 1 ØJ'!E83*100,"-")) -> 19.99625772 | I85: =IF(OR('Tabel 1 ØJ'!G83<5,'Tabel 2 ØJ'!I85<0.5),"-",IFERROR('Tabel 2 ØJ'!I85/'Tabel 1 ØJ'!G83*100,"-")) -> 25 | J85: =IF(OR('Tabel 1 ØJ'!G83<5,'Tabel 2 ØJ'!J85<0.5),"-",IFERROR('Tabel 2 ØJ'!J85/'Tabel 1 ØJ'!G83*100,"-")) -> 24.99532215
A86: Teolog | C86: =IF(OR('Tabel 1 ØJ'!C84<5,'Tabel 2 ØJ'!C86<0.5),"-",IFERROR('Tabel 2 ØJ'!C86/'Tabel 1 ØJ'!C84*100,"-")) -> - | D86: =IF(OR('Tabel 1 ØJ'!C84<5,'Tabel 2 ØJ'!D86<0.5),"-",IFERROR('Tabel 2 ØJ'!D86/'Tabel 1 ØJ'!C84*100,"-")) -> - | F86: =IF(OR('Tabel 1 ØJ'!E84<5,'Tabel 2 ØJ'!F86<0.5),"-",IFERROR('Tabel 2 ØJ'!F86/'Tabel 1 ØJ'!E84*100,"-")) -> - | G86: =IF(OR('Tabel 1 ØJ'!E84<5,'Tabel 2 ØJ'!G86<0.5),"-",IFERROR('Tabel 2 ØJ'!G86/'Tabel 1 ØJ'!E84*100,"-")) -> - | I86: =IF(OR('Tabel 1 ØJ'!G84<5,'Tabel 2 ØJ'!I86<0.5),"-",IFERROR('Tabel 2 ØJ'!I86/'Tabel 1 ØJ'!G84*100,"-")) -> - | J86: =IF(OR('Tabel 1 ØJ'!G84<5,'Tabel 2 ØJ'!J86<0.5),"-",IFERROR('Tabel 2 ØJ'!J86/'Tabel 1 ØJ'!G84*100,"-")) -> -
A87: Psykolog | C87: =IF(OR('Tabel 1 ØJ'!C85<5,'Tabel 2 ØJ'!C87<0.5),"-",IFERROR('Tabel 2 ØJ'!C87/'Tabel 1 ØJ'!C85*100,"-")) -> 6.666666667 | D87: =IF(OR('Tabel 1 ØJ'!C85<5,'Tabel 2 ØJ'!D87<0.5),"-",IFERROR('Tabel 2 ØJ'!D87/'Tabel 1 ØJ'!C85*100,"-")) -> 4.665377659 | F87: =IF(OR('Tabel 1 ØJ'!E85<5,'Tabel 2 ØJ'!F87<0.5),"-",IFERROR('Tabel 2 ØJ'!F87/'Tabel 1 ØJ'!E85*100,"-")) -> 10.46511628 | G87: =IF(OR('Tabel 1 ØJ'!E85<5,'Tabel 2 ØJ'!G87<0.5),"-",IFERROR('Tabel 2 ØJ'!G87/'Tabel 1 ØJ'!E85*100,"-")) -> 7.945821046 | I87: =IF(OR('Tabel 1 ØJ'!G85<5,'Tabel 2 ØJ'!I87<0.5),"-",IFERROR('Tabel 2 ØJ'!I87/'Tabel 1 ØJ'!G85*100,"-")) -> 9.900990099 | J87: =IF(OR('Tabel 1 ØJ'!G85<5,'Tabel 2 ØJ'!J87<0.5),"-",IFERROR('Tabel 2 ØJ'!J87/'Tabel 1 ØJ'!G85*100,"-")) -> 7.458626484
A88: Jurist | C88: =IF(OR('Tabel 1 ØJ'!C86<5,'Tabel 2 ØJ'!C88<0.5),"-",IFERROR('Tabel 2 ØJ'!C88/'Tabel 1 ØJ'!C86*100,"-")) -> 2.083333333 | D88: =IF(OR('Tabel 1 ØJ'!C86<5,'Tabel 2 ØJ'!D88<0.5),"-",IFERROR('Tabel 2 ØJ'!D88/'Tabel 1 ØJ'!C86*100,"-")) -> 2.082943512 | F88: =IF(OR('Tabel 1 ØJ'!E86<5,'Tabel 2 ØJ'!F88<0.5),"-",IFERROR('Tabel 2 ØJ'!F88/'Tabel 1 ØJ'!E86*100,"-")) -> 0.9090909091 | G88: =IF(OR('Tabel 1 ØJ'!E86<5,'Tabel 2 ØJ'!G88<0.5),"-",IFERROR('Tabel 2 ØJ'!G88/'Tabel 1 ØJ'!E86*100,"-")) -> 0.7830440625 | I88: =IF(OR('Tabel 1 ØJ'!G86<5,'Tabel 2 ØJ'!I88<0.5),"-",IFERROR('Tabel 2 ØJ'!I88/'Tabel 1 ØJ'!G86*100,"-")) -> 1.265822785 | J88: =IF(OR('Tabel 1 ØJ'!G86<5,'Tabel 2 ØJ'!J88<0.5),"-",IFERROR('Tabel 2 ØJ'!J88/'Tabel 1 ØJ'!G86*100,"-")) -> 1.177950224
A89: Økonom | C89: =IF(OR('Tabel 1 ØJ'!C87<5,'Tabel 2 ØJ'!C89<0.5),"-",IFERROR('Tabel 2 ØJ'!C89/'Tabel 1 ØJ'!C87*100,"-")) -> - | D89: =IF(OR('Tabel 1 ØJ'!C87<5,'Tabel 2 ØJ'!D89<0.5),"-",IFERROR('Tabel 2 ØJ'!D89/'Tabel 1 ØJ'!C87*100,"-")) -> - | F89: =IF(OR('Tabel 1 ØJ'!E87<5,'Tabel 2 ØJ'!F89<0.5),"-",IFERROR('Tabel 2 ØJ'!F89/'Tabel 1 ØJ'!E87*100,"-")) -> - | G89: =IF(OR('Tabel 1 ØJ'!E87<5,'Tabel 2 ØJ'!G89<0.5),"-",IFERROR('Tabel 2 ØJ'!G89/'Tabel 1 ØJ'!E87*100,"-")) -> - | I89: =IF(OR('Tabel 1 ØJ'!G87<5,'Tabel 2 ØJ'!I89<0.5),"-",IFERROR('Tabel 2 ØJ'!I89/'Tabel 1 ØJ'!G87*100,"-")) -> - | J89: =IF(OR('Tabel 1 ØJ'!G87<5,'Tabel 2 ØJ'!J89<0.5),"-",IFERROR('Tabel 2 ØJ'!J89/'Tabel 1 ØJ'!G87*100,"-")) -> -
A90: Samf. Adm. | C90: =IF(OR('Tabel 1 ØJ'!C88<5,'Tabel 2 ØJ'!C90<0.5),"-",IFERROR('Tabel 2 ØJ'!C90/'Tabel 1 ØJ'!C88*100,"-")) -> 3.797468354 | D90: =IF(OR('Tabel 1 ØJ'!C88<5,'Tabel 2 ØJ'!D90<0.5),"-",IFERROR('Tabel 2 ØJ'!D90/'Tabel 1 ØJ'!C88*100,"-")) -> 2.659862136 | F90: =IF(OR('Tabel 1 ØJ'!E88<5,'Tabel 2 ØJ'!F90<0.5),"-",IFERROR('Tabel 2 ØJ'!F90/'Tabel 1 ØJ'!E88*100,"-")) -> 5.405405405 | G90: =IF(OR('Tabel 1 ØJ'!E88<5,'Tabel 2 ØJ'!G90<0.5),"-",IFERROR('Tabel 2 ØJ'!G90/'Tabel 1 ØJ'!E88*100,"-")) -> 3.964795582 | I90: =IF(OR('Tabel 1 ØJ'!G88<5,'Tabel 2 ØJ'!I90<0.5),"-",IFERROR('Tabel 2 ØJ'!I90/'Tabel 1 ØJ'!G88*100,"-")) -> 4.736842105 | J90: =IF(OR('Tabel 1 ØJ'!G88<5,'Tabel 2 ØJ'!J90<0.5),"-",IFERROR('Tabel 2 ØJ'!J90/'Tabel 1 ØJ'!G88*100,"-")) -> 3.422217991
A91: Cand. Merc. | C91: =IF(OR('Tabel 1 ØJ'!C89<5,'Tabel 2 ØJ'!C91<0.5),"-",IFERROR('Tabel 2 ØJ'!C91/'Tabel 1 ØJ'!C89*100,"-")) -> 2.083333333 | D91: =IF(OR('Tabel 1 ØJ'!C89<5,'Tabel 2 ØJ'!D91<0.5),"-",IFERROR('Tabel 2 ØJ'!D91/'Tabel 1 ØJ'!C89*100,"-")) -> 1.644264954 | F91: =IF(OR('Tabel 1 ØJ'!E89<5,'Tabel 2 ØJ'!F91<0.5),"-",IFERROR('Tabel 2 ØJ'!F91/'Tabel 1 ØJ'!E89*100,"-")) -> 2.973977695 | G91: =IF(OR('Tabel 1 ØJ'!E89<5,'Tabel 2 ØJ'!G91<0.5),"-",IFERROR('Tabel 2 ØJ'!G91/'Tabel 1 ØJ'!E89*100,"-")) -> 2.751527577 | I91: =IF(OR('Tabel 1 ØJ'!G89<5,'Tabel 2 ØJ'!I91<0.5),"-",IFERROR('Tabel 2 ØJ'!I91/'Tabel 1 ØJ'!G89*100,"-")) -> 2.554027505 | J91: =IF(OR('Tabel 1 ØJ'!G89<5,'Tabel 2 ØJ'!J91<0.5),"-",IFERROR('Tabel 2 ØJ'!J91/'Tabel 1 ØJ'!G89*100,"-")) -> 2.22943911
A92: HA | C92: =IF(OR('Tabel 1 ØJ'!C90<5,'Tabel 2 ØJ'!C92<0.5),"-",IFERROR('Tabel 2 ØJ'!C92/'Tabel 1 ØJ'!C90*100,"-")) -> 10 | D92: =IF(OR('Tabel 1 ØJ'!C90<5,'Tabel 2 ØJ'!D92<0.5),"-",IFERROR('Tabel 2 ØJ'!D92/'Tabel 1 ØJ'!C90*100,"-")) -> 9.998128859 | F92: =IF(OR('Tabel 1 ØJ'!E90<5,'Tabel 2 ØJ'!F92<0.5),"-",IFERROR('Tabel 2 ØJ'!F92/'Tabel 1 ØJ'!E90*100,"-")) -> 4.444444444 | G92: =IF(OR('Tabel 1 ØJ'!E90<5,'Tabel 2 ØJ'!G92<0.5),"-",IFERROR('Tabel 2 ØJ'!G92/'Tabel 1 ØJ'!E90*100,"-")) -> 4.443612826 | I92: =IF(OR('Tabel 1 ØJ'!G90<5,'Tabel 2 ØJ'!I92<0.5),"-",IFERROR('Tabel 2 ØJ'!I92/'Tabel 1 ØJ'!G90*100,"-")) -> 7.368421053 | J92: =IF(OR('Tabel 1 ØJ'!G90<5,'Tabel 2 ØJ'!J92<0.5),"-",IFERROR('Tabel 2 ØJ'!J92/'Tabel 1 ØJ'!G90*100,"-")) -> 7.367042317
A93: HD | C93: =IF(OR('Tabel 1 ØJ'!C91<5,'Tabel 2 ØJ'!C93<0.5),"-",IFERROR('Tabel 2 ØJ'!C93/'Tabel 1 ØJ'!C91*100,"-")) -> 5.555555556 | D93: =IF(OR('Tabel 1 ØJ'!C91<5,'Tabel 2 ØJ'!D93<0.5),"-",IFERROR('Tabel 2 ØJ'!D93/'Tabel 1 ØJ'!C91*100,"-")) -> 4.913477065 | F93: =IF(OR('Tabel 1 ØJ'!E91<5,'Tabel 2 ØJ'!F93<0.5),"-",IFERROR('Tabel 2 ØJ'!F93/'Tabel 1 ØJ'!E91*100,"-")) -> 10.71428571 | G93: =IF(OR('Tabel 1 ØJ'!E91<5,'Tabel 2 ØJ'!G93<0.5),"-",IFERROR('Tabel 2 ØJ'!G93/'Tabel 1 ØJ'!E91*100,"-")) -> 10.21776515 | I93: =IF(OR('Tabel 1 ØJ'!G91<5,'Tabel 2 ØJ'!I93<0.5),"-",IFERROR('Tabel 2 ØJ'!I93/'Tabel 1 ØJ'!G91*100,"-")) -> 7.8125 | J93: =IF(OR('Tabel 1 ØJ'!G91<5,'Tabel 2 ØJ'!J93<0.5),"-",IFERROR('Tabel 2 ØJ'!J93/'Tabel 1 ØJ'!G91*100,"-")) -> 7.2341031
A94: Komm. og Sprog | C94: =IF(OR('Tabel 1 ØJ'!C92<5,'Tabel 2 ØJ'!C94<0.5),"-",IFERROR('Tabel 2 ØJ'!C94/'Tabel 1 ØJ'!C92*100,"-")) -> 9.090909091 | D94: =IF(OR('Tabel 1 ØJ'!C92<5,'Tabel 2 ØJ'!D94<0.5),"-",IFERROR('Tabel 2 ØJ'!D94/'Tabel 1 ØJ'!C92*100,"-")) -> 9.089208054 | F94: =IF(OR('Tabel 1 ØJ'!E92<5,'Tabel 2 ØJ'!F94<0.5),"-",IFERROR('Tabel 2 ØJ'!F94/'Tabel 1 ØJ'!E92*100,"-")) -> 5.882352941 | G94: =IF(OR('Tabel 1 ØJ'!E92<5,'Tabel 2 ØJ'!G94<0.5),"-",IFERROR('Tabel 2 ØJ'!G94/'Tabel 1 ØJ'!E92*100,"-")) -> 4.998880984 | I94: =IF(OR('Tabel 1 ØJ'!G92<5,'Tabel 2 ØJ'!I94<0.5),"-",IFERROR('Tabel 2 ØJ'!I94/'Tabel 1 ØJ'!G92*100,"-")) -> 6.329113924 | J94: =IF(OR('Tabel 1 ØJ'!G92<5,'Tabel 2 ØJ'!J94<0.5),"-",IFERROR('Tabel 2 ØJ'!J94/'Tabel 1 ØJ'!G92*100,"-")) -> 5.568420197
A95: Bygningskonst. | C95: =IF(OR('Tabel 1 ØJ'!C94<5,'Tabel 2 ØJ'!C96<0.5),"-",IFERROR('Tabel 2 ØJ'!C96/'Tabel 1 ØJ'!C94*100,"-")) -> - | D95: =IF(OR('Tabel 1 ØJ'!C94<5,'Tabel 2 ØJ'!D96<0.5),"-",IFERROR('Tabel 2 ØJ'!D96/'Tabel 1 ØJ'!C94*100,"-")) -> - | F95: =IF(OR('Tabel 1 ØJ'!E94<5,'Tabel 2 ØJ'!F96<0.5),"-",IFERROR('Tabel 2 ØJ'!F96/'Tabel 1 ØJ'!E94*100,"-")) -> 13.79310345 | G95: =IF(OR('Tabel 1 ØJ'!E94<5,'Tabel 2 ØJ'!G96<0.5),"-",IFERROR('Tabel 2 ØJ'!G96/'Tabel 1 ØJ'!E94*100,"-")) -> 13.19476855 | I95: =IF(OR('Tabel 1 ØJ'!G94<5,'Tabel 2 ØJ'!I96<0.5),"-",IFERROR('Tabel 2 ØJ'!I96/'Tabel 1 ØJ'!G94*100,"-")) -> 8 | J95: =IF(OR('Tabel 1 ØJ'!G94<5,'Tabel 2 ØJ'!J96<0.5),"-",IFERROR('Tabel 2 ØJ'!J96/'Tabel 1 ØJ'!G94*100,"-")) -> 7.652965758
A96: Cand. IT. | C96: =IF(OR('Tabel 1 ØJ'!C94<5,'Tabel 2 ØJ'!C96<0.5),"-",IFERROR('Tabel 2 ØJ'!C96/'Tabel 1 ØJ'!C94*100,"-")) -> - | D96: =IF(OR('Tabel 1 ØJ'!C94<5,'Tabel 2 ØJ'!D96<0.5),"-",IFERROR('Tabel 2 ØJ'!D96/'Tabel 1 ØJ'!C94*100,"-")) -> - | F96: =IF(OR('Tabel 1 ØJ'!E94<5,'Tabel 2 ØJ'!F96<0.5),"-",IFERROR('Tabel 2 ØJ'!F96/'Tabel 1 ØJ'!E94*100,"-")) -> 13.79310345 | G96: =IF(OR('Tabel 1 ØJ'!E94<5,'Tabel 2 ØJ'!G96<0.5),"-",IFERROR('Tabel 2 ØJ'!G96/'Tabel 1 ØJ'!E94*100,"-")) -> 13.19476855 | I96: =IF(OR('Tabel 1 ØJ'!G94<5,'Tabel 2 ØJ'!I96<0.5),"-",IFERROR('Tabel 2 ØJ'!I96/'Tabel 1 ØJ'!G94*100,"-")) -> 8 | J96: =IF(OR('Tabel 1 ØJ'!G94<5,'Tabel 2 ØJ'!J96<0.5),"-",IFERROR('Tabel 2 ØJ'!J96/'Tabel 1 ØJ'!G94*100,"-")) -> 7.652965758
A97: Bac. Samf. | C97: =IF(OR('Tabel 1 ØJ'!C95<5,'Tabel 2 ØJ'!C97<0.5),"-",IFERROR('Tabel 2 ØJ'!C97/'Tabel 1 ØJ'!C95*100,"-")) -> 14.28571429 | D97: =IF(OR('Tabel 1 ØJ'!C95<5,'Tabel 2 ØJ'!D97<0.5),"-",IFERROR('Tabel 2 ØJ'!D97/'Tabel 1 ØJ'!C95*100,"-")) -> 12.96433249 | F97: =IF(OR('Tabel 1 ØJ'!E95<5,'Tabel 2 ØJ'!F97<0.5),"-",IFERROR('Tabel 2 ØJ'!F97/'Tabel 1 ØJ'!E95*100,"-")) -> - | G97: =IF(OR('Tabel 1 ØJ'!E95<5,'Tabel 2 ØJ'!G97<0.5),"-",IFERROR('Tabel 2 ØJ'!G97/'Tabel 1 ØJ'!E95*100,"-")) -> - | I97: =IF(OR('Tabel 1 ØJ'!G95<5,'Tabel 2 ØJ'!I97<0.5),"-",IFERROR('Tabel 2 ØJ'!I97/'Tabel 1 ØJ'!G95*100,"-")) -> 5.882352941 | J97: =IF(OR('Tabel 1 ØJ'!G95<5,'Tabel 2 ØJ'!J97<0.5),"-",IFERROR('Tabel 2 ØJ'!J97/'Tabel 1 ØJ'!G95*100,"-")) -> 5.338254556
A98: Bac. Hum. | C98: =IF(OR('Tabel 1 ØJ'!C96<5,'Tabel 2 ØJ'!C98<0.5),"-",IFERROR('Tabel 2 ØJ'!C98/'Tabel 1 ØJ'!C96*100,"-")) -> 15.38461538 | D98: =IF(OR('Tabel 1 ØJ'!C96<5,'Tabel 2 ØJ'!D98<0.5),"-",IFERROR('Tabel 2 ØJ'!D98/'Tabel 1 ØJ'!C96*100,"-")) -> 15.38173671 | F98: =IF(OR('Tabel 1 ØJ'!E96<5,'Tabel 2 ØJ'!F98<0.5),"-",IFERROR('Tabel 2 ØJ'!F98/'Tabel 1 ØJ'!E96*100,"-")) -> 14.70588235 | G98: =IF(OR('Tabel 1 ØJ'!E96<5,'Tabel 2 ØJ'!G98<0.5),"-",IFERROR('Tabel 2 ØJ'!G98/'Tabel 1 ØJ'!E96*100,"-")) -> 9.441923092 | I98: =IF(OR('Tabel 1 ØJ'!G96<5,'Tabel 2 ØJ'!I98<0.5),"-",IFERROR('Tabel 2 ØJ'!I98/'Tabel 1 ØJ'!G96*100,"-")) -> 14.89361702 | J98: =IF(OR('Tabel 1 ØJ'!G96<5,'Tabel 2 ØJ'!J98<0.5),"-",IFERROR('Tabel 2 ØJ'!J98/'Tabel 1 ØJ'!G96*100,"-")) -> 11.08485026
A99: Bac. Nat. | C99: =IF(OR('Tabel 1 ØJ'!C97<5,'Tabel 2 ØJ'!C99<0.5),"-",IFERROR('Tabel 2 ØJ'!C99/'Tabel 1 ØJ'!C97*100,"-")) -> 11.21495327 | D99: =IF(OR('Tabel 1 ØJ'!C97<5,'Tabel 2 ØJ'!D99<0.5),"-",IFERROR('Tabel 2 ØJ'!D99/'Tabel 1 ØJ'!C97*100,"-")) -> 9.281091394 | F99: =IF(OR('Tabel 1 ØJ'!E97<5,'Tabel 2 ØJ'!F99<0.5),"-",IFERROR('Tabel 2 ØJ'!F99/'Tabel 1 ØJ'!E97*100,"-")) -> 10.34482759 | G99: =IF(OR('Tabel 1 ØJ'!E97<5,'Tabel 2 ØJ'!G99<0.5),"-",IFERROR('Tabel 2 ØJ'!G99/'Tabel 1 ØJ'!E97*100,"-")) -> 8.488957043 | I99: =IF(OR('Tabel 1 ØJ'!G97<5,'Tabel 2 ØJ'!I99<0.5),"-",IFERROR('Tabel 2 ØJ'!I99/'Tabel 1 ØJ'!G97*100,"-")) -> 11.02941176 | J99: =IF(OR('Tabel 1 ØJ'!G97<5,'Tabel 2 ØJ'!J99<0.5),"-",IFERROR('Tabel 2 ØJ'!J99/'Tabel 1 ØJ'!G97*100,"-")) -> 9.112180393
A100: Andre | C100: =IF(OR('Tabel 1 ØJ'!C98<5,'Tabel 2 ØJ'!C100<0.5),"-",IFERROR('Tabel 2 ØJ'!C100/'Tabel 1 ØJ'!C98*100,"-")) -> 6.666666667 | D100: =IF(OR('Tabel 1 ØJ'!C98<5,'Tabel 2 ØJ'!D100<0.5),"-",IFERROR('Tabel 2 ØJ'!D100/'Tabel 1 ØJ'!C98*100,"-")) -> 6.220087736 | F100: =IF(OR('Tabel 1 ØJ'!E98<5,'Tabel 2 ØJ'!F100<0.5),"-",IFERROR('Tabel 2 ØJ'!F100/'Tabel 1 ØJ'!E98*100,"-")) -> 10.37735849 | G100: =IF(OR('Tabel 1 ØJ'!E98<5,'Tabel 2 ØJ'!G100<0.5),"-",IFERROR('Tabel 2 ØJ'!G100/'Tabel 1 ØJ'!E98*100,"-")) -> 8.763764359 | I100: =IF(OR('Tabel 1 ØJ'!G98<5,'Tabel 2 ØJ'!I100<0.5),"-",IFERROR('Tabel 2 ØJ'!I100/'Tabel 1 ØJ'!G98*100,"-")) -> 8.203125 | J100: =IF(OR('Tabel 1 ØJ'!G98<5,'Tabel 2 ØJ'!J100<0.5),"-",IFERROR('Tabel 2 ØJ'!J100/'Tabel 1 ØJ'!G98*100,"-")) -> 7.273328837
A102: Total | C102: =IF(OR('Tabel 1 ØJ'!C100<5,'Tabel 2 ØJ'!C102<0.5),"-",IFERROR('Tabel 2 ØJ'!C102/'Tabel 1 ØJ'!C100*100,"-")) -> 3.352380952 | D102: =IF(OR('Tabel 1 ØJ'!C100<5,'Tabel 2 ØJ'!D102<0.5),"-",IFERROR('Tabel 2 ØJ'!D102/'Tabel 1 ØJ'!C100*100,"-")) -> 2.969278245 | F102: =IF(OR('Tabel 1 ØJ'!E100<5,'Tabel 2 ØJ'!F102<0.5),"-",IFERROR('Tabel 2 ØJ'!F102/'Tabel 1 ØJ'!E100*100,"-")) -> 5.465779468 | G102: =IF(OR('Tabel 1 ØJ'!E100<5,'Tabel 2 ØJ'!G102<0.5),"-",IFERROR('Tabel 2 ØJ'!G102/'Tabel 1 ØJ'!E100*100,"-")) -> 4.5573009 | I102: =IF(OR('Tabel 1 ØJ'!G100<5,'Tabel 2 ØJ'!I102<0.5),"-",IFERROR('Tabel 2 ØJ'!I102/'Tabel 1 ØJ'!G100*100,"-")) -> 4.292662296 | J102: =IF(OR('Tabel 1 ØJ'!G100<5,'Tabel 2 ØJ'!J102<0.5),"-",IFERROR('Tabel 2 ØJ'!J102/'Tabel 1 ØJ'!G100*100,"-")) -> 3.675812325
A104: Ingeniører i alt | C104: =IF(OR('Tabel 1 ØJ'!C102<5,'Tabel 2 ØJ'!C104<0.5),"-",IFERROR('Tabel 2 ØJ'!C104/'Tabel 1 ØJ'!C102*100,"-")) -> 1.906779661 | D104: =IF(OR('Tabel 1 ØJ'!C102<5,'Tabel 2 ØJ'!D104<0.5),"-",IFERROR('Tabel 2 ØJ'!D104/'Tabel 1 ØJ'!C102*100,"-")) -> 1.7691266 | F104: =IF(OR('Tabel 1 ØJ'!E102<5,'Tabel 2 ØJ'!F104<0.5),"-",IFERROR('Tabel 2 ØJ'!F104/'Tabel 1 ØJ'!E102*100,"-")) -> 2.769230769 | G104: =IF(OR('Tabel 1 ØJ'!E102<5,'Tabel 2 ØJ'!G104<0.5),"-",IFERROR('Tabel 2 ØJ'!G104/'Tabel 1 ØJ'!E102*100,"-")) -> 2.206410816 | I104: =IF(OR('Tabel 1 ØJ'!G102<5,'Tabel 2 ØJ'!I104<0.5),"-",IFERROR('Tabel 2 ØJ'!I104/'Tabel 1 ØJ'!G102*100,"-")) -> 2.127659574 | J104: =IF(OR('Tabel 1 ØJ'!G102<5,'Tabel 2 ØJ'!J104<0.5),"-",IFERROR('Tabel 2 ØJ'!J104/'Tabel 1 ØJ'!G102*100,"-")) -> 1.881118224
A105: Magistre i alt | C105: =IF(OR('Tabel 1 ØJ'!C103<5,'Tabel 2 ØJ'!C105<0.5),"-",IFERROR('Tabel 2 ØJ'!C105/'Tabel 1 ØJ'!C103*100,"-")) -> 2.631578947 | D105: =IF(OR('Tabel 1 ØJ'!C103<5,'Tabel 2 ØJ'!D105<0.5),"-",IFERROR('Tabel 2 ØJ'!D105/'Tabel 1 ØJ'!C103*100,"-")) -> 2.155641708 | F105: =IF(OR('Tabel 1 ØJ'!E103<5,'Tabel 2 ØJ'!F105<0.5),"-",IFERROR('Tabel 2 ØJ'!F105/'Tabel 1 ØJ'!E103*100,"-")) -> 6.904761905 | G105: =IF(OR('Tabel 1 ØJ'!E103<5,'Tabel 2 ØJ'!G105<0.5),"-",IFERROR('Tabel 2 ØJ'!G105/'Tabel 1 ØJ'!E103*100,"-")) -> 5.473977778 | I105: =IF(OR('Tabel 1 ØJ'!G103<5,'Tabel 2 ØJ'!I105<0.5),"-",IFERROR('Tabel 2 ØJ'!I105/'Tabel 1 ØJ'!G103*100,"-")) -> 5.401234568 | J105: =IF(OR('Tabel 1 ØJ'!G103<5,'Tabel 2 ØJ'!J105<0.5),"-",IFERROR('Tabel 2 ØJ'!J105/'Tabel 1 ØJ'!G103*100,"-")) -> 4.306415087
A106: DJØF'ere i alt | C106: =IF(OR('Tabel 1 ØJ'!C104<5,'Tabel 2 ØJ'!C106<0.5),"-",IFERROR('Tabel 2 ØJ'!C106/'Tabel 1 ØJ'!C104*100,"-")) -> 3.111111111 | D106: =IF(OR('Tabel 1 ØJ'!C104<5,'Tabel 2 ØJ'!D106<0.5),"-",IFERROR('Tabel 2 ØJ'!D106/'Tabel 1 ØJ'!C104*100,"-")) -> 2.676978731 | F106: =IF(OR('Tabel 1 ØJ'!E104<5,'Tabel 2 ØJ'!F106<0.5),"-",IFERROR('Tabel 2 ØJ'!F106/'Tabel 1 ØJ'!E104*100,"-")) -> 2.966841187 | G106: =IF(OR('Tabel 1 ØJ'!E104<5,'Tabel 2 ØJ'!G106<0.5),"-",IFERROR('Tabel 2 ØJ'!G106/'Tabel 1 ØJ'!E104*100,"-")) -> 2.559076181 | I106: =IF(OR('Tabel 1 ØJ'!G104<5,'Tabel 2 ØJ'!I106<0.5),"-",IFERROR('Tabel 2 ØJ'!I106/'Tabel 1 ØJ'!G104*100,"-")) -> 3.03030303 | J106: =IF(OR('Tabel 1 ØJ'!G104<5,'Tabel 2 ØJ'!J106<0.5),"-",IFERROR('Tabel 2 ØJ'!J106/'Tabel 1 ØJ'!G104*100,"-")) -> 2.610939473
A111: Syddjurs
C113: Mænd | F113: Kvinder | I113: I alt
C114: Ledigheds- berørte | D114: Gns. brutto- ledighed | F114: Ledigheds- berørte | G114: Gns. brutto- ledighed | I114: Ledigheds- berørte | J114: Gns. brutto- ledighed
A117: Civ. ing. | C117: =IF(OR('Tabel 1 ØJ'!C115<5,'Tabel 2 ØJ'!C117<0.5),"-",IFERROR('Tabel 2 ØJ'!C117/'Tabel 1 ØJ'!C115*100,"-")) -> 1.515151515 | D117: =IF(OR('Tabel 1 ØJ'!C115<5,'Tabel 2 ØJ'!D117<0.5),"-",IFERROR('Tabel 2 ØJ'!D117/'Tabel 1 ØJ'!C115*100,"-")) -> 1.375004961 | F117: =IF(OR('Tabel 1 ØJ'!E115<5,'Tabel 2 ØJ'!F117<0.5),"-",IFERROR('Tabel 2 ØJ'!F117/'Tabel 1 ØJ'!E115*100,"-")) -> 1.098901099 | G117: =IF(OR('Tabel 1 ØJ'!E115<5,'Tabel 2 ØJ'!G117<0.5),"-",IFERROR('Tabel 2 ØJ'!G117/'Tabel 1 ØJ'!E115*100,"-")) -> 0.9465367789 | I117: =IF(OR('Tabel 1 ØJ'!G115<5,'Tabel 2 ØJ'!I117<0.5),"-",IFERROR('Tabel 2 ØJ'!I117/'Tabel 1 ØJ'!G115*100,"-")) -> 1.27388535 | J117: =IF(OR('Tabel 1 ØJ'!G115<5,'Tabel 2 ØJ'!J117<0.5),"-",IFERROR('Tabel 2 ØJ'!J117/'Tabel 1 ØJ'!G115*100,"-")) -> 1.126657161
A118: Diplom ing. | C118: =IF(OR('Tabel 1 ØJ'!C116<5,'Tabel 2 ØJ'!C118<0.5),"-",IFERROR('Tabel 2 ØJ'!C118/'Tabel 1 ØJ'!C116*100,"-")) -> - | D118: =IF(OR('Tabel 1 ØJ'!C116<5,'Tabel 2 ØJ'!D118<0.5),"-",IFERROR('Tabel 2 ØJ'!D118/'Tabel 1 ØJ'!C116*100,"-")) -> - | F118: =IF(OR('Tabel 1 ØJ'!E116<5,'Tabel 2 ØJ'!F118<0.5),"-",IFERROR('Tabel 2 ØJ'!F118/'Tabel 1 ØJ'!E116*100,"-")) -> - | G118: =IF(OR('Tabel 1 ØJ'!E116<5,'Tabel 2 ØJ'!G118<0.5),"-",IFERROR('Tabel 2 ØJ'!G118/'Tabel 1 ØJ'!E116*100,"-")) -> - | I118: =IF(OR('Tabel 1 ØJ'!G116<5,'Tabel 2 ØJ'!I118<0.5),"-",IFERROR('Tabel 2 ØJ'!I118/'Tabel 1 ØJ'!G116*100,"-")) -> - | J118: =IF(OR('Tabel 1 ØJ'!G116<5,'Tabel 2 ØJ'!J118<0.5),"-",IFERROR('Tabel 2 ØJ'!J118/'Tabel 1 ØJ'!G116*100,"-")) -> -
A119: Cand. Scient. Tek. | C119: =IF(OR('Tabel 1 ØJ'!C117<5,'Tabel 2 ØJ'!C119<0.5),"-",IFERROR('Tabel 2 ØJ'!C119/'Tabel 1 ØJ'!C117*100,"-")) -> 1.442307692 | D119: =IF(OR('Tabel 1 ØJ'!C117<5,'Tabel 2 ØJ'!D119<0.5),"-",IFERROR('Tabel 2 ØJ'!D119/'Tabel 1 ØJ'!C117*100,"-")) -> 0.7610505256 | F119: =IF(OR('Tabel 1 ØJ'!E117<5,'Tabel 2 ØJ'!F119<0.5),"-",IFERROR('Tabel 2 ØJ'!F119/'Tabel 1 ØJ'!E117*100,"-")) -> 2.489626556 | G119: =IF(OR('Tabel 1 ØJ'!E117<5,'Tabel 2 ØJ'!G119<0.5),"-",IFERROR('Tabel 2 ØJ'!G119/'Tabel 1 ØJ'!E117*100,"-")) -> 2.066277721 | I119: =IF(OR('Tabel 1 ØJ'!G117<5,'Tabel 2 ØJ'!I119<0.5),"-",IFERROR('Tabel 2 ØJ'!I119/'Tabel 1 ØJ'!G117*100,"-")) -> 2.004454343 | J119: =IF(OR('Tabel 1 ØJ'!G117<5,'Tabel 2 ØJ'!J119<0.5),"-",IFERROR('Tabel 2 ØJ'!J119/'Tabel 1 ØJ'!G117*100,"-")) -> 1.461629043
A120: MA. Hum. | C120: =IF(OR('Tabel 1 ØJ'!C118<5,'Tabel 2 ØJ'!C120<0.5),"-",IFERROR('Tabel 2 ØJ'!C120/'Tabel 1 ØJ'!C118*100,"-")) -> 11.62790698 | D120: =IF(OR('Tabel 1 ØJ'!C118<5,'Tabel 2 ØJ'!D120<0.5),"-",IFERROR('Tabel 2 ØJ'!D120/'Tabel 1 ØJ'!C118*100,"-")) -> 11.51839447 | F120: =IF(OR('Tabel 1 ØJ'!E118<5,'Tabel 2 ØJ'!F120<0.5),"-",IFERROR('Tabel 2 ØJ'!F120/'Tabel 1 ØJ'!E118*100,"-")) -> 23.25581395 | G120: =IF(OR('Tabel 1 ØJ'!E118<5,'Tabel 2 ØJ'!G120<0.5),"-",IFERROR('Tabel 2 ØJ'!G120/'Tabel 1 ØJ'!E118*100,"-")) -> 18.55620457 | I120: =IF(OR('Tabel 1 ØJ'!G118<5,'Tabel 2 ØJ'!I120<0.5),"-",IFERROR('Tabel 2 ØJ'!I120/'Tabel 1 ØJ'!G118*100,"-")) -> 19.37984496 | J120: =IF(OR('Tabel 1 ØJ'!G118<5,'Tabel 2 ØJ'!J120<0.5),"-",IFERROR('Tabel 2 ØJ'!J120/'Tabel 1 ØJ'!G118*100,"-")) -> 16.21026787
A121: MA. Nat. | C121: =IF(OR('Tabel 1 ØJ'!C119<5,'Tabel 2 ØJ'!C121<0.5),"-",IFERROR('Tabel 2 ØJ'!C121/'Tabel 1 ØJ'!C119*100,"-")) -> 1.219512195 | D121: =IF(OR('Tabel 1 ØJ'!C119<5,'Tabel 2 ØJ'!D121<0.5),"-",IFERROR('Tabel 2 ØJ'!D121/'Tabel 1 ØJ'!C119*100,"-")) -> 1.219284007 | F121: =IF(OR('Tabel 1 ØJ'!E119<5,'Tabel 2 ØJ'!F121<0.5),"-",IFERROR('Tabel 2 ØJ'!F121/'Tabel 1 ØJ'!E119*100,"-")) -> 0.7326007326 | G121: =IF(OR('Tabel 1 ØJ'!E119<5,'Tabel 2 ØJ'!G121<0.5),"-",IFERROR('Tabel 2 ØJ'!G121/'Tabel 1 ØJ'!E119*100,"-")) -> 0.6648375637 | I121: =IF(OR('Tabel 1 ØJ'!G119<5,'Tabel 2 ØJ'!I121<0.5),"-",IFERROR('Tabel 2 ØJ'!I121/'Tabel 1 ØJ'!G119*100,"-")) -> 0.8450704225 | J121: =IF(OR('Tabel 1 ØJ'!G119<5,'Tabel 2 ØJ'!J121<0.5),"-",IFERROR('Tabel 2 ØJ'!J121/'Tabel 1 ØJ'!G119*100,"-")) -> 0.7929068831
A122: MA. Ph.d. | C122: =IF(OR('Tabel 1 ØJ'!C120<5,'Tabel 2 ØJ'!C122<0.5),"-",IFERROR('Tabel 2 ØJ'!C122/'Tabel 1 ØJ'!C120*100,"-")) -> - | D122: =IF(OR('Tabel 1 ØJ'!C120<5,'Tabel 2 ØJ'!D122<0.5),"-",IFERROR('Tabel 2 ØJ'!D122/'Tabel 1 ØJ'!C120*100,"-")) -> - | F122: =IF(OR('Tabel 1 ØJ'!E120<5,'Tabel 2 ØJ'!F122<0.5),"-",IFERROR('Tabel 2 ØJ'!F122/'Tabel 1 ØJ'!E120*100,"-")) -> - | G122: =IF(OR('Tabel 1 ØJ'!E120<5,'Tabel 2 ØJ'!G122<0.5),"-",IFERROR('Tabel 2 ØJ'!G122/'Tabel 1 ØJ'!E120*100,"-")) -> - | I122: =IF(OR('Tabel 1 ØJ'!G120<5,'Tabel 2 ØJ'!I122<0.5),"-",IFERROR('Tabel 2 ØJ'!I122/'Tabel 1 ØJ'!G120*100,"-")) -> - | J122: =IF(OR('Tabel 1 ØJ'!G120<5,'Tabel 2 ØJ'!J122<0.5),"-",IFERROR('Tabel 2 ØJ'!J122/'Tabel 1 ØJ'!G120*100,"-")) -> -
A123: MA. Samf. | C123: =IF(OR('Tabel 1 ØJ'!C121<5,'Tabel 2 ØJ'!C123<0.5),"-",IFERROR('Tabel 2 ØJ'!C123/'Tabel 1 ØJ'!C121*100,"-")) -> - | D123: =IF(OR('Tabel 1 ØJ'!C121<5,'Tabel 2 ØJ'!D123<0.5),"-",IFERROR('Tabel 2 ØJ'!D123/'Tabel 1 ØJ'!C121*100,"-")) -> - | F123: =IF(OR('Tabel 1 ØJ'!E121<5,'Tabel 2 ØJ'!F123<0.5),"-",IFERROR('Tabel 2 ØJ'!F123/'Tabel 1 ØJ'!E121*100,"-")) -> 15.38461538 | G123: =IF(OR('Tabel 1 ØJ'!E121<5,'Tabel 2 ØJ'!G123<0.5),"-",IFERROR('Tabel 2 ØJ'!G123/'Tabel 1 ØJ'!E121*100,"-")) -> 13.59215848 | I123: =IF(OR('Tabel 1 ØJ'!G121<5,'Tabel 2 ØJ'!I123<0.5),"-",IFERROR('Tabel 2 ØJ'!I123/'Tabel 1 ØJ'!G121*100,"-")) -> 10.25641026 | J123: =IF(OR('Tabel 1 ØJ'!G121<5,'Tabel 2 ØJ'!J123<0.5),"-",IFERROR('Tabel 2 ØJ'!J123/'Tabel 1 ØJ'!G121*100,"-")) -> 9.061438987
A124: Øvrige Mag. | C124: =IF(OR('Tabel 1 ØJ'!C122<5,'Tabel 2 ØJ'!C124<0.5),"-",IFERROR('Tabel 2 ØJ'!C124/'Tabel 1 ØJ'!C122*100,"-")) -> - | D124: =IF(OR('Tabel 1 ØJ'!C122<5,'Tabel 2 ØJ'!D124<0.5),"-",IFERROR('Tabel 2 ØJ'!D124/'Tabel 1 ØJ'!C122*100,"-")) -> - | F124: =IF(OR('Tabel 1 ØJ'!E122<5,'Tabel 2 ØJ'!F124<0.5),"-",IFERROR('Tabel 2 ØJ'!F124/'Tabel 1 ØJ'!E122*100,"-")) -> 4 | G124: =IF(OR('Tabel 1 ØJ'!E122<5,'Tabel 2 ØJ'!G124<0.5),"-",IFERROR('Tabel 2 ØJ'!G124/'Tabel 1 ØJ'!E122*100,"-")) -> 3.101103973 | I124: =IF(OR('Tabel 1 ØJ'!G122<5,'Tabel 2 ØJ'!I124<0.5),"-",IFERROR('Tabel 2 ØJ'!I124/'Tabel 1 ØJ'!G122*100,"-")) -> 3.225806452 | J124: =IF(OR('Tabel 1 ØJ'!G122<5,'Tabel 2 ØJ'!J124<0.5),"-",IFERROR('Tabel 2 ØJ'!J124/'Tabel 1 ØJ'!G122*100,"-")) -> 2.500890301
A125: Agronom | C125: =IF(OR('Tabel 1 ØJ'!C123<5,'Tabel 2 ØJ'!C125<0.5),"-",IFERROR('Tabel 2 ØJ'!C125/'Tabel 1 ØJ'!C123*100,"-")) -> - | D125: =IF(OR('Tabel 1 ØJ'!C123<5,'Tabel 2 ØJ'!D125<0.5),"-",IFERROR('Tabel 2 ØJ'!D125/'Tabel 1 ØJ'!C123*100,"-")) -> - | F125: =IF(OR('Tabel 1 ØJ'!E123<5,'Tabel 2 ØJ'!F125<0.5),"-",IFERROR('Tabel 2 ØJ'!F125/'Tabel 1 ØJ'!E123*100,"-")) -> 4 | G125: =IF(OR('Tabel 1 ØJ'!E123<5,'Tabel 2 ØJ'!G125<0.5),"-",IFERROR('Tabel 2 ØJ'!G125/'Tabel 1 ØJ'!E123*100,"-")) -> 3.999251544 | I125: =IF(OR('Tabel 1 ØJ'!G123<5,'Tabel 2 ØJ'!I125<0.5),"-",IFERROR('Tabel 2 ØJ'!I125/'Tabel 1 ØJ'!G123*100,"-")) -> 3.125 | J125: =IF(OR('Tabel 1 ØJ'!G123<5,'Tabel 2 ØJ'!J125<0.5),"-",IFERROR('Tabel 2 ØJ'!J125/'Tabel 1 ØJ'!G123*100,"-")) -> 3.124415269
A126: Landsk. Arkt. | C126: =IF(OR('Tabel 1 ØJ'!C124<5,'Tabel 2 ØJ'!C126<0.5),"-",IFERROR('Tabel 2 ØJ'!C126/'Tabel 1 ØJ'!C124*100,"-")) -> - | D126: =IF(OR('Tabel 1 ØJ'!C124<5,'Tabel 2 ØJ'!D126<0.5),"-",IFERROR('Tabel 2 ØJ'!D126/'Tabel 1 ØJ'!C124*100,"-")) -> - | F126: =IF(OR('Tabel 1 ØJ'!E124<5,'Tabel 2 ØJ'!F126<0.5),"-",IFERROR('Tabel 2 ØJ'!F126/'Tabel 1 ØJ'!E124*100,"-")) -> - | G126: =IF(OR('Tabel 1 ØJ'!E124<5,'Tabel 2 ØJ'!G126<0.5),"-",IFERROR('Tabel 2 ØJ'!G126/'Tabel 1 ØJ'!E124*100,"-")) -> - | I126: =IF(OR('Tabel 1 ØJ'!G124<5,'Tabel 2 ØJ'!I126<0.5),"-",IFERROR('Tabel 2 ØJ'!I126/'Tabel 1 ØJ'!G124*100,"-")) -> - | J126: =IF(OR('Tabel 1 ØJ'!G124<5,'Tabel 2 ØJ'!J126<0.5),"-",IFERROR('Tabel 2 ØJ'!J126/'Tabel 1 ØJ'!G124*100,"-")) -> -
A127: Hortonom | C127: =IF(OR('Tabel 1 ØJ'!C125<5,'Tabel 2 ØJ'!C127<0.5),"-",IFERROR('Tabel 2 ØJ'!C127/'Tabel 1 ØJ'!C125*100,"-")) -> - | D127: =IF(OR('Tabel 1 ØJ'!C125<5,'Tabel 2 ØJ'!D127<0.5),"-",IFERROR('Tabel 2 ØJ'!D127/'Tabel 1 ØJ'!C125*100,"-")) -> - | F127: =IF(OR('Tabel 1 ØJ'!E125<5,'Tabel 2 ØJ'!F127<0.5),"-",IFERROR('Tabel 2 ØJ'!F127/'Tabel 1 ØJ'!E125*100,"-")) -> - | G127: =IF(OR('Tabel 1 ØJ'!E125<5,'Tabel 2 ØJ'!G127<0.5),"-",IFERROR('Tabel 2 ØJ'!G127/'Tabel 1 ØJ'!E125*100,"-")) -> - | I127: =IF(OR('Tabel 1 ØJ'!G125<5,'Tabel 2 ØJ'!I127<0.5),"-",IFERROR('Tabel 2 ØJ'!I127/'Tabel 1 ØJ'!G125*100,"-")) -> - | J127: =IF(OR('Tabel 1 ØJ'!G125<5,'Tabel 2 ØJ'!J127<0.5),"-",IFERROR('Tabel 2 ØJ'!J127/'Tabel 1 ØJ'!G125*100,"-")) -> -
A128: Forstkand. | C128: =IF(OR('Tabel 1 ØJ'!C126<5,'Tabel 2 ØJ'!C128<0.5),"-",IFERROR('Tabel 2 ØJ'!C128/'Tabel 1 ØJ'!C126*100,"-")) -> - | D128: =IF(OR('Tabel 1 ØJ'!C126<5,'Tabel 2 ØJ'!D128<0.5),"-",IFERROR('Tabel 2 ØJ'!D128/'Tabel 1 ØJ'!C126*100,"-")) -> - | F128: =IF(OR('Tabel 1 ØJ'!E126<5,'Tabel 2 ØJ'!F128<0.5),"-",IFERROR('Tabel 2 ØJ'!F128/'Tabel 1 ØJ'!E126*100,"-")) -> - | G128: =IF(OR('Tabel 1 ØJ'!E126<5,'Tabel 2 ØJ'!G128<0.5),"-",IFERROR('Tabel 2 ØJ'!G128/'Tabel 1 ØJ'!E126*100,"-")) -> - | I128: =IF(OR('Tabel 1 ØJ'!G126<5,'Tabel 2 ØJ'!I128<0.5),"-",IFERROR('Tabel 2 ØJ'!I128/'Tabel 1 ØJ'!G126*100,"-")) -> 20 | J128: =IF(OR('Tabel 1 ØJ'!G126<5,'Tabel 2 ØJ'!J128<0.5),"-",IFERROR('Tabel 2 ØJ'!J128/'Tabel 1 ØJ'!G126*100,"-")) -> 16.0668621
A129: Jordbrugsakad. | C129: =IF(OR('Tabel 1 ØJ'!C127<5,'Tabel 2 ØJ'!C129<0.5),"-",IFERROR('Tabel 2 ØJ'!C129/'Tabel 1 ØJ'!C127*100,"-")) -> 3.846153846 | D129: =IF(OR('Tabel 1 ØJ'!C127<5,'Tabel 2 ØJ'!D129<0.5),"-",IFERROR('Tabel 2 ØJ'!D129/'Tabel 1 ØJ'!C127*100,"-")) -> 3.089781172 | F129: =IF(OR('Tabel 1 ØJ'!E127<5,'Tabel 2 ØJ'!F129<0.5),"-",IFERROR('Tabel 2 ØJ'!F129/'Tabel 1 ØJ'!E127*100,"-")) -> 1.666666667 | G129: =IF(OR('Tabel 1 ØJ'!E127<5,'Tabel 2 ØJ'!G129<0.5),"-",IFERROR('Tabel 2 ØJ'!G129/'Tabel 1 ØJ'!E127*100,"-")) -> 1.66635481 | I129: =IF(OR('Tabel 1 ØJ'!G127<5,'Tabel 2 ØJ'!I129<0.5),"-",IFERROR('Tabel 2 ØJ'!I129/'Tabel 1 ØJ'!G127*100,"-")) -> 2.325581395 | J129: =IF(OR('Tabel 1 ØJ'!G127<5,'Tabel 2 ØJ'!J129<0.5),"-",IFERROR('Tabel 2 ØJ'!J129/'Tabel 1 ØJ'!G127*100,"-")) -> 2.096693013
A130: Mejeriing. | C130: =IF(OR('Tabel 1 ØJ'!C128<5,'Tabel 2 ØJ'!C130<0.5),"-",IFERROR('Tabel 2 ØJ'!C130/'Tabel 1 ØJ'!C128*100,"-")) -> - | D130: =IF(OR('Tabel 1 ØJ'!C128<5,'Tabel 2 ØJ'!D130<0.5),"-",IFERROR('Tabel 2 ØJ'!D130/'Tabel 1 ØJ'!C128*100,"-")) -> - | F130: =IF(OR('Tabel 1 ØJ'!E128<5,'Tabel 2 ØJ'!F130<0.5),"-",IFERROR('Tabel 2 ØJ'!F130/'Tabel 1 ØJ'!E128*100,"-")) -> - | G130: =IF(OR('Tabel 1 ØJ'!E128<5,'Tabel 2 ØJ'!G130<0.5),"-",IFERROR('Tabel 2 ØJ'!G130/'Tabel 1 ØJ'!E128*100,"-")) -> - | I130: =IF(OR('Tabel 1 ØJ'!G128<5,'Tabel 2 ØJ'!I130<0.5),"-",IFERROR('Tabel 2 ØJ'!I130/'Tabel 1 ØJ'!G128*100,"-")) -> - | J130: =IF(OR('Tabel 1 ØJ'!G128<5,'Tabel 2 ØJ'!J130<0.5),"-",IFERROR('Tabel 2 ØJ'!J130/'Tabel 1 ØJ'!G128*100,"-")) -> -
A131: Levn.m.kand. | C131: =IF(OR('Tabel 1 ØJ'!C129<5,'Tabel 2 ØJ'!C131<0.5),"-",IFERROR('Tabel 2 ØJ'!C131/'Tabel 1 ØJ'!C129*100,"-")) -> - | D131: =IF(OR('Tabel 1 ØJ'!C129<5,'Tabel 2 ØJ'!D131<0.5),"-",IFERROR('Tabel 2 ØJ'!D131/'Tabel 1 ØJ'!C129*100,"-")) -> - | F131: =IF(OR('Tabel 1 ØJ'!E129<5,'Tabel 2 ØJ'!F131<0.5),"-",IFERROR('Tabel 2 ØJ'!F131/'Tabel 1 ØJ'!E129*100,"-")) -> - | G131: =IF(OR('Tabel 1 ØJ'!E129<5,'Tabel 2 ØJ'!G131<0.5),"-",IFERROR('Tabel 2 ØJ'!G131/'Tabel 1 ØJ'!E129*100,"-")) -> - | I131: =IF(OR('Tabel 1 ØJ'!G129<5,'Tabel 2 ØJ'!I131<0.5),"-",IFERROR('Tabel 2 ØJ'!I131/'Tabel 1 ØJ'!G129*100,"-")) -> - | J131: =IF(OR('Tabel 1 ØJ'!G129<5,'Tabel 2 ØJ'!J131<0.5),"-",IFERROR('Tabel 2 ØJ'!J131/'Tabel 1 ØJ'!G129*100,"-")) -> -
A132: Dyrlæge | C132: =IF(OR('Tabel 1 ØJ'!C130<5,'Tabel 2 ØJ'!C132<0.5),"-",IFERROR('Tabel 2 ØJ'!C132/'Tabel 1 ØJ'!C130*100,"-")) -> - | D132: =IF(OR('Tabel 1 ØJ'!C130<5,'Tabel 2 ØJ'!D132<0.5),"-",IFERROR('Tabel 2 ØJ'!D132/'Tabel 1 ØJ'!C130*100,"-")) -> - | F132: =IF(OR('Tabel 1 ØJ'!E130<5,'Tabel 2 ØJ'!F132<0.5),"-",IFERROR('Tabel 2 ØJ'!F132/'Tabel 1 ØJ'!E130*100,"-")) -> 9.090909091 | G132: =IF(OR('Tabel 1 ØJ'!E130<5,'Tabel 2 ØJ'!G132<0.5),"-",IFERROR('Tabel 2 ØJ'!G132/'Tabel 1 ØJ'!E130*100,"-")) -> 9.089208054 | I132: =IF(OR('Tabel 1 ØJ'!G130<5,'Tabel 2 ØJ'!I132<0.5),"-",IFERROR('Tabel 2 ØJ'!I132/'Tabel 1 ØJ'!G130*100,"-")) -> 7.142857143 | J132: =IF(OR('Tabel 1 ØJ'!G130<5,'Tabel 2 ØJ'!J132<0.5),"-",IFERROR('Tabel 2 ØJ'!J132/'Tabel 1 ØJ'!G130*100,"-")) -> 7.141520614
A133: Farmaceut | C133: =IF(OR('Tabel 1 ØJ'!C131<5,'Tabel 2 ØJ'!C133<0.5),"-",IFERROR('Tabel 2 ØJ'!C133/'Tabel 1 ØJ'!C131*100,"-")) -> - | D133: =IF(OR('Tabel 1 ØJ'!C131<5,'Tabel 2 ØJ'!D133<0.5),"-",IFERROR('Tabel 2 ØJ'!D133/'Tabel 1 ØJ'!C131*100,"-")) -> - | F133: =IF(OR('Tabel 1 ØJ'!E131<5,'Tabel 2 ØJ'!F133<0.5),"-",IFERROR('Tabel 2 ØJ'!F133/'Tabel 1 ØJ'!E131*100,"-")) -> - | G133: =IF(OR('Tabel 1 ØJ'!E131<5,'Tabel 2 ØJ'!G133<0.5),"-",IFERROR('Tabel 2 ØJ'!G133/'Tabel 1 ØJ'!E131*100,"-")) -> - | I133: =IF(OR('Tabel 1 ØJ'!G131<5,'Tabel 2 ØJ'!I133<0.5),"-",IFERROR('Tabel 2 ØJ'!I133/'Tabel 1 ØJ'!G131*100,"-")) -> - | J133: =IF(OR('Tabel 1 ØJ'!G131<5,'Tabel 2 ØJ'!J133<0.5),"-",IFERROR('Tabel 2 ØJ'!J133/'Tabel 1 ØJ'!G131*100,"-")) -> -
A134: Læge | C134: =IF(OR('Tabel 1 ØJ'!C132<5,'Tabel 2 ØJ'!C134<0.5),"-",IFERROR('Tabel 2 ØJ'!C134/'Tabel 1 ØJ'!C132*100,"-")) -> - | D134: =IF(OR('Tabel 1 ØJ'!C132<5,'Tabel 2 ØJ'!D134<0.5),"-",IFERROR('Tabel 2 ØJ'!D134/'Tabel 1 ØJ'!C132*100,"-")) -> - | F134: =IF(OR('Tabel 1 ØJ'!E132<5,'Tabel 2 ØJ'!F134<0.5),"-",IFERROR('Tabel 2 ØJ'!F134/'Tabel 1 ØJ'!E132*100,"-")) -> - | G134: =IF(OR('Tabel 1 ØJ'!E132<5,'Tabel 2 ØJ'!G134<0.5),"-",IFERROR('Tabel 2 ØJ'!G134/'Tabel 1 ØJ'!E132*100,"-")) -> - | I134: =IF(OR('Tabel 1 ØJ'!G132<5,'Tabel 2 ØJ'!I134<0.5),"-",IFERROR('Tabel 2 ØJ'!I134/'Tabel 1 ØJ'!G132*100,"-")) -> - | J134: =IF(OR('Tabel 1 ØJ'!G132<5,'Tabel 2 ØJ'!J134<0.5),"-",IFERROR('Tabel 2 ØJ'!J134/'Tabel 1 ØJ'!G132*100,"-")) -> -
A135: Tandlæge | C135: =IF(OR('Tabel 1 ØJ'!C133<5,'Tabel 2 ØJ'!C135<0.5),"-",IFERROR('Tabel 2 ØJ'!C135/'Tabel 1 ØJ'!C133*100,"-")) -> - | D135: =IF(OR('Tabel 1 ØJ'!C133<5,'Tabel 2 ØJ'!D135<0.5),"-",IFERROR('Tabel 2 ØJ'!D135/'Tabel 1 ØJ'!C133*100,"-")) -> - | F135: =IF(OR('Tabel 1 ØJ'!E133<5,'Tabel 2 ØJ'!F135<0.5),"-",IFERROR('Tabel 2 ØJ'!F135/'Tabel 1 ØJ'!E133*100,"-")) -> - | G135: =IF(OR('Tabel 1 ØJ'!E133<5,'Tabel 2 ØJ'!G135<0.5),"-",IFERROR('Tabel 2 ØJ'!G135/'Tabel 1 ØJ'!E133*100,"-")) -> - | I135: =IF(OR('Tabel 1 ØJ'!G133<5,'Tabel 2 ØJ'!I135<0.5),"-",IFERROR('Tabel 2 ØJ'!I135/'Tabel 1 ØJ'!G133*100,"-")) -> - | J135: =IF(OR('Tabel 1 ØJ'!G133<5,'Tabel 2 ØJ'!J135<0.5),"-",IFERROR('Tabel 2 ØJ'!J135/'Tabel 1 ØJ'!G133*100,"-")) -> -
A136: Arkitekt | C136: =IF(OR('Tabel 1 ØJ'!C134<5,'Tabel 2 ØJ'!C136<0.5),"-",IFERROR('Tabel 2 ØJ'!C136/'Tabel 1 ØJ'!C134*100,"-")) -> 3.703703704 | D136: =IF(OR('Tabel 1 ØJ'!C134<5,'Tabel 2 ØJ'!D136<0.5),"-",IFERROR('Tabel 2 ØJ'!D136/'Tabel 1 ØJ'!C134*100,"-")) -> 3.518206662 | F136: =IF(OR('Tabel 1 ØJ'!E134<5,'Tabel 2 ØJ'!F136<0.5),"-",IFERROR('Tabel 2 ØJ'!F136/'Tabel 1 ØJ'!E134*100,"-")) -> 2.597402597 | G136: =IF(OR('Tabel 1 ØJ'!E134<5,'Tabel 2 ØJ'!G136<0.5),"-",IFERROR('Tabel 2 ØJ'!G136/'Tabel 1 ØJ'!E134*100,"-")) -> 1.932702114 | I136: =IF(OR('Tabel 1 ØJ'!G134<5,'Tabel 2 ØJ'!I136<0.5),"-",IFERROR('Tabel 2 ØJ'!I136/'Tabel 1 ØJ'!G134*100,"-")) -> 2.884615385 | J136: =IF(OR('Tabel 1 ØJ'!G134<5,'Tabel 2 ØJ'!J136<0.5),"-",IFERROR('Tabel 2 ØJ'!J136/'Tabel 1 ØJ'!G134*100,"-")) -> 2.344323487
A137: Landinspek. | C137: =IF(OR('Tabel 1 ØJ'!C135<5,'Tabel 2 ØJ'!C137<0.5),"-",IFERROR('Tabel 2 ØJ'!C137/'Tabel 1 ØJ'!C135*100,"-")) -> - | D137: =IF(OR('Tabel 1 ØJ'!C135<5,'Tabel 2 ØJ'!D137<0.5),"-",IFERROR('Tabel 2 ØJ'!D137/'Tabel 1 ØJ'!C135*100,"-")) -> - | F137: =IF(OR('Tabel 1 ØJ'!E135<5,'Tabel 2 ØJ'!F137<0.5),"-",IFERROR('Tabel 2 ØJ'!F137/'Tabel 1 ØJ'!E135*100,"-")) -> - | G137: =IF(OR('Tabel 1 ØJ'!E135<5,'Tabel 2 ØJ'!G137<0.5),"-",IFERROR('Tabel 2 ØJ'!G137/'Tabel 1 ØJ'!E135*100,"-")) -> - | I137: =IF(OR('Tabel 1 ØJ'!G135<5,'Tabel 2 ØJ'!I137<0.5),"-",IFERROR('Tabel 2 ØJ'!I137/'Tabel 1 ØJ'!G135*100,"-")) -> - | J137: =IF(OR('Tabel 1 ØJ'!G135<5,'Tabel 2 ØJ'!J137<0.5),"-",IFERROR('Tabel 2 ØJ'!J137/'Tabel 1 ØJ'!G135*100,"-")) -> -
A138: Bibliotekar | C138: =IF(OR('Tabel 1 ØJ'!C136<5,'Tabel 2 ØJ'!C138<0.5),"-",IFERROR('Tabel 2 ØJ'!C138/'Tabel 1 ØJ'!C136*100,"-")) -> - | D138: =IF(OR('Tabel 1 ØJ'!C136<5,'Tabel 2 ØJ'!D138<0.5),"-",IFERROR('Tabel 2 ØJ'!D138/'Tabel 1 ØJ'!C136*100,"-")) -> - | F138: =IF(OR('Tabel 1 ØJ'!E136<5,'Tabel 2 ØJ'!F138<0.5),"-",IFERROR('Tabel 2 ØJ'!F138/'Tabel 1 ØJ'!E136*100,"-")) -> - | G138: =IF(OR('Tabel 1 ØJ'!E136<5,'Tabel 2 ØJ'!G138<0.5),"-",IFERROR('Tabel 2 ØJ'!G138/'Tabel 1 ØJ'!E136*100,"-")) -> - | I138: =IF(OR('Tabel 1 ØJ'!G136<5,'Tabel 2 ØJ'!I138<0.5),"-",IFERROR('Tabel 2 ØJ'!I138/'Tabel 1 ØJ'!G136*100,"-")) -> - | J138: =IF(OR('Tabel 1 ØJ'!G136<5,'Tabel 2 ØJ'!J138<0.5),"-",IFERROR('Tabel 2 ØJ'!J138/'Tabel 1 ØJ'!G136*100,"-")) -> -
A139: Musikudd. | C139: =IF(OR('Tabel 1 ØJ'!C137<5,'Tabel 2 ØJ'!C139<0.5),"-",IFERROR('Tabel 2 ØJ'!C139/'Tabel 1 ØJ'!C137*100,"-")) -> - | D139: =IF(OR('Tabel 1 ØJ'!C137<5,'Tabel 2 ØJ'!D139<0.5),"-",IFERROR('Tabel 2 ØJ'!D139/'Tabel 1 ØJ'!C137*100,"-")) -> - | F139: =IF(OR('Tabel 1 ØJ'!E137<5,'Tabel 2 ØJ'!F139<0.5),"-",IFERROR('Tabel 2 ØJ'!F139/'Tabel 1 ØJ'!E137*100,"-")) -> - | G139: =IF(OR('Tabel 1 ØJ'!E137<5,'Tabel 2 ØJ'!G139<0.5),"-",IFERROR('Tabel 2 ØJ'!G139/'Tabel 1 ØJ'!E137*100,"-")) -> - | I139: =IF(OR('Tabel 1 ØJ'!G137<5,'Tabel 2 ØJ'!I139<0.5),"-",IFERROR('Tabel 2 ØJ'!I139/'Tabel 1 ØJ'!G137*100,"-")) -> - | J139: =IF(OR('Tabel 1 ØJ'!G137<5,'Tabel 2 ØJ'!J139<0.5),"-",IFERROR('Tabel 2 ØJ'!J139/'Tabel 1 ØJ'!G137*100,"-")) -> -
A140: Teolog | C140: =IF(OR('Tabel 1 ØJ'!C138<5,'Tabel 2 ØJ'!C140<0.5),"-",IFERROR('Tabel 2 ØJ'!C140/'Tabel 1 ØJ'!C138*100,"-")) -> - | D140: =IF(OR('Tabel 1 ØJ'!C138<5,'Tabel 2 ØJ'!D140<0.5),"-",IFERROR('Tabel 2 ØJ'!D140/'Tabel 1 ØJ'!C138*100,"-")) -> - | F140: =IF(OR('Tabel 1 ØJ'!E138<5,'Tabel 2 ØJ'!F140<0.5),"-",IFERROR('Tabel 2 ØJ'!F140/'Tabel 1 ØJ'!E138*100,"-")) -> 11.76470588 | G140: =IF(OR('Tabel 1 ØJ'!E138<5,'Tabel 2 ØJ'!G140<0.5),"-",IFERROR('Tabel 2 ØJ'!G140/'Tabel 1 ØJ'!E138*100,"-")) -> 11.76250454 | I140: =IF(OR('Tabel 1 ØJ'!G138<5,'Tabel 2 ØJ'!I140<0.5),"-",IFERROR('Tabel 2 ØJ'!I140/'Tabel 1 ØJ'!G138*100,"-")) -> 14.28571429 | J140: =IF(OR('Tabel 1 ØJ'!G138<5,'Tabel 2 ØJ'!J140<0.5),"-",IFERROR('Tabel 2 ØJ'!J140/'Tabel 1 ØJ'!G138*100,"-")) -> 11.78818686
A141: Psykolog | C141: =IF(OR('Tabel 1 ØJ'!C139<5,'Tabel 2 ØJ'!C141<0.5),"-",IFERROR('Tabel 2 ØJ'!C141/'Tabel 1 ØJ'!C139*100,"-")) -> - | D141: =IF(OR('Tabel 1 ØJ'!C139<5,'Tabel 2 ØJ'!D141<0.5),"-",IFERROR('Tabel 2 ØJ'!D141/'Tabel 1 ØJ'!C139*100,"-")) -> - | F141: =IF(OR('Tabel 1 ØJ'!E139<5,'Tabel 2 ØJ'!F141<0.5),"-",IFERROR('Tabel 2 ØJ'!F141/'Tabel 1 ØJ'!E139*100,"-")) -> 1.408450704 | G141: =IF(OR('Tabel 1 ØJ'!E139<5,'Tabel 2 ØJ'!G141<0.5),"-",IFERROR('Tabel 2 ØJ'!G141/'Tabel 1 ØJ'!E139*100,"-")) -> 1.408187163 | I141: =IF(OR('Tabel 1 ØJ'!G139<5,'Tabel 2 ØJ'!I141<0.5),"-",IFERROR('Tabel 2 ØJ'!I141/'Tabel 1 ØJ'!G139*100,"-")) -> 1.234567901 | J141: =IF(OR('Tabel 1 ØJ'!G139<5,'Tabel 2 ØJ'!J141<0.5),"-",IFERROR('Tabel 2 ØJ'!J141/'Tabel 1 ØJ'!G139*100,"-")) -> 1.234336896
A142: Jurist | C142: =IF(OR('Tabel 1 ØJ'!C140<5,'Tabel 2 ØJ'!C142<0.5),"-",IFERROR('Tabel 2 ØJ'!C142/'Tabel 1 ØJ'!C140*100,"-")) -> 10.52631579 | D142: =IF(OR('Tabel 1 ØJ'!C140<5,'Tabel 2 ØJ'!D142<0.5),"-",IFERROR('Tabel 2 ØJ'!D142/'Tabel 1 ØJ'!C140*100,"-")) -> 9.309746017 | F142: =IF(OR('Tabel 1 ØJ'!E140<5,'Tabel 2 ØJ'!F142<0.5),"-",IFERROR('Tabel 2 ØJ'!F142/'Tabel 1 ØJ'!E140*100,"-")) -> - | G142: =IF(OR('Tabel 1 ØJ'!E140<5,'Tabel 2 ØJ'!G142<0.5),"-",IFERROR('Tabel 2 ØJ'!G142/'Tabel 1 ØJ'!E140*100,"-")) -> - | I142: =IF(OR('Tabel 1 ØJ'!G140<5,'Tabel 2 ØJ'!I142<0.5),"-",IFERROR('Tabel 2 ØJ'!I142/'Tabel 1 ØJ'!G140*100,"-")) -> 2.702702703 | J142: =IF(OR('Tabel 1 ØJ'!G140<5,'Tabel 2 ØJ'!J142<0.5),"-",IFERROR('Tabel 2 ØJ'!J142/'Tabel 1 ØJ'!G140*100,"-")) -> 2.390340194
A143: Økonom | C143: =IF(OR('Tabel 1 ØJ'!C141<5,'Tabel 2 ØJ'!C143<0.5),"-",IFERROR('Tabel 2 ØJ'!C143/'Tabel 1 ØJ'!C141*100,"-")) -> 5.882352941 | D143: =IF(OR('Tabel 1 ØJ'!C141<5,'Tabel 2 ØJ'!D143<0.5),"-",IFERROR('Tabel 2 ØJ'!D143/'Tabel 1 ØJ'!C141*100,"-")) -> 5.338254556 | F143: =IF(OR('Tabel 1 ØJ'!E141<5,'Tabel 2 ØJ'!F143<0.5),"-",IFERROR('Tabel 2 ØJ'!F143/'Tabel 1 ØJ'!E141*100,"-")) -> - | G143: =IF(OR('Tabel 1 ØJ'!E141<5,'Tabel 2 ØJ'!G143<0.5),"-",IFERROR('Tabel 2 ØJ'!G143/'Tabel 1 ØJ'!E141*100,"-")) -> - | I143: =IF(OR('Tabel 1 ØJ'!G141<5,'Tabel 2 ØJ'!I143<0.5),"-",IFERROR('Tabel 2 ØJ'!I143/'Tabel 1 ØJ'!G141*100,"-")) -> 2.222222222 | J143: =IF(OR('Tabel 1 ØJ'!G141<5,'Tabel 2 ØJ'!J143<0.5),"-",IFERROR('Tabel 2 ØJ'!J143/'Tabel 1 ØJ'!G141*100,"-")) -> 2.016673943
A144: Samf. Adm. | C144: =IF(OR('Tabel 1 ØJ'!C142<5,'Tabel 2 ØJ'!C144<0.5),"-",IFERROR('Tabel 2 ØJ'!C144/'Tabel 1 ØJ'!C142*100,"-")) -> 9.090909091 | D144: =IF(OR('Tabel 1 ØJ'!C142<5,'Tabel 2 ØJ'!D144<0.5),"-",IFERROR('Tabel 2 ØJ'!D144/'Tabel 1 ØJ'!C142*100,"-")) -> 9.089208054 | F144: =IF(OR('Tabel 1 ØJ'!E142<5,'Tabel 2 ØJ'!F144<0.5),"-",IFERROR('Tabel 2 ØJ'!F144/'Tabel 1 ØJ'!E142*100,"-")) -> 7.317073171 | G144: =IF(OR('Tabel 1 ØJ'!E142<5,'Tabel 2 ØJ'!G144<0.5),"-",IFERROR('Tabel 2 ØJ'!G144/'Tabel 1 ØJ'!E142*100,"-")) -> 5.978522955 | I144: =IF(OR('Tabel 1 ØJ'!G142<5,'Tabel 2 ØJ'!I144<0.5),"-",IFERROR('Tabel 2 ØJ'!I144/'Tabel 1 ØJ'!G142*100,"-")) -> 7.692307692 | J144: =IF(OR('Tabel 1 ØJ'!G142<5,'Tabel 2 ØJ'!J144<0.5),"-",IFERROR('Tabel 2 ØJ'!J144/'Tabel 1 ØJ'!G142*100,"-")) -> 6.636552495
A145: Cand. Merc. | C145: =IF(OR('Tabel 1 ØJ'!C143<5,'Tabel 2 ØJ'!C145<0.5),"-",IFERROR('Tabel 2 ØJ'!C145/'Tabel 1 ØJ'!C143*100,"-")) -> 2.898550725 | D145: =IF(OR('Tabel 1 ØJ'!C143<5,'Tabel 2 ØJ'!D145<0.5),"-",IFERROR('Tabel 2 ØJ'!D145/'Tabel 1 ØJ'!C143*100,"-")) -> 2.831117342 | F145: =IF(OR('Tabel 1 ØJ'!E143<5,'Tabel 2 ØJ'!F145<0.5),"-",IFERROR('Tabel 2 ØJ'!F145/'Tabel 1 ØJ'!E143*100,"-")) -> - | G145: =IF(OR('Tabel 1 ØJ'!E143<5,'Tabel 2 ØJ'!G145<0.5),"-",IFERROR('Tabel 2 ØJ'!G145/'Tabel 1 ØJ'!E143*100,"-")) -> - | I145: =IF(OR('Tabel 1 ØJ'!G143<5,'Tabel 2 ØJ'!I145<0.5),"-",IFERROR('Tabel 2 ØJ'!I145/'Tabel 1 ØJ'!G143*100,"-")) -> 0.9615384615 | J145: =IF(OR('Tabel 1 ØJ'!G143<5,'Tabel 2 ØJ'!J145<0.5),"-",IFERROR('Tabel 2 ØJ'!J145/'Tabel 1 ØJ'!G143*100,"-")) -> 0.9391687337
A146: HA | C146: =IF(OR('Tabel 1 ØJ'!C144<5,'Tabel 2 ØJ'!C146<0.5),"-",IFERROR('Tabel 2 ØJ'!C146/'Tabel 1 ØJ'!C144*100,"-")) -> 13.33333333 | D146: =IF(OR('Tabel 1 ØJ'!C144<5,'Tabel 2 ØJ'!D146<0.5),"-",IFERROR('Tabel 2 ØJ'!D146/'Tabel 1 ØJ'!C144*100,"-")) -> 12.10004366 | F146: =IF(OR('Tabel 1 ØJ'!E144<5,'Tabel 2 ØJ'!F146<0.5),"-",IFERROR('Tabel 2 ØJ'!F146/'Tabel 1 ØJ'!E144*100,"-")) -> 2.380952381 | G146: =IF(OR('Tabel 1 ØJ'!E144<5,'Tabel 2 ØJ'!G146<0.5),"-",IFERROR('Tabel 2 ØJ'!G146/'Tabel 1 ØJ'!E144*100,"-")) -> 1.39147532 | I146: =IF(OR('Tabel 1 ØJ'!G144<5,'Tabel 2 ØJ'!I146<0.5),"-",IFERROR('Tabel 2 ØJ'!I146/'Tabel 1 ØJ'!G144*100,"-")) -> 5.263157895 | J146: =IF(OR('Tabel 1 ØJ'!G144<5,'Tabel 2 ØJ'!J146<0.5),"-",IFERROR('Tabel 2 ØJ'!J146/'Tabel 1 ØJ'!G144*100,"-")) -> 4.20951962
A147: HD | C147: =IF(OR('Tabel 1 ØJ'!C145<5,'Tabel 2 ØJ'!C147<0.5),"-",IFERROR('Tabel 2 ØJ'!C147/'Tabel 1 ØJ'!C145*100,"-")) -> 7.692307692 | D147: =IF(OR('Tabel 1 ØJ'!C145<5,'Tabel 2 ØJ'!D147<0.5),"-",IFERROR('Tabel 2 ØJ'!D147/'Tabel 1 ØJ'!C145*100,"-")) -> 7.690868353 | F147: =IF(OR('Tabel 1 ØJ'!E145<5,'Tabel 2 ØJ'!F147<0.5),"-",IFERROR('Tabel 2 ØJ'!F147/'Tabel 1 ØJ'!E145*100,"-")) -> - | G147: =IF(OR('Tabel 1 ØJ'!E145<5,'Tabel 2 ØJ'!G147<0.5),"-",IFERROR('Tabel 2 ØJ'!G147/'Tabel 1 ØJ'!E145*100,"-")) -> - | I147: =IF(OR('Tabel 1 ØJ'!G145<5,'Tabel 2 ØJ'!I147<0.5),"-",IFERROR('Tabel 2 ØJ'!I147/'Tabel 1 ØJ'!G145*100,"-")) -> 2.43902439 | J147: =IF(OR('Tabel 1 ØJ'!G145<5,'Tabel 2 ØJ'!J147<0.5),"-",IFERROR('Tabel 2 ØJ'!J147/'Tabel 1 ØJ'!G145*100,"-")) -> 2.438568014
A148: Komm. og Sprog | C148: =IF(OR('Tabel 1 ØJ'!C146<5,'Tabel 2 ØJ'!C148<0.5),"-",IFERROR('Tabel 2 ØJ'!C148/'Tabel 1 ØJ'!C146*100,"-")) -> - | D148: =IF(OR('Tabel 1 ØJ'!C146<5,'Tabel 2 ØJ'!D148<0.5),"-",IFERROR('Tabel 2 ØJ'!D148/'Tabel 1 ØJ'!C146*100,"-")) -> - | F148: =IF(OR('Tabel 1 ØJ'!E146<5,'Tabel 2 ØJ'!F148<0.5),"-",IFERROR('Tabel 2 ØJ'!F148/'Tabel 1 ØJ'!E146*100,"-")) -> 4.444444444 | G148: =IF(OR('Tabel 1 ØJ'!E146<5,'Tabel 2 ØJ'!G148<0.5),"-",IFERROR('Tabel 2 ØJ'!G148/'Tabel 1 ØJ'!E146*100,"-")) -> 1.555125886 | I148: =IF(OR('Tabel 1 ØJ'!G146<5,'Tabel 2 ØJ'!I148<0.5),"-",IFERROR('Tabel 2 ØJ'!I148/'Tabel 1 ØJ'!G146*100,"-")) -> 6.12244898 | J148: =IF(OR('Tabel 1 ØJ'!G146<5,'Tabel 2 ØJ'!J148<0.5),"-",IFERROR('Tabel 2 ØJ'!J148/'Tabel 1 ØJ'!G146*100,"-")) -> 3.048559285
A149: Bygningskonst. | C149: =IF(OR('Tabel 1 ØJ'!C147<5,'Tabel 2 ØJ'!C149<0.5),"-",IFERROR('Tabel 2 ØJ'!C149/'Tabel 1 ØJ'!C147*100,"-")) -> - | D149: =IF(OR('Tabel 1 ØJ'!C147<5,'Tabel 2 ØJ'!D149<0.5),"-",IFERROR('Tabel 2 ØJ'!D149/'Tabel 1 ØJ'!C147*100,"-")) -> - | F149: =IF(OR('Tabel 1 ØJ'!E147<5,'Tabel 2 ØJ'!F149<0.5),"-",IFERROR('Tabel 2 ØJ'!F149/'Tabel 1 ØJ'!E147*100,"-")) -> - | G149: =IF(OR('Tabel 1 ØJ'!E147<5,'Tabel 2 ØJ'!G149<0.5),"-",IFERROR('Tabel 2 ØJ'!G149/'Tabel 1 ØJ'!E147*100,"-")) -> - | I149: =IF(OR('Tabel 1 ØJ'!G147<5,'Tabel 2 ØJ'!I149<0.5),"-",IFERROR('Tabel 2 ØJ'!I149/'Tabel 1 ØJ'!G147*100,"-")) -> - | J149: =IF(OR('Tabel 1 ØJ'!G147<5,'Tabel 2 ØJ'!J149<0.5),"-",IFERROR('Tabel 2 ØJ'!J149/'Tabel 1 ØJ'!G147*100,"-")) -> -
A150: Cand. IT. | C150: =IF(OR('Tabel 1 ØJ'!C148<5,'Tabel 2 ØJ'!C150<0.5),"-",IFERROR('Tabel 2 ØJ'!C150/'Tabel 1 ØJ'!C148*100,"-")) -> 6.25 | D150: =IF(OR('Tabel 1 ØJ'!C148<5,'Tabel 2 ØJ'!D150<0.5),"-",IFERROR('Tabel 2 ØJ'!D150/'Tabel 1 ØJ'!C148*100,"-")) -> 6.248830537 | F150: =IF(OR('Tabel 1 ØJ'!E148<5,'Tabel 2 ØJ'!F150<0.5),"-",IFERROR('Tabel 2 ØJ'!F150/'Tabel 1 ØJ'!E148*100,"-")) -> - | G150: =IF(OR('Tabel 1 ØJ'!E148<5,'Tabel 2 ØJ'!G150<0.5),"-",IFERROR('Tabel 2 ØJ'!G150/'Tabel 1 ØJ'!E148*100,"-")) -> - | I150: =IF(OR('Tabel 1 ØJ'!G148<5,'Tabel 2 ØJ'!I150<0.5),"-",IFERROR('Tabel 2 ØJ'!I150/'Tabel 1 ØJ'!G148*100,"-")) -> 2.380952381 | J150: =IF(OR('Tabel 1 ØJ'!G148<5,'Tabel 2 ØJ'!J150<0.5),"-",IFERROR('Tabel 2 ØJ'!J150/'Tabel 1 ØJ'!G148*100,"-")) -> 2.380506871
A151: Bac. Samf. | C151: =IF(OR('Tabel 1 ØJ'!C149<5,'Tabel 2 ØJ'!C151<0.5),"-",IFERROR('Tabel 2 ØJ'!C151/'Tabel 1 ØJ'!C149*100,"-")) -> - | D151: =IF(OR('Tabel 1 ØJ'!C149<5,'Tabel 2 ØJ'!D151<0.5),"-",IFERROR('Tabel 2 ØJ'!D151/'Tabel 1 ØJ'!C149*100,"-")) -> - | F151: =IF(OR('Tabel 1 ØJ'!E149<5,'Tabel 2 ØJ'!F151<0.5),"-",IFERROR('Tabel 2 ØJ'!F151/'Tabel 1 ØJ'!E149*100,"-")) -> - | G151: =IF(OR('Tabel 1 ØJ'!E149<5,'Tabel 2 ØJ'!G151<0.5),"-",IFERROR('Tabel 2 ØJ'!G151/'Tabel 1 ØJ'!E149*100,"-")) -> - | I151: =IF(OR('Tabel 1 ØJ'!G149<5,'Tabel 2 ØJ'!I151<0.5),"-",IFERROR('Tabel 2 ØJ'!I151/'Tabel 1 ØJ'!G149*100,"-")) -> - | J151: =IF(OR('Tabel 1 ØJ'!G149<5,'Tabel 2 ØJ'!J151<0.5),"-",IFERROR('Tabel 2 ØJ'!J151/'Tabel 1 ØJ'!G149*100,"-")) -> -
A152: Bac. Hum. | C152: =IF(OR('Tabel 1 ØJ'!C150<5,'Tabel 2 ØJ'!C152<0.5),"-",IFERROR('Tabel 2 ØJ'!C152/'Tabel 1 ØJ'!C150*100,"-")) -> - | D152: =IF(OR('Tabel 1 ØJ'!C150<5,'Tabel 2 ØJ'!D152<0.5),"-",IFERROR('Tabel 2 ØJ'!D152/'Tabel 1 ØJ'!C150*100,"-")) -> - | F152: =IF(OR('Tabel 1 ØJ'!E150<5,'Tabel 2 ØJ'!F152<0.5),"-",IFERROR('Tabel 2 ØJ'!F152/'Tabel 1 ØJ'!E150*100,"-")) -> 9.523809524 | G152: =IF(OR('Tabel 1 ØJ'!E150<5,'Tabel 2 ØJ'!G152<0.5),"-",IFERROR('Tabel 2 ØJ'!G152/'Tabel 1 ØJ'!E150*100,"-")) -> 9.522027485 | I152: =IF(OR('Tabel 1 ØJ'!G150<5,'Tabel 2 ØJ'!I152<0.5),"-",IFERROR('Tabel 2 ØJ'!I152/'Tabel 1 ØJ'!G150*100,"-")) -> 6.060606061 | J152: =IF(OR('Tabel 1 ØJ'!G150<5,'Tabel 2 ØJ'!J152<0.5),"-",IFERROR('Tabel 2 ØJ'!J152/'Tabel 1 ØJ'!G150*100,"-")) -> 6.059472036
A153: Bac. Nat. | C153: =IF(OR('Tabel 1 ØJ'!C151<5,'Tabel 2 ØJ'!C153<0.5),"-",IFERROR('Tabel 2 ØJ'!C153/'Tabel 1 ØJ'!C151*100,"-")) -> - | D153: =IF(OR('Tabel 1 ØJ'!C151<5,'Tabel 2 ØJ'!D153<0.5),"-",IFERROR('Tabel 2 ØJ'!D153/'Tabel 1 ØJ'!C151*100,"-")) -> - | F153: =IF(OR('Tabel 1 ØJ'!E151<5,'Tabel 2 ØJ'!F153<0.5),"-",IFERROR('Tabel 2 ØJ'!F153/'Tabel 1 ØJ'!E151*100,"-")) -> - | G153: =IF(OR('Tabel 1 ØJ'!E151<5,'Tabel 2 ØJ'!G153<0.5),"-",IFERROR('Tabel 2 ØJ'!G153/'Tabel 1 ØJ'!E151*100,"-")) -> - | I153: =IF(OR('Tabel 1 ØJ'!G151<5,'Tabel 2 ØJ'!I153<0.5),"-",IFERROR('Tabel 2 ØJ'!I153/'Tabel 1 ØJ'!G151*100,"-")) -> - | J153: =IF(OR('Tabel 1 ØJ'!G151<5,'Tabel 2 ØJ'!J153<0.5),"-",IFERROR('Tabel 2 ØJ'!J153/'Tabel 1 ØJ'!G151*100,"-")) -> -
A154: Andre | C154: =IF(OR('Tabel 1 ØJ'!C152<5,'Tabel 2 ØJ'!C154<0.5),"-",IFERROR('Tabel 2 ØJ'!C154/'Tabel 1 ØJ'!C152*100,"-")) -> 1.639344262 | D154: =IF(OR('Tabel 1 ØJ'!C152<5,'Tabel 2 ØJ'!D154<0.5),"-",IFERROR('Tabel 2 ØJ'!D154/'Tabel 1 ØJ'!C152*100,"-")) -> 1.598138266 | F154: =IF(OR('Tabel 1 ØJ'!E152<5,'Tabel 2 ØJ'!F154<0.5),"-",IFERROR('Tabel 2 ØJ'!F154/'Tabel 1 ØJ'!E152*100,"-")) -> 1.769911504 | G154: =IF(OR('Tabel 1 ØJ'!E152<5,'Tabel 2 ØJ'!G154<0.5),"-",IFERROR('Tabel 2 ØJ'!G154/'Tabel 1 ØJ'!E152*100,"-")) -> 1.176224479 | I154: =IF(OR('Tabel 1 ØJ'!G152<5,'Tabel 2 ØJ'!I154<0.5),"-",IFERROR('Tabel 2 ØJ'!I154/'Tabel 1 ØJ'!G152*100,"-")) -> 1.724137931 | J154: =IF(OR('Tabel 1 ØJ'!G152<5,'Tabel 2 ØJ'!J154<0.5),"-",IFERROR('Tabel 2 ØJ'!J154/'Tabel 1 ØJ'!G152*100,"-")) -> 1.324136784
A156: Total | C156: =IF(OR('Tabel 1 ØJ'!C154<5,'Tabel 2 ØJ'!C156<0.5),"-",IFERROR('Tabel 2 ØJ'!C156/'Tabel 1 ØJ'!C154*100,"-")) -> 3.858875413 | D156: =IF(OR('Tabel 1 ØJ'!C154<5,'Tabel 2 ØJ'!D156<0.5),"-",IFERROR('Tabel 2 ØJ'!D156/'Tabel 1 ØJ'!C154*100,"-")) -> 3.223437107 | F156: =IF(OR('Tabel 1 ØJ'!E154<5,'Tabel 2 ØJ'!F156<0.5),"-",IFERROR('Tabel 2 ØJ'!F156/'Tabel 1 ØJ'!E154*100,"-")) -> 2.88307528 | G156: =IF(OR('Tabel 1 ØJ'!E154<5,'Tabel 2 ØJ'!G156<0.5),"-",IFERROR('Tabel 2 ØJ'!G156/'Tabel 1 ØJ'!E154*100,"-")) -> 2.345236362 | I156: =IF(OR('Tabel 1 ØJ'!G154<5,'Tabel 2 ØJ'!I156<0.5),"-",IFERROR('Tabel 2 ØJ'!I156/'Tabel 1 ØJ'!G154*100,"-")) -> 3.201438849 | J156: =IF(OR('Tabel 1 ØJ'!G154<5,'Tabel 2 ØJ'!J156<0.5),"-",IFERROR('Tabel 2 ØJ'!J156/'Tabel 1 ØJ'!G154*100,"-")) -> 2.631757252
A158: Ingeniører i alt | C158: =IF(OR('Tabel 1 ØJ'!C156<5,'Tabel 2 ØJ'!C158<0.5),"-",IFERROR('Tabel 2 ØJ'!C158/'Tabel 1 ØJ'!C156*100,"-")) -> 12.12121212 | D158: =IF(OR('Tabel 1 ØJ'!C156<5,'Tabel 2 ØJ'!D158<0.5),"-",IFERROR('Tabel 2 ØJ'!D158/'Tabel 1 ØJ'!C156*100,"-")) -> 7.968413632 | F158: =IF(OR('Tabel 1 ØJ'!E156<5,'Tabel 2 ØJ'!F158<0.5),"-",IFERROR('Tabel 2 ØJ'!F158/'Tabel 1 ØJ'!E156*100,"-")) -> 1.098901099 | G158: =IF(OR('Tabel 1 ØJ'!E156<5,'Tabel 2 ØJ'!G158<0.5),"-",IFERROR('Tabel 2 ØJ'!G158/'Tabel 1 ØJ'!E156*100,"-")) -> 0.9465367789 | I158: =IF(OR('Tabel 1 ØJ'!G156<5,'Tabel 2 ØJ'!I158<0.5),"-",IFERROR('Tabel 2 ØJ'!I158/'Tabel 1 ØJ'!G156*100,"-")) -> 5.732484076 | J158: =IF(OR('Tabel 1 ØJ'!G156<5,'Tabel 2 ØJ'!J158<0.5),"-",IFERROR('Tabel 2 ØJ'!J158/'Tabel 1 ØJ'!G156*100,"-")) -> 3.898408577
A159: Magistre i alt | C159: =IF(OR('Tabel 1 ØJ'!C157<5,'Tabel 2 ØJ'!C159<0.5),"-",IFERROR('Tabel 2 ØJ'!C159/'Tabel 1 ØJ'!C157*100,"-")) -> 2.843601896 | D159: =IF(OR('Tabel 1 ØJ'!C157<5,'Tabel 2 ØJ'!D159<0.5),"-",IFERROR('Tabel 2 ØJ'!D159/'Tabel 1 ØJ'!C157*100,"-")) -> 2.821195502 | F159: =IF(OR('Tabel 1 ØJ'!E157<5,'Tabel 2 ØJ'!F159<0.5),"-",IFERROR('Tabel 2 ØJ'!F159/'Tabel 1 ØJ'!E157*100,"-")) -> 5.123339658 | G159: =IF(OR('Tabel 1 ØJ'!E157<5,'Tabel 2 ØJ'!G159<0.5),"-",IFERROR('Tabel 2 ØJ'!G159/'Tabel 1 ØJ'!E157*100,"-")) -> 4.190242823 | I159: =IF(OR('Tabel 1 ØJ'!G157<5,'Tabel 2 ØJ'!I159<0.5),"-",IFERROR('Tabel 2 ØJ'!I159/'Tabel 1 ØJ'!G157*100,"-")) -> 4.471544715 | J159: =IF(OR('Tabel 1 ØJ'!G157<5,'Tabel 2 ØJ'!J159<0.5),"-",IFERROR('Tabel 2 ØJ'!J159/'Tabel 1 ØJ'!G157*100,"-")) -> 3.798821435
A160: DJØF'ere i alt | C160: =IF(OR('Tabel 1 ØJ'!C158<5,'Tabel 2 ØJ'!C160<0.5),"-",IFERROR('Tabel 2 ØJ'!C160/'Tabel 1 ØJ'!C158*100,"-")) -> 6.338028169 | D160: =IF(OR('Tabel 1 ØJ'!C158<5,'Tabel 2 ØJ'!D160<0.5),"-",IFERROR('Tabel 2 ØJ'!D160/'Tabel 1 ØJ'!C158*100,"-")) -> 5.946801623 | F160: =IF(OR('Tabel 1 ØJ'!E158<5,'Tabel 2 ØJ'!F160<0.5),"-",IFERROR('Tabel 2 ØJ'!F160/'Tabel 1 ØJ'!E158*100,"-")) -> 2.023121387 | G160: =IF(OR('Tabel 1 ØJ'!E158<5,'Tabel 2 ØJ'!G160<0.5),"-",IFERROR('Tabel 2 ØJ'!G160/'Tabel 1 ØJ'!E158*100,"-")) -> 1.585782791 | I160: =IF(OR('Tabel 1 ØJ'!G158<5,'Tabel 2 ØJ'!I160<0.5),"-",IFERROR('Tabel 2 ØJ'!I160/'Tabel 1 ØJ'!G158*100,"-")) -> 3.278688525 | J160: =IF(OR('Tabel 1 ØJ'!G158<5,'Tabel 2 ØJ'!J160<0.5),"-",IFERROR('Tabel 2 ØJ'!J160/'Tabel 1 ØJ'!G158*100,"-")) -> 2.854767779
A165: Norddjurs
C167: Mænd | F167: Kvinder | I167: I alt
C168: Ledigheds- berørte | D168: Gns. brutto- ledighed | F168: Ledigheds- berørte | G168: Gns. brutto- ledighed | I168: Ledigheds- berørte | J168: Gns. brutto- ledighed
A171: Civ. ing. | C171: =IF(OR('Tabel 1 ØJ'!C169<5,'Tabel 2 ØJ'!C171<0.5),"-",IFERROR('Tabel 2 ØJ'!C171/'Tabel 1 ØJ'!C169*100,"-")) -> - | D171: =IF(OR('Tabel 1 ØJ'!C169<5,'Tabel 2 ØJ'!D171<0.5),"-",IFERROR('Tabel 2 ØJ'!D171/'Tabel 1 ØJ'!C169*100,"-")) -> - | F171: =IF(OR('Tabel 1 ØJ'!E169<5,'Tabel 2 ØJ'!F171<0.5),"-",IFERROR('Tabel 2 ØJ'!F171/'Tabel 1 ØJ'!E169*100,"-")) -> - | G171: =IF(OR('Tabel 1 ØJ'!E169<5,'Tabel 2 ØJ'!G171<0.5),"-",IFERROR('Tabel 2 ØJ'!G171/'Tabel 1 ØJ'!E169*100,"-")) -> - | I171: =IF(OR('Tabel 1 ØJ'!G169<5,'Tabel 2 ØJ'!I171<0.5),"-",IFERROR('Tabel 2 ØJ'!I171/'Tabel 1 ØJ'!G169*100,"-")) -> - | J171: =IF(OR('Tabel 1 ØJ'!G169<5,'Tabel 2 ØJ'!J171<0.5),"-",IFERROR('Tabel 2 ØJ'!J171/'Tabel 1 ØJ'!G169*100,"-")) -> -
A172: Diplom ing. | C172: =IF(OR('Tabel 1 ØJ'!C170<5,'Tabel 2 ØJ'!C172<0.5),"-",IFERROR('Tabel 2 ØJ'!C172/'Tabel 1 ØJ'!C170*100,"-")) -> 1.388888889 | D172: =IF(OR('Tabel 1 ØJ'!C170<5,'Tabel 2 ØJ'!D172<0.5),"-",IFERROR('Tabel 2 ØJ'!D172/'Tabel 1 ØJ'!C170*100,"-")) -> 1.388629008 | F172: =IF(OR('Tabel 1 ØJ'!E170<5,'Tabel 2 ØJ'!F172<0.5),"-",IFERROR('Tabel 2 ØJ'!F172/'Tabel 1 ØJ'!E170*100,"-")) -> - | G172: =IF(OR('Tabel 1 ØJ'!E170<5,'Tabel 2 ØJ'!G172<0.5),"-",IFERROR('Tabel 2 ØJ'!G172/'Tabel 1 ØJ'!E170*100,"-")) -> - | I172: =IF(OR('Tabel 1 ØJ'!G170<5,'Tabel 2 ØJ'!I172<0.5),"-",IFERROR('Tabel 2 ØJ'!I172/'Tabel 1 ØJ'!G170*100,"-")) -> 0.5988023952 | J172: =IF(OR('Tabel 1 ØJ'!G170<5,'Tabel 2 ØJ'!J172<0.5),"-",IFERROR('Tabel 2 ØJ'!J172/'Tabel 1 ØJ'!G170*100,"-")) -> 0.5986903509
A173: Cand. Scient. Tek. | C173: =IF(OR('Tabel 1 ØJ'!C171<5,'Tabel 2 ØJ'!C173<0.5),"-",IFERROR('Tabel 2 ØJ'!C173/'Tabel 1 ØJ'!C171*100,"-")) -> 30.76923077 | D173: =IF(OR('Tabel 1 ØJ'!C171<5,'Tabel 2 ØJ'!D173<0.5),"-",IFERROR('Tabel 2 ØJ'!D173/'Tabel 1 ØJ'!C171*100,"-")) -> 29.45367487 | F173: =IF(OR('Tabel 1 ØJ'!E171<5,'Tabel 2 ØJ'!F173<0.5),"-",IFERROR('Tabel 2 ØJ'!F173/'Tabel 1 ØJ'!E171*100,"-")) -> 10 | G173: =IF(OR('Tabel 1 ØJ'!E171<5,'Tabel 2 ØJ'!G173<0.5),"-",IFERROR('Tabel 2 ØJ'!G173/'Tabel 1 ØJ'!E171*100,"-")) -> 9.998128859 | I173: =IF(OR('Tabel 1 ØJ'!G171<5,'Tabel 2 ØJ'!I173<0.5),"-",IFERROR('Tabel 2 ØJ'!I173/'Tabel 1 ØJ'!G171*100,"-")) -> 18.18181818 | J173: =IF(OR('Tabel 1 ØJ'!G171<5,'Tabel 2 ØJ'!J173<0.5),"-",IFERROR('Tabel 2 ØJ'!J173/'Tabel 1 ØJ'!G171*100,"-")) -> 17.66243486
A174: MA. Hum. | C174: =IF(OR('Tabel 1 ØJ'!C172<5,'Tabel 2 ØJ'!C174<0.5),"-",IFERROR('Tabel 2 ØJ'!C174/'Tabel 1 ØJ'!C172*100,"-")) -> 8.333333333 | D174: =IF(OR('Tabel 1 ØJ'!C172<5,'Tabel 2 ØJ'!D174<0.5),"-",IFERROR('Tabel 2 ØJ'!D174/'Tabel 1 ØJ'!C172*100,"-")) -> 6.372273852 | F174: =IF(OR('Tabel 1 ØJ'!E172<5,'Tabel 2 ØJ'!F174<0.5),"-",IFERROR('Tabel 2 ØJ'!F174/'Tabel 1 ØJ'!E172*100,"-")) -> 5 | G174: =IF(OR('Tabel 1 ØJ'!E172<5,'Tabel 2 ØJ'!G174<0.5),"-",IFERROR('Tabel 2 ØJ'!G174/'Tabel 1 ØJ'!E172*100,"-")) -> 3.522422504 | I174: =IF(OR('Tabel 1 ØJ'!G172<5,'Tabel 2 ØJ'!I174<0.5),"-",IFERROR('Tabel 2 ØJ'!I174/'Tabel 1 ØJ'!G172*100,"-")) -> 5.769230769 | J174: =IF(OR('Tabel 1 ØJ'!G172<5,'Tabel 2 ØJ'!J174<0.5),"-",IFERROR('Tabel 2 ØJ'!J174/'Tabel 1 ØJ'!G172*100,"-")) -> 4.180080507
A175: MA. Nat. | C175: =IF(OR('Tabel 1 ØJ'!C173<5,'Tabel 2 ØJ'!C175<0.5),"-",IFERROR('Tabel 2 ØJ'!C175/'Tabel 1 ØJ'!C173*100,"-")) -> - | D175: =IF(OR('Tabel 1 ØJ'!C173<5,'Tabel 2 ØJ'!D175<0.5),"-",IFERROR('Tabel 2 ØJ'!D175/'Tabel 1 ØJ'!C173*100,"-")) -> - | F175: =IF(OR('Tabel 1 ØJ'!E173<5,'Tabel 2 ØJ'!F175<0.5),"-",IFERROR('Tabel 2 ØJ'!F175/'Tabel 1 ØJ'!E173*100,"-")) -> - | G175: =IF(OR('Tabel 1 ØJ'!E173<5,'Tabel 2 ØJ'!G175<0.5),"-",IFERROR('Tabel 2 ØJ'!G175/'Tabel 1 ØJ'!E173*100,"-")) -> - | I175: =IF(OR('Tabel 1 ØJ'!G173<5,'Tabel 2 ØJ'!I175<0.5),"-",IFERROR('Tabel 2 ØJ'!I175/'Tabel 1 ØJ'!G173*100,"-")) -> - | J175: =IF(OR('Tabel 1 ØJ'!G173<5,'Tabel 2 ØJ'!J175<0.5),"-",IFERROR('Tabel 2 ØJ'!J175/'Tabel 1 ØJ'!G173*100,"-")) -> -
A176: MA. Ph.d. | C176: =IF(OR('Tabel 1 ØJ'!C174<5,'Tabel 2 ØJ'!C176<0.5),"-",IFERROR('Tabel 2 ØJ'!C176/'Tabel 1 ØJ'!C174*100,"-")) -> - | D176: =IF(OR('Tabel 1 ØJ'!C174<5,'Tabel 2 ØJ'!D176<0.5),"-",IFERROR('Tabel 2 ØJ'!D176/'Tabel 1 ØJ'!C174*100,"-")) -> - | F176: =IF(OR('Tabel 1 ØJ'!E174<5,'Tabel 2 ØJ'!F176<0.5),"-",IFERROR('Tabel 2 ØJ'!F176/'Tabel 1 ØJ'!E174*100,"-")) -> - | G176: =IF(OR('Tabel 1 ØJ'!E174<5,'Tabel 2 ØJ'!G176<0.5),"-",IFERROR('Tabel 2 ØJ'!G176/'Tabel 1 ØJ'!E174*100,"-")) -> - | I176: =IF(OR('Tabel 1 ØJ'!G174<5,'Tabel 2 ØJ'!I176<0.5),"-",IFERROR('Tabel 2 ØJ'!I176/'Tabel 1 ØJ'!G174*100,"-")) -> 9.090909091 | J176: =IF(OR('Tabel 1 ØJ'!G174<5,'Tabel 2 ØJ'!J176<0.5),"-",IFERROR('Tabel 2 ØJ'!J176/'Tabel 1 ØJ'!G174*100,"-")) -> 9.089208054
A177: MA. Samf. | C177: =IF(OR('Tabel 1 ØJ'!C175<5,'Tabel 2 ØJ'!C177<0.5),"-",IFERROR('Tabel 2 ØJ'!C177/'Tabel 1 ØJ'!C175*100,"-")) -> - | D177: =IF(OR('Tabel 1 ØJ'!C175<5,'Tabel 2 ØJ'!D177<0.5),"-",IFERROR('Tabel 2 ØJ'!D177/'Tabel 1 ØJ'!C175*100,"-")) -> - | F177: =IF(OR('Tabel 1 ØJ'!E175<5,'Tabel 2 ØJ'!F177<0.5),"-",IFERROR('Tabel 2 ØJ'!F177/'Tabel 1 ØJ'!E175*100,"-")) -> 20 | G177: =IF(OR('Tabel 1 ØJ'!E175<5,'Tabel 2 ØJ'!G177<0.5),"-",IFERROR('Tabel 2 ØJ'!G177/'Tabel 1 ØJ'!E175*100,"-")) -> 11.01478201 | I177: =IF(OR('Tabel 1 ØJ'!G175<5,'Tabel 2 ØJ'!I177<0.5),"-",IFERROR('Tabel 2 ØJ'!I177/'Tabel 1 ØJ'!G175*100,"-")) -> 14.28571429 | J177: =IF(OR('Tabel 1 ØJ'!G175<5,'Tabel 2 ØJ'!J177<0.5),"-",IFERROR('Tabel 2 ØJ'!J177/'Tabel 1 ØJ'!G175*100,"-")) -> 7.867701437
A178: Øvrige Mag. | C178: =IF(OR('Tabel 1 ØJ'!C176<5,'Tabel 2 ØJ'!C178<0.5),"-",IFERROR('Tabel 2 ØJ'!C178/'Tabel 1 ØJ'!C176*100,"-")) -> - | D178: =IF(OR('Tabel 1 ØJ'!C176<5,'Tabel 2 ØJ'!D178<0.5),"-",IFERROR('Tabel 2 ØJ'!D178/'Tabel 1 ØJ'!C176*100,"-")) -> - | F178: =IF(OR('Tabel 1 ØJ'!E176<5,'Tabel 2 ØJ'!F178<0.5),"-",IFERROR('Tabel 2 ØJ'!F178/'Tabel 1 ØJ'!E176*100,"-")) -> 28.57142857 | G178: =IF(OR('Tabel 1 ØJ'!E176<5,'Tabel 2 ØJ'!G178<0.5),"-",IFERROR('Tabel 2 ØJ'!G178/'Tabel 1 ØJ'!E176*100,"-")) -> 28.56608245 | I178: =IF(OR('Tabel 1 ØJ'!G176<5,'Tabel 2 ØJ'!I178<0.5),"-",IFERROR('Tabel 2 ØJ'!I178/'Tabel 1 ØJ'!G176*100,"-")) -> 25 | J178: =IF(OR('Tabel 1 ØJ'!G176<5,'Tabel 2 ØJ'!J178<0.5),"-",IFERROR('Tabel 2 ØJ'!J178/'Tabel 1 ØJ'!G176*100,"-")) -> 24.99532215
A179: Agronom | C179: =IF(OR('Tabel 1 ØJ'!C177<5,'Tabel 2 ØJ'!C179<0.5),"-",IFERROR('Tabel 2 ØJ'!C179/'Tabel 1 ØJ'!C177*100,"-")) -> - | D179: =IF(OR('Tabel 1 ØJ'!C177<5,'Tabel 2 ØJ'!D179<0.5),"-",IFERROR('Tabel 2 ØJ'!D179/'Tabel 1 ØJ'!C177*100,"-")) -> - | F179: =IF(OR('Tabel 1 ØJ'!E177<5,'Tabel 2 ØJ'!F179<0.5),"-",IFERROR('Tabel 2 ØJ'!F179/'Tabel 1 ØJ'!E177*100,"-")) -> - | G179: =IF(OR('Tabel 1 ØJ'!E177<5,'Tabel 2 ØJ'!G179<0.5),"-",IFERROR('Tabel 2 ØJ'!G179/'Tabel 1 ØJ'!E177*100,"-")) -> - | I179: =IF(OR('Tabel 1 ØJ'!G177<5,'Tabel 2 ØJ'!I179<0.5),"-",IFERROR('Tabel 2 ØJ'!I179/'Tabel 1 ØJ'!G177*100,"-")) -> - | J179: =IF(OR('Tabel 1 ØJ'!G177<5,'Tabel 2 ØJ'!J179<0.5),"-",IFERROR('Tabel 2 ØJ'!J179/'Tabel 1 ØJ'!G177*100,"-")) -> -
A180: Landsk. Arkt. | C180: =IF(OR('Tabel 1 ØJ'!C178<5,'Tabel 2 ØJ'!C180<0.5),"-",IFERROR('Tabel 2 ØJ'!C180/'Tabel 1 ØJ'!C178*100,"-")) -> - | D180: =IF(OR('Tabel 1 ØJ'!C178<5,'Tabel 2 ØJ'!D180<0.5),"-",IFERROR('Tabel 2 ØJ'!D180/'Tabel 1 ØJ'!C178*100,"-")) -> - | F180: =IF(OR('Tabel 1 ØJ'!E178<5,'Tabel 2 ØJ'!F180<0.5),"-",IFERROR('Tabel 2 ØJ'!F180/'Tabel 1 ØJ'!E178*100,"-")) -> - | G180: =IF(OR('Tabel 1 ØJ'!E178<5,'Tabel 2 ØJ'!G180<0.5),"-",IFERROR('Tabel 2 ØJ'!G180/'Tabel 1 ØJ'!E178*100,"-")) -> - | I180: =IF(OR('Tabel 1 ØJ'!G178<5,'Tabel 2 ØJ'!I180<0.5),"-",IFERROR('Tabel 2 ØJ'!I180/'Tabel 1 ØJ'!G178*100,"-")) -> - | J180: =IF(OR('Tabel 1 ØJ'!G178<5,'Tabel 2 ØJ'!J180<0.5),"-",IFERROR('Tabel 2 ØJ'!J180/'Tabel 1 ØJ'!G178*100,"-")) -> -
A181: Hortonom | C181: =IF(OR('Tabel 1 ØJ'!C179<5,'Tabel 2 ØJ'!C181<0.5),"-",IFERROR('Tabel 2 ØJ'!C181/'Tabel 1 ØJ'!C179*100,"-")) -> - | D181: =IF(OR('Tabel 1 ØJ'!C179<5,'Tabel 2 ØJ'!D181<0.5),"-",IFERROR('Tabel 2 ØJ'!D181/'Tabel 1 ØJ'!C179*100,"-")) -> - | F181: =IF(OR('Tabel 1 ØJ'!E179<5,'Tabel 2 ØJ'!F181<0.5),"-",IFERROR('Tabel 2 ØJ'!F181/'Tabel 1 ØJ'!E179*100,"-")) -> - | G181: =IF(OR('Tabel 1 ØJ'!E179<5,'Tabel 2 ØJ'!G181<0.5),"-",IFERROR('Tabel 2 ØJ'!G181/'Tabel 1 ØJ'!E179*100,"-")) -> - | I181: =IF(OR('Tabel 1 ØJ'!G179<5,'Tabel 2 ØJ'!I181<0.5),"-",IFERROR('Tabel 2 ØJ'!I181/'Tabel 1 ØJ'!G179*100,"-")) -> - | J181: =IF(OR('Tabel 1 ØJ'!G179<5,'Tabel 2 ØJ'!J181<0.5),"-",IFERROR('Tabel 2 ØJ'!J181/'Tabel 1 ØJ'!G179*100,"-")) -> -
A182: Forstkand. | C182: =IF(OR('Tabel 1 ØJ'!C180<5,'Tabel 2 ØJ'!C182<0.5),"-",IFERROR('Tabel 2 ØJ'!C182/'Tabel 1 ØJ'!C180*100,"-")) -> - | D182: =IF(OR('Tabel 1 ØJ'!C180<5,'Tabel 2 ØJ'!D182<0.5),"-",IFERROR('Tabel 2 ØJ'!D182/'Tabel 1 ØJ'!C180*100,"-")) -> - | F182: =IF(OR('Tabel 1 ØJ'!E180<5,'Tabel 2 ØJ'!F182<0.5),"-",IFERROR('Tabel 2 ØJ'!F182/'Tabel 1 ØJ'!E180*100,"-")) -> - | G182: =IF(OR('Tabel 1 ØJ'!E180<5,'Tabel 2 ØJ'!G182<0.5),"-",IFERROR('Tabel 2 ØJ'!G182/'Tabel 1 ØJ'!E180*100,"-")) -> - | I182: =IF(OR('Tabel 1 ØJ'!G180<5,'Tabel 2 ØJ'!I182<0.5),"-",IFERROR('Tabel 2 ØJ'!I182/'Tabel 1 ØJ'!G180*100,"-")) -> - | J182: =IF(OR('Tabel 1 ØJ'!G180<5,'Tabel 2 ØJ'!J182<0.5),"-",IFERROR('Tabel 2 ØJ'!J182/'Tabel 1 ØJ'!G180*100,"-")) -> -
A183: Jordbrugsakad. | C183: =IF(OR('Tabel 1 ØJ'!C181<5,'Tabel 2 ØJ'!C183<0.5),"-",IFERROR('Tabel 2 ØJ'!C183/'Tabel 1 ØJ'!C181*100,"-")) -> 14.28571429 | D183: =IF(OR('Tabel 1 ØJ'!C181<5,'Tabel 2 ØJ'!D183<0.5),"-",IFERROR('Tabel 2 ØJ'!D183/'Tabel 1 ØJ'!C181*100,"-")) -> 11.64562376 | F183: =IF(OR('Tabel 1 ØJ'!E181<5,'Tabel 2 ØJ'!F183<0.5),"-",IFERROR('Tabel 2 ØJ'!F183/'Tabel 1 ØJ'!E181*100,"-")) -> - | G183: =IF(OR('Tabel 1 ØJ'!E181<5,'Tabel 2 ØJ'!G183<0.5),"-",IFERROR('Tabel 2 ØJ'!G183/'Tabel 1 ØJ'!E181*100,"-")) -> - | I183: =IF(OR('Tabel 1 ØJ'!G181<5,'Tabel 2 ØJ'!I183<0.5),"-",IFERROR('Tabel 2 ØJ'!I183/'Tabel 1 ØJ'!G181*100,"-")) -> 5.263157895 | J183: =IF(OR('Tabel 1 ØJ'!G181<5,'Tabel 2 ØJ'!J183<0.5),"-",IFERROR('Tabel 2 ØJ'!J183/'Tabel 1 ØJ'!G181*100,"-")) -> 4.290492964
A184: Mejeriing. | C184: =IF(OR('Tabel 1 ØJ'!C182<5,'Tabel 2 ØJ'!C184<0.5),"-",IFERROR('Tabel 2 ØJ'!C184/'Tabel 1 ØJ'!C182*100,"-")) -> - | D184: =IF(OR('Tabel 1 ØJ'!C182<5,'Tabel 2 ØJ'!D184<0.5),"-",IFERROR('Tabel 2 ØJ'!D184/'Tabel 1 ØJ'!C182*100,"-")) -> - | F184: =IF(OR('Tabel 1 ØJ'!E182<5,'Tabel 2 ØJ'!F184<0.5),"-",IFERROR('Tabel 2 ØJ'!F184/'Tabel 1 ØJ'!E182*100,"-")) -> - | G184: =IF(OR('Tabel 1 ØJ'!E182<5,'Tabel 2 ØJ'!G184<0.5),"-",IFERROR('Tabel 2 ØJ'!G184/'Tabel 1 ØJ'!E182*100,"-")) -> - | I184: =IF(OR('Tabel 1 ØJ'!G182<5,'Tabel 2 ØJ'!I184<0.5),"-",IFERROR('Tabel 2 ØJ'!I184/'Tabel 1 ØJ'!G182*100,"-")) -> - | J184: =IF(OR('Tabel 1 ØJ'!G182<5,'Tabel 2 ØJ'!J184<0.5),"-",IFERROR('Tabel 2 ØJ'!J184/'Tabel 1 ØJ'!G182*100,"-")) -> -
A185: Levn.m.kand. | C185: =IF(OR('Tabel 1 ØJ'!C183<5,'Tabel 2 ØJ'!C185<0.5),"-",IFERROR('Tabel 2 ØJ'!C185/'Tabel 1 ØJ'!C183*100,"-")) -> - | D185: =IF(OR('Tabel 1 ØJ'!C183<5,'Tabel 2 ØJ'!D185<0.5),"-",IFERROR('Tabel 2 ØJ'!D185/'Tabel 1 ØJ'!C183*100,"-")) -> - | F185: =IF(OR('Tabel 1 ØJ'!E183<5,'Tabel 2 ØJ'!F185<0.5),"-",IFERROR('Tabel 2 ØJ'!F185/'Tabel 1 ØJ'!E183*100,"-")) -> - | G185: =IF(OR('Tabel 1 ØJ'!E183<5,'Tabel 2 ØJ'!G185<0.5),"-",IFERROR('Tabel 2 ØJ'!G185/'Tabel 1 ØJ'!E183*100,"-")) -> - | I185: =IF(OR('Tabel 1 ØJ'!G183<5,'Tabel 2 ØJ'!I185<0.5),"-",IFERROR('Tabel 2 ØJ'!I185/'Tabel 1 ØJ'!G183*100,"-")) -> - | J185: =IF(OR('Tabel 1 ØJ'!G183<5,'Tabel 2 ØJ'!J185<0.5),"-",IFERROR('Tabel 2 ØJ'!J185/'Tabel 1 ØJ'!G183*100,"-")) -> -
A186: Dyrlæge | C186: =IF(OR('Tabel 1 ØJ'!C184<5,'Tabel 2 ØJ'!C186<0.5),"-",IFERROR('Tabel 2 ØJ'!C186/'Tabel 1 ØJ'!C184*100,"-")) -> - | D186: =IF(OR('Tabel 1 ØJ'!C184<5,'Tabel 2 ØJ'!D186<0.5),"-",IFERROR('Tabel 2 ØJ'!D186/'Tabel 1 ØJ'!C184*100,"-")) -> - | F186: =IF(OR('Tabel 1 ØJ'!E184<5,'Tabel 2 ØJ'!F186<0.5),"-",IFERROR('Tabel 2 ØJ'!F186/'Tabel 1 ØJ'!E184*100,"-")) -> - | G186: =IF(OR('Tabel 1 ØJ'!E184<5,'Tabel 2 ØJ'!G186<0.5),"-",IFERROR('Tabel 2 ØJ'!G186/'Tabel 1 ØJ'!E184*100,"-")) -> - | I186: =IF(OR('Tabel 1 ØJ'!G184<5,'Tabel 2 ØJ'!I186<0.5),"-",IFERROR('Tabel 2 ØJ'!I186/'Tabel 1 ØJ'!G184*100,"-")) -> - | J186: =IF(OR('Tabel 1 ØJ'!G184<5,'Tabel 2 ØJ'!J186<0.5),"-",IFERROR('Tabel 2 ØJ'!J186/'Tabel 1 ØJ'!G184*100,"-")) -> -
A187: Farmaceut | C187: =IF(OR('Tabel 1 ØJ'!C185<5,'Tabel 2 ØJ'!C187<0.5),"-",IFERROR('Tabel 2 ØJ'!C187/'Tabel 1 ØJ'!C185*100,"-")) -> - | D187: =IF(OR('Tabel 1 ØJ'!C185<5,'Tabel 2 ØJ'!D187<0.5),"-",IFERROR('Tabel 2 ØJ'!D187/'Tabel 1 ØJ'!C185*100,"-")) -> - | F187: =IF(OR('Tabel 1 ØJ'!E185<5,'Tabel 2 ØJ'!F187<0.5),"-",IFERROR('Tabel 2 ØJ'!F187/'Tabel 1 ØJ'!E185*100,"-")) -> - | G187: =IF(OR('Tabel 1 ØJ'!E185<5,'Tabel 2 ØJ'!G187<0.5),"-",IFERROR('Tabel 2 ØJ'!G187/'Tabel 1 ØJ'!E185*100,"-")) -> - | I187: =IF(OR('Tabel 1 ØJ'!G185<5,'Tabel 2 ØJ'!I187<0.5),"-",IFERROR('Tabel 2 ØJ'!I187/'Tabel 1 ØJ'!G185*100,"-")) -> - | J187: =IF(OR('Tabel 1 ØJ'!G185<5,'Tabel 2 ØJ'!J187<0.5),"-",IFERROR('Tabel 2 ØJ'!J187/'Tabel 1 ØJ'!G185*100,"-")) -> -
A188: Læge | C188: =IF(OR('Tabel 1 ØJ'!C186<5,'Tabel 2 ØJ'!C188<0.5),"-",IFERROR('Tabel 2 ØJ'!C188/'Tabel 1 ØJ'!C186*100,"-")) -> - | D188: =IF(OR('Tabel 1 ØJ'!C186<5,'Tabel 2 ØJ'!D188<0.5),"-",IFERROR('Tabel 2 ØJ'!D188/'Tabel 1 ØJ'!C186*100,"-")) -> - | F188: =IF(OR('Tabel 1 ØJ'!E186<5,'Tabel 2 ØJ'!F188<0.5),"-",IFERROR('Tabel 2 ØJ'!F188/'Tabel 1 ØJ'!E186*100,"-")) -> - | G188: =IF(OR('Tabel 1 ØJ'!E186<5,'Tabel 2 ØJ'!G188<0.5),"-",IFERROR('Tabel 2 ØJ'!G188/'Tabel 1 ØJ'!E186*100,"-")) -> - | I188: =IF(OR('Tabel 1 ØJ'!G186<5,'Tabel 2 ØJ'!I188<0.5),"-",IFERROR('Tabel 2 ØJ'!I188/'Tabel 1 ØJ'!G186*100,"-")) -> - | J188: =IF(OR('Tabel 1 ØJ'!G186<5,'Tabel 2 ØJ'!J188<0.5),"-",IFERROR('Tabel 2 ØJ'!J188/'Tabel 1 ØJ'!G186*100,"-")) -> -
A189: Tandlæge | C189: =IF(OR('Tabel 1 ØJ'!C187<5,'Tabel 2 ØJ'!C189<0.5),"-",IFERROR('Tabel 2 ØJ'!C189/'Tabel 1 ØJ'!C187*100,"-")) -> - | D189: =IF(OR('Tabel 1 ØJ'!C187<5,'Tabel 2 ØJ'!D189<0.5),"-",IFERROR('Tabel 2 ØJ'!D189/'Tabel 1 ØJ'!C187*100,"-")) -> - | F189: =IF(OR('Tabel 1 ØJ'!E187<5,'Tabel 2 ØJ'!F189<0.5),"-",IFERROR('Tabel 2 ØJ'!F189/'Tabel 1 ØJ'!E187*100,"-")) -> - | G189: =IF(OR('Tabel 1 ØJ'!E187<5,'Tabel 2 ØJ'!G189<0.5),"-",IFERROR('Tabel 2 ØJ'!G189/'Tabel 1 ØJ'!E187*100,"-")) -> - | I189: =IF(OR('Tabel 1 ØJ'!G187<5,'Tabel 2 ØJ'!I189<0.5),"-",IFERROR('Tabel 2 ØJ'!I189/'Tabel 1 ØJ'!G187*100,"-")) -> - | J189: =IF(OR('Tabel 1 ØJ'!G187<5,'Tabel 2 ØJ'!J189<0.5),"-",IFERROR('Tabel 2 ØJ'!J189/'Tabel 1 ØJ'!G187*100,"-")) -> -
A190: Arkitekt | C190: =IF(OR('Tabel 1 ØJ'!C188<5,'Tabel 2 ØJ'!C190<0.5),"-",IFERROR('Tabel 2 ØJ'!C190/'Tabel 1 ØJ'!C188*100,"-")) -> - | D190: =IF(OR('Tabel 1 ØJ'!C188<5,'Tabel 2 ØJ'!D190<0.5),"-",IFERROR('Tabel 2 ØJ'!D190/'Tabel 1 ØJ'!C188*100,"-")) -> - | F190: =IF(OR('Tabel 1 ØJ'!E188<5,'Tabel 2 ØJ'!F190<0.5),"-",IFERROR('Tabel 2 ØJ'!F190/'Tabel 1 ØJ'!E188*100,"-")) -> - | G190: =IF(OR('Tabel 1 ØJ'!E188<5,'Tabel 2 ØJ'!G190<0.5),"-",IFERROR('Tabel 2 ØJ'!G190/'Tabel 1 ØJ'!E188*100,"-")) -> - | I190: =IF(OR('Tabel 1 ØJ'!G188<5,'Tabel 2 ØJ'!I190<0.5),"-",IFERROR('Tabel 2 ØJ'!I190/'Tabel 1 ØJ'!G188*100,"-")) -> 9.090909091 | J190: =IF(OR('Tabel 1 ØJ'!G188<5,'Tabel 2 ØJ'!J190<0.5),"-",IFERROR('Tabel 2 ØJ'!J190/'Tabel 1 ØJ'!G188*100,"-")) -> 9.089208054
A191: Landinspek. | C191: =IF(OR('Tabel 1 ØJ'!C189<5,'Tabel 2 ØJ'!C191<0.5),"-",IFERROR('Tabel 2 ØJ'!C191/'Tabel 1 ØJ'!C189*100,"-")) -> - | D191: =IF(OR('Tabel 1 ØJ'!C189<5,'Tabel 2 ØJ'!D191<0.5),"-",IFERROR('Tabel 2 ØJ'!D191/'Tabel 1 ØJ'!C189*100,"-")) -> - | F191: =IF(OR('Tabel 1 ØJ'!E189<5,'Tabel 2 ØJ'!F191<0.5),"-",IFERROR('Tabel 2 ØJ'!F191/'Tabel 1 ØJ'!E189*100,"-")) -> - | G191: =IF(OR('Tabel 1 ØJ'!E189<5,'Tabel 2 ØJ'!G191<0.5),"-",IFERROR('Tabel 2 ØJ'!G191/'Tabel 1 ØJ'!E189*100,"-")) -> - | I191: =IF(OR('Tabel 1 ØJ'!G189<5,'Tabel 2 ØJ'!I191<0.5),"-",IFERROR('Tabel 2 ØJ'!I191/'Tabel 1 ØJ'!G189*100,"-")) -> - | J191: =IF(OR('Tabel 1 ØJ'!G189<5,'Tabel 2 ØJ'!J191<0.5),"-",IFERROR('Tabel 2 ØJ'!J191/'Tabel 1 ØJ'!G189*100,"-")) -> -
A192: Bibliotekar | C192: =IF(OR('Tabel 1 ØJ'!C190<5,'Tabel 2 ØJ'!C192<0.5),"-",IFERROR('Tabel 2 ØJ'!C192/'Tabel 1 ØJ'!C190*100,"-")) -> - | D192: =IF(OR('Tabel 1 ØJ'!C190<5,'Tabel 2 ØJ'!D192<0.5),"-",IFERROR('Tabel 2 ØJ'!D192/'Tabel 1 ØJ'!C190*100,"-")) -> - | F192: =IF(OR('Tabel 1 ØJ'!E190<5,'Tabel 2 ØJ'!F192<0.5),"-",IFERROR('Tabel 2 ØJ'!F192/'Tabel 1 ØJ'!E190*100,"-")) -> - | G192: =IF(OR('Tabel 1 ØJ'!E190<5,'Tabel 2 ØJ'!G192<0.5),"-",IFERROR('Tabel 2 ØJ'!G192/'Tabel 1 ØJ'!E190*100,"-")) -> - | I192: =IF(OR('Tabel 1 ØJ'!G190<5,'Tabel 2 ØJ'!I192<0.5),"-",IFERROR('Tabel 2 ØJ'!I192/'Tabel 1 ØJ'!G190*100,"-")) -> - | J192: =IF(OR('Tabel 1 ØJ'!G190<5,'Tabel 2 ØJ'!J192<0.5),"-",IFERROR('Tabel 2 ØJ'!J192/'Tabel 1 ØJ'!G190*100,"-")) -> -
A193: Musikudd. | C193: =IF(OR('Tabel 1 ØJ'!C191<5,'Tabel 2 ØJ'!C193<0.5),"-",IFERROR('Tabel 2 ØJ'!C193/'Tabel 1 ØJ'!C191*100,"-")) -> - | D193: =IF(OR('Tabel 1 ØJ'!C191<5,'Tabel 2 ØJ'!D193<0.5),"-",IFERROR('Tabel 2 ØJ'!D193/'Tabel 1 ØJ'!C191*100,"-")) -> - | F193: =IF(OR('Tabel 1 ØJ'!E191<5,'Tabel 2 ØJ'!F193<0.5),"-",IFERROR('Tabel 2 ØJ'!F193/'Tabel 1 ØJ'!E191*100,"-")) -> - | G193: =IF(OR('Tabel 1 ØJ'!E191<5,'Tabel 2 ØJ'!G193<0.5),"-",IFERROR('Tabel 2 ØJ'!G193/'Tabel 1 ØJ'!E191*100,"-")) -> - | I193: =IF(OR('Tabel 1 ØJ'!G191<5,'Tabel 2 ØJ'!I193<0.5),"-",IFERROR('Tabel 2 ØJ'!I193/'Tabel 1 ØJ'!G191*100,"-")) -> - | J193: =IF(OR('Tabel 1 ØJ'!G191<5,'Tabel 2 ØJ'!J193<0.5),"-",IFERROR('Tabel 2 ØJ'!J193/'Tabel 1 ØJ'!G191*100,"-")) -> -
A194: Teolog | C194: =IF(OR('Tabel 1 ØJ'!C192<5,'Tabel 2 ØJ'!C194<0.5),"-",IFERROR('Tabel 2 ØJ'!C194/'Tabel 1 ØJ'!C192*100,"-")) -> - | D194: =IF(OR('Tabel 1 ØJ'!C192<5,'Tabel 2 ØJ'!D194<0.5),"-",IFERROR('Tabel 2 ØJ'!D194/'Tabel 1 ØJ'!C192*100,"-")) -> - | F194: =IF(OR('Tabel 1 ØJ'!E192<5,'Tabel 2 ØJ'!F194<0.5),"-",IFERROR('Tabel 2 ØJ'!F194/'Tabel 1 ØJ'!E192*100,"-")) -> 7.692307692 | G194: =IF(OR('Tabel 1 ØJ'!E192<5,'Tabel 2 ØJ'!G194<0.5),"-",IFERROR('Tabel 2 ØJ'!G194/'Tabel 1 ØJ'!E192*100,"-")) -> 7.690868353 | I194: =IF(OR('Tabel 1 ØJ'!G192<5,'Tabel 2 ØJ'!I194<0.5),"-",IFERROR('Tabel 2 ØJ'!I194/'Tabel 1 ØJ'!G192*100,"-")) -> 5.555555556 | J194: =IF(OR('Tabel 1 ØJ'!G192<5,'Tabel 2 ØJ'!J194<0.5),"-",IFERROR('Tabel 2 ØJ'!J194/'Tabel 1 ØJ'!G192*100,"-")) -> 5.554516033
A195: Psykolog | C195: =IF(OR('Tabel 1 ØJ'!C193<5,'Tabel 2 ØJ'!C195<0.5),"-",IFERROR('Tabel 2 ØJ'!C195/'Tabel 1 ØJ'!C193*100,"-")) -> - | D195: =IF(OR('Tabel 1 ØJ'!C193<5,'Tabel 2 ØJ'!D195<0.5),"-",IFERROR('Tabel 2 ØJ'!D195/'Tabel 1 ØJ'!C193*100,"-")) -> - | F195: =IF(OR('Tabel 1 ØJ'!E193<5,'Tabel 2 ØJ'!F195<0.5),"-",IFERROR('Tabel 2 ØJ'!F195/'Tabel 1 ØJ'!E193*100,"-")) -> 7.692307692 | G195: =IF(OR('Tabel 1 ØJ'!E193<5,'Tabel 2 ØJ'!G195<0.5),"-",IFERROR('Tabel 2 ØJ'!G195/'Tabel 1 ØJ'!E193*100,"-")) -> 7.690868353 | I195: =IF(OR('Tabel 1 ØJ'!G193<5,'Tabel 2 ØJ'!I195<0.5),"-",IFERROR('Tabel 2 ØJ'!I195/'Tabel 1 ØJ'!G193*100,"-")) -> 6.666666667 | J195: =IF(OR('Tabel 1 ØJ'!G193<5,'Tabel 2 ØJ'!J195<0.5),"-",IFERROR('Tabel 2 ØJ'!J195/'Tabel 1 ØJ'!G193*100,"-")) -> 6.665419239
A196: Jurist | C196: =IF(OR('Tabel 1 ØJ'!C194<5,'Tabel 2 ØJ'!C196<0.5),"-",IFERROR('Tabel 2 ØJ'!C196/'Tabel 1 ØJ'!C194*100,"-")) -> - | D196: =IF(OR('Tabel 1 ØJ'!C194<5,'Tabel 2 ØJ'!D196<0.5),"-",IFERROR('Tabel 2 ØJ'!D196/'Tabel 1 ØJ'!C194*100,"-")) -> - | F196: =IF(OR('Tabel 1 ØJ'!E194<5,'Tabel 2 ØJ'!F196<0.5),"-",IFERROR('Tabel 2 ØJ'!F196/'Tabel 1 ØJ'!E194*100,"-")) -> - | G196: =IF(OR('Tabel 1 ØJ'!E194<5,'Tabel 2 ØJ'!G196<0.5),"-",IFERROR('Tabel 2 ØJ'!G196/'Tabel 1 ØJ'!E194*100,"-")) -> - | I196: =IF(OR('Tabel 1 ØJ'!G194<5,'Tabel 2 ØJ'!I196<0.5),"-",IFERROR('Tabel 2 ØJ'!I196/'Tabel 1 ØJ'!G194*100,"-")) -> - | J196: =IF(OR('Tabel 1 ØJ'!G194<5,'Tabel 2 ØJ'!J196<0.5),"-",IFERROR('Tabel 2 ØJ'!J196/'Tabel 1 ØJ'!G194*100,"-")) -> -
A197: Økonom | C197: =IF(OR('Tabel 1 ØJ'!C195<5,'Tabel 2 ØJ'!C197<0.5),"-",IFERROR('Tabel 2 ØJ'!C197/'Tabel 1 ØJ'!C195*100,"-")) -> - | D197: =IF(OR('Tabel 1 ØJ'!C195<5,'Tabel 2 ØJ'!D197<0.5),"-",IFERROR('Tabel 2 ØJ'!D197/'Tabel 1 ØJ'!C195*100,"-")) -> - | F197: =IF(OR('Tabel 1 ØJ'!E195<5,'Tabel 2 ØJ'!F197<0.5),"-",IFERROR('Tabel 2 ØJ'!F197/'Tabel 1 ØJ'!E195*100,"-")) -> - | G197: =IF(OR('Tabel 1 ØJ'!E195<5,'Tabel 2 ØJ'!G197<0.5),"-",IFERROR('Tabel 2 ØJ'!G197/'Tabel 1 ØJ'!E195*100,"-")) -> - | I197: =IF(OR('Tabel 1 ØJ'!G195<5,'Tabel 2 ØJ'!I197<0.5),"-",IFERROR('Tabel 2 ØJ'!I197/'Tabel 1 ØJ'!G195*100,"-")) -> 10 | J197: =IF(OR('Tabel 1 ØJ'!G195<5,'Tabel 2 ØJ'!J197<0.5),"-",IFERROR('Tabel 2 ØJ'!J197/'Tabel 1 ØJ'!G195*100,"-")) -> 9.998128859
A198: Samf. Adm. | C198: =IF(OR('Tabel 1 ØJ'!C196<5,'Tabel 2 ØJ'!C198<0.5),"-",IFERROR('Tabel 2 ØJ'!C198/'Tabel 1 ØJ'!C196*100,"-")) -> 7.692307692 | D198: =IF(OR('Tabel 1 ØJ'!C196<5,'Tabel 2 ØJ'!D198<0.5),"-",IFERROR('Tabel 2 ØJ'!D198/'Tabel 1 ØJ'!C196*100,"-")) -> 7.690868353 | F198: =IF(OR('Tabel 1 ØJ'!E196<5,'Tabel 2 ØJ'!F198<0.5),"-",IFERROR('Tabel 2 ØJ'!F198/'Tabel 1 ØJ'!E196*100,"-")) -> - | G198: =IF(OR('Tabel 1 ØJ'!E196<5,'Tabel 2 ØJ'!G198<0.5),"-",IFERROR('Tabel 2 ØJ'!G198/'Tabel 1 ØJ'!E196*100,"-")) -> - | I198: =IF(OR('Tabel 1 ØJ'!G196<5,'Tabel 2 ØJ'!I198<0.5),"-",IFERROR('Tabel 2 ØJ'!I198/'Tabel 1 ØJ'!G196*100,"-")) -> 3.225806452 | J198: =IF(OR('Tabel 1 ØJ'!G196<5,'Tabel 2 ØJ'!J198<0.5),"-",IFERROR('Tabel 2 ØJ'!J198/'Tabel 1 ØJ'!G196*100,"-")) -> 3.225202858
A199: Cand. Merc. | C199: =IF(OR('Tabel 1 ØJ'!C197<5,'Tabel 2 ØJ'!C199<0.5),"-",IFERROR('Tabel 2 ØJ'!C199/'Tabel 1 ØJ'!C197*100,"-")) -> 4.761904762 | D199: =IF(OR('Tabel 1 ØJ'!C197<5,'Tabel 2 ØJ'!D199<0.5),"-",IFERROR('Tabel 2 ØJ'!D199/'Tabel 1 ØJ'!C197*100,"-")) -> 4.761013742 | F199: =IF(OR('Tabel 1 ØJ'!E197<5,'Tabel 2 ØJ'!F199<0.5),"-",IFERROR('Tabel 2 ØJ'!F199/'Tabel 1 ØJ'!E197*100,"-")) -> - | G199: =IF(OR('Tabel 1 ØJ'!E197<5,'Tabel 2 ØJ'!G199<0.5),"-",IFERROR('Tabel 2 ØJ'!G199/'Tabel 1 ØJ'!E197*100,"-")) -> - | I199: =IF(OR('Tabel 1 ØJ'!G197<5,'Tabel 2 ØJ'!I199<0.5),"-",IFERROR('Tabel 2 ØJ'!I199/'Tabel 1 ØJ'!G197*100,"-")) -> 1.5625 | J199: =IF(OR('Tabel 1 ØJ'!G197<5,'Tabel 2 ØJ'!J199<0.5),"-",IFERROR('Tabel 2 ØJ'!J199/'Tabel 1 ØJ'!G197*100,"-")) -> 1.562207634
A200: HA | C200: =IF(OR('Tabel 1 ØJ'!C198<5,'Tabel 2 ØJ'!C200<0.5),"-",IFERROR('Tabel 2 ØJ'!C200/'Tabel 1 ØJ'!C198*100,"-")) -> - | D200: =IF(OR('Tabel 1 ØJ'!C198<5,'Tabel 2 ØJ'!D200<0.5),"-",IFERROR('Tabel 2 ØJ'!D200/'Tabel 1 ØJ'!C198*100,"-")) -> - | F200: =IF(OR('Tabel 1 ØJ'!E198<5,'Tabel 2 ØJ'!F200<0.5),"-",IFERROR('Tabel 2 ØJ'!F200/'Tabel 1 ØJ'!E198*100,"-")) -> - | G200: =IF(OR('Tabel 1 ØJ'!E198<5,'Tabel 2 ØJ'!G200<0.5),"-",IFERROR('Tabel 2 ØJ'!G200/'Tabel 1 ØJ'!E198*100,"-")) -> - | I200: =IF(OR('Tabel 1 ØJ'!G198<5,'Tabel 2 ØJ'!I200<0.5),"-",IFERROR('Tabel 2 ØJ'!I200/'Tabel 1 ØJ'!G198*100,"-")) -> - | J200: =IF(OR('Tabel 1 ØJ'!G198<5,'Tabel 2 ØJ'!J200<0.5),"-",IFERROR('Tabel 2 ØJ'!J200/'Tabel 1 ØJ'!G198*100,"-")) -> -
A201: HD | C201: =IF(OR('Tabel 1 ØJ'!C199<5,'Tabel 2 ØJ'!C201<0.5),"-",IFERROR('Tabel 2 ØJ'!C201/'Tabel 1 ØJ'!C199*100,"-")) -> - | D201: =IF(OR('Tabel 1 ØJ'!C199<5,'Tabel 2 ØJ'!D201<0.5),"-",IFERROR('Tabel 2 ØJ'!D201/'Tabel 1 ØJ'!C199*100,"-")) -> - | F201: =IF(OR('Tabel 1 ØJ'!E199<5,'Tabel 2 ØJ'!F201<0.5),"-",IFERROR('Tabel 2 ØJ'!F201/'Tabel 1 ØJ'!E199*100,"-")) -> - | G201: =IF(OR('Tabel 1 ØJ'!E199<5,'Tabel 2 ØJ'!G201<0.5),"-",IFERROR('Tabel 2 ØJ'!G201/'Tabel 1 ØJ'!E199*100,"-")) -> - | I201: =IF(OR('Tabel 1 ØJ'!G199<5,'Tabel 2 ØJ'!I201<0.5),"-",IFERROR('Tabel 2 ØJ'!I201/'Tabel 1 ØJ'!G199*100,"-")) -> - | J201: =IF(OR('Tabel 1 ØJ'!G199<5,'Tabel 2 ØJ'!J201<0.5),"-",IFERROR('Tabel 2 ØJ'!J201/'Tabel 1 ØJ'!G199*100,"-")) -> -
A202: Komm. og Sprog | C202: =IF(OR('Tabel 1 ØJ'!C200<5,'Tabel 2 ØJ'!C202<0.5),"-",IFERROR('Tabel 2 ØJ'!C202/'Tabel 1 ØJ'!C200*100,"-")) -> - | D202: =IF(OR('Tabel 1 ØJ'!C200<5,'Tabel 2 ØJ'!D202<0.5),"-",IFERROR('Tabel 2 ØJ'!D202/'Tabel 1 ØJ'!C200*100,"-")) -> - | F202: =IF(OR('Tabel 1 ØJ'!E200<5,'Tabel 2 ØJ'!F202<0.5),"-",IFERROR('Tabel 2 ØJ'!F202/'Tabel 1 ØJ'!E200*100,"-")) -> - | G202: =IF(OR('Tabel 1 ØJ'!E200<5,'Tabel 2 ØJ'!G202<0.5),"-",IFERROR('Tabel 2 ØJ'!G202/'Tabel 1 ØJ'!E200*100,"-")) -> - | I202: =IF(OR('Tabel 1 ØJ'!G200<5,'Tabel 2 ØJ'!I202<0.5),"-",IFERROR('Tabel 2 ØJ'!I202/'Tabel 1 ØJ'!G200*100,"-")) -> - | J202: =IF(OR('Tabel 1 ØJ'!G200<5,'Tabel 2 ØJ'!J202<0.5),"-",IFERROR('Tabel 2 ØJ'!J202/'Tabel 1 ØJ'!G200*100,"-")) -> -
A203: Bygningskonst. | C203: =IF(OR('Tabel 1 ØJ'!C201<5,'Tabel 2 ØJ'!C203<0.5),"-",IFERROR('Tabel 2 ØJ'!C203/'Tabel 1 ØJ'!C201*100,"-")) -> - | D203: =IF(OR('Tabel 1 ØJ'!C201<5,'Tabel 2 ØJ'!D203<0.5),"-",IFERROR('Tabel 2 ØJ'!D203/'Tabel 1 ØJ'!C201*100,"-")) -> - | F203: =IF(OR('Tabel 1 ØJ'!E201<5,'Tabel 2 ØJ'!F203<0.5),"-",IFERROR('Tabel 2 ØJ'!F203/'Tabel 1 ØJ'!E201*100,"-")) -> - | G203: =IF(OR('Tabel 1 ØJ'!E201<5,'Tabel 2 ØJ'!G203<0.5),"-",IFERROR('Tabel 2 ØJ'!G203/'Tabel 1 ØJ'!E201*100,"-")) -> - | I203: =IF(OR('Tabel 1 ØJ'!G201<5,'Tabel 2 ØJ'!I203<0.5),"-",IFERROR('Tabel 2 ØJ'!I203/'Tabel 1 ØJ'!G201*100,"-")) -> - | J203: =IF(OR('Tabel 1 ØJ'!G201<5,'Tabel 2 ØJ'!J203<0.5),"-",IFERROR('Tabel 2 ØJ'!J203/'Tabel 1 ØJ'!G201*100,"-")) -> -
A204: Cand. IT. | C204: =IF(OR('Tabel 1 ØJ'!C202<5,'Tabel 2 ØJ'!C204<0.5),"-",IFERROR('Tabel 2 ØJ'!C204/'Tabel 1 ØJ'!C202*100,"-")) -> - | D204: =IF(OR('Tabel 1 ØJ'!C202<5,'Tabel 2 ØJ'!D204<0.5),"-",IFERROR('Tabel 2 ØJ'!D204/'Tabel 1 ØJ'!C202*100,"-")) -> - | F204: =IF(OR('Tabel 1 ØJ'!E202<5,'Tabel 2 ØJ'!F204<0.5),"-",IFERROR('Tabel 2 ØJ'!F204/'Tabel 1 ØJ'!E202*100,"-")) -> - | G204: =IF(OR('Tabel 1 ØJ'!E202<5,'Tabel 2 ØJ'!G204<0.5),"-",IFERROR('Tabel 2 ØJ'!G204/'Tabel 1 ØJ'!E202*100,"-")) -> - | I204: =IF(OR('Tabel 1 ØJ'!G202<5,'Tabel 2 ØJ'!I204<0.5),"-",IFERROR('Tabel 2 ØJ'!I204/'Tabel 1 ØJ'!G202*100,"-")) -> 12.5 | J204: =IF(OR('Tabel 1 ØJ'!G202<5,'Tabel 2 ØJ'!J204<0.5),"-",IFERROR('Tabel 2 ØJ'!J204/'Tabel 1 ØJ'!G202*100,"-")) -> 12.49766107
A205: Bac. Samf. | C205: =IF(OR('Tabel 1 ØJ'!C203<5,'Tabel 2 ØJ'!C205<0.5),"-",IFERROR('Tabel 2 ØJ'!C205/'Tabel 1 ØJ'!C203*100,"-")) -> - | D205: =IF(OR('Tabel 1 ØJ'!C203<5,'Tabel 2 ØJ'!D205<0.5),"-",IFERROR('Tabel 2 ØJ'!D205/'Tabel 1 ØJ'!C203*100,"-")) -> - | F205: =IF(OR('Tabel 1 ØJ'!E203<5,'Tabel 2 ØJ'!F205<0.5),"-",IFERROR('Tabel 2 ØJ'!F205/'Tabel 1 ØJ'!E203*100,"-")) -> - | G205: =IF(OR('Tabel 1 ØJ'!E203<5,'Tabel 2 ØJ'!G205<0.5),"-",IFERROR('Tabel 2 ØJ'!G205/'Tabel 1 ØJ'!E203*100,"-")) -> - | I205: =IF(OR('Tabel 1 ØJ'!G203<5,'Tabel 2 ØJ'!I205<0.5),"-",IFERROR('Tabel 2 ØJ'!I205/'Tabel 1 ØJ'!G203*100,"-")) -> - | J205: =IF(OR('Tabel 1 ØJ'!G203<5,'Tabel 2 ØJ'!J205<0.5),"-",IFERROR('Tabel 2 ØJ'!J205/'Tabel 1 ØJ'!G203*100,"-")) -> -
A206: Bac. Hum. | C206: =IF(OR('Tabel 1 ØJ'!C204<5,'Tabel 2 ØJ'!C206<0.5),"-",IFERROR('Tabel 2 ØJ'!C206/'Tabel 1 ØJ'!C204*100,"-")) -> - | D206: =IF(OR('Tabel 1 ØJ'!C204<5,'Tabel 2 ØJ'!D206<0.5),"-",IFERROR('Tabel 2 ØJ'!D206/'Tabel 1 ØJ'!C204*100,"-")) -> - | F206: =IF(OR('Tabel 1 ØJ'!E204<5,'Tabel 2 ØJ'!F206<0.5),"-",IFERROR('Tabel 2 ØJ'!F206/'Tabel 1 ØJ'!E204*100,"-")) -> 25 | G206: =IF(OR('Tabel 1 ØJ'!E204<5,'Tabel 2 ØJ'!G206<0.5),"-",IFERROR('Tabel 2 ØJ'!G206/'Tabel 1 ØJ'!E204*100,"-")) -> 16.2321462 | I206: =IF(OR('Tabel 1 ØJ'!G204<5,'Tabel 2 ØJ'!I206<0.5),"-",IFERROR('Tabel 2 ØJ'!I206/'Tabel 1 ØJ'!G204*100,"-")) -> 20 | J206: =IF(OR('Tabel 1 ØJ'!G204<5,'Tabel 2 ØJ'!J206<0.5),"-",IFERROR('Tabel 2 ØJ'!J206/'Tabel 1 ØJ'!G204*100,"-")) -> 12.98571696
A207: Bac. Nat. | C207: =IF(OR('Tabel 1 ØJ'!C205<5,'Tabel 2 ØJ'!C207<0.5),"-",IFERROR('Tabel 2 ØJ'!C207/'Tabel 1 ØJ'!C205*100,"-")) -> - | D207: =IF(OR('Tabel 1 ØJ'!C205<5,'Tabel 2 ØJ'!D207<0.5),"-",IFERROR('Tabel 2 ØJ'!D207/'Tabel 1 ØJ'!C205*100,"-")) -> - | F207: =IF(OR('Tabel 1 ØJ'!E205<5,'Tabel 2 ØJ'!F207<0.5),"-",IFERROR('Tabel 2 ØJ'!F207/'Tabel 1 ØJ'!E205*100,"-")) -> - | G207: =IF(OR('Tabel 1 ØJ'!E205<5,'Tabel 2 ØJ'!G207<0.5),"-",IFERROR('Tabel 2 ØJ'!G207/'Tabel 1 ØJ'!E205*100,"-")) -> - | I207: =IF(OR('Tabel 1 ØJ'!G205<5,'Tabel 2 ØJ'!I207<0.5),"-",IFERROR('Tabel 2 ØJ'!I207/'Tabel 1 ØJ'!G205*100,"-")) -> 20 | J207: =IF(OR('Tabel 1 ØJ'!G205<5,'Tabel 2 ØJ'!J207<0.5),"-",IFERROR('Tabel 2 ØJ'!J207/'Tabel 1 ØJ'!G205*100,"-")) -> 15.38077715
A208: Andre | C208: =IF(OR('Tabel 1 ØJ'!C206<5,'Tabel 2 ØJ'!C208<0.5),"-",IFERROR('Tabel 2 ØJ'!C208/'Tabel 1 ØJ'!C206*100,"-")) -> 4.347826087 | D208: =IF(OR('Tabel 1 ØJ'!C206<5,'Tabel 2 ØJ'!D208<0.5),"-",IFERROR('Tabel 2 ØJ'!D208/'Tabel 1 ØJ'!C206*100,"-")) -> - | F208: =IF(OR('Tabel 1 ØJ'!E206<5,'Tabel 2 ØJ'!F208<0.5),"-",IFERROR('Tabel 2 ØJ'!F208/'Tabel 1 ØJ'!E206*100,"-")) -> 2.702702703 | G208: =IF(OR('Tabel 1 ØJ'!E206<5,'Tabel 2 ØJ'!G208<0.5),"-",IFERROR('Tabel 2 ØJ'!G208/'Tabel 1 ØJ'!E206*100,"-")) -> 2.702196989 | I208: =IF(OR('Tabel 1 ØJ'!G206<5,'Tabel 2 ØJ'!I208<0.5),"-",IFERROR('Tabel 2 ØJ'!I208/'Tabel 1 ØJ'!G206*100,"-")) -> 3.333333333 | J208: =IF(OR('Tabel 1 ØJ'!G206<5,'Tabel 2 ØJ'!J208<0.5),"-",IFERROR('Tabel 2 ØJ'!J208/'Tabel 1 ØJ'!G206*100,"-")) -> 2.210025156
A210: Total | C210: =IF(OR('Tabel 1 ØJ'!C208<5,'Tabel 2 ØJ'!C210<0.5),"-",IFERROR('Tabel 2 ØJ'!C210/'Tabel 1 ØJ'!C208*100,"-")) -> 5.102040816 | D210: =IF(OR('Tabel 1 ØJ'!C208<5,'Tabel 2 ØJ'!D210<0.5),"-",IFERROR('Tabel 2 ØJ'!D210/'Tabel 1 ØJ'!C208*100,"-")) -> 4.591295759 | F210: =IF(OR('Tabel 1 ØJ'!E208<5,'Tabel 2 ØJ'!F210<0.5),"-",IFERROR('Tabel 2 ØJ'!F210/'Tabel 1 ØJ'!E208*100,"-")) -> 2.702702703 | G210: =IF(OR('Tabel 1 ØJ'!E208<5,'Tabel 2 ØJ'!G210<0.5),"-",IFERROR('Tabel 2 ØJ'!G210/'Tabel 1 ØJ'!E208*100,"-")) -> 2.240536551 | I210: =IF(OR('Tabel 1 ØJ'!G208<5,'Tabel 2 ØJ'!I210<0.5),"-",IFERROR('Tabel 2 ØJ'!I210/'Tabel 1 ØJ'!G208*100,"-")) -> 3.533568905 | J210: =IF(OR('Tabel 1 ØJ'!G208<5,'Tabel 2 ØJ'!J210<0.5),"-",IFERROR('Tabel 2 ØJ'!J210/'Tabel 1 ØJ'!G208*100,"-")) -> 3.054580376
A212: Ingeniører i alt | C212: =IF(OR('Tabel 1 ØJ'!C210<5,'Tabel 2 ØJ'!C212<0.5),"-",IFERROR('Tabel 2 ØJ'!C212/'Tabel 1 ØJ'!C210*100,"-")) -> 1.123595506 | D212: =IF(OR('Tabel 1 ØJ'!C210<5,'Tabel 2 ØJ'!D212<0.5),"-",IFERROR('Tabel 2 ØJ'!D212/'Tabel 1 ØJ'!C210*100,"-")) -> 1.123385265 | F212: =IF(OR('Tabel 1 ØJ'!E210<5,'Tabel 2 ØJ'!F212<0.5),"-",IFERROR('Tabel 2 ØJ'!F212/'Tabel 1 ØJ'!E210*100,"-")) -> - | G212: =IF(OR('Tabel 1 ØJ'!E210<5,'Tabel 2 ØJ'!G212<0.5),"-",IFERROR('Tabel 2 ØJ'!G212/'Tabel 1 ØJ'!E210*100,"-")) -> - | I212: =IF(OR('Tabel 1 ØJ'!G210<5,'Tabel 2 ØJ'!I212<0.5),"-",IFERROR('Tabel 2 ØJ'!I212/'Tabel 1 ØJ'!G210*100,"-")) -> 0.4761904762 | J212: =IF(OR('Tabel 1 ØJ'!G210<5,'Tabel 2 ØJ'!J212<0.5),"-",IFERROR('Tabel 2 ØJ'!J212/'Tabel 1 ØJ'!G210*100,"-")) -> 0.4761013742
A213: Magistre i alt | C213: =IF(OR('Tabel 1 ØJ'!C211<5,'Tabel 2 ØJ'!C213<0.5),"-",IFERROR('Tabel 2 ØJ'!C213/'Tabel 1 ØJ'!C211*100,"-")) -> 6 | D213: =IF(OR('Tabel 1 ØJ'!C211<5,'Tabel 2 ØJ'!D213<0.5),"-",IFERROR('Tabel 2 ØJ'!D213/'Tabel 1 ØJ'!C211*100,"-")) -> 5.058317221 | F213: =IF(OR('Tabel 1 ØJ'!E211<5,'Tabel 2 ØJ'!F213<0.5),"-",IFERROR('Tabel 2 ØJ'!F213/'Tabel 1 ØJ'!E211*100,"-")) -> 5.34351145 | G213: =IF(OR('Tabel 1 ØJ'!E211<5,'Tabel 2 ØJ'!G213<0.5),"-",IFERROR('Tabel 2 ØJ'!G213/'Tabel 1 ØJ'!E211*100,"-")) -> 4.097941126 | I213: =IF(OR('Tabel 1 ØJ'!G211<5,'Tabel 2 ØJ'!I213<0.5),"-",IFERROR('Tabel 2 ØJ'!I213/'Tabel 1 ØJ'!G211*100,"-")) -> 5.524861878 | J213: =IF(OR('Tabel 1 ØJ'!G211<5,'Tabel 2 ØJ'!J213<0.5),"-",IFERROR('Tabel 2 ØJ'!J213/'Tabel 1 ØJ'!G211*100,"-")) -> 4.36323839
A214: DJØF'ere i alt | C214: =IF(OR('Tabel 1 ØJ'!C212<5,'Tabel 2 ØJ'!C214<0.5),"-",IFERROR('Tabel 2 ØJ'!C214/'Tabel 1 ØJ'!C212*100,"-")) -> 5.882352941 | D214: =IF(OR('Tabel 1 ØJ'!C212<5,'Tabel 2 ØJ'!D214<0.5),"-",IFERROR('Tabel 2 ØJ'!D214/'Tabel 1 ØJ'!C212*100,"-")) -> 5.88125227 | F214: =IF(OR('Tabel 1 ØJ'!E212<5,'Tabel 2 ØJ'!F214<0.5),"-",IFERROR('Tabel 2 ØJ'!F214/'Tabel 1 ØJ'!E212*100,"-")) -> - | G214: =IF(OR('Tabel 1 ØJ'!E212<5,'Tabel 2 ØJ'!G214<0.5),"-",IFERROR('Tabel 2 ØJ'!G214/'Tabel 1 ØJ'!E212*100,"-")) -> - | I214: =IF(OR('Tabel 1 ØJ'!G212<5,'Tabel 2 ØJ'!I214<0.5),"-",IFERROR('Tabel 2 ØJ'!I214/'Tabel 1 ØJ'!G212*100,"-")) -> 2.027027027 | J214: =IF(OR('Tabel 1 ØJ'!G212<5,'Tabel 2 ØJ'!J214<0.5),"-",IFERROR('Tabel 2 ØJ'!J214/'Tabel 1 ØJ'!G212*100,"-")) -> 2.026647742
A219: Favrskov
C221: Mænd | F221: Kvinder | I221: I alt
C222: Ledigheds- berørte | D222: Gns. brutto- ledighed | F222: Ledigheds- berørte | G222: Gns. brutto- ledighed | I222: Ledigheds- berørte | J222: Gns. brutto- ledighed
A225: Civ. ing. | C225: =IF(OR('Tabel 1 ØJ'!C223<5,'Tabel 2 ØJ'!C225<0.5),"-",IFERROR('Tabel 2 ØJ'!C225/'Tabel 1 ØJ'!C223*100,"-")) -> 0.9049773756 | D225: =IF(OR('Tabel 1 ØJ'!C223<5,'Tabel 2 ØJ'!D225<0.5),"-",IFERROR('Tabel 2 ØJ'!D225/'Tabel 1 ØJ'!C223*100,"-")) -> 0.7552296691 | F225: =IF(OR('Tabel 1 ØJ'!E223<5,'Tabel 2 ØJ'!F225<0.5),"-",IFERROR('Tabel 2 ØJ'!F225/'Tabel 1 ØJ'!E223*100,"-")) -> - | G225: =IF(OR('Tabel 1 ØJ'!E223<5,'Tabel 2 ØJ'!G225<0.5),"-",IFERROR('Tabel 2 ØJ'!G225/'Tabel 1 ØJ'!E223*100,"-")) -> - | I225: =IF(OR('Tabel 1 ØJ'!G223<5,'Tabel 2 ØJ'!I225<0.5),"-",IFERROR('Tabel 2 ØJ'!I225/'Tabel 1 ØJ'!G223*100,"-")) -> 0.6779661017 | J225: =IF(OR('Tabel 1 ØJ'!G223<5,'Tabel 2 ØJ'!J225<0.5),"-",IFERROR('Tabel 2 ØJ'!J225/'Tabel 1 ØJ'!G223*100,"-")) -> 0.5657822267
A226: Diplom ing. | C226: =IF(OR('Tabel 1 ØJ'!C224<5,'Tabel 2 ØJ'!C226<0.5),"-",IFERROR('Tabel 2 ØJ'!C226/'Tabel 1 ØJ'!C224*100,"-")) -> 0.8152173913 | D226: =IF(OR('Tabel 1 ØJ'!C224<5,'Tabel 2 ØJ'!D226<0.5),"-",IFERROR('Tabel 2 ØJ'!D226/'Tabel 1 ØJ'!C224*100,"-")) -> 0.5243939809 | F226: =IF(OR('Tabel 1 ØJ'!E224<5,'Tabel 2 ØJ'!F226<0.5),"-",IFERROR('Tabel 2 ØJ'!F226/'Tabel 1 ØJ'!E224*100,"-")) -> 1.612903226 | G226: =IF(OR('Tabel 1 ØJ'!E224<5,'Tabel 2 ØJ'!G226<0.5),"-",IFERROR('Tabel 2 ØJ'!G226/'Tabel 1 ØJ'!E224*100,"-")) -> 1.612601429 | I226: =IF(OR('Tabel 1 ØJ'!G224<5,'Tabel 2 ØJ'!I226<0.5),"-",IFERROR('Tabel 2 ØJ'!I226/'Tabel 1 ØJ'!G224*100,"-")) -> 0.9302325581 | J226: =IF(OR('Tabel 1 ØJ'!G224<5,'Tabel 2 ØJ'!J226<0.5),"-",IFERROR('Tabel 2 ØJ'!J226/'Tabel 1 ØJ'!G224*100,"-")) -> 0.6812983106
A227: Cand. Scient. Tek. | C227: =IF(OR('Tabel 1 ØJ'!C225<5,'Tabel 2 ØJ'!C227<0.5),"-",IFERROR('Tabel 2 ØJ'!C227/'Tabel 1 ØJ'!C225*100,"-")) -> 2.43902439 | D227: =IF(OR('Tabel 1 ØJ'!C225<5,'Tabel 2 ØJ'!D227<0.5),"-",IFERROR('Tabel 2 ØJ'!D227/'Tabel 1 ØJ'!C225*100,"-")) -> 1.819418182 | F227: =IF(OR('Tabel 1 ØJ'!E225<5,'Tabel 2 ØJ'!F227<0.5),"-",IFERROR('Tabel 2 ØJ'!F227/'Tabel 1 ØJ'!E225*100,"-")) -> 4.109589041 | G227: =IF(OR('Tabel 1 ØJ'!E225<5,'Tabel 2 ØJ'!G227<0.5),"-",IFERROR('Tabel 2 ØJ'!G227/'Tabel 1 ØJ'!E225*100,"-")) -> 4.083188014 | I227: =IF(OR('Tabel 1 ØJ'!G225<5,'Tabel 2 ØJ'!I227<0.5),"-",IFERROR('Tabel 2 ØJ'!I227/'Tabel 1 ØJ'!G225*100,"-")) -> 3.225806452 | J227: =IF(OR('Tabel 1 ØJ'!G225<5,'Tabel 2 ØJ'!J227<0.5),"-",IFERROR('Tabel 2 ØJ'!J227/'Tabel 1 ØJ'!G225*100,"-")) -> 2.885580748
A228: MA. Hum. | C228: =IF(OR('Tabel 1 ØJ'!C226<5,'Tabel 2 ØJ'!C228<0.5),"-",IFERROR('Tabel 2 ØJ'!C228/'Tabel 1 ØJ'!C226*100,"-")) -> 4.651162791 | D228: =IF(OR('Tabel 1 ØJ'!C226<5,'Tabel 2 ØJ'!D228<0.5),"-",IFERROR('Tabel 2 ØJ'!D228/'Tabel 1 ØJ'!C226*100,"-")) -> 4.48348537 | F228: =IF(OR('Tabel 1 ØJ'!E226<5,'Tabel 2 ØJ'!F228<0.5),"-",IFERROR('Tabel 2 ØJ'!F228/'Tabel 1 ØJ'!E226*100,"-")) -> 6.666666667 | G228: =IF(OR('Tabel 1 ØJ'!E226<5,'Tabel 2 ØJ'!G228<0.5),"-",IFERROR('Tabel 2 ØJ'!G228/'Tabel 1 ØJ'!E226*100,"-")) -> 5.229165826 | I228: =IF(OR('Tabel 1 ØJ'!G226<5,'Tabel 2 ØJ'!I228<0.5),"-",IFERROR('Tabel 2 ØJ'!I228/'Tabel 1 ØJ'!G226*100,"-")) -> 6.158357771 | J228: =IF(OR('Tabel 1 ØJ'!G226<5,'Tabel 2 ØJ'!J228<0.5),"-",IFERROR('Tabel 2 ØJ'!J228/'Tabel 1 ØJ'!G226*100,"-")) -> 5.041105652
A229: MA. Nat. | C229: =IF(OR('Tabel 1 ØJ'!C227<5,'Tabel 2 ØJ'!C229<0.5),"-",IFERROR('Tabel 2 ØJ'!C229/'Tabel 1 ØJ'!C227*100,"-")) -> 1.020408163 | D229: =IF(OR('Tabel 1 ØJ'!C227<5,'Tabel 2 ØJ'!D229<0.5),"-",IFERROR('Tabel 2 ØJ'!D229/'Tabel 1 ØJ'!C227*100,"-")) -> - | F229: =IF(OR('Tabel 1 ØJ'!E227<5,'Tabel 2 ØJ'!F229<0.5),"-",IFERROR('Tabel 2 ØJ'!F229/'Tabel 1 ØJ'!E227*100,"-")) -> 1.234567901 | G229: =IF(OR('Tabel 1 ØJ'!E227<5,'Tabel 2 ØJ'!G229<0.5),"-",IFERROR('Tabel 2 ØJ'!G229/'Tabel 1 ØJ'!E227*100,"-")) -> 1.234336896 | I229: =IF(OR('Tabel 1 ØJ'!G227<5,'Tabel 2 ØJ'!I229<0.5),"-",IFERROR('Tabel 2 ØJ'!I229/'Tabel 1 ØJ'!G227*100,"-")) -> 1.117318436 | J229: =IF(OR('Tabel 1 ØJ'!G227<5,'Tabel 2 ØJ'!J229<0.5),"-",IFERROR('Tabel 2 ØJ'!J229/'Tabel 1 ØJ'!G227*100,"-")) -> 0.8059494611
A230: MA. Ph.d. | C230: =IF(OR('Tabel 1 ØJ'!C228<5,'Tabel 2 ØJ'!C230<0.5),"-",IFERROR('Tabel 2 ØJ'!C230/'Tabel 1 ØJ'!C228*100,"-")) -> - | D230: =IF(OR('Tabel 1 ØJ'!C228<5,'Tabel 2 ØJ'!D230<0.5),"-",IFERROR('Tabel 2 ØJ'!D230/'Tabel 1 ØJ'!C228*100,"-")) -> - | F230: =IF(OR('Tabel 1 ØJ'!E228<5,'Tabel 2 ØJ'!F230<0.5),"-",IFERROR('Tabel 2 ØJ'!F230/'Tabel 1 ØJ'!E228*100,"-")) -> - | G230: =IF(OR('Tabel 1 ØJ'!E228<5,'Tabel 2 ØJ'!G230<0.5),"-",IFERROR('Tabel 2 ØJ'!G230/'Tabel 1 ØJ'!E228*100,"-")) -> - | I230: =IF(OR('Tabel 1 ØJ'!G228<5,'Tabel 2 ØJ'!I230<0.5),"-",IFERROR('Tabel 2 ØJ'!I230/'Tabel 1 ØJ'!G228*100,"-")) -> - | J230: =IF(OR('Tabel 1 ØJ'!G228<5,'Tabel 2 ØJ'!J230<0.5),"-",IFERROR('Tabel 2 ØJ'!J230/'Tabel 1 ØJ'!G228*100,"-")) -> -
A231: MA. Samf. | C231: =IF(OR('Tabel 1 ØJ'!C229<5,'Tabel 2 ØJ'!C231<0.5),"-",IFERROR('Tabel 2 ØJ'!C231/'Tabel 1 ØJ'!C229*100,"-")) -> - | D231: =IF(OR('Tabel 1 ØJ'!C229<5,'Tabel 2 ØJ'!D231<0.5),"-",IFERROR('Tabel 2 ØJ'!D231/'Tabel 1 ØJ'!C229*100,"-")) -> - | F231: =IF(OR('Tabel 1 ØJ'!E229<5,'Tabel 2 ØJ'!F231<0.5),"-",IFERROR('Tabel 2 ØJ'!F231/'Tabel 1 ØJ'!E229*100,"-")) -> 6.666666667 | G231: =IF(OR('Tabel 1 ØJ'!E229<5,'Tabel 2 ØJ'!G231<0.5),"-",IFERROR('Tabel 2 ØJ'!G231/'Tabel 1 ØJ'!E229*100,"-")) -> 6.357720535 | I231: =IF(OR('Tabel 1 ØJ'!G229<5,'Tabel 2 ØJ'!I231<0.5),"-",IFERROR('Tabel 2 ØJ'!I231/'Tabel 1 ØJ'!G229*100,"-")) -> 4.761904762 | J231: =IF(OR('Tabel 1 ØJ'!G229<5,'Tabel 2 ØJ'!J231<0.5),"-",IFERROR('Tabel 2 ØJ'!J231/'Tabel 1 ØJ'!G229*100,"-")) -> 4.541228953
A232: Øvrige Mag. | C232: =IF(OR('Tabel 1 ØJ'!C230<5,'Tabel 2 ØJ'!C232<0.5),"-",IFERROR('Tabel 2 ØJ'!C232/'Tabel 1 ØJ'!C230*100,"-")) -> - | D232: =IF(OR('Tabel 1 ØJ'!C230<5,'Tabel 2 ØJ'!D232<0.5),"-",IFERROR('Tabel 2 ØJ'!D232/'Tabel 1 ØJ'!C230*100,"-")) -> - | F232: =IF(OR('Tabel 1 ØJ'!E230<5,'Tabel 2 ØJ'!F232<0.5),"-",IFERROR('Tabel 2 ØJ'!F232/'Tabel 1 ØJ'!E230*100,"-")) -> - | G232: =IF(OR('Tabel 1 ØJ'!E230<5,'Tabel 2 ØJ'!G232<0.5),"-",IFERROR('Tabel 2 ØJ'!G232/'Tabel 1 ØJ'!E230*100,"-")) -> - | I232: =IF(OR('Tabel 1 ØJ'!G230<5,'Tabel 2 ØJ'!I232<0.5),"-",IFERROR('Tabel 2 ØJ'!I232/'Tabel 1 ØJ'!G230*100,"-")) -> - | J232: =IF(OR('Tabel 1 ØJ'!G230<5,'Tabel 2 ØJ'!J232<0.5),"-",IFERROR('Tabel 2 ØJ'!J232/'Tabel 1 ØJ'!G230*100,"-")) -> -
A233: Agronom | C233: =IF(OR('Tabel 1 ØJ'!C231<5,'Tabel 2 ØJ'!C233<0.5),"-",IFERROR('Tabel 2 ØJ'!C233/'Tabel 1 ØJ'!C231*100,"-")) -> 3.703703704 | D233: =IF(OR('Tabel 1 ØJ'!C231<5,'Tabel 2 ØJ'!D233<0.5),"-",IFERROR('Tabel 2 ØJ'!D233/'Tabel 1 ØJ'!C231*100,"-")) -> 3.703010689 | F233: =IF(OR('Tabel 1 ØJ'!E231<5,'Tabel 2 ØJ'!F233<0.5),"-",IFERROR('Tabel 2 ØJ'!F233/'Tabel 1 ØJ'!E231*100,"-")) -> - | G233: =IF(OR('Tabel 1 ØJ'!E231<5,'Tabel 2 ØJ'!G233<0.5),"-",IFERROR('Tabel 2 ØJ'!G233/'Tabel 1 ØJ'!E231*100,"-")) -> - | I233: =IF(OR('Tabel 1 ØJ'!G231<5,'Tabel 2 ØJ'!I233<0.5),"-",IFERROR('Tabel 2 ØJ'!I233/'Tabel 1 ØJ'!G231*100,"-")) -> 2.127659574 | J233: =IF(OR('Tabel 1 ØJ'!G231<5,'Tabel 2 ØJ'!J233<0.5),"-",IFERROR('Tabel 2 ØJ'!J233/'Tabel 1 ØJ'!G231*100,"-")) -> 2.127261459
A234: Landsk. Arkt. | C234: =IF(OR('Tabel 1 ØJ'!C232<5,'Tabel 2 ØJ'!C234<0.5),"-",IFERROR('Tabel 2 ØJ'!C234/'Tabel 1 ØJ'!C232*100,"-")) -> - | D234: =IF(OR('Tabel 1 ØJ'!C232<5,'Tabel 2 ØJ'!D234<0.5),"-",IFERROR('Tabel 2 ØJ'!D234/'Tabel 1 ØJ'!C232*100,"-")) -> - | F234: =IF(OR('Tabel 1 ØJ'!E232<5,'Tabel 2 ØJ'!F234<0.5),"-",IFERROR('Tabel 2 ØJ'!F234/'Tabel 1 ØJ'!E232*100,"-")) -> - | G234: =IF(OR('Tabel 1 ØJ'!E232<5,'Tabel 2 ØJ'!G234<0.5),"-",IFERROR('Tabel 2 ØJ'!G234/'Tabel 1 ØJ'!E232*100,"-")) -> - | I234: =IF(OR('Tabel 1 ØJ'!G232<5,'Tabel 2 ØJ'!I234<0.5),"-",IFERROR('Tabel 2 ØJ'!I234/'Tabel 1 ØJ'!G232*100,"-")) -> - | J234: =IF(OR('Tabel 1 ØJ'!G232<5,'Tabel 2 ØJ'!J234<0.5),"-",IFERROR('Tabel 2 ØJ'!J234/'Tabel 1 ØJ'!G232*100,"-")) -> -
A235: Hortonom | C235: =IF(OR('Tabel 1 ØJ'!C233<5,'Tabel 2 ØJ'!C235<0.5),"-",IFERROR('Tabel 2 ØJ'!C235/'Tabel 1 ØJ'!C233*100,"-")) -> - | D235: =IF(OR('Tabel 1 ØJ'!C233<5,'Tabel 2 ØJ'!D235<0.5),"-",IFERROR('Tabel 2 ØJ'!D235/'Tabel 1 ØJ'!C233*100,"-")) -> - | F235: =IF(OR('Tabel 1 ØJ'!E233<5,'Tabel 2 ØJ'!F235<0.5),"-",IFERROR('Tabel 2 ØJ'!F235/'Tabel 1 ØJ'!E233*100,"-")) -> - | G235: =IF(OR('Tabel 1 ØJ'!E233<5,'Tabel 2 ØJ'!G235<0.5),"-",IFERROR('Tabel 2 ØJ'!G235/'Tabel 1 ØJ'!E233*100,"-")) -> - | I235: =IF(OR('Tabel 1 ØJ'!G233<5,'Tabel 2 ØJ'!I235<0.5),"-",IFERROR('Tabel 2 ØJ'!I235/'Tabel 1 ØJ'!G233*100,"-")) -> - | J235: =IF(OR('Tabel 1 ØJ'!G233<5,'Tabel 2 ØJ'!J235<0.5),"-",IFERROR('Tabel 2 ØJ'!J235/'Tabel 1 ØJ'!G233*100,"-")) -> -
A236: Forstkand. | C236: =IF(OR('Tabel 1 ØJ'!C234<5,'Tabel 2 ØJ'!C236<0.5),"-",IFERROR('Tabel 2 ØJ'!C236/'Tabel 1 ØJ'!C234*100,"-")) -> - | D236: =IF(OR('Tabel 1 ØJ'!C234<5,'Tabel 2 ØJ'!D236<0.5),"-",IFERROR('Tabel 2 ØJ'!D236/'Tabel 1 ØJ'!C234*100,"-")) -> - | F236: =IF(OR('Tabel 1 ØJ'!E234<5,'Tabel 2 ØJ'!F236<0.5),"-",IFERROR('Tabel 2 ØJ'!F236/'Tabel 1 ØJ'!E234*100,"-")) -> - | G236: =IF(OR('Tabel 1 ØJ'!E234<5,'Tabel 2 ØJ'!G236<0.5),"-",IFERROR('Tabel 2 ØJ'!G236/'Tabel 1 ØJ'!E234*100,"-")) -> - | I236: =IF(OR('Tabel 1 ØJ'!G234<5,'Tabel 2 ØJ'!I236<0.5),"-",IFERROR('Tabel 2 ØJ'!I236/'Tabel 1 ØJ'!G234*100,"-")) -> - | J236: =IF(OR('Tabel 1 ØJ'!G234<5,'Tabel 2 ØJ'!J236<0.5),"-",IFERROR('Tabel 2 ØJ'!J236/'Tabel 1 ØJ'!G234*100,"-")) -> -
A237: Jordbrugsakad. | C237: =IF(OR('Tabel 1 ØJ'!C235<5,'Tabel 2 ØJ'!C237<0.5),"-",IFERROR('Tabel 2 ØJ'!C237/'Tabel 1 ØJ'!C235*100,"-")) -> 2.777777778 | D237: =IF(OR('Tabel 1 ØJ'!C235<5,'Tabel 2 ØJ'!D237<0.5),"-",IFERROR('Tabel 2 ØJ'!D237/'Tabel 1 ØJ'!C235*100,"-")) -> 2.777258016 | F237: =IF(OR('Tabel 1 ØJ'!E235<5,'Tabel 2 ØJ'!F237<0.5),"-",IFERROR('Tabel 2 ØJ'!F237/'Tabel 1 ØJ'!E235*100,"-")) -> - | G237: =IF(OR('Tabel 1 ØJ'!E235<5,'Tabel 2 ØJ'!G237<0.5),"-",IFERROR('Tabel 2 ØJ'!G237/'Tabel 1 ØJ'!E235*100,"-")) -> - | I237: =IF(OR('Tabel 1 ØJ'!G235<5,'Tabel 2 ØJ'!I237<0.5),"-",IFERROR('Tabel 2 ØJ'!I237/'Tabel 1 ØJ'!G235*100,"-")) -> 1.639344262 | J237: =IF(OR('Tabel 1 ØJ'!G235<5,'Tabel 2 ØJ'!J237<0.5),"-",IFERROR('Tabel 2 ØJ'!J237/'Tabel 1 ØJ'!G235*100,"-")) -> 1.639037518
A238: Mejeriing. | C238: =IF(OR('Tabel 1 ØJ'!C236<5,'Tabel 2 ØJ'!C238<0.5),"-",IFERROR('Tabel 2 ØJ'!C238/'Tabel 1 ØJ'!C236*100,"-")) -> - | D238: =IF(OR('Tabel 1 ØJ'!C236<5,'Tabel 2 ØJ'!D238<0.5),"-",IFERROR('Tabel 2 ØJ'!D238/'Tabel 1 ØJ'!C236*100,"-")) -> - | F238: =IF(OR('Tabel 1 ØJ'!E236<5,'Tabel 2 ØJ'!F238<0.5),"-",IFERROR('Tabel 2 ØJ'!F238/'Tabel 1 ØJ'!E236*100,"-")) -> - | G238: =IF(OR('Tabel 1 ØJ'!E236<5,'Tabel 2 ØJ'!G238<0.5),"-",IFERROR('Tabel 2 ØJ'!G238/'Tabel 1 ØJ'!E236*100,"-")) -> - | I238: =IF(OR('Tabel 1 ØJ'!G236<5,'Tabel 2 ØJ'!I238<0.5),"-",IFERROR('Tabel 2 ØJ'!I238/'Tabel 1 ØJ'!G236*100,"-")) -> - | J238: =IF(OR('Tabel 1 ØJ'!G236<5,'Tabel 2 ØJ'!J238<0.5),"-",IFERROR('Tabel 2 ØJ'!J238/'Tabel 1 ØJ'!G236*100,"-")) -> -
A239: Levn.m.kand. | C239: =IF(OR('Tabel 1 ØJ'!C237<5,'Tabel 2 ØJ'!C239<0.5),"-",IFERROR('Tabel 2 ØJ'!C239/'Tabel 1 ØJ'!C237*100,"-")) -> - | D239: =IF(OR('Tabel 1 ØJ'!C237<5,'Tabel 2 ØJ'!D239<0.5),"-",IFERROR('Tabel 2 ØJ'!D239/'Tabel 1 ØJ'!C237*100,"-")) -> - | F239: =IF(OR('Tabel 1 ØJ'!E237<5,'Tabel 2 ØJ'!F239<0.5),"-",IFERROR('Tabel 2 ØJ'!F239/'Tabel 1 ØJ'!E237*100,"-")) -> - | G239: =IF(OR('Tabel 1 ØJ'!E237<5,'Tabel 2 ØJ'!G239<0.5),"-",IFERROR('Tabel 2 ØJ'!G239/'Tabel 1 ØJ'!E237*100,"-")) -> - | I239: =IF(OR('Tabel 1 ØJ'!G237<5,'Tabel 2 ØJ'!I239<0.5),"-",IFERROR('Tabel 2 ØJ'!I239/'Tabel 1 ØJ'!G237*100,"-")) -> - | J239: =IF(OR('Tabel 1 ØJ'!G237<5,'Tabel 2 ØJ'!J239<0.5),"-",IFERROR('Tabel 2 ØJ'!J239/'Tabel 1 ØJ'!G237*100,"-")) -> -
A240: Dyrlæge | C240: =IF(OR('Tabel 1 ØJ'!C238<5,'Tabel 2 ØJ'!C240<0.5),"-",IFERROR('Tabel 2 ØJ'!C240/'Tabel 1 ØJ'!C238*100,"-")) -> - | D240: =IF(OR('Tabel 1 ØJ'!C238<5,'Tabel 2 ØJ'!D240<0.5),"-",IFERROR('Tabel 2 ØJ'!D240/'Tabel 1 ØJ'!C238*100,"-")) -> - | F240: =IF(OR('Tabel 1 ØJ'!E238<5,'Tabel 2 ØJ'!F240<0.5),"-",IFERROR('Tabel 2 ØJ'!F240/'Tabel 1 ØJ'!E238*100,"-")) -> - | G240: =IF(OR('Tabel 1 ØJ'!E238<5,'Tabel 2 ØJ'!G240<0.5),"-",IFERROR('Tabel 2 ØJ'!G240/'Tabel 1 ØJ'!E238*100,"-")) -> - | I240: =IF(OR('Tabel 1 ØJ'!G238<5,'Tabel 2 ØJ'!I240<0.5),"-",IFERROR('Tabel 2 ØJ'!I240/'Tabel 1 ØJ'!G238*100,"-")) -> - | J240: =IF(OR('Tabel 1 ØJ'!G238<5,'Tabel 2 ØJ'!J240<0.5),"-",IFERROR('Tabel 2 ØJ'!J240/'Tabel 1 ØJ'!G238*100,"-")) -> -
... 341 more rows

Sheet Tabel 4F ØJ
A1: Tabel 4. Antal forsikrede - aldersfordelt
A3: Østjylland
C5: Under 30 år | D5: 30 - 39 år | E5: 40 - 49 år | F5: 50 - 59 år | G5: Over 60 år | I5: I alt
A7: Civ. ing. | C7: 913 | D7: 1713 | E7: 990 | F7: 693 | G7: 200 | I7: 4509
A8: Diplom ing. | C8: 1011 | D8: 1477 | E8: 1715 | F8: 2101 | G8: 893 | I8: 7197
A9: Cand. Scient. Tek. | C9: 941 | D9: 1747 | E9: 450 | F9: 134 | G9: 23 | I9: 3295
A10: MA. Hum. | C10: 1236 | D10: 2927 | E10: 2625 | F10: 1188 | G10: 485 | I10: 8461
A11: MA. Nat. | C11: 279 | D11: 624 | E11: 836 | F11: 825 | G11: 355 | I11: 2919
A12: MA. Ph.d. | C12: 12 | D12: 178 | E12: 235 | F12: 130 | G12: 31 | I12: 586
A13: MA. Samf. | C13: 256 | D13: 531 | E13: 63 | F13: 23 | G13: 8 | I13: 881
A14: Øvrige Mag. | C14: 107 | D14: 142 | E14: 153 | F14: 150 | G14: 81 | I14: 633
A15: Agronom | C15: 10 | D15: 37 | E15: 74 | F15: 131 | G15: 83 | I15: 335
A16: Landsk. Arkt. | C16: 0 | D16: 9 | E16: 18 | F16: 13 | G16: 1 | I16: 41
A17: Hortonom | C17: 0 | D17: 2 | E17: 6 | F17: 11 | G17: 7 | I17: 26
A18: Forstkand. | C18: 1 | D18: 10 | E18: 23 | F18: 10 | G18: 9 | I18: 53
A19: Jordbrugsakad. | C19: 11 | D19: 58 | E19: 121 | F19: 165 | G19: 100 | I19: 455
A20: Mejeriing. | C20: 5 | D20: 13 | E20: 9 | F20: 38 | G20: 23 | I20: 88
A21: Levn.m.kand. | C21: 2 | D21: 19 | E21: 9 | F21: 4 | G21: 0 | I21: 34
A22: Dyrlæge | C22: 27 | D22: 91 | E22: 63 | F22: 48 | G22: 16 | I22: 245
A23: Farmaceut | C23: 111 | D23: 140 | E23: 46 | F23: 44 | G23: 19 | I23: 360
A24: Læge | C24: 488 | D24: 1274 | E24: 520 | F24: 293 | G24: 169 | I24: 2744
A25: Tandlæge | C25: 80 | D25: 158 | E25: 94 | F25: 81 | G25: 62 | I25: 475
A26: Arkitekt | C26: 138 | D26: 452 | E26: 525 | F26: 277 | G26: 165 | I26: 1557
A27: Landinspek. | C27: 17 | D27: 35 | E27: 38 | F27: 34 | G27: 19 | I27: 143
A28: Bibliotekar | C28: 4 | D28: 74 | E28: 113 | F28: 93 | G28: 57 | I28: 341
A29: Musikudd. | C29: 5 | D29: 17 | E29: 29 | F29: 51 | G29: 40 | I29: 142
A30: Teolog | C30: 18 | D30: 54 | E30: 113 | F30: 102 | G30: 40 | I30: 327
A31: Psykolog | C31: 359 | D31: 769 | E31: 496 | F31: 264 | G31: 124 | I31: 2012
A32: Jurist | C32: 621 | D32: 861 | E32: 560 | F32: 349 | G32: 105 | I32: 2496
A33: Økonom | C33: 263 | D33: 510 | E33: 307 | F33: 295 | G33: 88 | I33: 1463
A34: Samf. Adm. | C34: 664 | D34: 1423 | E34: 800 | F34: 421 | G34: 115 | I34: 3423
A35: Cand. Merc. | C35: 1701 | D35: 3050 | E35: 1400 | F35: 972 | G35: 163 | I35: 7286
A36: HA | C36: 317 | D36: 313 | E36: 136 | F36: 299 | G36: 85 | I36: 1150
A37: HD | C37: 111 | D37: 226 | E37: 127 | F37: 275 | G37: 93 | I37: 832
A38: Komm. og Sprog | C38: 159 | D38: 260 | E38: 385 | F38: 322 | G38: 139 | I38: 1265
A39: Bygningskonst. | C39: 507 | D39: 1000 | E39: 520 | F39: 259 | G39: 76 | I39: 2362
A40: Cand. IT. | C40: 313 | D40: 566 | E40: 166 | F40: 25 | G40: 1 | I40: 1071
A41: Bac. Samf. | C41: 50 | D41: 43 | E41: 45 | F41: 35 | G41: 13 | I41: 186
A42: Bac. Hum. | C42: 441 | D42: 190 | E42: 141 | F42: 116 | G42: 45 | I42: 933
A43: Bac. Nat. | C43: 421 | D43: 270 | E43: 89 | F43: 30 | G43: 3 | I43: 813
A44: Andre | C44: 523 | D44: 1210 | E44: 823 | F44: 480 | G44: 281 | I44: 3317
A46: Total | C46: 12111 | D46: 22415 | E46: 14742 | F46: 10616 | G46: 4117 | I46: 64001
A48: Ingeniører i alt | C48: 1924 | D48: 3190 | E48: 2705 | F48: 2794 | G48: 1093 | I48: 11706
A49: Magistre i alt | C49: 1890 | D49: 4402 | E49: 3912 | F49: 2316 | G49: 960 | I49: 13480
A50: DJØF'ere i alt | C50: 3566 | D50: 6157 | E50: 3203 | F50: 2336 | G50: 556 | I50: 15818
A57: Horsens
C59: Under 30 år | D59: 30 - 39 år | E59: 40 - 49 år | F59: 50 - 59 år | G59: Over 60 år | I59: I alt
A61: Civ. ing. | C61: 50 | D61: 130 | E61: 85 | F61: 47 | G61: 10 | I61: 322
A62: Diplom ing. | C62: 98 | D62: 225 | E62: 281 | F62: 257 | G62: 86 | I62: 947
A63: Cand. Scient. Tek. | C63: 37 | D63: 104 | E63: 32 | F63: 4 | G63: 0 | I63: 177
A64: MA. Hum. | C64: 50 | D64: 151 | E64: 151 | F64: 56 | G64: 20 | I64: 428
A65: MA. Nat. | C65: 7 | D65: 32 | E65: 49 | F65: 45 | G65: 7 | I65: 140
A66: MA. Ph.d. | C66: 0 | D66: 4 | E66: 3 | F66: 4 | G66: 0 | I66: 11
A67: MA. Samf. | C67: 7 | D67: 21 | E67: 6 | F67: 2 | G67: 0 | I67: 36
A68: Øvrige Mag. | C68: 0 | D68: 7 | E68: 13 | F68: 8 | G68: 5 | I68: 33
A69: Agronom | C69: 1 | D69: 6 | E69: 10 | F69: 9 | G69: 9 | I69: 35
A70: Landsk. Arkt. | C70: 0 | D70: 1 | E70: 1 | F70: 0 | G70: 0 | I70: 2
A71: Hortonom | C71: 0 | D71: 0 | E71: 1 | F71: 0 | G71: 0 | I71: 1
A72: Forstkand. | C72: 0 | D72: 1 | E72: 3 | F72: 1 | G72: 1 | I72: 6
A73: Jordbrugsakad. | C73: 1 | D73: 8 | E73: 15 | F73: 10 | G73: 10 | I73: 44
A74: Mejeriing. | C74: 0 | D74: 2 | E74: 0 | F74: 3 | G74: 1 | I74: 6
A75: Levn.m.kand. | C75: 0 | D75: 1 | E75: 0 | F75: 0 | G75: 0 | I75: 1
A76: Dyrlæge | C76: 1 | D76: 5 | E76: 9 | F76: 5 | G76: 1 | I76: 21
A77: Farmaceut | C77: 5 | D77: 7 | E77: 6 | F77: 2 | G77: 1 | I77: 21
A78: Læge | C78: 18 | D78: 52 | E78: 21 | F78: 9 | G78: 3 | I78: 103
A79: Tandlæge | C79: 4 | D79: 7 | E79: 8 | F79: 2 | G79: 3 | I79: 24
A80: Arkitekt | C80: 7 | D80: 18 | E80: 26 | F80: 9 | G80: 7 | I80: 67
A81: Landinspek. | C81: 2 | D81: 4 | E81: 7 | F81: 4 | G81: 1 | I81: 18
A82: Bibliotekar | C82: 1 | D82: 6 | E82: 11 | F82: 12 | G82: 1 | I82: 31
A83: Musikudd. | C83: 0 | D83: 0 | E83: 1 | F83: 4 | G83: 3 | I83: 8
A84: Teolog | C84: 0 | D84: 3 | E84: 4 | F84: 6 | G84: 3 | I84: 16
A85: Psykolog | C85: 15 | D85: 35 | E85: 39 | F85: 9 | G85: 3 | I85: 101
A86: Jurist | C86: 26 | D86: 59 | E86: 48 | F86: 16 | G86: 9 | I86: 158
A87: Økonom | C87: 9 | D87: 26 | E87: 19 | F87: 14 | G87: 3 | I87: 71
A88: Samf. Adm. | C88: 20 | D88: 83 | E88: 67 | F88: 16 | G88: 4 | I88: 190
A89: Cand. Merc. | C89: 84 | D89: 235 | E89: 116 | F89: 68 | G89: 6 | I89: 509
A90: HA | C90: 26 | D90: 22 | E90: 17 | F90: 24 | G90: 6 | I90: 95
A91: HD | C91: 7 | D91: 15 | E91: 13 | F91: 23 | G91: 6 | I91: 64
A92: Komm. og Sprog | C92: 12 | D92: 17 | E92: 22 | F92: 21 | G92: 7 | I92: 79
A93: Bygningskonst. | C93: 102 | D93: 199 | E93: 125 | F93: 59 | G93: 17 | I93: 502
A94: Cand. IT. | C94: 11 | D94: 27 | E94: 11 | F94: 1 | G94: 0 | I94: 50
A95: Bac. Samf. | C95: 5 | D95: 2 | E95: 8 | F95: 1 | G95: 1 | I95: 17
A96: Bac. Hum. | C96: 13 | D96: 11 | E96: 11 | F96: 9 | G96: 3 | I96: 47
A97: Bac. Nat. | C97: 77 | D97: 45 | E97: 12 | F97: 2 | G97: 0 | I97: 136
A98: Andre | C98: 56 | D98: 105 | E98: 55 | F98: 25 | G98: 15 | I98: 256
A100: Total | C100: 751 | D100: 1668 | E100: 1291 | F100: 777 | G100: 242 | I100: 4729
A102: Ingeniører i alt | C102: 148 | D102: 355 | E102: 366 | F102: 304 | G102: 96 | I102: 1269
A103: Magistre i alt | C103: 64 | D103: 215 | E103: 222 | F103: 115 | G103: 32 | I103: 648
A104: DJØF'ere i alt | C104: 165 | D104: 425 | E104: 267 | F104: 138 | G104: 28 | I104: 1023
A111: Syddjurs
C113: Under 30 år | D113: 30 - 39 år | E113: 40 - 49 år | F113: 50 - 59 år | G113: Over 60 år | I113: I alt
A115: Civ. ing. | C115: 4 | D115: 30 | E115: 24 | F115: 26 | G115: 7 | I115: 91
A116: Diplom ing. | C116: 13 | D116: 35 | E116: 66 | F116: 87 | G116: 40 | I116: 241
A117: Cand. Scient. Tek. | C117: 11 | D117: 49 | E117: 20 | F117: 6 | G117: 0 | I117: 86
A118: MA. Hum. | C118: 14 | D118: 95 | E118: 91 | F118: 57 | G118: 16 | I118: 273
A119: MA. Nat. | C119: 5 | D119: 22 | E119: 33 | F119: 39 | G119: 18 | I119: 117
A120: MA. Ph.d. | C120: 0 | D120: 9 | E120: 9 | F120: 8 | G120: 0 | I120: 26
A121: MA. Samf. | C121: 3 | D121: 20 | E121: 1 | F121: 1 | G121: 0 | I121: 25
A122: Øvrige Mag. | C122: 0 | D122: 6 | E122: 10 | F122: 5 | G122: 4 | I122: 25
A123: Agronom | C123: 0 | D123: 3 | E123: 2 | F123: 15 | G123: 8 | I123: 28
A124: Landsk. Arkt. | C124: 0 | D124: 1 | E124: 2 | F124: 1 | G124: 0 | I124: 4
A125: Hortonom | C125: 0 | D125: 0 | E125: 1 | F125: 2 | G125: 0 | I125: 3
A126: Forstkand. | C126: 1 | D126: 1 | E126: 2 | F126: 0 | G126: 2 | I126: 6
A127: Jordbrugsakad. | C127: 1 | D127: 5 | E127: 7 | F127: 18 | G127: 10 | I127: 41
A128: Mejeriing. | C128: 0 | D128: 1 | E128: 0 | F128: 1 | G128: 1 | I128: 3
A129: Levn.m.kand. | C129: 1 | D129: 1 | E129: 0 | F129: 0 | G129: 0 | I129: 2
A130: Dyrlæge | C130: 1 | D130: 6 | E130: 1 | F130: 2 | G130: 1 | I130: 11
A131: Farmaceut | C131: 1 | D131: 4 | E131: 3 | F131: 0 | G131: 0 | I131: 8
A132: Læge | C132: 3 | D132: 30 | E132: 7 | F132: 7 | G132: 4 | I132: 51
A133: Tandlæge | C133: 3 | D133: 3 | E133: 6 | F133: 3 | G133: 4 | I133: 19
A134: Arkitekt | C134: 1 | D134: 22 | E134: 23 | F134: 20 | G134: 11 | I134: 77
A135: Landinspek. | C135: 1 | D135: 2 | E135: 2 | F135: 0 | G135: 1 | I135: 6
A136: Bibliotekar | C136: 0 | D136: 2 | E136: 7 | F136: 3 | G136: 1 | I136: 13
A137: Musikudd. | C137: 0 | D137: 1 | E137: 0 | F137: 5 | G137: 1 | I137: 7
A138: Teolog | C138: 1 | D138: 3 | E138: 8 | F138: 3 | G138: 2 | I138: 17
A139: Psykolog | C139: 7 | D139: 27 | E139: 15 | F139: 15 | G139: 7 | I139: 71
A140: Jurist | C140: 4 | D140: 23 | E140: 14 | F140: 11 | G140: 3 | I140: 55
A141: Økonom | C141: 2 | D141: 6 | E141: 8 | F141: 9 | G141: 3 | I141: 28
A142: Samf. Adm. | C142: 12 | D142: 35 | E142: 19 | F142: 13 | G142: 3 | I142: 82
A143: Cand. Merc. | C143: 9 | D143: 76 | E143: 25 | F143: 26 | G143: 3 | I143: 139
A144: HA | C144: 6 | D144: 6 | E144: 12 | F144: 10 | G144: 8 | I144: 42
A145: HD | C145: 3 | D145: 3 | E145: 4 | F145: 13 | G145: 5 | I145: 28
A146: Komm. og Sprog | C146: 0 | D146: 9 | E146: 13 | F146: 11 | G146: 12 | I146: 45
A147: Bygningskonst. | C147: 7 | D147: 33 | E147: 22 | F147: 7 | G147: 5 | I147: 74
A148: Cand. IT. | C148: 3 | D148: 19 | E148: 4 | F148: 0 | G148: 0 | I148: 26
A149: Bac. Samf. | C149: 1 | D149: 0 | E149: 1 | F149: 0 | G149: 0 | I149: 2
A150: Bac. Hum. | C150: 3 | D150: 7 | E150: 7 | F150: 3 | G150: 1 | I150: 21
A151: Bac. Nat. | C151: 2 | D151: 6 | E151: 5 | F151: 1 | G151: 0 | I151: 14
A152: Andre | C152: 4 | D152: 39 | E152: 25 | F152: 30 | G152: 15 | I152: 113
A154: Total | C154: 126 | D154: 635 | E154: 492 | F154: 440 | G154: 186 | I154: 1879
A156: Ingeniører i alt | C156: 17 | D156: 65 | E156: 90 | F156: 113 | G156: 47 | I156: 332
A157: Magistre i alt | C157: 22 | D157: 152 | E157: 144 | F157: 110 | G157: 38 | I157: 466
A158: DJØF'ere i alt | C158: 33 | D158: 146 | E158: 78 | F158: 69 | G158: 20 | I158: 346
A165: Norddjurs
C167: Under 30 år | D167: 30 - 39 år | E167: 40 - 49 år | F167: 50 - 59 år | G167: Over 60 år | I167: I alt
A169: Civ. ing. | C169: 9 | D169: 10 | E169: 3 | F169: 2 | G169: 2 | I169: 26
A170: Diplom ing. | C170: 2 | D170: 17 | E170: 15 | F170: 45 | G170: 16 | I170: 95
A171: Cand. Scient. Tek. | C171: 3 | D171: 9 | E171: 6 | F171: 2 | G171: 0 | I171: 20
A172: MA. Hum. | C172: 7 | D172: 25 | E172: 26 | F172: 17 | G172: 5 | I172: 80
A173: MA. Nat. | C173: 2 | D173: 3 | E173: 12 | F173: 12 | G173: 3 | I173: 32
A174: MA. Ph.d. | C174: 0 | D174: 1 | E174: 5 | F174: 0 | G174: 1 | I174: 7
A175: MA. Samf. | C175: 1 | D175: 3 | E175: 1 | F175: 0 | G175: 0 | I175: 5
A176: Øvrige Mag. | C176: 2 | D176: 0 | E176: 3 | F176: 2 | G176: 0 | I176: 7
A177: Agronom | C177: 0 | D177: 4 | E177: 2 | F177: 1 | G177: 2 | I177: 9
A178: Landsk. Arkt. | C178: 0 | D178: 0 | E178: 0 | F178: 0 | G178: 0 | I178: 0
A179: Hortonom | C179: 0 | D179: 0 | E179: 1 | F179: 0 | G179: 0 | I179: 1
A180: Forstkand. | C180: 0 | D180: 0 | E180: 2 | F180: 0 | G180: 0 | I180: 2
A181: Jordbrugsakad. | C181: 0 | D181: 4 | E181: 5 | F181: 1 | G181: 2 | I181: 12
A182: Mejeriing. | C182: 0 | D182: 0 | E182: 0 | F182: 0 | G182: 0 | I182: 0
A183: Levn.m.kand. | C183: 0 | D183: 2 | E183: 0 | F183: 1 | G183: 0 | I183: 3
A184: Dyrlæge | C184: 0 | D184: 3 | E184: 2 | F184: 3 | G184: 0 | I184: 8
A185: Farmaceut | C185: 0 | D185: 0 | E185: 0 | F185: 2 | G185: 0 | I185: 2
A186: Læge | C186: 0 | D186: 1 | E186: 0 | F186: 2 | G186: 1 | I186: 4
A187: Tandlæge | C187: 0 | D187: 1 | E187: 1 | F187: 2 | G187: 1 | I187: 5
A188: Arkitekt | C188: 0 | D188: 2 | E188: 0 | F188: 4 | G188: 1 | I188: 7
A189: Landinspek. | C189: 1 | D189: 0 | E189: 0 | F189: 1 | G189: 0 | I189: 2
A190: Bibliotekar | C190: 0 | D190: 1 | E190: 2 | F190: 3 | G190: 0 | I190: 6
A191: Musikudd. | C191: 0 | D191: 1 | E191: 1 | F191: 1 | G191: 0 | I191: 3
A192: Teolog | C192: 0 | D192: 3 | E192: 2 | F192: 5 | G192: 3 | I192: 13
A193: Psykolog | C193: 0 | D193: 3 | E193: 6 | F193: 2 | G193: 2 | I193: 13
A194: Jurist | C194: 3 | D194: 3 | E194: 5 | F194: 3 | G194: 1 | I194: 15
A195: Økonom | C195: 0 | D195: 1 | E195: 2 | F195: 3 | G195: 0 | I195: 6
A196: Samf. Adm. | C196: 1 | D196: 4 | E196: 6 | F196: 6 | G196: 1 | I196: 18
A197: Cand. Merc. | C197: 6 | D197: 20 | E197: 7 | F197: 6 | G197: 4 | I197: 43
A198: HA | C198: 0 | D198: 2 | E198: 2 | F198: 10 | G198: 1 | I198: 15
A199: HD | C199: 0 | D199: 2 | E199: 4 | F199: 2 | G199: 2 | I199: 10
A200: Komm. og Sprog | C200: 0 | D200: 1 | E200: 1 | F200: 6 | G200: 1 | I200: 9
A201: Bygningskonst. | C201: 7 | D201: 16 | E201: 5 | F201: 4 | G201: 1 | I201: 33
A202: Cand. IT. | C202: 2 | D202: 1 | E202: 1 | F202: 1 | G202: 0 | I202: 5
A203: Bac. Samf. | C203: 0 | D203: 0 | E203: 0 | F203: 2 | G203: 0 | I203: 2
A204: Bac. Hum. | C204: 1 | D204: 2 | E204: 1 | F204: 3 | G204: 1 | I204: 8
A205: Bac. Nat. | C205: 1 | D205: 1 | E205: 1 | F205: 1 | G205: 0 | I205: 4
A206: Andre | C206: 4 | D206: 8 | E206: 7 | F206: 11 | G206: 7 | I206: 37
A208: Total | C208: 52 | D208: 150 | E208: 132 | F208: 165 | G208: 56 | I208: 555
A210: Ingeniører i alt | C210: 11 | D210: 27 | E210: 18 | F210: 47 | G210: 18 | I210: 121
A211: Magistre i alt | C211: 12 | D211: 32 | E211: 47 | F211: 31 | G211: 9 | I211: 131
A212: DJØF'ere i alt | C212: 10 | D212: 30 | E212: 22 | F212: 28 | G212: 7 | I212: 97
A219: Favrskov
C221: Under 30 år | D221: 30 - 39 år | E221: 40 - 49 år | F221: 50 - 59 år | G221: Over 60 år | I221: I alt
A223: Civ. ing. | C223: 23 | D223: 105 | E223: 110 | F223: 49 | G223: 8 | I223: 295
A224: Diplom ing. | C224: 22 | D224: 69 | E224: 141 | F224: 143 | G224: 55 | I224: 430
A225: Cand. Scient. Tek. | C225: 22 | D225: 88 | E225: 31 | F225: 14 | G225: 0 | I225: 155
A226: MA. Hum. | C226: 21 | D226: 121 | E226: 144 | F226: 41 | G226: 14 | I226: 341
A227: MA. Nat. | C227: 7 | D227: 38 | E227: 60 | F227: 50 | G227: 24 | I227: 179
A228: MA. Ph.d. | C228: 0 | D228: 7 | E228: 8 | F228: 2 | G228: 1 | I228: 18
A229: MA. Samf. | C229: 1 | D229: 15 | E229: 5 | F229: 0 | G229: 0 | I229: 21
A230: Øvrige Mag. | C230: 0 | D230: 5 | E230: 4 | F230: 11 | G230: 1 | I230: 21
A231: Agronom | C231: 2 | D231: 4 | E231: 10 | F231: 13 | G231: 18 | I231: 47
A232: Landsk. Arkt. | C232: 0 | D232: 1 | E232: 3 | F232: 0 | G232: 0 | I232: 4
A233: Hortonom | C233: 0 | D233: 0 | E233: 0 | F233: 1 | G233: 3 | I233: 4
A234: Forstkand. | C234: 0 | D234: 1 | E234: 3 | F234: 0 | G234: 2 | I234: 6
A235: Jordbrugsakad. | C235: 2 | D235: 6 | E235: 16 | F235: 14 | G235: 23 | I235: 61
A236: Mejeriing. | C236: 0 | D236: 0 | E236: 0 | F236: 2 | G236: 2 | I236: 4
A237: Levn.m.kand. | C237: 0 | D237: 1 | E237: 0 | F237: 0 | G237: 0 | I237: 1
A238: Dyrlæge | C238: 3 | D238: 8 | E238: 7 | F238: 2 | G238: 2 | I238: 22
A239: Farmaceut | C239: 0 | D239: 5 | E239: 1 | F239: 3 | G239: 2 | I239: 11
A240: Læge | C240: 12 | D240: 64 | E240: 44 | F240: 16 | G240: 8 | I240: 144
A241: Tandlæge | C241: 3 | D241: 8 | E241: 9 | F241: 2 | G241: 3 | I241: 25
A242: Arkitekt | C242: 1 | D242: 14 | E242: 13 | F242: 4 | G242: 1 | I242: 33
A243: Landinspek. | C243: 1 | D243: 1 | E243: 5 | F243: 4 | G243: 1 | I243: 12
... 329 more rows

Sheet Tabel 4 ØJ
A1: Tabel 4. Ledighedsberørte - aldersfordelt
A3: Østjylland
C5: Under 30 år | D5: 30 - 39 år | E5: 40 - 49 år | F5: 50 - 59 år | G5: Over 60 år | I5: I alt
A7: Civ. ing. | C7: 63 | D7: 19 | E7: 7 | F7: 6 | G7: 4 | I7: 99
A8: Diplom ing. | C8: 73 | D8: 39 | E8: 16 | F8: 20 | G8: 28 | I8: 176
A9: Cand. Scient. Tek | C9: 95 | D9: 93 | E9: 10 | F9: 3 | G9: 1 | I9: 202
A10: MA. Hum. | C10: 275 | D10: 298 | E10: 98 | F10: 43 | G10: 32 | I10: 746
A11: MA. Nat. | C11: 36 | D11: 25 | E11: 12 | F11: 9 | G11: 13 | I11: 95
A12: MA. Ph.d. | C12: 0 | D12: 7 | E12: 5 | F12: 2 | G12: 3 | I12: 17
A13: MA. Samf. | C13: 48 | D13: 52 | E13: 4 | F13: 0 | G13: 0 | I13: 104
A14: Øvrige Mag. | C14: 28 | D14: 19 | E14: 5 | F14: 6 | G14: 1 | I14: 59
A15: Agronom | C15: 0 | D15: 2 | E15: 1 | F15: 0 | G15: 3 | I15: 6
A16: Landsk. Arkt. | C16: 0 | D16: 0 | E16: 1 | F16: 0 | G16: 0 | I16: 1
A17: Hortonom | C17: 0 | D17: 0 | E17: 0 | F17: 0 | G17: 1 | I17: 1
A18: Forstkand. | C18: 0 | D18: 0 | E18: 1 | F18: 0 | G18: 1 | I18: 2
A19: Jordbrugsakad. | C19: 0 | D19: 2 | E19: 3 | F19: 0 | G19: 5 | I19: 10
A20: Mejeriing. | C20: 0 | D20: 0 | E20: 0 | F20: 1 | G20: 1 | I20: 2
A21: Levn.m.kand. | C21: 1 | D21: 1 | E21: 0 | F21: 0 | G21: 0 | I21: 2
A22: Dyrlæge | C22: 0 | D22: 1 | E22: 0 | F22: 0 | G22: 0 | I22: 1
A23: Farmaceut | C23: 12 | D23: 13 | E23: 1 | F23: 0 | G23: 0 | I23: 26
A24: Læge | C24: 34 | D24: 30 | E24: 0 | F24: 1 | G24: 1 | I24: 66
A25: Tandlæge | C25: 2 | D25: 2 | E25: 0 | F25: 0 | G25: 0 | I25: 4
A26: Arkitekt | C26: 34 | D26: 24 | E26: 10 | F26: 8 | G26: 10 | I26: 86
A27: Landinspek. | C27: 0 | D27: 0 | E27: 0 | F27: 0 | G27: 0 | I27: 0
A28: Bibliotekar | C28: 0 | D28: 5 | E28: 4 | F28: 1 | G28: 1 | I28: 11
A29: Musikudd. | C29: 1 | D29: 0 | E29: 1 | F29: 2 | G29: 4 | I29: 8
A30: Teolog | C30: 6 | D30: 3 | E30: 1 | F30: 5 | G30: 0 | I30: 15
A31: Psykolog | C31: 42 | D31: 38 | E31: 12 | F31: 3 | G31: 3 | I31: 98
A32: Jurist | C32: 22 | D32: 16 | E32: 3 | F32: 1 | G32: 2 | I32: 44
A33: Økonom | C33: 5 | D33: 7 | E33: 4 | F33: 8 | G33: 1 | I33: 25
A34: Samf. Adm. | C34: 78 | D34: 68 | E34: 17 | F34: 6 | G34: 3 | I34: 172
A35: Cand. Merc. | C35: 76 | D35: 80 | E35: 24 | F35: 15 | G35: 5 | I35: 200
A36: HA | C36: 33 | D36: 3 | E36: 4 | F36: 3 | G36: 5 | I36: 48
A37: HD | C37: 6 | D37: 6 | E37: 4 | F37: 5 | G37: 3 | I37: 24
A38: Komm. og Sprog | C38: 21 | D38: 13 | E38: 7 | F38: 7 | G38: 5 | I38: 53
A39: Bygningskonst. | C39: 56 | D39: 38 | E39: 7 | F39: 4 | G39: 1 | I39: 106
A40: Cand. IT. | C40: 25 | D40: 26 | E40: 3 | F40: 0 | G40: 0 | I40: 54
A41: Bac. Samf. | C41: 9 | D41: 6 | E41: 2 | F41: 1 | G41: 1 | I41: 19
A42: Bac. Hum. | C42: 111 | D42: 22 | E42: 8 | F42: 7 | G42: 4 | I42: 152
A43: Bac. Nat. | C43: 56 | D43: 11 | E43: 3 | F43: 0 | G43: 1 | I43: 71
A44: Andre | C44: 63 | D44: 63 | E44: 35 | F44: 20 | G44: 16 | I44: 197
A46: Total | C46: 1311 | D46: 1030 | E46: 310 | F46: 187 | G46: 154 | I46: 2992
A48: Ingeniører i alt | C48: 136 | D48: 58 | E48: 23 | F48: 26 | G48: 32 | I48: 275
A49: Magistre i alt | C49: 387 | D49: 401 | E49: 124 | F49: 60 | G49: 49 | I49: 1021
A50: DJØF'ere i alt | C50: 214 | D50: 174 | E50: 52 | F50: 33 | G50: 16 | I50: 489
A57: Horsens
C59: Under 30 år | D59: 30 - 39 år | E59: 40 - 49 år | F59: 50 - 59 år | G59: Over 60 år | I59: I alt
A61: Civ. ing. | C61: 7 | D61: 2 | E61: 0 | F61: 0 | G61: 0 | I61: 9
A62: Diplom ing. | C62: 10 | D62: 4 | E62: 0 | F62: 0 | G62: 4 | I62: 18
A63: Cand. Scient. Tek | C63: 2 | D63: 8 | E63: 1 | F63: 0 | G63: 0 | I63: 11
A64: MA. Hum. | C64: 8 | D64: 17 | E64: 3 | F64: 2 | G64: 0 | I64: 30
A65: MA. Nat. | C65: 2 | D65: 1 | E65: 0 | F65: 0 | G65: 0 | I65: 3
A66: MA. Ph.d. | C66: 0 | D66: 0 | E66: 0 | F66: 0 | G66: 0 | I66: 0
A67: MA. Samf. | C67: 0 | D67: 0 | E67: 0 | F67: 0 | G67: 0 | I67: 0
A68: Øvrige Mag. | C68: 0 | D68: 0 | E68: 1 | F68: 1 | G68: 0 | I68: 2
A69: Agronom | C69: 0 | D69: 0 | E69: 0 | F69: 0 | G69: 1 | I69: 1
A70: Landsk. Arkt. | C70: 0 | D70: 0 | E70: 0 | F70: 0 | G70: 0 | I70: 0
A71: Hortonom | C71: 0 | D71: 0 | E71: 0 | F71: 0 | G71: 0 | I71: 0
A72: Forstkand. | C72: 0 | D72: 0 | E72: 0 | F72: 0 | G72: 0 | I72: 0
A73: Jordbrugsakad. | C73: 0 | D73: 0 | E73: 0 | F73: 0 | G73: 1 | I73: 1
A74: Mejeriing. | C74: 0 | D74: 0 | E74: 0 | F74: 0 | G74: 0 | I74: 0
A75: Levn.m.kand. | C75: 0 | D75: 0 | E75: 0 | F75: 0 | G75: 0 | I75: 0
A76: Dyrlæge | C76: 0 | D76: 0 | E76: 0 | F76: 0 | G76: 0 | I76: 0
A77: Farmaceut | C77: 1 | D77: 1 | E77: 0 | F77: 0 | G77: 0 | I77: 2
A78: Læge | C78: 2 | D78: 0 | E78: 0 | F78: 0 | G78: 0 | I78: 2
A79: Tandlæge | C79: 0 | D79: 0 | E79: 0 | F79: 0 | G79: 0 | I79: 0
A80: Arkitekt | C80: 1 | D80: 0 | E80: 0 | F80: 1 | G80: 0 | I80: 2
A81: Landinspek. | C81: 0 | D81: 0 | E81: 0 | F81: 0 | G81: 0 | I81: 0
A82: Bibliotekar | C82: 0 | D82: 0 | E82: 1 | F82: 0 | G82: 0 | I82: 1
A83: Musikudd. | C83: 0 | D83: 0 | E83: 0 | F83: 1 | G83: 1 | I83: 2
A84: Teolog | C84: 0 | D84: 0 | E84: 0 | F84: 0 | G84: 0 | I84: 0
A85: Psykolog | C85: 4 | D85: 4 | E85: 2 | F85: 0 | G85: 0 | I85: 10
A86: Jurist | C86: 0 | D86: 2 | E86: 0 | F86: 0 | G86: 0 | I86: 2
A87: Økonom | C87: 0 | D87: 0 | E87: 0 | F87: 0 | G87: 0 | I87: 0
A88: Samf. Adm. | C88: 2 | D88: 6 | E88: 0 | F88: 1 | G88: 0 | I88: 9
A89: Cand. Merc. | C89: 5 | D89: 6 | E89: 1 | F89: 1 | G89: 0 | I89: 13
A90: HA | C90: 5 | D90: 0 | E90: 1 | F90: 0 | G90: 1 | I90: 7
A91: HD | C91: 2 | D91: 1 | E91: 0 | F91: 2 | G91: 0 | I91: 5
A92: Komm. og Sprog | C92: 3 | D92: 0 | E92: 1 | F92: 1 | G92: 0 | I92: 5
A93: Bygningskonst. | C93: 11 | D93: 7 | E93: 2 | F93: 1 | G93: 0 | I93: 21
A94: Cand. IT. | C94: 1 | D94: 3 | E94: 0 | F94: 0 | G94: 0 | I94: 4
A95: Bac. Samf. | C95: 0 | D95: 0 | E95: 1 | F95: 0 | G95: 0 | I95: 1
A96: Bac. Hum. | C96: 3 | D96: 1 | E96: 2 | F96: 1 | G96: 0 | I96: 7
A97: Bac. Nat. | C97: 13 | D97: 2 | E97: 0 | F97: 0 | G97: 0 | I97: 15
A98: Andre | C98: 12 | D98: 5 | E98: 3 | F98: 1 | G98: 0 | I98: 21
A100: Total | C100: 94 | D100: 70 | E100: 19 | F100: 13 | G100: 7 | I100: 203
A102: Ingeniører i alt | C102: 17 | D102: 6 | E102: 0 | F102: 0 | G102: 4 | I102: 27
A103: Magistre i alt | C103: 10 | D103: 18 | E103: 4 | F103: 3 | G103: 0 | I103: 35
A104: DJØF'ere i alt | C104: 12 | D104: 14 | E104: 2 | F104: 2 | G104: 1 | I104: 31
A111: Syddjurs
C113: Under 30 år | D113: 30 - 39 år | E113: 40 - 49 år | F113: 50 - 59 år | G113: Over 60 år | I113: I alt
A115: Civ. ing. | C115: 0 | D115: 1 | E115: 0 | F115: 1 | G115: 0 | I115: 2
A116: Diplom ing. | C116: 0 | D116: 2 | E116: 0 | F116: 2 | G116: 3 | I116: 7
A117: Cand. Scient. Tek | C117: 0 | D117: 8 | E117: 1 | F117: 0 | G117: 0 | I117: 9
A118: MA. Hum. | C118: 5 | D118: 15 | E118: 2 | F118: 3 | G118: 0 | I118: 25
A119: MA. Nat. | C119: 0 | D119: 1 | E119: 1 | F119: 0 | G119: 1 | I119: 3
A120: MA. Ph.d. | C120: 0 | D120: 0 | E120: 0 | F120: 0 | G120: 0 | I120: 0
A121: MA. Samf. | C121: 0 | D121: 4 | E121: 0 | F121: 0 | G121: 0 | I121: 4
A122: Øvrige Mag. | C122: 0 | D122: 1 | E122: 0 | F122: 0 | G122: 0 | I122: 1
A123: Agronom | C123: 0 | D123: 0 | E123: 1 | F123: 0 | G123: 0 | I123: 1
A124: Landsk. Arkt. | C124: 0 | D124: 0 | E124: 0 | F124: 0 | G124: 0 | I124: 0
A125: Hortonom | C125: 0 | D125: 0 | E125: 0 | F125: 0 | G125: 0 | I125: 0
A126: Forstkand. | C126: 0 | D126: 0 | E126: 0 | F126: 0 | G126: 1 | I126: 1
A127: Jordbrugsakad. | C127: 0 | D127: 0 | E127: 1 | F127: 0 | G127: 1 | I127: 2
A128: Mejeriing. | C128: 0 | D128: 0 | E128: 0 | F128: 0 | G128: 0 | I128: 0
A129: Levn.m.kand. | C129: 1 | D129: 1 | E129: 0 | F129: 0 | G129: 0 | I129: 2
A130: Dyrlæge | C130: 0 | D130: 1 | E130: 0 | F130: 0 | G130: 0 | I130: 1
A131: Farmaceut | C131: 0 | D131: 0 | E131: 0 | F131: 0 | G131: 0 | I131: 0
A132: Læge | C132: 0 | D132: 0 | E132: 0 | F132: 0 | G132: 0 | I132: 0
A133: Tandlæge | C133: 0 | D133: 0 | E133: 0 | F133: 0 | G133: 0 | I133: 0
A134: Arkitekt | C134: 0 | D134: 2 | E134: 0 | F134: 1 | G134: 0 | I134: 3
A135: Landinspek. | C135: 0 | D135: 0 | E135: 0 | F135: 0 | G135: 0 | I135: 0
A136: Bibliotekar | C136: 0 | D136: 0 | E136: 0 | F136: 0 | G136: 0 | I136: 0
A137: Musikudd. | C137: 0 | D137: 0 | E137: 0 | F137: 0 | G137: 0 | I137: 0
A138: Teolog | C138: 1 | D138: 1 | E138: 0 | F138: 1 | G138: 0 | I138: 3
A139: Psykolog | C139: 1 | D139: 0 | E139: 0 | F139: 0 | G139: 0 | I139: 1
A140: Jurist | C140: 0 | D140: 2 | E140: 0 | F140: 0 | G140: 0 | I140: 2
A141: Økonom | C141: 0 | D141: 0 | E141: 0 | F141: 1 | G141: 0 | I141: 1
A142: Samf. Adm. | C142: 2 | D142: 2 | E142: 3 | F142: 1 | G142: 0 | I142: 8
A143: Cand. Merc. | C143: 0 | D143: 1 | E143: 1 | F143: 0 | G143: 0 | I143: 2
A144: HA | C144: 2 | D144: 0 | E144: 0 | F144: 0 | G144: 1 | I144: 3
A145: HD | C145: 0 | D145: 0 | E145: 0 | F145: 0 | G145: 1 | I145: 1
A146: Komm. og Sprog | C146: 0 | D146: 2 | E146: 0 | F146: 0 | G146: 1 | I146: 3
A147: Bygningskonst. | C147: 0 | D147: 0 | E147: 0 | F147: 0 | G147: 0 | I147: 0
A148: Cand. IT. | C148: 0 | D148: 1 | E148: 0 | F148: 0 | G148: 0 | I148: 1
A149: Bac. Samf. | C149: 0 | D149: 0 | E149: 0 | F149: 0 | G149: 0 | I149: 0
A150: Bac. Hum. | C150: 1 | D150: 0 | E150: 1 | F150: 0 | G150: 0 | I150: 2
A151: Bac. Nat. | C151: 0 | D151: 0 | E151: 0 | F151: 0 | G151: 0 | I151: 0
A152: Andre | C152: 0 | D152: 0 | E152: 2 | F152: 1 | G152: 0 | I152: 3
A154: Total | C154: 13 | D154: 45 | E154: 12 | F154: 11 | G154: 8 | I154: 89
A156: Ingeniører i alt | C156: 0 | D156: 3 | E156: 0 | F156: 3 | G156: 3 | I156: 9
A157: Magistre i alt | C157: 5 | D157: 21 | E157: 3 | F157: 3 | G157: 1 | I157: 33
A158: DJØF'ere i alt | C158: 4 | D158: 5 | E158: 4 | F158: 2 | G158: 1 | I158: 16
A165: Norddjurs
C167: Under 30 år | D167: 30 - 39 år | E167: 40 - 49 år | F167: 50 - 59 år | G167: Over 60 år | I167: I alt
A169: Civ. ing. | C169: 0 | D169: 0 | E169: 0 | F169: 0 | G169: 0 | I169: 0
A170: Diplom ing. | C170: 0 | D170: 0 | E170: 0 | F170: 1 | G170: 0 | I170: 1
A171: Cand. Scient. Tek | C171: 1 | D171: 3 | E171: 1 | F171: 1 | G171: 0 | I171: 6
A172: MA. Hum. | C172: 2 | D172: 1 | E172: 1 | F172: 1 | G172: 1 | I172: 6
A173: MA. Nat. | C173: 0 | D173: 0 | E173: 0 | F173: 0 | G173: 0 | I173: 0
A174: MA. Ph.d. | C174: 0 | D174: 0 | E174: 0 | F174: 0 | G174: 1 | I174: 1
A175: MA. Samf. | C175: 0 | D175: 1 | E175: 0 | F175: 0 | G175: 0 | I175: 1
A176: Øvrige Mag. | C176: 1 | D176: 0 | E176: 1 | F176: 0 | G176: 0 | I176: 2
A177: Agronom | C177: 0 | D177: 0 | E177: 0 | F177: 0 | G177: 0 | I177: 0
A178: Landsk. Arkt. | C178: 0 | D178: 0 | E178: 0 | F178: 0 | G178: 0 | I178: 0
A179: Hortonom | C179: 0 | D179: 0 | E179: 0 | F179: 0 | G179: 0 | I179: 0
A180: Forstkand. | C180: 0 | D180: 0 | E180: 1 | F180: 0 | G180: 0 | I180: 1
A181: Jordbrugsakad. | C181: 0 | D181: 0 | E181: 1 | F181: 0 | G181: 0 | I181: 1
A182: Mejeriing. | C182: 0 | D182: 0 | E182: 0 | F182: 0 | G182: 0 | I182: 0
A183: Levn.m.kand. | C183: 0 | D183: 0 | E183: 0 | F183: 0 | G183: 0 | I183: 0
A184: Dyrlæge | C184: 0 | D184: 0 | E184: 0 | F184: 0 | G184: 0 | I184: 0
A185: Farmaceut | C185: 0 | D185: 0 | E185: 0 | F185: 0 | G185: 0 | I185: 0
A186: Læge | C186: 0 | D186: 0 | E186: 0 | F186: 0 | G186: 0 | I186: 0
A187: Tandlæge | C187: 0 | D187: 0 | E187: 0 | F187: 0 | G187: 0 | I187: 0
A188: Arkitekt | C188: 0 | D188: 0 | E188: 0 | F188: 0 | G188: 1 | I188: 1
A189: Landinspek. | C189: 0 | D189: 0 | E189: 0 | F189: 0 | G189: 0 | I189: 0
A190: Bibliotekar | C190: 0 | D190: 0 | E190: 0 | F190: 0 | G190: 0 | I190: 0
A191: Musikudd. | C191: 0 | D191: 0 | E191: 0 | F191: 0 | G191: 0 | I191: 0
A192: Teolog | C192: 0 | D192: 0 | E192: 0 | F192: 1 | G192: 0 | I192: 1
A193: Psykolog | C193: 0 | D193: 1 | E193: 0 | F193: 0 | G193: 0 | I193: 1
A194: Jurist | C194: 0 | D194: 0 | E194: 0 | F194: 0 | G194: 0 | I194: 0
A195: Økonom | C195: 0 | D195: 0 | E195: 0 | F195: 1 | G195: 0 | I195: 1
A196: Samf. Adm. | C196: 1 | D196: 0 | E196: 0 | F196: 0 | G196: 0 | I196: 1
A197: Cand. Merc. | C197: 0 | D197: 1 | E197: 0 | F197: 0 | G197: 0 | I197: 1
A198: HA | C198: 0 | D198: 0 | E198: 0 | F198: 0 | G198: 0 | I198: 0
A199: HD | C199: 0 | D199: 0 | E199: 0 | F199: 0 | G199: 0 | I199: 0
A200: Komm. og Sprog | C200: 0 | D200: 0 | E200: 0 | F200: 0 | G200: 0 | I200: 0
A201: Bygningskonst. | C201: 0 | D201: 0 | E201: 0 | F201: 0 | G201: 0 | I201: 0
A202: Cand. IT. | C202: 1 | D202: 0 | E202: 0 | F202: 0 | G202: 0 | I202: 1
A203: Bac. Samf. | C203: 0 | D203: 0 | E203: 0 | F203: 0 | G203: 0 | I203: 0
A204: Bac. Hum. | C204: 1 | D204: 0 | E204: 0 | F204: 1 | G204: 0 | I204: 2
A205: Bac. Nat. | C205: 0 | D205: 1 | E205: 0 | F205: 0 | G205: 0 | I205: 1
A206: Andre | C206: 0 | D206: 1 | E206: 0 | F206: 0 | G206: 1 | I206: 2
A208: Total | C208: 7 | D208: 9 | E208: 4 | F208: 6 | G208: 4 | I208: 30
A210: Ingeniører i alt | C210: 0 | D210: 0 | E210: 0 | F210: 1 | G210: 0 | I210: 1
A211: Magistre i alt | C211: 3 | D211: 2 | E211: 2 | F211: 1 | G211: 2 | I211: 10
A212: DJØF'ere i alt | C212: 1 | D212: 1 | E212: 0 | F212: 1 | G212: 0 | I212: 3
A219: Favrskov
C221: Under 30 år | D221: 30 - 39 år | E221: 40 - 49 år | F221: 50 - 59 år | G221: Over 60 år | I221: I alt
A223: Civ. ing. | C223: 1 | D223: 0 | E223: 1 | F223: 0 | G223: 0 | I223: 2
A224: Diplom ing. | C224: 0 | D224: 1 | E224: 0 | F224: 2 | G224: 1 | I224: 4
A225: Cand. Scient. Tek | C225: 0 | D225: 5 | E225: 0 | F225: 0 | G225: 0 | I225: 5
A226: MA. Hum. | C226: 5 | D226: 12 | E226: 2 | F226: 1 | G226: 1 | I226: 21
A227: MA. Nat. | C227: 1 | D227: 0 | E227: 0 | F227: 0 | G227: 1 | I227: 2
A228: MA. Ph.d. | C228: 0 | D228: 0 | E228: 0 | F228: 0 | G228: 0 | I228: 0
A229: MA. Samf. | C229: 0 | D229: 1 | E229: 0 | F229: 0 | G229: 0 | I229: 1
A230: Øvrige Mag. | C230: 0 | D230: 0 | E230: 0 | F230: 0 | G230: 0 | I230: 0
A231: Agronom | C231: 0 | D231: 0 | E231: 0 | F231: 0 | G231: 1 | I231: 1
A232: Landsk. Arkt. | C232: 0 | D232: 0 | E232: 0 | F232: 0 | G232: 0 | I232: 0
A233: Hortonom | C233: 0 | D233: 0 | E233: 0 | F233: 0 | G233: 0 | I233: 0
A234: Forstkand. | C234: 0 | D234: 0 | E234: 0 | F234: 0 | G234: 0 | I234: 0
A235: Jordbrugsakad. | C235: 0 | D235: 0 | E235: 0 | F235: 0 | G235: 1 | I235: 1
A236: Mejeriing. | C236: 0 | D236: 0 | E236: 0 | F236: 0 | G236: 0 | I236: 0
A237: Levn.m.kand. | C237: 0 | D237: 0 | E237: 0 | F237: 0 | G237: 0 | I237: 0
A238: Dyrlæge | C238: 0 | D238: 0 | E238: 0 | F238: 0 | G238: 0 | I238: 0
A239: Farmaceut | C239: 0 | D239: 0 | E239: 0 | F239: 0 | G239: 0 | I239: 0
A240: Læge | C240: 0 | D240: 2 | E240: 0 | F240: 0 | G240: 0 | I240: 2
A241: Tandlæge | C241: 0 | D241: 0 | E241: 0 | F241: 0 | G241: 0 | I241: 0
A242: Arkitekt | C242: 0 | D242: 1 | E242: 1 | F242: 0 | G242: 0 | I242: 2
A243: Landinspek. | C243: 0 | D243: 0 | E243: 0 | F243: 0 | G243: 0 | I243: 0
... 329 more rows

Sheet Tabel 4(Br) ØJ
A1: Tabel 4. Ledighedsberørte - aldersfordelt
A3: Østjylland
C5: Under 30 år | D5: 30 - 39 år | E5: 40 - 49 år | F5: 50 - 59 år | G5: Over 60 år | I5: I alt
A7: Civ. ing. | C7: 56.82342668 | D7: 17.81201272 | E7: 5.221730182 | F7: 5.721948481 | G7: 3.353084264 | I7: 88.93220233
A8: Diplom ing. | C8: 63.67554419 | D8: 31.76261461 | E8: 13.84768914 | F8: 15.85479948 | G8: 23.28322834 | I8: 148.4238758
A9: Cand. Scient. Tek | C9: 80.35614046 | D9: 79.62327699 | E9: 9.264017963 | F9: 2.386951912 | G9: 0.9998128859 | I9: 172.6302002
A10: MA. Hum. | C10: 236.9787314 | D10: 259.8010354 | E10: 82.33019397 | F10: 36.89016404 | G10: 23.43666188 | I10: 639.4367866
A11: MA. Nat. | C11: 29.06006362 | D11: 18.98459427 | E11: 9.880870704 | F11: 7.429052579 | G11: 10.44096551 | I11: 75.79554668
A12: MA. Ph.d. | C12: 0 | D12: 5.510509574 | E12: 4.306742344 | F12: 1.661573006 | G12: 2.814819435 | I12: 14.29364436
A13: MA. Samf. | C13: 41.04347284 | D13: 43.68427618 | E13: 3.397991642 | F13: 0 | G13: 0 | I13: 88.12574066
A14: Øvrige Mag. | C14: 22.1387139 | D14: 15.9383771 | E14: 3.152872201 | F14: 4.718393314 | G14: 0.9998128859 | I14: 46.9481694
A15: Agronom | C15: 0 | D15: 1.236200337 | E15: 0.9998128859 | F15: 0 | G15: 2.999438658 | I15: 5.23545188
A16: Landsk. Arkt. | C16: 0 | D16: 0 | E16: 0.2756814071 | F16: 0 | G16: 0 | I16: 0.2756814071
A17: Hortonom | C17: 0 | D17: 0 | E17: 0 | F17: 0 | G17: 0.9998128859 | I17: 0.9998128859
A18: Forstkand. | C18: 0 | D18: 0 | E18: 0.8151936631 | F18: 0 | G18: 0.8033431048 | I18: 1.618536768
A19: Jordbrugsakad. | C19: 0 | D19: 1.236200337 | E19: 2.090687956 | F19: 0 | G19: 4.802594649 | I19: 8.129482941
A20: Mejeriing. | C20: 0 | D20: 0 | E20: 0 | F20: 0.3074908002 | G20: 0.83203393 | I20: 1.13952473
A21: Levn.m.kand. | C21: 0.9998128859 | D21: 0.9998128859 | E21: 0 | F21: 0 | G21: 0 | I21: 1.999625772
A22: Dyrlæge | C22: 0 | D22: 0.9998128859 | E22: 0 | F22: 0 | G22: 0 | I22: 0.9998128859
A23: Farmaceut | C23: 8.609118693 | D23: 11.63412961 | E23: 0.9998128859 | F23: 0 | G23: 0 | I23: 21.24306119
A24: Læge | C24: 29.21474459 | D24: 24.71028504 | E24: 0 | F24: 0.9998128859 | G24: 0.9998128859 | I24: 55.9246554
A25: Tandlæge | C25: 1.519366307 | D25: 1.999625772 | E25: 0 | F25: 0 | G25: 0 | I25: 3.518992079
A26: Arkitekt | C26: 29.89272126 | D26: 22.1112705 | E26: 7.041102726 | F26: 5.987026757 | G26: 9.282729371 | I26: 74.31485062
A27: Landinspek. | C27: 0 | D27: 0 | E27: 0 | F27: 0 | G27: 0 | I27: 0
A28: Bibliotekar | C28: 0 | D28: 4.230025572 | E28: 2.794236886 | F28: 0.9998128859 | G28: 0.9998128859 | I28: 9.023888231
A29: Musikudd. | C29: 0.5014657269 | D29: 0 | E29: 0.9998128859 | F29: 1.500654899 | G29: 3.253913803 | I29: 6.255847315
A30: Teolog | C30: 5.788685835 | D30: 2.475519242 | E30: 0.5014657269 | F30: 4.629825984 | G30: 0 | I30: 13.39549679
A31: Psykolog | C31: 37.58186241 | D31: 30.16466039 | E31: 9.80540136 | F31: 2.759932639 | G31: 2.860974241 | I31: 83.17283104
A32: Jurist | C32: 20.08981476 | D32: 15.12006487 | E32: 2.481756377 | F32: 0.3074908002 | G32: 1.901079025 | I32: 39.90020583
A33: Økonom | C33: 3.983658704 | D33: 4.962265328 | E33: 3.768477515 | F33: 6.364997193 | G33: 0.470903761 | I33: 19.5503025
A34: Samf. Adm. | C34: 64.64292397 | D34: 58.86047527 | E34: 15.55042724 | F34: 5.440029938 | G34: 2.768664629 | I34: 147.2625211
A35: Cand. Merc. | C35: 65.35957089 | D35: 70.53576997 | E35: 21.82061997 | F35: 13.2214807 | G35: 4.768290401 | I35: 175.7057319
A36: HA | C36: 26.40054887 | D36: 1.777583734 | E36: 3.906941932 | F36: 2.32582798 | G36: 4.768290401 | I36: 39.17919291
A37: HD | C37: 4.83066176 | D37: 5.445019647 | E37: 2.742468658 | F37: 4.35289715 | G37: 2.999438658 | I37: 20.37048587
A38: Komm. og Sprog | C38: 18.04091561 | D38: 11.02413772 | E38: 6.401796295 | F38: 6.625709474 | G38: 3.978045282 | I38: 46.07060438
A39: Bygningskonst. | C39: 51.91904198 | D39: 33.36611988 | E39: 6.686521549 | F39: 3.815380777 | G39: 0.5846067486 | I39: 96.37167093
A40: Cand. IT. | C40: 22.12312106 | D40: 24.29364436 | E40: 2.061997131 | F40: 0 | G40: 0 | I40: 48.47876255
A41: Bac. Samf. | C41: 8.055884738 | D41: 5.592216054 | E41: 1.90731616 | F41: 0.9998128859 | G41: 0.5345225472 | I41: 17.08975239
A42: Bac. Hum. | C42: 86.80845756 | D42: 18.20869457 | E42: 6.676853989 | F42: 4.147695378 | G42: 3.999251544 | I42: 119.840953
A43: Bac. Nat. | C43: 48.61098983 | D43: 9.877752136 | E43: 2.738726377 | F43: 0 | G43: 0.9998128859 | I43: 62.22728123
A44: Andre | C44: 55.60032433 | D44: 53.81899832 | E44: 30.97361692 | F44: 17.09661324 | G44: 12.35015281 | I44: 169.8397056
A46: Total | C46: 1120.649785 | D46: 886.5607809 | E46: 263.3521487 | F46: 156.5453752 | G46: 128.4833157 | I46: 2555.591405
A48: Ingeniører i alt | C48: 120.4989709 | D48: 49.57462733 | E48: 19.06941932 | F48: 21.57674796 | G48: 26.63631261 | I48: 237.3560781
A49: Magistre i alt | C49: 329.2209817 | D49: 343.9187925 | E49: 103.0686709 | F49: 50.69918294 | G49: 37.69225971 | I49: 864.5998877
A50: DJØF'ere i alt | C50: 180.4765172 | D50: 151.2561592 | E50: 47.52822304 | F50: 27.65982661 | G50: 14.67722822 | I50: 421.5979542
A57: Horsens
C59: Under 30 år | D59: 30 - 39 år | E59: 40 - 49 år | F59: 50 - 59 år | G59: Over 60 år | I59: I alt
A61: Civ. ing. | C61: 6.232769912 | D61: 1.999625772 | E61: 0 | F61: 0 | G61: 0 | I61: 8.232395684
A62: Diplom ing. | C62: 8.378968378 | D62: 3.260774652 | E62: 0 | F62: 0 | G62: 3.999251544 | I62: 15.63899457
A63: Cand. Scient. Tek | C63: 1.722696938 | D63: 6.791617289 | E63: 0.9998128859 | F63: 0 | G63: 0 | I63: 9.514127113
A64: MA. Hum. | C64: 6.747333624 | D64: 13.95060188 | E64: 2.485498659 | F64: 1.999625772 | G64: 0 | I64: 25.18305994
A65: MA. Nat. | C65: 1.523108589 | D65: 0.1690263831 | E65: 0 | F65: 0 | G65: 0 | I65: 1.692134972
A66: MA. Ph.d. | C66: 0 | D66: 0 | E66: 0 | F66: 0 | G66: 0 | I66: 0
A67: MA. Samf. | C67: 0 | D67: 0 | E67: 0 | F67: 0 | G67: 0 | I67: 0
A68: Øvrige Mag. | C68: 0 | D68: 0 | E68: 0.03056196595 | F68: 0.9998128859 | G68: 0 | I68: 1.030374852
A69: Agronom | C69: 0 | D69: 0 | E69: 0 | F69: 0 | G69: 0.9998128859 | I69: 0.9998128859
A70: Landsk. Arkt. | C70: 0 | D70: 0 | E70: 0 | F70: 0 | G70: 0 | I70: 0
A71: Hortonom | C71: 0 | D71: 0 | E71: 0 | F71: 0 | G71: 0 | I71: 0
A72: Forstkand. | C72: 0 | D72: 0 | E72: 0 | F72: 0 | G72: 0 | I72: 0
A73: Jordbrugsakad. | C73: 0 | D73: 0 | E73: 0 | F73: 0 | G73: 0.9998128859 | I73: 0.9998128859
A74: Mejeriing. | C74: 0 | D74: 0 | E74: 0 | F74: 0 | G74: 0 | I74: 0
A75: Levn.m.kand. | C75: 0 | D75: 0 | E75: 0 | F75: 0 | G75: 0 | I75: 0
A76: Dyrlæge | C76: 0 | D76: 0 | E76: 0 | F76: 0 | G76: 0 | I76: 0
A77: Farmaceut | C77: 0.9998128859 | D77: 0.9536580802 | E77: 0 | F77: 0 | G77: 0 | I77: 1.953470966
A78: Læge | C78: 1.999625772 | D78: 0 | E78: 0 | F78: 0 | G78: 0 | I78: 1.999625772
A79: Tandlæge | C79: 0 | D79: 0 | E79: 0 | F79: 0 | G79: 0 | I79: 0
A80: Arkitekt | C80: 0.9998128859 | D80: 0 | E80: 0 | F80: 0.8613484688 | G80: 0 | I80: 1.861161355
A81: Landinspek. | C81: 0 | D81: 0 | E81: 0 | F81: 0 | G81: 0 | I81: 0
A82: Bibliotekar | C82: 0 | D82: 0 | E82: 0.5794299258 | F82: 0 | G82: 0 | I82: 0.5794299258
A83: Musikudd. | C83: 0 | D83: 0 | E83: 0 | F83: 0.9998128859 | G83: 0.9998128859 | I83: 1.999625772
A84: Teolog | C84: 0 | D84: 0 | E84: 0 | F84: 0 | G84: 0 | I84: 0
A85: Psykolog | C85: 3.513378657 | D85: 2.176136718 | E85: 1.843697374 | F85: 0 | G85: 0 | I85: 7.533212749
A86: Jurist | C86: 0 | D86: 1.861161355 | E86: 0 | F86: 0 | G86: 0 | I86: 1.861161355
A87: Økonom | C87: 0 | D87: 0 | E87: 0 | F87: 0 | G87: 0 | I87: 0
A88: Samf. Adm. | C88: 1.187550677 | D88: 4.314850621 | E88: 0 | F88: 0.9998128859 | G88: 0 | I88: 6.502214183
A89: Cand. Merc. | C89: 3.873261398 | D89: 5.474957899 | E89: 0.9998128859 | F89: 0.9998128859 | G89: 0 | I89: 11.34784507
A90: HA | C90: 4.99906443 | D90: 0 | E90: 0.9998128859 | F90: 0 | G90: 0.9998128859 | I90: 6.998690201
A91: HD | C91: 1.768851743 | D91: 0.9536580802 | E91: 0 | F91: 1.90731616 | G91: 0 | I91: 4.629825984
A92: Komm. og Sprog | C92: 2.399426183 | D92: 0 | E92: 0.9998128859 | F92: 0.9998128859 | G92: 0 | I92: 4.399051955
A93: Bygningskonst. | C93: 10.81538078 | D93: 5.161292335 | E93: 1.940123495 | F93: 1 | G93: 0 | I93: 18.91679661
A94: Cand. IT. | C94: 0.9998128859 | D94: 2.826669993 | E94: 0 | F94: 0 | G94: 0 | I94: 3.826482879
A95: Bac. Samf. | C95: 0 | D95: 0 | E95: 0.9075032745 | F95: 0 | G95: 0 | I95: 0.9075032745
A96: Bac. Hum. | C96: 2.60026196 | D96: 0.8613484688 | E96: 1.47820121 | F96: 0.2700679848 | G96: 0 | I96: 5.209879623
A97: Bac. Nat. | C97: 10.39293956 | D97: 1.999625772 | E97: 0 | F97: 0 | G97: 0 | I97: 12.39256533
A98: Andre | C98: 10.67361068 | D98: 4.380964261 | E98: 2.999438658 | F98: 0.5657082268 | G98: 0 | I98: 18.61972182
A100: Total | C100: 81.82766793 | D100: 57.13596956 | E100: 16.26370611 | F100: 11.60313104 | G100: 6.998690201 | I100: 173.8291648
A102: Ingeniører i alt | C102: 14.61173829 | D102: 5.260400424 | E102: 0 | F102: 0 | G102: 3.999251544 | I102: 23.87139026
A103: Magistre i alt | C103: 8.270442213 | D103: 14.11962827 | E103: 2.516060625 | F103: 2.999438658 | G103: 0 | I103: 27.90556976
A104: DJØF'ere i alt | C104: 10.0598765 | D104: 11.65096987 | E104: 1.999625772 | F104: 1.999625772 | G104: 0.9998128859 | I104: 26.70991081
A111: Syddjurs
C113: Under 30 år | D113: 30 - 39 år | E113: 40 - 49 år | F113: 50 - 59 år | G113: Over 60 år | I113: I alt
A115: Civ. ing. | C115: 0 | D115: 0.8613484688 | E115: 0 | F115: 0.9075032745 | G115: 0 | I115: 1.768851743
A116: Diplom ing. | C116: 0 | D116: 1.528722011 | E116: 0 | F116: 0.6386827169 | G116: 2.184244995 | I116: 4.351649722
A117: Cand. Scient. Tek | C117: 0 | D117: 5.562901516 | E117: 0.9998128859 | F117: 0 | G117: 0 | I117: 6.562714402
A118: MA. Hum. | C118: 4.500093557 | D118: 12.27281232 | E118: 1.692758685 | F118: 2.445580989 | G118: 0 | I118: 20.91124556
A119: MA. Nat. | C119: 0 | D119: 0.9998128859 | E119: 0.8151936631 | F119: 0 | G119: 0.9998128859 | I119: 2.814819435
A120: MA. Ph.d. | C120: 0 | D120: 0 | E120: 0 | F120: 0 | G120: 0 | I120: 0
A121: MA. Samf. | C121: 0 | D121: 3.533961205 | E121: 0 | F121: 0 | G121: 0 | I121: 3.533961205
A122: Øvrige Mag. | C122: 0 | D122: 0.7752759933 | E122: 0 | F122: 0 | G122: 0 | I122: 0.7752759933
A123: Agronom | C123: 0 | D123: 0 | E123: 0.9998128859 | F123: 0 | G123: 0 | I123: 0.9998128859
A124: Landsk. Arkt. | C124: 0 | D124: 0 | E124: 0 | F124: 0 | G124: 0 | I124: 0
A125: Hortonom | C125: 0 | D125: 0 | E125: 0 | F125: 0 | G125: 0 | I125: 0
A126: Forstkand. | C126: 0 | D126: 0 | E126: 0 | F126: 0 | G126: 0.8033431048 | I126: 0.8033431048
A127: Jordbrugsakad. | C127: 0 | D127: 0 | E127: 0.9998128859 | F127: 0 | G127: 0.8033431048 | I127: 1.803155991
A128: Mejeriing. | C128: 0 | D128: 0 | E128: 0 | F128: 0 | G128: 0 | I128: 0
A129: Levn.m.kand. | C129: 0.9998128859 | D129: 0.9998128859 | E129: 0 | F129: 0 | G129: 0 | I129: 1.999625772
A130: Dyrlæge | C130: 0 | D130: 0.9998128859 | E130: 0 | F130: 0 | G130: 0 | I130: 0.9998128859
A131: Farmaceut | C131: 0 | D131: 0 | E131: 0 | F131: 0 | G131: 0 | I131: 0
A132: Læge | C132: 0 | D132: 0 | E132: 0 | F132: 0 | G132: 0 | I132: 0
A133: Tandlæge | C133: 0 | D133: 0 | E133: 0 | F133: 0 | G133: 0 | I133: 0
A134: Arkitekt | C134: 0 | D134: 1.488180627 | E134: 0 | F134: 0.9499157987 | G134: 0 | I134: 2.438096426
A135: Landinspek. | C135: 0 | D135: 0 | E135: 0 | F135: 0 | G135: 0 | I135: 0
A136: Bibliotekar | C136: 0 | D136: 0 | E136: 0 | F136: 0 | G136: 0 | I136: 0
A137: Musikudd. | C137: 0 | D137: 0 | E137: 0 | F137: 0 | G137: 0 | I137: 0
A138: Teolog | C138: 0.9998128859 | D138: 0.4758934697 | E138: 0 | F138: 0.9998128859 | G138: 0 | I138: 2.475519242
A139: Psykolog | C139: 0.9998128859 | D139: 0 | E139: 0 | F139: 0 | G139: 0 | I139: 0.9998128859
A140: Jurist | C140: 0 | D140: 1.768851743 | E140: 0 | F140: 0 | G140: 0 | I140: 1.768851743
A141: Økonom | C141: 0 | D141: 0 | E141: 0 | F141: 0.9075032745 | G141: 0 | I141: 0.9075032745
A142: Samf. Adm. | C142: 1.629763613 | D142: 1.999625772 | E142: 2.272812325 | F142: 0.9998128859 | G142: 0 | I142: 6.902014595
A143: Cand. Merc. | C143: 0 | D143: 0.9998128859 | E143: 0.9536580802 | F143: 0 | G143: 0 | I143: 1.953470966
A144: HA | C144: 1.58423252 | D144: 0 | E144: 0 | F144: 0 | G144: 0.8151936631 | I144: 2.399426183
A145: HD | C145: 0 | D145: 0 | E145: 0 | F145: 0 | G145: 0.9998128859 | I145: 0.9998128859
A146: Komm. og Sprog | C146: 0 | D146: 0.6998066488 | E146: 0 | F146: 0 | G146: 0.793987401 | I146: 1.49379405
A147: Bygningskonst. | C147: 0 | D147: 0 | E147: 0 | F147: 0 | G147: 0 | I147: 0
A148: Cand. IT. | C148: 0 | D148: 0.9998128859 | E148: 0 | F148: 0 | G148: 0 | I148: 0.9998128859
A149: Bac. Samf. | C149: 0 | D149: 0 | E149: 0 | F149: 0 | G149: 0 | I149: 0
A150: Bac. Hum. | C150: 0.9998128859 | D150: 0 | E150: 0.9998128859 | F150: 0 | G150: 0 | I150: 1.999625772
A151: Bac. Nat. | C151: 0 | D151: 0 | E151: 0 | F151: 0 | G151: 0 | I151: 0
A152: Andre | C152: 0 | D152: 0 | E152: 1.329133662 | F152: 0.9748643423 | G152: 0 | I152: 2.303998004
A154: Total | C154: 11.71334123 | D154: 35.96644421 | E154: 10.06299507 | F154: 8.823676168 | G154: 6.596394935 | I154: 73.16285162
A156: Ingeniører i alt | C156: 0 | D156: 2.39007048 | E156: 0 | F156: 1.546185991 | G156: 2.184244995 | I156: 6.120501466
A157: Magistre i alt | C157: 4.500093557 | D157: 17.58186241 | E157: 2.507952348 | F157: 2.445580989 | G157: 0.9998128859 | I157: 28.03530219
A158: DJØF'ere i alt | C158: 3.213996133 | D158: 4.768290401 | E158: 3.226470405 | F158: 1.90731616 | G158: 0.8151936631 | I158: 13.93126676
A165: Norddjurs
C167: Under 30 år | D167: 30 - 39 år | E167: 40 - 49 år | F167: 50 - 59 år | G167: Over 60 år | I167: I alt
A169: Civ. ing. | C169: 0 | D169: 0 | E169: 0 | F169: 0 | G169: 0 | I169: 0
A170: Diplom ing. | C170: 0 | D170: 0 | E170: 0 | F170: 0.9998128859 | G170: 0 | I170: 0.9998128859
A171: Cand. Scient. Tek | C171: 0.9998128859 | D171: 2.829164848 | E171: 0.9998128859 | F171: 0.9998128859 | G171: 0 | I171: 5.828603505
A172: MA. Hum. | C172: 1.04908626 | D172: 0.9998128859 | E172: 0.5295328385 | F172: 0.7690388574 | G172: 0.9998128859 | I172: 4.347283727
A173: MA. Nat. | C173: 0 | D173: 0 | E173: 0 | F173: 0 | G173: 0 | I173: 0
A174: MA. Ph.d. | C174: 0 | D174: 0 | E174: 0 | F174: 0 | G174: 0.9998128859 | I174: 0.9998128859
A175: MA. Samf. | C175: 0 | D175: 0.5507391006 | E175: 0 | F175: 0 | G175: 0 | I175: 0.5507391006
A176: Øvrige Mag. | C176: 0.9998128859 | D176: 0 | E176: 0.9998128859 | F176: 0 | G176: 0 | I176: 1.999625772
A177: Agronom | C177: 0 | D177: 0 | E177: 0 | F177: 0 | G177: 0 | I177: 0
A178: Landsk. Arkt. | C178: 0 | D178: 0 | E178: 0 | F178: 0 | G178: 0 | I178: 0
A179: Hortonom | C179: 0 | D179: 0 | E179: 0 | F179: 0 | G179: 0 | I179: 0
A180: Forstkand. | C180: 0 | D180: 0 | E180: 0.8151936631 | F180: 0 | G180: 0 | I180: 0.8151936631
A181: Jordbrugsakad. | C181: 0 | D181: 0 | E181: 0.8151936631 | F181: 0 | G181: 0 | I181: 0.8151936631
A182: Mejeriing. | C182: 0 | D182: 0 | E182: 0 | F182: 0 | G182: 0 | I182: 0
A183: Levn.m.kand. | C183: 0 | D183: 0 | E183: 0 | F183: 0 | G183: 0 | I183: 0
A184: Dyrlæge | C184: 0 | D184: 0 | E184: 0 | F184: 0 | G184: 0 | I184: 0
A185: Farmaceut | C185: 0 | D185: 0 | E185: 0 | F185: 0 | G185: 0 | I185: 0
A186: Læge | C186: 0 | D186: 0 | E186: 0 | F186: 0 | G186: 0 | I186: 0
A187: Tandlæge | C187: 0 | D187: 0 | E187: 0 | F187: 0 | G187: 0 | I187: 0
A188: Arkitekt | C188: 0 | D188: 0 | E188: 0 | F188: 0 | G188: 0.9998128859 | I188: 0.9998128859
A189: Landinspek. | C189: 0 | D189: 0 | E189: 0 | F189: 0 | G189: 0 | I189: 0
A190: Bibliotekar | C190: 0 | D190: 0 | E190: 0 | F190: 0 | G190: 0 | I190: 0
A191: Musikudd. | C191: 0 | D191: 0 | E191: 0 | F191: 0 | G191: 0 | I191: 0
A192: Teolog | C192: 0 | D192: 0 | E192: 0 | F192: 0.9998128859 | G192: 0 | I192: 0.9998128859
A193: Psykolog | C193: 0 | D193: 0.9998128859 | E193: 0 | F193: 0 | G193: 0 | I193: 0.9998128859
A194: Jurist | C194: 0 | D194: 0 | E194: 0 | F194: 0 | G194: 0 | I194: 0
A195: Økonom | C195: 0 | D195: 0 | E195: 0 | F195: 0.9998128859 | G195: 0 | I195: 0.9998128859
A196: Samf. Adm. | C196: 0.9998128859 | D196: 0 | E196: 0 | F196: 0 | G196: 0 | I196: 0.9998128859
A197: Cand. Merc. | C197: 0 | D197: 0.9998128859 | E197: 0 | F197: 0 | G197: 0 | I197: 0.9998128859
A198: HA | C198: 0 | D198: 0 | E198: 0 | F198: 0 | G198: 0 | I198: 0
A199: HD | C199: 0 | D199: 0 | E199: 0 | F199: 0 | G199: 0 | I199: 0
A200: Komm. og Sprog | C200: 0 | D200: 0 | E200: 0 | F200: 0 | G200: 0 | I200: 0
A201: Bygningskonst. | C201: 0 | D201: 0 | E201: 0 | F201: 0 | G201: 0 | I201: 0
A202: Cand. IT. | C202: 0.9998128859 | D202: 0 | E202: 0 | F202: 0 | G202: 0 | I202: 0.9998128859
A203: Bac. Samf. | C203: 0 | D203: 0 | E203: 0 | F203: 0 | G203: 0 | I203: 0
A204: Bac. Hum. | C204: 0.8064616728 | D204: 0 | E204: 0 | F204: 0.4921100231 | G204: 0 | I204: 1.298571696
A205: Bac. Nat. | C205: 0 | D205: 0.7690388574 | E205: 0 | F205: 0 | G205: 0 | I205: 0.7690388574
A206: Andre | C206: 0 | D206: 0.9998128859 | E206: 0 | F206: 0 | G206: 0.3262022079 | I206: 1.326015094
A208: Total | C208: 5.854799476 | D208: 8.148194349 | E208: 3.344352273 | F208: 5.260400424 | G208: 3.325640866 | I208: 25.93338739
A210: Ingeniører i alt | C210: 0 | D210: 0 | E210: 0 | F210: 0.9998128859 | G210: 0 | I210: 0.9998128859
A211: Magistre i alt | C211: 2.048899146 | D211: 1.550551987 | E211: 1.529345724 | F211: 0.7690388574 | G211: 1.999625772 | I211: 7.897461486
A212: DJØF'ere i alt | C212: 0.9998128859 | D212: 0.9998128859 | E212: 0 | F212: 0.9998128859 | G212: 0 | I212: 2.999438658
A219: Favrskov
C221: Under 30 år | D221: 30 - 39 år | E221: 40 - 49 år | F221: 50 - 59 år | G221: Over 60 år | I221: I alt
A223: Civ. ing. | C223: 0.9998128859 | D223: 0 | E223: 0.6692446828 | F223: 0 | G223: 0 | I223: 1.669057569
A224: Diplom ing. | C224: 0 | D224: 0.9998128859 | E224: 0 | F224: 1.628516185 | G224: 0.3012536643 | I224: 2.929582736
A225: Cand. Scient. Tek | C225: 0 | D225: 4.472650159 | E225: 0 | F225: 0 | G225: 0 | I225: 4.472650159
A226: MA. Hum. | C226: 4.35289715 | D226: 10.33119192 | E226: 1.324767667 | F226: 0.8613484688 | G226: 0.319965072 | I226: 17.19017027
A227: MA. Nat. | C227: 0.9998128859 | D227: 0 | E227: 0 | F227: 0 | G227: 0.4428366494 | I227: 1.442649535
A228: MA. Ph.d. | C228: 0 | D228: 0 | E228: 0 | F228: 0 | G228: 0 | I228: 0
A229: MA. Samf. | C229: 0 | D229: 0.9536580802 | E229: 0 | F229: 0 | G229: 0 | I229: 0.9536580802
A230: Øvrige Mag. | C230: 0 | D230: 0 | E230: 0 | F230: 0 | G230: 0 | I230: 0
A231: Agronom | C231: 0 | D231: 0 | E231: 0 | F231: 0 | G231: 0.9998128859 | I231: 0.9998128859
A232: Landsk. Arkt. | C232: 0 | D232: 0 | E232: 0 | F232: 0 | G232: 0 | I232: 0
A233: Hortonom | C233: 0 | D233: 0 | E233: 0 | F233: 0 | G233: 0 | I233: 0
A234: Forstkand. | C234: 0 | D234: 0 | E234: 0 | F234: 0 | G234: 0 | I234: 0
A235: Jordbrugsakad. | C235: 0 | D235: 0 | E235: 0 | F235: 0 | G235: 0.9998128859 | I235: 0.9998128859
A236: Mejeriing. | C236: 0 | D236: 0 | E236: 0 | F236: 0 | G236: 0 | I236: 0
A237: Levn.m.kand. | C237: 0 | D237: 0 | E237: 0 | F237: 0 | G237: 0 | I237: 0
A238: Dyrlæge | C238: 0 | D238: 0 | E238: 0 | F238: 0 | G238: 0 | I238: 0
A239: Farmaceut | C239: 0 | D239: 0 | E239: 0 | F239: 0 | G239: 0 | I239: 0
A240: Læge | C240: 0 | D240: 1.999625772 | E240: 0 | F240: 0 | G240: 0 | I240: 1.999625772
A241: Tandlæge | C241: 0 | D241: 0 | E241: 0 | F241: 0 | G241: 0 | I241: 0
A242: Arkitekt | C242: 0 | D242: 0.9536580802 | E242: 0.1627892472 | F242: 0 | G242: 0 | I242: 1.116447327
A243: Landinspek. | C243: 0 | D243: 0 | E243: 0 | F243: 0 | G243: 0 | I243: 0
... 329 more rows

Sheet Tabel 4P ØJ
A1: Tabel 4. Ledighedsberørte - aldersfordelt
A3: Østjylland
C5: Under 30 år | D5: 30 - 39 år | E5: 40 - 49 år | F5: 50 - 59 år | G5: Over 60 år | I5: I alt
A7: Civ. ing. | C7: =IF(OR('Tabel 4F ØJ'!C7<5,'Tabel 4 ØJ'!C7<0.5),"-",IFERROR('Tabel 4 ØJ'!C7/'Tabel 4F ØJ'!C7*100,"-")) -> 6.900328587 | D7: =IF(OR('Tabel 4F ØJ'!D7<5,'Tabel 4 ØJ'!D7<0.5),"-",IFERROR('Tabel 4 ØJ'!D7/'Tabel 4F ØJ'!D7*100,"-")) -> 1.109165207 | E7: =IF(OR('Tabel 4F ØJ'!E7<5,'Tabel 4 ØJ'!E7<0.5),"-",IFERROR('Tabel 4 ØJ'!E7/'Tabel 4F ØJ'!E7*100,"-")) -> 0.7070707071 | F7: =IF(OR('Tabel 4F ØJ'!F7<5,'Tabel 4 ØJ'!F7<0.5),"-",IFERROR('Tabel 4 ØJ'!F7/'Tabel 4F ØJ'!F7*100,"-")) -> 0.8658008658 | G7: =IF(OR('Tabel 4F ØJ'!G7<5,'Tabel 4 ØJ'!G7<0.5),"-",IFERROR('Tabel 4 ØJ'!G7/'Tabel 4F ØJ'!G7*100,"-")) -> 2 | I7: =IF(OR('Tabel 4F ØJ'!I7<5,'Tabel 4 ØJ'!I7<0.5),"-",IFERROR('Tabel 4 ØJ'!I7/'Tabel 4F ØJ'!I7*100,"-")) -> 2.195608782
A8: Diplom ing. | C8: =IF(OR('Tabel 4F ØJ'!C8<5,'Tabel 4 ØJ'!C8<0.5),"-",IFERROR('Tabel 4 ØJ'!C8/'Tabel 4F ØJ'!C8*100,"-")) -> 7.220573689 | D8: =IF(OR('Tabel 4F ØJ'!D8<5,'Tabel 4 ØJ'!D8<0.5),"-",IFERROR('Tabel 4 ØJ'!D8/'Tabel 4F ØJ'!D8*100,"-")) -> 2.640487475 | E8: =IF(OR('Tabel 4F ØJ'!E8<5,'Tabel 4 ØJ'!E8<0.5),"-",IFERROR('Tabel 4 ØJ'!E8/'Tabel 4F ØJ'!E8*100,"-")) -> 0.9329446064 | F8: =IF(OR('Tabel 4F ØJ'!F8<5,'Tabel 4 ØJ'!F8<0.5),"-",IFERROR('Tabel 4 ØJ'!F8/'Tabel 4F ØJ'!F8*100,"-")) -> 0.9519276535 | G8: =IF(OR('Tabel 4F ØJ'!G8<5,'Tabel 4 ØJ'!G8<0.5),"-",IFERROR('Tabel 4 ØJ'!G8/'Tabel 4F ØJ'!G8*100,"-")) -> 3.13549832 | I8: =IF(OR('Tabel 4F ØJ'!I8<5,'Tabel 4 ØJ'!I8<0.5),"-",IFERROR('Tabel 4 ØJ'!I8/'Tabel 4F ØJ'!I8*100,"-")) -> 2.445463388
A9: Cand. Scient. Tek | C9: =IF(OR('Tabel 4F ØJ'!C9<5,'Tabel 4 ØJ'!C9<0.5),"-",IFERROR('Tabel 4 ØJ'!C9/'Tabel 4F ØJ'!C9*100,"-")) -> 10.09564293 | D9: =IF(OR('Tabel 4F ØJ'!D9<5,'Tabel 4 ØJ'!D9<0.5),"-",IFERROR('Tabel 4 ØJ'!D9/'Tabel 4F ØJ'!D9*100,"-")) -> 5.323411563 | E9: =IF(OR('Tabel 4F ØJ'!E9<5,'Tabel 4 ØJ'!E9<0.5),"-",IFERROR('Tabel 4 ØJ'!E9/'Tabel 4F ØJ'!E9*100,"-")) -> 2.222222222 | F9: =IF(OR('Tabel 4F ØJ'!F9<5,'Tabel 4 ØJ'!F9<0.5),"-",IFERROR('Tabel 4 ØJ'!F9/'Tabel 4F ØJ'!F9*100,"-")) -> 2.23880597 | G9: =IF(OR('Tabel 4F ØJ'!G9<5,'Tabel 4 ØJ'!G9<0.5),"-",IFERROR('Tabel 4 ØJ'!G9/'Tabel 4F ØJ'!G9*100,"-")) -> 4.347826087 | I9: =IF(OR('Tabel 4F ØJ'!I9<5,'Tabel 4 ØJ'!I9<0.5),"-",IFERROR('Tabel 4 ØJ'!I9/'Tabel 4F ØJ'!I9*100,"-")) -> 6.130500759
A10: MA. Hum. | C10: =IF(OR('Tabel 4F ØJ'!C10<5,'Tabel 4 ØJ'!C10<0.5),"-",IFERROR('Tabel 4 ØJ'!C10/'Tabel 4F ØJ'!C10*100,"-")) -> 22.24919094 | D10: =IF(OR('Tabel 4F ØJ'!D10<5,'Tabel 4 ØJ'!D10<0.5),"-",IFERROR('Tabel 4 ØJ'!D10/'Tabel 4F ØJ'!D10*100,"-")) -> 10.18107277 | E10: =IF(OR('Tabel 4F ØJ'!E10<5,'Tabel 4 ØJ'!E10<0.5),"-",IFERROR('Tabel 4 ØJ'!E10/'Tabel 4F ØJ'!E10*100,"-")) -> 3.733333333 | F10: =IF(OR('Tabel 4F ØJ'!F10<5,'Tabel 4 ØJ'!F10<0.5),"-",IFERROR('Tabel 4 ØJ'!F10/'Tabel 4F ØJ'!F10*100,"-")) -> 3.61952862 | G10: =IF(OR('Tabel 4F ØJ'!G10<5,'Tabel 4 ØJ'!G10<0.5),"-",IFERROR('Tabel 4 ØJ'!G10/'Tabel 4F ØJ'!G10*100,"-")) -> 6.597938144 | I10: =IF(OR('Tabel 4F ØJ'!I10<5,'Tabel 4 ØJ'!I10<0.5),"-",IFERROR('Tabel 4 ØJ'!I10/'Tabel 4F ØJ'!I10*100,"-")) -> 8.816924713
A11: MA. Nat. | C11: =IF(OR('Tabel 4F ØJ'!C11<5,'Tabel 4 ØJ'!C11<0.5),"-",IFERROR('Tabel 4 ØJ'!C11/'Tabel 4F ØJ'!C11*100,"-")) -> 12.90322581 | D11: =IF(OR('Tabel 4F ØJ'!D11<5,'Tabel 4 ØJ'!D11<0.5),"-",IFERROR('Tabel 4 ØJ'!D11/'Tabel 4F ØJ'!D11*100,"-")) -> 4.006410256 | E11: =IF(OR('Tabel 4F ØJ'!E11<5,'Tabel 4 ØJ'!E11<0.5),"-",IFERROR('Tabel 4 ØJ'!E11/'Tabel 4F ØJ'!E11*100,"-")) -> 1.435406699 | F11: =IF(OR('Tabel 4F ØJ'!F11<5,'Tabel 4 ØJ'!F11<0.5),"-",IFERROR('Tabel 4 ØJ'!F11/'Tabel 4F ØJ'!F11*100,"-")) -> 1.090909091 | G11: =IF(OR('Tabel 4F ØJ'!G11<5,'Tabel 4 ØJ'!G11<0.5),"-",IFERROR('Tabel 4 ØJ'!G11/'Tabel 4F ØJ'!G11*100,"-")) -> 3.661971831 | I11: =IF(OR('Tabel 4F ØJ'!I11<5,'Tabel 4 ØJ'!I11<0.5),"-",IFERROR('Tabel 4 ØJ'!I11/'Tabel 4F ØJ'!I11*100,"-")) -> 3.254539226
A12: MA. Ph.d. | C12: =IF(OR('Tabel 4F ØJ'!C12<5,'Tabel 4 ØJ'!C12<0.5),"-",IFERROR('Tabel 4 ØJ'!C12/'Tabel 4F ØJ'!C12*100,"-")) -> - | D12: =IF(OR('Tabel 4F ØJ'!D12<5,'Tabel 4 ØJ'!D12<0.5),"-",IFERROR('Tabel 4 ØJ'!D12/'Tabel 4F ØJ'!D12*100,"-")) -> 3.93258427 | E12: =IF(OR('Tabel 4F ØJ'!E12<5,'Tabel 4 ØJ'!E12<0.5),"-",IFERROR('Tabel 4 ØJ'!E12/'Tabel 4F ØJ'!E12*100,"-")) -> 2.127659574 | F12: =IF(OR('Tabel 4F ØJ'!F12<5,'Tabel 4 ØJ'!F12<0.5),"-",IFERROR('Tabel 4 ØJ'!F12/'Tabel 4F ØJ'!F12*100,"-")) -> 1.538461538 | G12: =IF(OR('Tabel 4F ØJ'!G12<5,'Tabel 4 ØJ'!G12<0.5),"-",IFERROR('Tabel 4 ØJ'!G12/'Tabel 4F ØJ'!G12*100,"-")) -> 9.677419355 | I12: =IF(OR('Tabel 4F ØJ'!I12<5,'Tabel 4 ØJ'!I12<0.5),"-",IFERROR('Tabel 4 ØJ'!I12/'Tabel 4F ØJ'!I12*100,"-")) -> 2.901023891
A13: MA. Samf. | C13: =IF(OR('Tabel 4F ØJ'!C13<5,'Tabel 4 ØJ'!C13<0.5),"-",IFERROR('Tabel 4 ØJ'!C13/'Tabel 4F ØJ'!C13*100,"-")) -> 18.75 | D13: =IF(OR('Tabel 4F ØJ'!D13<5,'Tabel 4 ØJ'!D13<0.5),"-",IFERROR('Tabel 4 ØJ'!D13/'Tabel 4F ØJ'!D13*100,"-")) -> 9.792843691 | E13: =IF(OR('Tabel 4F ØJ'!E13<5,'Tabel 4 ØJ'!E13<0.5),"-",IFERROR('Tabel 4 ØJ'!E13/'Tabel 4F ØJ'!E13*100,"-")) -> 6.349206349 | F13: =IF(OR('Tabel 4F ØJ'!F13<5,'Tabel 4 ØJ'!F13<0.5),"-",IFERROR('Tabel 4 ØJ'!F13/'Tabel 4F ØJ'!F13*100,"-")) -> - | G13: =IF(OR('Tabel 4F ØJ'!G13<5,'Tabel 4 ØJ'!G13<0.5),"-",IFERROR('Tabel 4 ØJ'!G13/'Tabel 4F ØJ'!G13*100,"-")) -> - | I13: =IF(OR('Tabel 4F ØJ'!I13<5,'Tabel 4 ØJ'!I13<0.5),"-",IFERROR('Tabel 4 ØJ'!I13/'Tabel 4F ØJ'!I13*100,"-")) -> 11.80476731
A14: Øvrige Mag. | C14: =IF(OR('Tabel 4F ØJ'!C14<5,'Tabel 4 ØJ'!C14<0.5),"-",IFERROR('Tabel 4 ØJ'!C14/'Tabel 4F ØJ'!C14*100,"-")) -> 26.1682243 | D14: =IF(OR('Tabel 4F ØJ'!D14<5,'Tabel 4 ØJ'!D14<0.5),"-",IFERROR('Tabel 4 ØJ'!D14/'Tabel 4F ØJ'!D14*100,"-")) -> 13.38028169 | E14: =IF(OR('Tabel 4F ØJ'!E14<5,'Tabel 4 ØJ'!E14<0.5),"-",IFERROR('Tabel 4 ØJ'!E14/'Tabel 4F ØJ'!E14*100,"-")) -> 3.267973856 | F14: =IF(OR('Tabel 4F ØJ'!F14<5,'Tabel 4 ØJ'!F14<0.5),"-",IFERROR('Tabel 4 ØJ'!F14/'Tabel 4F ØJ'!F14*100,"-")) -> 4 | G14: =IF(OR('Tabel 4F ØJ'!G14<5,'Tabel 4 ØJ'!G14<0.5),"-",IFERROR('Tabel 4 ØJ'!G14/'Tabel 4F ØJ'!G14*100,"-")) -> 1.234567901 | I14: =IF(OR('Tabel 4F ØJ'!I14<5,'Tabel 4 ØJ'!I14<0.5),"-",IFERROR('Tabel 4 ØJ'!I14/'Tabel 4F ØJ'!I14*100,"-")) -> 9.320695103
A15: Agronom | C15: =IF(OR('Tabel 4F ØJ'!C15<5,'Tabel 4 ØJ'!C15<0.5),"-",IFERROR('Tabel 4 ØJ'!C15/'Tabel 4F ØJ'!C15*100,"-")) -> - | D15: =IF(OR('Tabel 4F ØJ'!D15<5,'Tabel 4 ØJ'!D15<0.5),"-",IFERROR('Tabel 4 ØJ'!D15/'Tabel 4F ØJ'!D15*100,"-")) -> 5.405405405 | E15: =IF(OR('Tabel 4F ØJ'!E15<5,'Tabel 4 ØJ'!E15<0.5),"-",IFERROR('Tabel 4 ØJ'!E15/'Tabel 4F ØJ'!E15*100,"-")) -> 1.351351351 | F15: =IF(OR('Tabel 4F ØJ'!F15<5,'Tabel 4 ØJ'!F15<0.5),"-",IFERROR('Tabel 4 ØJ'!F15/'Tabel 4F ØJ'!F15*100,"-")) -> - | G15: =IF(OR('Tabel 4F ØJ'!G15<5,'Tabel 4 ØJ'!G15<0.5),"-",IFERROR('Tabel 4 ØJ'!G15/'Tabel 4F ØJ'!G15*100,"-")) -> 3.614457831 | I15: =IF(OR('Tabel 4F ØJ'!I15<5,'Tabel 4 ØJ'!I15<0.5),"-",IFERROR('Tabel 4 ØJ'!I15/'Tabel 4F ØJ'!I15*100,"-")) -> 1.791044776
A16: Landsk. Arkt. | C16: =IF(OR('Tabel 4F ØJ'!C16<5,'Tabel 4 ØJ'!C16<0.5),"-",IFERROR('Tabel 4 ØJ'!C16/'Tabel 4F ØJ'!C16*100,"-")) -> - | D16: =IF(OR('Tabel 4F ØJ'!D16<5,'Tabel 4 ØJ'!D16<0.5),"-",IFERROR('Tabel 4 ØJ'!D16/'Tabel 4F ØJ'!D16*100,"-")) -> - | E16: =IF(OR('Tabel 4F ØJ'!E16<5,'Tabel 4 ØJ'!E16<0.5),"-",IFERROR('Tabel 4 ØJ'!E16/'Tabel 4F ØJ'!E16*100,"-")) -> 5.555555556 | F16: =IF(OR('Tabel 4F ØJ'!F16<5,'Tabel 4 ØJ'!F16<0.5),"-",IFERROR('Tabel 4 ØJ'!F16/'Tabel 4F ØJ'!F16*100,"-")) -> - | G16: =IF(OR('Tabel 4F ØJ'!G16<5,'Tabel 4 ØJ'!G16<0.5),"-",IFERROR('Tabel 4 ØJ'!G16/'Tabel 4F ØJ'!G16*100,"-")) -> - | I16: =IF(OR('Tabel 4F ØJ'!I16<5,'Tabel 4 ØJ'!I16<0.5),"-",IFERROR('Tabel 4 ØJ'!I16/'Tabel 4F ØJ'!I16*100,"-")) -> 2.43902439
A17: Hortonom | C17: =IF(OR('Tabel 4F ØJ'!C17<5,'Tabel 4 ØJ'!C17<0.5),"-",IFERROR('Tabel 4 ØJ'!C17/'Tabel 4F ØJ'!C17*100,"-")) -> - | D17: =IF(OR('Tabel 4F ØJ'!D17<5,'Tabel 4 ØJ'!D17<0.5),"-",IFERROR('Tabel 4 ØJ'!D17/'Tabel 4F ØJ'!D17*100,"-")) -> - | E17: =IF(OR('Tabel 4F ØJ'!E17<5,'Tabel 4 ØJ'!E17<0.5),"-",IFERROR('Tabel 4 ØJ'!E17/'Tabel 4F ØJ'!E17*100,"-")) -> - | F17: =IF(OR('Tabel 4F ØJ'!F17<5,'Tabel 4 ØJ'!F17<0.5),"-",IFERROR('Tabel 4 ØJ'!F17/'Tabel 4F ØJ'!F17*100,"-")) -> - | G17: =IF(OR('Tabel 4F ØJ'!G17<5,'Tabel 4 ØJ'!G17<0.5),"-",IFERROR('Tabel 4 ØJ'!G17/'Tabel 4F ØJ'!G17*100,"-")) -> 14.28571429 | I17: =IF(OR('Tabel 4F ØJ'!I17<5,'Tabel 4 ØJ'!I17<0.5),"-",IFERROR('Tabel 4 ØJ'!I17/'Tabel 4F ØJ'!I17*100,"-")) -> 3.846153846
A18: Forstkand. | C18: =IF(OR('Tabel 4F ØJ'!C18<5,'Tabel 4 ØJ'!C18<0.5),"-",IFERROR('Tabel 4 ØJ'!C18/'Tabel 4F ØJ'!C18*100,"-")) -> - | D18: =IF(OR('Tabel 4F ØJ'!D18<5,'Tabel 4 ØJ'!D18<0.5),"-",IFERROR('Tabel 4 ØJ'!D18/'Tabel 4F ØJ'!D18*100,"-")) -> - | E18: =IF(OR('Tabel 4F ØJ'!E18<5,'Tabel 4 ØJ'!E18<0.5),"-",IFERROR('Tabel 4 ØJ'!E18/'Tabel 4F ØJ'!E18*100,"-")) -> 4.347826087 | F18: =IF(OR('Tabel 4F ØJ'!F18<5,'Tabel 4 ØJ'!F18<0.5),"-",IFERROR('Tabel 4 ØJ'!F18/'Tabel 4F ØJ'!F18*100,"-")) -> - | G18: =IF(OR('Tabel 4F ØJ'!G18<5,'Tabel 4 ØJ'!G18<0.5),"-",IFERROR('Tabel 4 ØJ'!G18/'Tabel 4F ØJ'!G18*100,"-")) -> 11.11111111 | I18: =IF(OR('Tabel 4F ØJ'!I18<5,'Tabel 4 ØJ'!I18<0.5),"-",IFERROR('Tabel 4 ØJ'!I18/'Tabel 4F ØJ'!I18*100,"-")) -> 3.773584906
A19: Jordbrugsakad. | C19: =IF(OR('Tabel 4F ØJ'!C19<5,'Tabel 4 ØJ'!C19<0.5),"-",IFERROR('Tabel 4 ØJ'!C19/'Tabel 4F ØJ'!C19*100,"-")) -> - | D19: =IF(OR('Tabel 4F ØJ'!D19<5,'Tabel 4 ØJ'!D19<0.5),"-",IFERROR('Tabel 4 ØJ'!D19/'Tabel 4F ØJ'!D19*100,"-")) -> 3.448275862 | E19: =IF(OR('Tabel 4F ØJ'!E19<5,'Tabel 4 ØJ'!E19<0.5),"-",IFERROR('Tabel 4 ØJ'!E19/'Tabel 4F ØJ'!E19*100,"-")) -> 2.479338843 | F19: =IF(OR('Tabel 4F ØJ'!F19<5,'Tabel 4 ØJ'!F19<0.5),"-",IFERROR('Tabel 4 ØJ'!F19/'Tabel 4F ØJ'!F19*100,"-")) -> - | G19: =IF(OR('Tabel 4F ØJ'!G19<5,'Tabel 4 ØJ'!G19<0.5),"-",IFERROR('Tabel 4 ØJ'!G19/'Tabel 4F ØJ'!G19*100,"-")) -> 5 | I19: =IF(OR('Tabel 4F ØJ'!I19<5,'Tabel 4 ØJ'!I19<0.5),"-",IFERROR('Tabel 4 ØJ'!I19/'Tabel 4F ØJ'!I19*100,"-")) -> 2.197802198
A20: Mejeriing. | C20: =IF(OR('Tabel 4F ØJ'!C20<5,'Tabel 4 ØJ'!C20<0.5),"-",IFERROR('Tabel 4 ØJ'!C20/'Tabel 4F ØJ'!C20*100,"-")) -> - | D20: =IF(OR('Tabel 4F ØJ'!D20<5,'Tabel 4 ØJ'!D20<0.5),"-",IFERROR('Tabel 4 ØJ'!D20/'Tabel 4F ØJ'!D20*100,"-")) -> - | E20: =IF(OR('Tabel 4F ØJ'!E20<5,'Tabel 4 ØJ'!E20<0.5),"-",IFERROR('Tabel 4 ØJ'!E20/'Tabel 4F ØJ'!E20*100,"-")) -> - | F20: =IF(OR('Tabel 4F ØJ'!F20<5,'Tabel 4 ØJ'!F20<0.5),"-",IFERROR('Tabel 4 ØJ'!F20/'Tabel 4F ØJ'!F20*100,"-")) -> 2.631578947 | G20: =IF(OR('Tabel 4F ØJ'!G20<5,'Tabel 4 ØJ'!G20<0.5),"-",IFERROR('Tabel 4 ØJ'!G20/'Tabel 4F ØJ'!G20*100,"-")) -> 4.347826087 | I20: =IF(OR('Tabel 4F ØJ'!I20<5,'Tabel 4 ØJ'!I20<0.5),"-",IFERROR('Tabel 4 ØJ'!I20/'Tabel 4F ØJ'!I20*100,"-")) -> 2.272727273
A21: Levn.m.kand. | C21: =IF(OR('Tabel 4F ØJ'!C21<5,'Tabel 4 ØJ'!C21<0.5),"-",IFERROR('Tabel 4 ØJ'!C21/'Tabel 4F ØJ'!C21*100,"-")) -> - | D21: =IF(OR('Tabel 4F ØJ'!D21<5,'Tabel 4 ØJ'!D21<0.5),"-",IFERROR('Tabel 4 ØJ'!D21/'Tabel 4F ØJ'!D21*100,"-")) -> 5.263157895 | E21: =IF(OR('Tabel 4F ØJ'!E21<5,'Tabel 4 ØJ'!E21<0.5),"-",IFERROR('Tabel 4 ØJ'!E21/'Tabel 4F ØJ'!E21*100,"-")) -> - | F21: =IF(OR('Tabel 4F ØJ'!F21<5,'Tabel 4 ØJ'!F21<0.5),"-",IFERROR('Tabel 4 ØJ'!F21/'Tabel 4F ØJ'!F21*100,"-")) -> - | G21: =IF(OR('Tabel 4F ØJ'!G21<5,'Tabel 4 ØJ'!G21<0.5),"-",IFERROR('Tabel 4 ØJ'!G21/'Tabel 4F ØJ'!G21*100,"-")) -> - | I21: =IF(OR('Tabel 4F ØJ'!I21<5,'Tabel 4 ØJ'!I21<0.5),"-",IFERROR('Tabel 4 ØJ'!I21/'Tabel 4F ØJ'!I21*100,"-")) -> 5.882352941
A22: Dyrlæge | C22: =IF(OR('Tabel 4F ØJ'!C22<5,'Tabel 4 ØJ'!C22<0.5),"-",IFERROR('Tabel 4 ØJ'!C22/'Tabel 4F ØJ'!C22*100,"-")) -> - | D22: =IF(OR('Tabel 4F ØJ'!D22<5,'Tabel 4 ØJ'!D22<0.5),"-",IFERROR('Tabel 4 ØJ'!D22/'Tabel 4F ØJ'!D22*100,"-")) -> 1.098901099 | E22: =IF(OR('Tabel 4F ØJ'!E22<5,'Tabel 4 ØJ'!E22<0.5),"-",IFERROR('Tabel 4 ØJ'!E22/'Tabel 4F ØJ'!E22*100,"-")) -> - | F22: =IF(OR('Tabel 4F ØJ'!F22<5,'Tabel 4 ØJ'!F22<0.5),"-",IFERROR('Tabel 4 ØJ'!F22/'Tabel 4F ØJ'!F22*100,"-")) -> - | G22: =IF(OR('Tabel 4F ØJ'!G22<5,'Tabel 4 ØJ'!G22<0.5),"-",IFERROR('Tabel 4 ØJ'!G22/'Tabel 4F ØJ'!G22*100,"-")) -> - | I22: =IF(OR('Tabel 4F ØJ'!I22<5,'Tabel 4 ØJ'!I22<0.5),"-",IFERROR('Tabel 4 ØJ'!I22/'Tabel 4F ØJ'!I22*100,"-")) -> 0.4081632653
A23: Farmaceut | C23: =IF(OR('Tabel 4F ØJ'!C23<5,'Tabel 4 ØJ'!C23<0.5),"-",IFERROR('Tabel 4 ØJ'!C23/'Tabel 4F ØJ'!C23*100,"-")) -> 10.81081081 | D23: =IF(OR('Tabel 4F ØJ'!D23<5,'Tabel 4 ØJ'!D23<0.5),"-",IFERROR('Tabel 4 ØJ'!D23/'Tabel 4F ØJ'!D23*100,"-")) -> 9.285714286 | E23: =IF(OR('Tabel 4F ØJ'!E23<5,'Tabel 4 ØJ'!E23<0.5),"-",IFERROR('Tabel 4 ØJ'!E23/'Tabel 4F ØJ'!E23*100,"-")) -> 2.173913043 | F23: =IF(OR('Tabel 4F ØJ'!F23<5,'Tabel 4 ØJ'!F23<0.5),"-",IFERROR('Tabel 4 ØJ'!F23/'Tabel 4F ØJ'!F23*100,"-")) -> - | G23: =IF(OR('Tabel 4F ØJ'!G23<5,'Tabel 4 ØJ'!G23<0.5),"-",IFERROR('Tabel 4 ØJ'!G23/'Tabel 4F ØJ'!G23*100,"-")) -> - | I23: =IF(OR('Tabel 4F ØJ'!I23<5,'Tabel 4 ØJ'!I23<0.5),"-",IFERROR('Tabel 4 ØJ'!I23/'Tabel 4F ØJ'!I23*100,"-")) -> 7.222222222
A24: Læge | C24: =IF(OR('Tabel 4F ØJ'!C24<5,'Tabel 4 ØJ'!C24<0.5),"-",IFERROR('Tabel 4 ØJ'!C24/'Tabel 4F ØJ'!C24*100,"-")) -> 6.967213115 | D24: =IF(OR('Tabel 4F ØJ'!D24<5,'Tabel 4 ØJ'!D24<0.5),"-",IFERROR('Tabel 4 ØJ'!D24/'Tabel 4F ØJ'!D24*100,"-")) -> 2.354788069 | E24: =IF(OR('Tabel 4F ØJ'!E24<5,'Tabel 4 ØJ'!E24<0.5),"-",IFERROR('Tabel 4 ØJ'!E24/'Tabel 4F ØJ'!E24*100,"-")) -> - | F24: =IF(OR('Tabel 4F ØJ'!F24<5,'Tabel 4 ØJ'!F24<0.5),"-",IFERROR('Tabel 4 ØJ'!F24/'Tabel 4F ØJ'!F24*100,"-")) -> 0.3412969283 | G24: =IF(OR('Tabel 4F ØJ'!G24<5,'Tabel 4 ØJ'!G24<0.5),"-",IFERROR('Tabel 4 ØJ'!G24/'Tabel 4F ØJ'!G24*100,"-")) -> 0.5917159763 | I24: =IF(OR('Tabel 4F ØJ'!I24<5,'Tabel 4 ØJ'!I24<0.5),"-",IFERROR('Tabel 4 ØJ'!I24/'Tabel 4F ØJ'!I24*100,"-")) -> 2.405247813
A25: Tandlæge | C25: =IF(OR('Tabel 4F ØJ'!C25<5,'Tabel 4 ØJ'!C25<0.5),"-",IFERROR('Tabel 4 ØJ'!C25/'Tabel 4F ØJ'!C25*100,"-")) -> 2.5 | D25: =IF(OR('Tabel 4F ØJ'!D25<5,'Tabel 4 ØJ'!D25<0.5),"-",IFERROR('Tabel 4 ØJ'!D25/'Tabel 4F ØJ'!D25*100,"-")) -> 1.265822785 | E25: =IF(OR('Tabel 4F ØJ'!E25<5,'Tabel 4 ØJ'!E25<0.5),"-",IFERROR('Tabel 4 ØJ'!E25/'Tabel 4F ØJ'!E25*100,"-")) -> - | F25: =IF(OR('Tabel 4F ØJ'!F25<5,'Tabel 4 ØJ'!F25<0.5),"-",IFERROR('Tabel 4 ØJ'!F25/'Tabel 4F ØJ'!F25*100,"-")) -> - | G25: =IF(OR('Tabel 4F ØJ'!G25<5,'Tabel 4 ØJ'!G25<0.5),"-",IFERROR('Tabel 4 ØJ'!G25/'Tabel 4F ØJ'!G25*100,"-")) -> - | I25: =IF(OR('Tabel 4F ØJ'!I25<5,'Tabel 4 ØJ'!I25<0.5),"-",IFERROR('Tabel 4 ØJ'!I25/'Tabel 4F ØJ'!I25*100,"-")) -> 0.8421052632
A26: Arkitekt | C26: =IF(OR('Tabel 4F ØJ'!C26<5,'Tabel 4 ØJ'!C26<0.5),"-",IFERROR('Tabel 4 ØJ'!C26/'Tabel 4F ØJ'!C26*100,"-")) -> 24.63768116 | D26: =IF(OR('Tabel 4F ØJ'!D26<5,'Tabel 4 ØJ'!D26<0.5),"-",IFERROR('Tabel 4 ØJ'!D26/'Tabel 4F ØJ'!D26*100,"-")) -> 5.309734513 | E26: =IF(OR('Tabel 4F ØJ'!E26<5,'Tabel 4 ØJ'!E26<0.5),"-",IFERROR('Tabel 4 ØJ'!E26/'Tabel 4F ØJ'!E26*100,"-")) -> 1.904761905 | F26: =IF(OR('Tabel 4F ØJ'!F26<5,'Tabel 4 ØJ'!F26<0.5),"-",IFERROR('Tabel 4 ØJ'!F26/'Tabel 4F ØJ'!F26*100,"-")) -> 2.888086643 | G26: =IF(OR('Tabel 4F ØJ'!G26<5,'Tabel 4 ØJ'!G26<0.5),"-",IFERROR('Tabel 4 ØJ'!G26/'Tabel 4F ØJ'!G26*100,"-")) -> 6.060606061 | I26: =IF(OR('Tabel 4F ØJ'!I26<5,'Tabel 4 ØJ'!I26<0.5),"-",IFERROR('Tabel 4 ØJ'!I26/'Tabel 4F ØJ'!I26*100,"-")) -> 5.523442518
A27: Landinspek. | C27: =IF(OR('Tabel 4F ØJ'!C27<5,'Tabel 4 ØJ'!C27<0.5),"-",IFERROR('Tabel 4 ØJ'!C27/'Tabel 4F ØJ'!C27*100,"-")) -> - | D27: =IF(OR('Tabel 4F ØJ'!D27<5,'Tabel 4 ØJ'!D27<0.5),"-",IFERROR('Tabel 4 ØJ'!D27/'Tabel 4F ØJ'!D27*100,"-")) -> - | E27: =IF(OR('Tabel 4F ØJ'!E27<5,'Tabel 4 ØJ'!E27<0.5),"-",IFERROR('Tabel 4 ØJ'!E27/'Tabel 4F ØJ'!E27*100,"-")) -> - | F27: =IF(OR('Tabel 4F ØJ'!F27<5,'Tabel 4 ØJ'!F27<0.5),"-",IFERROR('Tabel 4 ØJ'!F27/'Tabel 4F ØJ'!F27*100,"-")) -> - | G27: =IF(OR('Tabel 4F ØJ'!G27<5,'Tabel 4 ØJ'!G27<0.5),"-",IFERROR('Tabel 4 ØJ'!G27/'Tabel 4F ØJ'!G27*100,"-")) -> - | I27: =IF(OR('Tabel 4F ØJ'!I27<5,'Tabel 4 ØJ'!I27<0.5),"-",IFERROR('Tabel 4 ØJ'!I27/'Tabel 4F ØJ'!I27*100,"-")) -> -
A28: Bibliotekar | C28: =IF(OR('Tabel 4F ØJ'!C28<5,'Tabel 4 ØJ'!C28<0.5),"-",IFERROR('Tabel 4 ØJ'!C28/'Tabel 4F ØJ'!C28*100,"-")) -> - | D28: =IF(OR('Tabel 4F ØJ'!D28<5,'Tabel 4 ØJ'!D28<0.5),"-",IFERROR('Tabel 4 ØJ'!D28/'Tabel 4F ØJ'!D28*100,"-")) -> 6.756756757 | E28: =IF(OR('Tabel 4F ØJ'!E28<5,'Tabel 4 ØJ'!E28<0.5),"-",IFERROR('Tabel 4 ØJ'!E28/'Tabel 4F ØJ'!E28*100,"-")) -> 3.539823009 | F28: =IF(OR('Tabel 4F ØJ'!F28<5,'Tabel 4 ØJ'!F28<0.5),"-",IFERROR('Tabel 4 ØJ'!F28/'Tabel 4F ØJ'!F28*100,"-")) -> 1.075268817 | G28: =IF(OR('Tabel 4F ØJ'!G28<5,'Tabel 4 ØJ'!G28<0.5),"-",IFERROR('Tabel 4 ØJ'!G28/'Tabel 4F ØJ'!G28*100,"-")) -> 1.754385965 | I28: =IF(OR('Tabel 4F ØJ'!I28<5,'Tabel 4 ØJ'!I28<0.5),"-",IFERROR('Tabel 4 ØJ'!I28/'Tabel 4F ØJ'!I28*100,"-")) -> 3.225806452
A29: Musikudd. | C29: =IF(OR('Tabel 4F ØJ'!C29<5,'Tabel 4 ØJ'!C29<0.5),"-",IFERROR('Tabel 4 ØJ'!C29/'Tabel 4F ØJ'!C29*100,"-")) -> 20 | D29: =IF(OR('Tabel 4F ØJ'!D29<5,'Tabel 4 ØJ'!D29<0.5),"-",IFERROR('Tabel 4 ØJ'!D29/'Tabel 4F ØJ'!D29*100,"-")) -> - | E29: =IF(OR('Tabel 4F ØJ'!E29<5,'Tabel 4 ØJ'!E29<0.5),"-",IFERROR('Tabel 4 ØJ'!E29/'Tabel 4F ØJ'!E29*100,"-")) -> 3.448275862 | F29: =IF(OR('Tabel 4F ØJ'!F29<5,'Tabel 4 ØJ'!F29<0.5),"-",IFERROR('Tabel 4 ØJ'!F29/'Tabel 4F ØJ'!F29*100,"-")) -> 3.921568627 | G29: =IF(OR('Tabel 4F ØJ'!G29<5,'Tabel 4 ØJ'!G29<0.5),"-",IFERROR('Tabel 4 ØJ'!G29/'Tabel 4F ØJ'!G29*100,"-")) -> 10 | I29: =IF(OR('Tabel 4F ØJ'!I29<5,'Tabel 4 ØJ'!I29<0.5),"-",IFERROR('Tabel 4 ØJ'!I29/'Tabel 4F ØJ'!I29*100,"-")) -> 5.633802817
A30: Teolog | C30: =IF(OR('Tabel 4F ØJ'!C30<5,'Tabel 4 ØJ'!C30<0.5),"-",IFERROR('Tabel 4 ØJ'!C30/'Tabel 4F ØJ'!C30*100,"-")) -> 33.33333333 | D30: =IF(OR('Tabel 4F ØJ'!D30<5,'Tabel 4 ØJ'!D30<0.5),"-",IFERROR('Tabel 4 ØJ'!D30/'Tabel 4F ØJ'!D30*100,"-")) -> 5.555555556 | E30: =IF(OR('Tabel 4F ØJ'!E30<5,'Tabel 4 ØJ'!E30<0.5),"-",IFERROR('Tabel 4 ØJ'!E30/'Tabel 4F ØJ'!E30*100,"-")) -> 0.8849557522 | F30: =IF(OR('Tabel 4F ØJ'!F30<5,'Tabel 4 ØJ'!F30<0.5),"-",IFERROR('Tabel 4 ØJ'!F30/'Tabel 4F ØJ'!F30*100,"-")) -> 4.901960784 | G30: =IF(OR('Tabel 4F ØJ'!G30<5,'Tabel 4 ØJ'!G30<0.5),"-",IFERROR('Tabel 4 ØJ'!G30/'Tabel 4F ØJ'!G30*100,"-")) -> - | I30: =IF(OR('Tabel 4F ØJ'!I30<5,'Tabel 4 ØJ'!I30<0.5),"-",IFERROR('Tabel 4 ØJ'!I30/'Tabel 4F ØJ'!I30*100,"-")) -> 4.587155963
A31: Psykolog | C31: =IF(OR('Tabel 4F ØJ'!C31<5,'Tabel 4 ØJ'!C31<0.5),"-",IFERROR('Tabel 4 ØJ'!C31/'Tabel 4F ØJ'!C31*100,"-")) -> 11.69916435 | D31: =IF(OR('Tabel 4F ØJ'!D31<5,'Tabel 4 ØJ'!D31<0.5),"-",IFERROR('Tabel 4 ØJ'!D31/'Tabel 4F ØJ'!D31*100,"-")) -> 4.941482445 | E31: =IF(OR('Tabel 4F ØJ'!E31<5,'Tabel 4 ØJ'!E31<0.5),"-",IFERROR('Tabel 4 ØJ'!E31/'Tabel 4F ØJ'!E31*100,"-")) -> 2.419354839 | F31: =IF(OR('Tabel 4F ØJ'!F31<5,'Tabel 4 ØJ'!F31<0.5),"-",IFERROR('Tabel 4 ØJ'!F31/'Tabel 4F ØJ'!F31*100,"-")) -> 1.136363636 | G31: =IF(OR('Tabel 4F ØJ'!G31<5,'Tabel 4 ØJ'!G31<0.5),"-",IFERROR('Tabel 4 ØJ'!G31/'Tabel 4F ØJ'!G31*100,"-")) -> 2.419354839 | I31: =IF(OR('Tabel 4F ØJ'!I31<5,'Tabel 4 ØJ'!I31<0.5),"-",IFERROR('Tabel 4 ØJ'!I31/'Tabel 4F ØJ'!I31*100,"-")) -> 4.870775348
A32: Jurist | C32: =IF(OR('Tabel 4F ØJ'!C32<5,'Tabel 4 ØJ'!C32<0.5),"-",IFERROR('Tabel 4 ØJ'!C32/'Tabel 4F ØJ'!C32*100,"-")) -> 3.542673108 | D32: =IF(OR('Tabel 4F ØJ'!D32<5,'Tabel 4 ØJ'!D32<0.5),"-",IFERROR('Tabel 4 ØJ'!D32/'Tabel 4F ØJ'!D32*100,"-")) -> 1.858304297 | E32: =IF(OR('Tabel 4F ØJ'!E32<5,'Tabel 4 ØJ'!E32<0.5),"-",IFERROR('Tabel 4 ØJ'!E32/'Tabel 4F ØJ'!E32*100,"-")) -> 0.5357142857 | F32: =IF(OR('Tabel 4F ØJ'!F32<5,'Tabel 4 ØJ'!F32<0.5),"-",IFERROR('Tabel 4 ØJ'!F32/'Tabel 4F ØJ'!F32*100,"-")) -> 0.2865329513 | G32: =IF(OR('Tabel 4F ØJ'!G32<5,'Tabel 4 ØJ'!G32<0.5),"-",IFERROR('Tabel 4 ØJ'!G32/'Tabel 4F ØJ'!G32*100,"-")) -> 1.904761905 | I32: =IF(OR('Tabel 4F ØJ'!I32<5,'Tabel 4 ØJ'!I32<0.5),"-",IFERROR('Tabel 4 ØJ'!I32/'Tabel 4F ØJ'!I32*100,"-")) -> 1.762820513
A33: Økonom | C33: =IF(OR('Tabel 4F ØJ'!C33<5,'Tabel 4 ØJ'!C33<0.5),"-",IFERROR('Tabel 4 ØJ'!C33/'Tabel 4F ØJ'!C33*100,"-")) -> 1.901140684 | D33: =IF(OR('Tabel 4F ØJ'!D33<5,'Tabel 4 ØJ'!D33<0.5),"-",IFERROR('Tabel 4 ØJ'!D33/'Tabel 4F ØJ'!D33*100,"-")) -> 1.37254902 | E33: =IF(OR('Tabel 4F ØJ'!E33<5,'Tabel 4 ØJ'!E33<0.5),"-",IFERROR('Tabel 4 ØJ'!E33/'Tabel 4F ØJ'!E33*100,"-")) -> 1.302931596 | F33: =IF(OR('Tabel 4F ØJ'!F33<5,'Tabel 4 ØJ'!F33<0.5),"-",IFERROR('Tabel 4 ØJ'!F33/'Tabel 4F ØJ'!F33*100,"-")) -> 2.711864407 | G33: =IF(OR('Tabel 4F ØJ'!G33<5,'Tabel 4 ØJ'!G33<0.5),"-",IFERROR('Tabel 4 ØJ'!G33/'Tabel 4F ØJ'!G33*100,"-")) -> 1.136363636 | I33: =IF(OR('Tabel 4F ØJ'!I33<5,'Tabel 4 ØJ'!I33<0.5),"-",IFERROR('Tabel 4 ØJ'!I33/'Tabel 4F ØJ'!I33*100,"-")) -> 1.708817498
A34: Samf. Adm. | C34: =IF(OR('Tabel 4F ØJ'!C34<5,'Tabel 4 ØJ'!C34<0.5),"-",IFERROR('Tabel 4 ØJ'!C34/'Tabel 4F ØJ'!C34*100,"-")) -> 11.74698795 | D34: =IF(OR('Tabel 4F ØJ'!D34<5,'Tabel 4 ØJ'!D34<0.5),"-",IFERROR('Tabel 4 ØJ'!D34/'Tabel 4F ØJ'!D34*100,"-")) -> 4.778636683 | E34: =IF(OR('Tabel 4F ØJ'!E34<5,'Tabel 4 ØJ'!E34<0.5),"-",IFERROR('Tabel 4 ØJ'!E34/'Tabel 4F ØJ'!E34*100,"-")) -> 2.125 | F34: =IF(OR('Tabel 4F ØJ'!F34<5,'Tabel 4 ØJ'!F34<0.5),"-",IFERROR('Tabel 4 ØJ'!F34/'Tabel 4F ØJ'!F34*100,"-")) -> 1.425178147 | G34: =IF(OR('Tabel 4F ØJ'!G34<5,'Tabel 4 ØJ'!G34<0.5),"-",IFERROR('Tabel 4 ØJ'!G34/'Tabel 4F ØJ'!G34*100,"-")) -> 2.608695652 | I34: =IF(OR('Tabel 4F ØJ'!I34<5,'Tabel 4 ØJ'!I34<0.5),"-",IFERROR('Tabel 4 ØJ'!I34/'Tabel 4F ØJ'!I34*100,"-")) -> 5.024832019
A35: Cand. Merc. | C35: =IF(OR('Tabel 4F ØJ'!C35<5,'Tabel 4 ØJ'!C35<0.5),"-",IFERROR('Tabel 4 ØJ'!C35/'Tabel 4F ØJ'!C35*100,"-")) -> 4.467960024 | D35: =IF(OR('Tabel 4F ØJ'!D35<5,'Tabel 4 ØJ'!D35<0.5),"-",IFERROR('Tabel 4 ØJ'!D35/'Tabel 4F ØJ'!D35*100,"-")) -> 2.62295082 | E35: =IF(OR('Tabel 4F ØJ'!E35<5,'Tabel 4 ØJ'!E35<0.5),"-",IFERROR('Tabel 4 ØJ'!E35/'Tabel 4F ØJ'!E35*100,"-")) -> 1.714285714 | F35: =IF(OR('Tabel 4F ØJ'!F35<5,'Tabel 4 ØJ'!F35<0.5),"-",IFERROR('Tabel 4 ØJ'!F35/'Tabel 4F ØJ'!F35*100,"-")) -> 1.543209877 | G35: =IF(OR('Tabel 4F ØJ'!G35<5,'Tabel 4 ØJ'!G35<0.5),"-",IFERROR('Tabel 4 ØJ'!G35/'Tabel 4F ØJ'!G35*100,"-")) -> 3.067484663 | I35: =IF(OR('Tabel 4F ØJ'!I35<5,'Tabel 4 ØJ'!I35<0.5),"-",IFERROR('Tabel 4 ØJ'!I35/'Tabel 4F ØJ'!I35*100,"-")) -> 2.744990393
A36: HA | C36: =IF(OR('Tabel 4F ØJ'!C36<5,'Tabel 4 ØJ'!C36<0.5),"-",IFERROR('Tabel 4 ØJ'!C36/'Tabel 4F ØJ'!C36*100,"-")) -> 10.41009464 | D36: =IF(OR('Tabel 4F ØJ'!D36<5,'Tabel 4 ØJ'!D36<0.5),"-",IFERROR('Tabel 4 ØJ'!D36/'Tabel 4F ØJ'!D36*100,"-")) -> 0.9584664537 | E36: =IF(OR('Tabel 4F ØJ'!E36<5,'Tabel 4 ØJ'!E36<0.5),"-",IFERROR('Tabel 4 ØJ'!E36/'Tabel 4F ØJ'!E36*100,"-")) -> 2.941176471 | F36: =IF(OR('Tabel 4F ØJ'!F36<5,'Tabel 4 ØJ'!F36<0.5),"-",IFERROR('Tabel 4 ØJ'!F36/'Tabel 4F ØJ'!F36*100,"-")) -> 1.003344482 | G36: =IF(OR('Tabel 4F ØJ'!G36<5,'Tabel 4 ØJ'!G36<0.5),"-",IFERROR('Tabel 4 ØJ'!G36/'Tabel 4F ØJ'!G36*100,"-")) -> 5.882352941 | I36: =IF(OR('Tabel 4F ØJ'!I36<5,'Tabel 4 ØJ'!I36<0.5),"-",IFERROR('Tabel 4 ØJ'!I36/'Tabel 4F ØJ'!I36*100,"-")) -> 4.173913043
A37: HD | C37: =IF(OR('Tabel 4F ØJ'!C37<5,'Tabel 4 ØJ'!C37<0.5),"-",IFERROR('Tabel 4 ØJ'!C37/'Tabel 4F ØJ'!C37*100,"-")) -> 5.405405405 | D37: =IF(OR('Tabel 4F ØJ'!D37<5,'Tabel 4 ØJ'!D37<0.5),"-",IFERROR('Tabel 4 ØJ'!D37/'Tabel 4F ØJ'!D37*100,"-")) -> 2.654867257 | E37: =IF(OR('Tabel 4F ØJ'!E37<5,'Tabel 4 ØJ'!E37<0.5),"-",IFERROR('Tabel 4 ØJ'!E37/'Tabel 4F ØJ'!E37*100,"-")) -> 3.149606299 | F37: =IF(OR('Tabel 4F ØJ'!F37<5,'Tabel 4 ØJ'!F37<0.5),"-",IFERROR('Tabel 4 ØJ'!F37/'Tabel 4F ØJ'!F37*100,"-")) -> 1.818181818 | G37: =IF(OR('Tabel 4F ØJ'!G37<5,'Tabel 4 ØJ'!G37<0.5),"-",IFERROR('Tabel 4 ØJ'!G37/'Tabel 4F ØJ'!G37*100,"-")) -> 3.225806452 | I37: =IF(OR('Tabel 4F ØJ'!I37<5,'Tabel 4 ØJ'!I37<0.5),"-",IFERROR('Tabel 4 ØJ'!I37/'Tabel 4F ØJ'!I37*100,"-")) -> 2.884615385
A38: Komm. og Sprog | C38: =IF(OR('Tabel 4F ØJ'!C38<5,'Tabel 4 ØJ'!C38<0.5),"-",IFERROR('Tabel 4 ØJ'!C38/'Tabel 4F ØJ'!C38*100,"-")) -> 13.20754717 | D38: =IF(OR('Tabel 4F ØJ'!D38<5,'Tabel 4 ØJ'!D38<0.5),"-",IFERROR('Tabel 4 ØJ'!D38/'Tabel 4F ØJ'!D38*100,"-")) -> 5 | E38: =IF(OR('Tabel 4F ØJ'!E38<5,'Tabel 4 ØJ'!E38<0.5),"-",IFERROR('Tabel 4 ØJ'!E38/'Tabel 4F ØJ'!E38*100,"-")) -> 1.818181818 | F38: =IF(OR('Tabel 4F ØJ'!F38<5,'Tabel 4 ØJ'!F38<0.5),"-",IFERROR('Tabel 4 ØJ'!F38/'Tabel 4F ØJ'!F38*100,"-")) -> 2.173913043 | G38: =IF(OR('Tabel 4F ØJ'!G38<5,'Tabel 4 ØJ'!G38<0.5),"-",IFERROR('Tabel 4 ØJ'!G38/'Tabel 4F ØJ'!G38*100,"-")) -> 3.597122302 | I38: =IF(OR('Tabel 4F ØJ'!I38<5,'Tabel 4 ØJ'!I38<0.5),"-",IFERROR('Tabel 4 ØJ'!I38/'Tabel 4F ØJ'!I38*100,"-")) -> 4.18972332
A39: Bygningskonst. | C39: =IF(OR('Tabel 4F ØJ'!C39<5,'Tabel 4 ØJ'!C39<0.5),"-",IFERROR('Tabel 4 ØJ'!C39/'Tabel 4F ØJ'!C39*100,"-")) -> 11.04536489 | D39: =IF(OR('Tabel 4F ØJ'!D39<5,'Tabel 4 ØJ'!D39<0.5),"-",IFERROR('Tabel 4 ØJ'!D39/'Tabel 4F ØJ'!D39*100,"-")) -> 3.8 | E39: =IF(OR('Tabel 4F ØJ'!E39<5,'Tabel 4 ØJ'!E39<0.5),"-",IFERROR('Tabel 4 ØJ'!E39/'Tabel 4F ØJ'!E39*100,"-")) -> 1.346153846 | F39: =IF(OR('Tabel 4F ØJ'!F39<5,'Tabel 4 ØJ'!F39<0.5),"-",IFERROR('Tabel 4 ØJ'!F39/'Tabel 4F ØJ'!F39*100,"-")) -> 1.544401544 | G39: =IF(OR('Tabel 4F ØJ'!G39<5,'Tabel 4 ØJ'!G39<0.5),"-",IFERROR('Tabel 4 ØJ'!G39/'Tabel 4F ØJ'!G39*100,"-")) -> 1.315789474 | I39: =IF(OR('Tabel 4F ØJ'!I39<5,'Tabel 4 ØJ'!I39<0.5),"-",IFERROR('Tabel 4 ØJ'!I39/'Tabel 4F ØJ'!I39*100,"-")) -> 4.487722269
A40: Cand. IT. | C40: =IF(OR('Tabel 4F ØJ'!C40<5,'Tabel 4 ØJ'!C40<0.5),"-",IFERROR('Tabel 4 ØJ'!C40/'Tabel 4F ØJ'!C40*100,"-")) -> 7.987220447 | D40: =IF(OR('Tabel 4F ØJ'!D40<5,'Tabel 4 ØJ'!D40<0.5),"-",IFERROR('Tabel 4 ØJ'!D40/'Tabel 4F ØJ'!D40*100,"-")) -> 4.593639576 | E40: =IF(OR('Tabel 4F ØJ'!E40<5,'Tabel 4 ØJ'!E40<0.5),"-",IFERROR('Tabel 4 ØJ'!E40/'Tabel 4F ØJ'!E40*100,"-")) -> 1.807228916 | F40: =IF(OR('Tabel 4F ØJ'!F40<5,'Tabel 4 ØJ'!F40<0.5),"-",IFERROR('Tabel 4 ØJ'!F40/'Tabel 4F ØJ'!F40*100,"-")) -> - | G40: =IF(OR('Tabel 4F ØJ'!G40<5,'Tabel 4 ØJ'!G40<0.5),"-",IFERROR('Tabel 4 ØJ'!G40/'Tabel 4F ØJ'!G40*100,"-")) -> - | I40: =IF(OR('Tabel 4F ØJ'!I40<5,'Tabel 4 ØJ'!I40<0.5),"-",IFERROR('Tabel 4 ØJ'!I40/'Tabel 4F ØJ'!I40*100,"-")) -> 5.042016807
A41: Bac. Samf. | C41: =IF(OR('Tabel 4F ØJ'!C41<5,'Tabel 4 ØJ'!C41<0.5),"-",IFERROR('Tabel 4 ØJ'!C41/'Tabel 4F ØJ'!C41*100,"-")) -> 18 | D41: =IF(OR('Tabel 4F ØJ'!D41<5,'Tabel 4 ØJ'!D41<0.5),"-",IFERROR('Tabel 4 ØJ'!D41/'Tabel 4F ØJ'!D41*100,"-")) -> 13.95348837 | E41: =IF(OR('Tabel 4F ØJ'!E41<5,'Tabel 4 ØJ'!E41<0.5),"-",IFERROR('Tabel 4 ØJ'!E41/'Tabel 4F ØJ'!E41*100,"-")) -> 4.444444444 | F41: =IF(OR('Tabel 4F ØJ'!F41<5,'Tabel 4 ØJ'!F41<0.5),"-",IFERROR('Tabel 4 ØJ'!F41/'Tabel 4F ØJ'!F41*100,"-")) -> 2.857142857 | G41: =IF(OR('Tabel 4F ØJ'!G41<5,'Tabel 4 ØJ'!G41<0.5),"-",IFERROR('Tabel 4 ØJ'!G41/'Tabel 4F ØJ'!G41*100,"-")) -> 7.692307692 | I41: =IF(OR('Tabel 4F ØJ'!I41<5,'Tabel 4 ØJ'!I41<0.5),"-",IFERROR('Tabel 4 ØJ'!I41/'Tabel 4F ØJ'!I41*100,"-")) -> 10.21505376
A42: Bac. Hum. | C42: =IF(OR('Tabel 4F ØJ'!C42<5,'Tabel 4 ØJ'!C42<0.5),"-",IFERROR('Tabel 4 ØJ'!C42/'Tabel 4F ØJ'!C42*100,"-")) -> 25.17006803 | D42: =IF(OR('Tabel 4F ØJ'!D42<5,'Tabel 4 ØJ'!D42<0.5),"-",IFERROR('Tabel 4 ØJ'!D42/'Tabel 4F ØJ'!D42*100,"-")) -> 11.57894737 | E42: =IF(OR('Tabel 4F ØJ'!E42<5,'Tabel 4 ØJ'!E42<0.5),"-",IFERROR('Tabel 4 ØJ'!E42/'Tabel 4F ØJ'!E42*100,"-")) -> 5.673758865 | F42: =IF(OR('Tabel 4F ØJ'!F42<5,'Tabel 4 ØJ'!F42<0.5),"-",IFERROR('Tabel 4 ØJ'!F42/'Tabel 4F ØJ'!F42*100,"-")) -> 6.034482759 | G42: =IF(OR('Tabel 4F ØJ'!G42<5,'Tabel 4 ØJ'!G42<0.5),"-",IFERROR('Tabel 4 ØJ'!G42/'Tabel 4F ØJ'!G42*100,"-")) -> 8.888888889 | I42: =IF(OR('Tabel 4F ØJ'!I42<5,'Tabel 4 ØJ'!I42<0.5),"-",IFERROR('Tabel 4 ØJ'!I42/'Tabel 4F ØJ'!I42*100,"-")) -> 16.29153269
A43: Bac. Nat. | C43: =IF(OR('Tabel 4F ØJ'!C43<5,'Tabel 4 ØJ'!C43<0.5),"-",IFERROR('Tabel 4 ØJ'!C43/'Tabel 4F ØJ'!C43*100,"-")) -> 13.30166271 | D43: =IF(OR('Tabel 4F ØJ'!D43<5,'Tabel 4 ØJ'!D43<0.5),"-",IFERROR('Tabel 4 ØJ'!D43/'Tabel 4F ØJ'!D43*100,"-")) -> 4.074074074 | E43: =IF(OR('Tabel 4F ØJ'!E43<5,'Tabel 4 ØJ'!E43<0.5),"-",IFERROR('Tabel 4 ØJ'!E43/'Tabel 4F ØJ'!E43*100,"-")) -> 3.370786517 | F43: =IF(OR('Tabel 4F ØJ'!F43<5,'Tabel 4 ØJ'!F43<0.5),"-",IFERROR('Tabel 4 ØJ'!F43/'Tabel 4F ØJ'!F43*100,"-")) -> - | G43: =IF(OR('Tabel 4F ØJ'!G43<5,'Tabel 4 ØJ'!G43<0.5),"-",IFERROR('Tabel 4 ØJ'!G43/'Tabel 4F ØJ'!G43*100,"-")) -> - | I43: =IF(OR('Tabel 4F ØJ'!I43<5,'Tabel 4 ØJ'!I43<0.5),"-",IFERROR('Tabel 4 ØJ'!I43/'Tabel 4F ØJ'!I43*100,"-")) -> 8.733087331
A44: Andre | C44: =IF(OR('Tabel 4F ØJ'!C44<5,'Tabel 4 ØJ'!C44<0.5),"-",IFERROR('Tabel 4 ØJ'!C44/'Tabel 4F ØJ'!C44*100,"-")) -> 12.0458891 | D44: =IF(OR('Tabel 4F ØJ'!D44<5,'Tabel 4 ØJ'!D44<0.5),"-",IFERROR('Tabel 4 ØJ'!D44/'Tabel 4F ØJ'!D44*100,"-")) -> 5.20661157 | E44: =IF(OR('Tabel 4F ØJ'!E44<5,'Tabel 4 ØJ'!E44<0.5),"-",IFERROR('Tabel 4 ØJ'!E44/'Tabel 4F ØJ'!E44*100,"-")) -> 4.2527339 | F44: =IF(OR('Tabel 4F ØJ'!F44<5,'Tabel 4 ØJ'!F44<0.5),"-",IFERROR('Tabel 4 ØJ'!F44/'Tabel 4F ØJ'!F44*100,"-")) -> 4.166666667 | G44: =IF(OR('Tabel 4F ØJ'!G44<5,'Tabel 4 ØJ'!G44<0.5),"-",IFERROR('Tabel 4 ØJ'!G44/'Tabel 4F ØJ'!G44*100,"-")) -> 5.693950178 | I44: =IF(OR('Tabel 4F ØJ'!I44<5,'Tabel 4 ØJ'!I44<0.5),"-",IFERROR('Tabel 4 ØJ'!I44/'Tabel 4F ØJ'!I44*100,"-")) -> 5.939101598
A46: Total | C46: =IF(OR('Tabel 4F ØJ'!C46<5,'Tabel 4 ØJ'!C46<0.5),"-",IFERROR('Tabel 4 ØJ'!C46/'Tabel 4F ØJ'!C46*100,"-")) -> 10.82486995 | D46: =IF(OR('Tabel 4F ØJ'!D46<5,'Tabel 4 ØJ'!D46<0.5),"-",IFERROR('Tabel 4 ØJ'!D46/'Tabel 4F ØJ'!D46*100,"-")) -> 4.595137185 | E46: =IF(OR('Tabel 4F ØJ'!E46<5,'Tabel 4 ØJ'!E46<0.5),"-",IFERROR('Tabel 4 ØJ'!E46/'Tabel 4F ØJ'!E46*100,"-")) -> 2.102835436 | F46: =IF(OR('Tabel 4F ØJ'!F46<5,'Tabel 4 ØJ'!F46<0.5),"-",IFERROR('Tabel 4 ØJ'!F46/'Tabel 4F ØJ'!F46*100,"-")) -> 1.761492087 | G46: =IF(OR('Tabel 4F ØJ'!G46<5,'Tabel 4 ØJ'!G46<0.5),"-",IFERROR('Tabel 4 ØJ'!G46/'Tabel 4F ØJ'!G46*100,"-")) -> 3.740587807 | I46: =IF(OR('Tabel 4F ØJ'!I46<5,'Tabel 4 ØJ'!I46<0.5),"-",IFERROR('Tabel 4 ØJ'!I46/'Tabel 4F ØJ'!I46*100,"-")) -> 4.674926954
A48: Ingeniører i alt | C48: =IF(OR('Tabel 4F ØJ'!C48<5,'Tabel 4 ØJ'!C48<0.5),"-",IFERROR('Tabel 4 ØJ'!C48/'Tabel 4F ØJ'!C48*100,"-")) -> 7.068607069 | D48: =IF(OR('Tabel 4F ØJ'!D48<5,'Tabel 4 ØJ'!D48<0.5),"-",IFERROR('Tabel 4 ØJ'!D48/'Tabel 4F ØJ'!D48*100,"-")) -> 1.818181818 | E48: =IF(OR('Tabel 4F ØJ'!E48<5,'Tabel 4 ØJ'!E48<0.5),"-",IFERROR('Tabel 4 ØJ'!E48/'Tabel 4F ØJ'!E48*100,"-")) -> 0.8502772643 | F48: =IF(OR('Tabel 4F ØJ'!F48<5,'Tabel 4 ØJ'!F48<0.5),"-",IFERROR('Tabel 4 ØJ'!F48/'Tabel 4F ØJ'!F48*100,"-")) -> 0.9305654975 | G48: =IF(OR('Tabel 4F ØJ'!G48<5,'Tabel 4 ØJ'!G48<0.5),"-",IFERROR('Tabel 4 ØJ'!G48/'Tabel 4F ØJ'!G48*100,"-")) -> 2.927721866 | I48: =IF(OR('Tabel 4F ØJ'!I48<5,'Tabel 4 ØJ'!I48<0.5),"-",IFERROR('Tabel 4 ØJ'!I48/'Tabel 4F ØJ'!I48*100,"-")) -> 2.349222621
A49: Magistre i alt | C49: =IF(OR('Tabel 4F ØJ'!C49<5,'Tabel 4 ØJ'!C49<0.5),"-",IFERROR('Tabel 4 ØJ'!C49/'Tabel 4F ØJ'!C49*100,"-")) -> 20.47619048 | D49: =IF(OR('Tabel 4F ØJ'!D49<5,'Tabel 4 ØJ'!D49<0.5),"-",IFERROR('Tabel 4 ØJ'!D49/'Tabel 4F ØJ'!D49*100,"-")) -> 9.109495684 | E49: =IF(OR('Tabel 4F ØJ'!E49<5,'Tabel 4 ØJ'!E49<0.5),"-",IFERROR('Tabel 4 ØJ'!E49/'Tabel 4F ØJ'!E49*100,"-")) -> 3.169734151 | F49: =IF(OR('Tabel 4F ØJ'!F49<5,'Tabel 4 ØJ'!F49<0.5),"-",IFERROR('Tabel 4 ØJ'!F49/'Tabel 4F ØJ'!F49*100,"-")) -> 2.590673575 | G49: =IF(OR('Tabel 4F ØJ'!G49<5,'Tabel 4 ØJ'!G49<0.5),"-",IFERROR('Tabel 4 ØJ'!G49/'Tabel 4F ØJ'!G49*100,"-")) -> 5.104166667 | I49: =IF(OR('Tabel 4F ØJ'!I49<5,'Tabel 4 ØJ'!I49<0.5),"-",IFERROR('Tabel 4 ØJ'!I49/'Tabel 4F ØJ'!I49*100,"-")) -> 7.574183976
A50: DJØF'ere i alt | C50: =IF(OR('Tabel 4F ØJ'!C50<5,'Tabel 4 ØJ'!C50<0.5),"-",IFERROR('Tabel 4 ØJ'!C50/'Tabel 4F ØJ'!C50*100,"-")) -> 6.001121705 | D50: =IF(OR('Tabel 4F ØJ'!D50<5,'Tabel 4 ØJ'!D50<0.5),"-",IFERROR('Tabel 4 ØJ'!D50/'Tabel 4F ØJ'!D50*100,"-")) -> 2.826051649 | E50: =IF(OR('Tabel 4F ØJ'!E50<5,'Tabel 4 ØJ'!E50<0.5),"-",IFERROR('Tabel 4 ØJ'!E50/'Tabel 4F ØJ'!E50*100,"-")) -> 1.623477989 | F50: =IF(OR('Tabel 4F ØJ'!F50<5,'Tabel 4 ØJ'!F50<0.5),"-",IFERROR('Tabel 4 ØJ'!F50/'Tabel 4F ØJ'!F50*100,"-")) -> 1.412671233 | G50: =IF(OR('Tabel 4F ØJ'!G50<5,'Tabel 4 ØJ'!G50<0.5),"-",IFERROR('Tabel 4 ØJ'!G50/'Tabel 4F ØJ'!G50*100,"-")) -> 2.877697842 | I50: =IF(OR('Tabel 4F ØJ'!I50<5,'Tabel 4 ØJ'!I50<0.5),"-",IFERROR('Tabel 4 ØJ'!I50/'Tabel 4F ØJ'!I50*100,"-")) -> 3.091414844
A57: Horsens
C59: Under 30 år | D59: 30 - 39 år | E59: 40 - 49 år | F59: 50 - 59 år | G59: Over 60 år | I59: I alt
A61: Civ. ing. | C61: =IF(OR('Tabel 4F ØJ'!C61<5,'Tabel 4 ØJ'!C61<0.5),"-",IFERROR('Tabel 4 ØJ'!C61/'Tabel 4F ØJ'!C61*100,"-")) -> 14 | D61: =IF(OR('Tabel 4F ØJ'!D61<5,'Tabel 4 ØJ'!D61<0.5),"-",IFERROR('Tabel 4 ØJ'!D61/'Tabel 4F ØJ'!D61*100,"-")) -> 1.538461538 | E61: =IF(OR('Tabel 4F ØJ'!E61<5,'Tabel 4 ØJ'!E61<0.5),"-",IFERROR('Tabel 4 ØJ'!E61/'Tabel 4F ØJ'!E61*100,"-")) -> - | F61: =IF(OR('Tabel 4F ØJ'!F61<5,'Tabel 4 ØJ'!F61<0.5),"-",IFERROR('Tabel 4 ØJ'!F61/'Tabel 4F ØJ'!F61*100,"-")) -> - | G61: =IF(OR('Tabel 4F ØJ'!G61<5,'Tabel 4 ØJ'!G61<0.5),"-",IFERROR('Tabel 4 ØJ'!G61/'Tabel 4F ØJ'!G61*100,"-")) -> - | I61: =IF(OR('Tabel 4F ØJ'!I61<5,'Tabel 4 ØJ'!I61<0.5),"-",IFERROR('Tabel 4 ØJ'!I61/'Tabel 4F ØJ'!I61*100,"-")) -> 2.795031056
A62: Diplom ing. | C62: =IF(OR('Tabel 4F ØJ'!C62<5,'Tabel 4 ØJ'!C62<0.5),"-",IFERROR('Tabel 4 ØJ'!C62/'Tabel 4F ØJ'!C62*100,"-")) -> 10.20408163 | D62: =IF(OR('Tabel 4F ØJ'!D62<5,'Tabel 4 ØJ'!D62<0.5),"-",IFERROR('Tabel 4 ØJ'!D62/'Tabel 4F ØJ'!D62*100,"-")) -> 1.777777778 | E62: =IF(OR('Tabel 4F ØJ'!E62<5,'Tabel 4 ØJ'!E62<0.5),"-",IFERROR('Tabel 4 ØJ'!E62/'Tabel 4F ØJ'!E62*100,"-")) -> - | F62: =IF(OR('Tabel 4F ØJ'!F62<5,'Tabel 4 ØJ'!F62<0.5),"-",IFERROR('Tabel 4 ØJ'!F62/'Tabel 4F ØJ'!F62*100,"-")) -> - | G62: =IF(OR('Tabel 4F ØJ'!G62<5,'Tabel 4 ØJ'!G62<0.5),"-",IFERROR('Tabel 4 ØJ'!G62/'Tabel 4F ØJ'!G62*100,"-")) -> 4.651162791 | I62: =IF(OR('Tabel 4F ØJ'!I62<5,'Tabel 4 ØJ'!I62<0.5),"-",IFERROR('Tabel 4 ØJ'!I62/'Tabel 4F ØJ'!I62*100,"-")) -> 1.900739176
A63: Cand. Scient. Tek | C63: =IF(OR('Tabel 4F ØJ'!C63<5,'Tabel 4 ØJ'!C63<0.5),"-",IFERROR('Tabel 4 ØJ'!C63/'Tabel 4F ØJ'!C63*100,"-")) -> 5.405405405 | D63: =IF(OR('Tabel 4F ØJ'!D63<5,'Tabel 4 ØJ'!D63<0.5),"-",IFERROR('Tabel 4 ØJ'!D63/'Tabel 4F ØJ'!D63*100,"-")) -> 7.692307692 | E63: =IF(OR('Tabel 4F ØJ'!E63<5,'Tabel 4 ØJ'!E63<0.5),"-",IFERROR('Tabel 4 ØJ'!E63/'Tabel 4F ØJ'!E63*100,"-")) -> 3.125 | F63: =IF(OR('Tabel 4F ØJ'!F63<5,'Tabel 4 ØJ'!F63<0.5),"-",IFERROR('Tabel 4 ØJ'!F63/'Tabel 4F ØJ'!F63*100,"-")) -> - | G63: =IF(OR('Tabel 4F ØJ'!G63<5,'Tabel 4 ØJ'!G63<0.5),"-",IFERROR('Tabel 4 ØJ'!G63/'Tabel 4F ØJ'!G63*100,"-")) -> - | I63: =IF(OR('Tabel 4F ØJ'!I63<5,'Tabel 4 ØJ'!I63<0.5),"-",IFERROR('Tabel 4 ØJ'!I63/'Tabel 4F ØJ'!I63*100,"-")) -> 6.214689266
A64: MA. Hum. | C64: =IF(OR('Tabel 4F ØJ'!C64<5,'Tabel 4 ØJ'!C64<0.5),"-",IFERROR('Tabel 4 ØJ'!C64/'Tabel 4F ØJ'!C64*100,"-")) -> 16 | D64: =IF(OR('Tabel 4F ØJ'!D64<5,'Tabel 4 ØJ'!D64<0.5),"-",IFERROR('Tabel 4 ØJ'!D64/'Tabel 4F ØJ'!D64*100,"-")) -> 11.25827815 | E64: =IF(OR('Tabel 4F ØJ'!E64<5,'Tabel 4 ØJ'!E64<0.5),"-",IFERROR('Tabel 4 ØJ'!E64/'Tabel 4F ØJ'!E64*100,"-")) -> 1.986754967 | F64: =IF(OR('Tabel 4F ØJ'!F64<5,'Tabel 4 ØJ'!F64<0.5),"-",IFERROR('Tabel 4 ØJ'!F64/'Tabel 4F ØJ'!F64*100,"-")) -> 3.571428571 | G64: =IF(OR('Tabel 4F ØJ'!G64<5,'Tabel 4 ØJ'!G64<0.5),"-",IFERROR('Tabel 4 ØJ'!G64/'Tabel 4F ØJ'!G64*100,"-")) -> - | I64: =IF(OR('Tabel 4F ØJ'!I64<5,'Tabel 4 ØJ'!I64<0.5),"-",IFERROR('Tabel 4 ØJ'!I64/'Tabel 4F ØJ'!I64*100,"-")) -> 7.009345794
A65: MA. Nat. | C65: =IF(OR('Tabel 4F ØJ'!C65<5,'Tabel 4 ØJ'!C65<0.5),"-",IFERROR('Tabel 4 ØJ'!C65/'Tabel 4F ØJ'!C65*100,"-")) -> 28.57142857 | D65: =IF(OR('Tabel 4F ØJ'!D65<5,'Tabel 4 ØJ'!D65<0.5),"-",IFERROR('Tabel 4 ØJ'!D65/'Tabel 4F ØJ'!D65*100,"-")) -> 3.125 | E65: =IF(OR('Tabel 4F ØJ'!E65<5,'Tabel 4 ØJ'!E65<0.5),"-",IFERROR('Tabel 4 ØJ'!E65/'Tabel 4F ØJ'!E65*100,"-")) -> - | F65: =IF(OR('Tabel 4F ØJ'!F65<5,'Tabel 4 ØJ'!F65<0.5),"-",IFERROR('Tabel 4 ØJ'!F65/'Tabel 4F ØJ'!F65*100,"-")) -> - | G65: =IF(OR('Tabel 4F ØJ'!G65<5,'Tabel 4 ØJ'!G65<0.5),"-",IFERROR('Tabel 4 ØJ'!G65/'Tabel 4F ØJ'!G65*100,"-")) -> - | I65: =IF(OR('Tabel 4F ØJ'!I65<5,'Tabel 4 ØJ'!I65<0.5),"-",IFERROR('Tabel 4 ØJ'!I65/'Tabel 4F ØJ'!I65*100,"-")) -> 2.142857143
A66: MA. Ph.d. | C66: =IF(OR('Tabel 4F ØJ'!C66<5,'Tabel 4 ØJ'!C66<0.5),"-",IFERROR('Tabel 4 ØJ'!C66/'Tabel 4F ØJ'!C66*100,"-")) -> - | D66: =IF(OR('Tabel 4F ØJ'!D66<5,'Tabel 4 ØJ'!D66<0.5),"-",IFERROR('Tabel 4 ØJ'!D66/'Tabel 4F ØJ'!D66*100,"-")) -> - | E66: =IF(OR('Tabel 4F ØJ'!E66<5,'Tabel 4 ØJ'!E66<0.5),"-",IFERROR('Tabel 4 ØJ'!E66/'Tabel 4F ØJ'!E66*100,"-")) -> - | F66: =IF(OR('Tabel 4F ØJ'!F66<5,'Tabel 4 ØJ'!F66<0.5),"-",IFERROR('Tabel 4 ØJ'!F66/'Tabel 4F ØJ'!F66*100,"-")) -> - | G66: =IF(OR('Tabel 4F ØJ'!G66<5,'Tabel 4 ØJ'!G66<0.5),"-",IFERROR('Tabel 4 ØJ'!G66/'Tabel 4F ØJ'!G66*100,"-")) -> - | I66: =IF(OR('Tabel 4F ØJ'!I66<5,'Tabel 4 ØJ'!I66<0.5),"-",IFERROR('Tabel 4 ØJ'!I66/'Tabel 4F ØJ'!I66*100,"-")) -> -
A67: MA. Samf. | C67: =IF(OR('Tabel 4F ØJ'!C67<5,'Tabel 4 ØJ'!C67<0.5),"-",IFERROR('Tabel 4 ØJ'!C67/'Tabel 4F ØJ'!C67*100,"-")) -> - | D67: =IF(OR('Tabel 4F ØJ'!D67<5,'Tabel 4 ØJ'!D67<0.5),"-",IFERROR('Tabel 4 ØJ'!D67/'Tabel 4F ØJ'!D67*100,"-")) -> - | E67: =IF(OR('Tabel 4F ØJ'!E67<5,'Tabel 4 ØJ'!E67<0.5),"-",IFERROR('Tabel 4 ØJ'!E67/'Tabel 4F ØJ'!E67*100,"-")) -> - | F67: =IF(OR('Tabel 4F ØJ'!F67<5,'Tabel 4 ØJ'!F67<0.5),"-",IFERROR('Tabel 4 ØJ'!F67/'Tabel 4F ØJ'!F67*100,"-")) -> - | G67: =IF(OR('Tabel 4F ØJ'!G67<5,'Tabel 4 ØJ'!G67<0.5),"-",IFERROR('Tabel 4 ØJ'!G67/'Tabel 4F ØJ'!G67*100,"-")) -> - | I67: =IF(OR('Tabel 4F ØJ'!I67<5,'Tabel 4 ØJ'!I67<0.5),"-",IFERROR('Tabel 4 ØJ'!I67/'Tabel 4F ØJ'!I67*100,"-")) -> -
A68: Øvrige Mag. | C68: =IF(OR('Tabel 4F ØJ'!C68<5,'Tabel 4 ØJ'!C68<0.5),"-",IFERROR('Tabel 4 ØJ'!C68/'Tabel 4F ØJ'!C68*100,"-")) -> - | D68: =IF(OR('Tabel 4F ØJ'!D68<5,'Tabel 4 ØJ'!D68<0.5),"-",IFERROR('Tabel 4 ØJ'!D68/'Tabel 4F ØJ'!D68*100,"-")) -> - | E68: =IF(OR('Tabel 4F ØJ'!E68<5,'Tabel 4 ØJ'!E68<0.5),"-",IFERROR('Tabel 4 ØJ'!E68/'Tabel 4F ØJ'!E68*100,"-")) -> 7.692307692 | F68: =IF(OR('Tabel 4F ØJ'!F68<5,'Tabel 4 ØJ'!F68<0.5),"-",IFERROR('Tabel 4 ØJ'!F68/'Tabel 4F ØJ'!F68*100,"-")) -> 12.5 | G68: =IF(OR('Tabel 4F ØJ'!G68<5,'Tabel 4 ØJ'!G68<0.5),"-",IFERROR('Tabel 4 ØJ'!G68/'Tabel 4F ØJ'!G68*100,"-")) -> - | I68: =IF(OR('Tabel 4F ØJ'!I68<5,'Tabel 4 ØJ'!I68<0.5),"-",IFERROR('Tabel 4 ØJ'!I68/'Tabel 4F ØJ'!I68*100,"-")) -> 6.060606061
A69: Agronom | C69: =IF(OR('Tabel 4F ØJ'!C69<5,'Tabel 4 ØJ'!C69<0.5),"-",IFERROR('Tabel 4 ØJ'!C69/'Tabel 4F ØJ'!C69*100,"-")) -> - | D69: =IF(OR('Tabel 4F ØJ'!D69<5,'Tabel 4 ØJ'!D69<0.5),"-",IFERROR('Tabel 4 ØJ'!D69/'Tabel 4F ØJ'!D69*100,"-")) -> - | E69: =IF(OR('Tabel 4F ØJ'!E69<5,'Tabel 4 ØJ'!E69<0.5),"-",IFERROR('Tabel 4 ØJ'!E69/'Tabel 4F ØJ'!E69*100,"-")) -> - | F69: =IF(OR('Tabel 4F ØJ'!F69<5,'Tabel 4 ØJ'!F69<0.5),"-",IFERROR('Tabel 4 ØJ'!F69/'Tabel 4F ØJ'!F69*100,"-")) -> - | G69: =IF(OR('Tabel 4F ØJ'!G69<5,'Tabel 4 ØJ'!G69<0.5),"-",IFERROR('Tabel 4 ØJ'!G69/'Tabel 4F ØJ'!G69*100,"-")) -> 11.11111111 | I69: =IF(OR('Tabel 4F ØJ'!I69<5,'Tabel 4 ØJ'!I69<0.5),"-",IFERROR('Tabel 4 ØJ'!I69/'Tabel 4F ØJ'!I69*100,"-")) -> 2.857142857
A70: Landsk. Arkt. | C70: =IF(OR('Tabel 4F ØJ'!C70<5,'Tabel 4 ØJ'!C70<0.5),"-",IFERROR('Tabel 4 ØJ'!C70/'Tabel 4F ØJ'!C70*100,"-")) -> - | D70: =IF(OR('Tabel 4F ØJ'!D70<5,'Tabel 4 ØJ'!D70<0.5),"-",IFERROR('Tabel 4 ØJ'!D70/'Tabel 4F ØJ'!D70*100,"-")) -> - | E70: =IF(OR('Tabel 4F ØJ'!E70<5,'Tabel 4 ØJ'!E70<0.5),"-",IFERROR('Tabel 4 ØJ'!E70/'Tabel 4F ØJ'!E70*100,"-")) -> - | F70: =IF(OR('Tabel 4F ØJ'!F70<5,'Tabel 4 ØJ'!F70<0.5),"-",IFERROR('Tabel 4 ØJ'!F70/'Tabel 4F ØJ'!F70*100,"-")) -> - | G70: =IF(OR('Tabel 4F ØJ'!G70<5,'Tabel 4 ØJ'!G70<0.5),"-",IFERROR('Tabel 4 ØJ'!G70/'Tabel 4F ØJ'!G70*100,"-")) -> - | I70: =IF(OR('Tabel 4F ØJ'!I70<5,'Tabel 4 ØJ'!I70<0.5),"-",IFERROR('Tabel 4 ØJ'!I70/'Tabel 4F ØJ'!I70*100,"-")) -> -
A71: Hortonom | C71: =IF(OR('Tabel 4F ØJ'!C71<5,'Tabel 4 ØJ'!C71<0.5),"-",IFERROR('Tabel 4 ØJ'!C71/'Tabel 4F ØJ'!C71*100,"-")) -> - | D71: =IF(OR('Tabel 4F ØJ'!D71<5,'Tabel 4 ØJ'!D71<0.5),"-",IFERROR('Tabel 4 ØJ'!D71/'Tabel 4F ØJ'!D71*100,"-")) -> - | E71: =IF(OR('Tabel 4F ØJ'!E71<5,'Tabel 4 ØJ'!E71<0.5),"-",IFERROR('Tabel 4 ØJ'!E71/'Tabel 4F ØJ'!E71*100,"-")) -> - | F71: =IF(OR('Tabel 4F ØJ'!F71<5,'Tabel 4 ØJ'!F71<0.5),"-",IFERROR('Tabel 4 ØJ'!F71/'Tabel 4F ØJ'!F71*100,"-")) -> - | G71: =IF(OR('Tabel 4F ØJ'!G71<5,'Tabel 4 ØJ'!G71<0.5),"-",IFERROR('Tabel 4 ØJ'!G71/'Tabel 4F ØJ'!G71*100,"-")) -> - | I71: =IF(OR('Tabel 4F ØJ'!I71<5,'Tabel 4 ØJ'!I71<0.5),"-",IFERROR('Tabel 4 ØJ'!I71/'Tabel 4F ØJ'!I71*100,"-")) -> -
A72: Forstkand. | C72: =IF(OR('Tabel 4F ØJ'!C72<5,'Tabel 4 ØJ'!C72<0.5),"-",IFERROR('Tabel 4 ØJ'!C72/'Tabel 4F ØJ'!C72*100,"-")) -> - | D72: =IF(OR('Tabel 4F ØJ'!D72<5,'Tabel 4 ØJ'!D72<0.5),"-",IFERROR('Tabel 4 ØJ'!D72/'Tabel 4F ØJ'!D72*100,"-")) -> - | E72: =IF(OR('Tabel 4F ØJ'!E72<5,'Tabel 4 ØJ'!E72<0.5),"-",IFERROR('Tabel 4 ØJ'!E72/'Tabel 4F ØJ'!E72*100,"-")) -> - | F72: =IF(OR('Tabel 4F ØJ'!F72<5,'Tabel 4 ØJ'!F72<0.5),"-",IFERROR('Tabel 4 ØJ'!F72/'Tabel 4F ØJ'!F72*100,"-")) -> - | G72: =IF(OR('Tabel 4F ØJ'!G72<5,'Tabel 4 ØJ'!G72<0.5),"-",IFERROR('Tabel 4 ØJ'!G72/'Tabel 4F ØJ'!G72*100,"-")) -> - | I72: =IF(OR('Tabel 4F ØJ'!I72<5,'Tabel 4 ØJ'!I72<0.5),"-",IFERROR('Tabel 4 ØJ'!I72/'Tabel 4F ØJ'!I72*100,"-")) -> -
A73: Jordbrugsakad. | C73: =IF(OR('Tabel 4F ØJ'!C73<5,'Tabel 4 ØJ'!C73<0.5),"-",IFERROR('Tabel 4 ØJ'!C73/'Tabel 4F ØJ'!C73*100,"-")) -> - | D73: =IF(OR('Tabel 4F ØJ'!D73<5,'Tabel 4 ØJ'!D73<0.5),"-",IFERROR('Tabel 4 ØJ'!D73/'Tabel 4F ØJ'!D73*100,"-")) -> - | E73: =IF(OR('Tabel 4F ØJ'!E73<5,'Tabel 4 ØJ'!E73<0.5),"-",IFERROR('Tabel 4 ØJ'!E73/'Tabel 4F ØJ'!E73*100,"-")) -> - | F73: =IF(OR('Tabel 4F ØJ'!F73<5,'Tabel 4 ØJ'!F73<0.5),"-",IFERROR('Tabel 4 ØJ'!F73/'Tabel 4F ØJ'!F73*100,"-")) -> - | G73: =IF(OR('Tabel 4F ØJ'!G73<5,'Tabel 4 ØJ'!G73<0.5),"-",IFERROR('Tabel 4 ØJ'!G73/'Tabel 4F ØJ'!G73*100,"-")) -> 10 | I73: =IF(OR('Tabel 4F ØJ'!I73<5,'Tabel 4 ØJ'!I73<0.5),"-",IFERROR('Tabel 4 ØJ'!I73/'Tabel 4F ØJ'!I73*100,"-")) -> 2.272727273
A74: Mejeriing. | C74: =IF(OR('Tabel 4F ØJ'!C74<5,'Tabel 4 ØJ'!C74<0.5),"-",IFERROR('Tabel 4 ØJ'!C74/'Tabel 4F ØJ'!C74*100,"-")) -> - | D74: =IF(OR('Tabel 4F ØJ'!D74<5,'Tabel 4 ØJ'!D74<0.5),"-",IFERROR('Tabel 4 ØJ'!D74/'Tabel 4F ØJ'!D74*100,"-")) -> - | E74: =IF(OR('Tabel 4F ØJ'!E74<5,'Tabel 4 ØJ'!E74<0.5),"-",IFERROR('Tabel 4 ØJ'!E74/'Tabel 4F ØJ'!E74*100,"-")) -> - | F74: =IF(OR('Tabel 4F ØJ'!F74<5,'Tabel 4 ØJ'!F74<0.5),"-",IFERROR('Tabel 4 ØJ'!F74/'Tabel 4F ØJ'!F74*100,"-")) -> - | G74: =IF(OR('Tabel 4F ØJ'!G74<5,'Tabel 4 ØJ'!G74<0.5),"-",IFERROR('Tabel 4 ØJ'!G74/'Tabel 4F ØJ'!G74*100,"-")) -> - | I74: =IF(OR('Tabel 4F ØJ'!I74<5,'Tabel 4 ØJ'!I74<0.5),"-",IFERROR('Tabel 4 ØJ'!I74/'Tabel 4F ØJ'!I74*100,"-")) -> -
A75: Levn.m.kand. | C75: =IF(OR('Tabel 4F ØJ'!C75<5,'Tabel 4 ØJ'!C75<0.5),"-",IFERROR('Tabel 4 ØJ'!C75/'Tabel 4F ØJ'!C75*100,"-")) -> - | D75: =IF(OR('Tabel 4F ØJ'!D75<5,'Tabel 4 ØJ'!D75<0.5),"-",IFERROR('Tabel 4 ØJ'!D75/'Tabel 4F ØJ'!D75*100,"-")) -> - | E75: =IF(OR('Tabel 4F ØJ'!E75<5,'Tabel 4 ØJ'!E75<0.5),"-",IFERROR('Tabel 4 ØJ'!E75/'Tabel 4F ØJ'!E75*100,"-")) -> - | F75: =IF(OR('Tabel 4F ØJ'!F75<5,'Tabel 4 ØJ'!F75<0.5),"-",IFERROR('Tabel 4 ØJ'!F75/'Tabel 4F ØJ'!F75*100,"-")) -> - | G75: =IF(OR('Tabel 4F ØJ'!G75<5,'Tabel 4 ØJ'!G75<0.5),"-",IFERROR('Tabel 4 ØJ'!G75/'Tabel 4F ØJ'!G75*100,"-")) -> - | I75: =IF(OR('Tabel 4F ØJ'!I75<5,'Tabel 4 ØJ'!I75<0.5),"-",IFERROR('Tabel 4 ØJ'!I75/'Tabel 4F ØJ'!I75*100,"-")) -> -
A76: Dyrlæge | C76: =IF(OR('Tabel 4F ØJ'!C76<5,'Tabel 4 ØJ'!C76<0.5),"-",IFERROR('Tabel 4 ØJ'!C76/'Tabel 4F ØJ'!C76*100,"-")) -> - | D76: =IF(OR('Tabel 4F ØJ'!D76<5,'Tabel 4 ØJ'!D76<0.5),"-",IFERROR('Tabel 4 ØJ'!D76/'Tabel 4F ØJ'!D76*100,"-")) -> - | E76: =IF(OR('Tabel 4F ØJ'!E76<5,'Tabel 4 ØJ'!E76<0.5),"-",IFERROR('Tabel 4 ØJ'!E76/'Tabel 4F ØJ'!E76*100,"-")) -> - | F76: =IF(OR('Tabel 4F ØJ'!F76<5,'Tabel 4 ØJ'!F76<0.5),"-",IFERROR('Tabel 4 ØJ'!F76/'Tabel 4F ØJ'!F76*100,"-")) -> - | G76: =IF(OR('Tabel 4F ØJ'!G76<5,'Tabel 4 ØJ'!G76<0.5),"-",IFERROR('Tabel 4 ØJ'!G76/'Tabel 4F ØJ'!G76*100,"-")) -> - | I76: =IF(OR('Tabel 4F ØJ'!I76<5,'Tabel 4 ØJ'!I76<0.5),"-",IFERROR('Tabel 4 ØJ'!I76/'Tabel 4F ØJ'!I76*100,"-")) -> -
A77: Farmaceut | C77: =IF(OR('Tabel 4F ØJ'!C77<5,'Tabel 4 ØJ'!C77<0.5),"-",IFERROR('Tabel 4 ØJ'!C77/'Tabel 4F ØJ'!C77*100,"-")) -> 20 | D77: =IF(OR('Tabel 4F ØJ'!D77<5,'Tabel 4 ØJ'!D77<0.5),"-",IFERROR('Tabel 4 ØJ'!D77/'Tabel 4F ØJ'!D77*100,"-")) -> 14.28571429 | E77: =IF(OR('Tabel 4F ØJ'!E77<5,'Tabel 4 ØJ'!E77<0.5),"-",IFERROR('Tabel 4 ØJ'!E77/'Tabel 4F ØJ'!E77*100,"-")) -> - | F77: =IF(OR('Tabel 4F ØJ'!F77<5,'Tabel 4 ØJ'!F77<0.5),"-",IFERROR('Tabel 4 ØJ'!F77/'Tabel 4F ØJ'!F77*100,"-")) -> - | G77: =IF(OR('Tabel 4F ØJ'!G77<5,'Tabel 4 ØJ'!G77<0.5),"-",IFERROR('Tabel 4 ØJ'!G77/'Tabel 4F ØJ'!G77*100,"-")) -> - | I77: =IF(OR('Tabel 4F ØJ'!I77<5,'Tabel 4 ØJ'!I77<0.5),"-",IFERROR('Tabel 4 ØJ'!I77/'Tabel 4F ØJ'!I77*100,"-")) -> 9.523809524
A78: Læge | C78: =IF(OR('Tabel 4F ØJ'!C78<5,'Tabel 4 ØJ'!C78<0.5),"-",IFERROR('Tabel 4 ØJ'!C78/'Tabel 4F ØJ'!C78*100,"-")) -> 11.11111111 | D78: =IF(OR('Tabel 4F ØJ'!D78<5,'Tabel 4 ØJ'!D78<0.5),"-",IFERROR('Tabel 4 ØJ'!D78/'Tabel 4F ØJ'!D78*100,"-")) -> - | E78: =IF(OR('Tabel 4F ØJ'!E78<5,'Tabel 4 ØJ'!E78<0.5),"-",IFERROR('Tabel 4 ØJ'!E78/'Tabel 4F ØJ'!E78*100,"-")) -> - | F78: =IF(OR('Tabel 4F ØJ'!F78<5,'Tabel 4 ØJ'!F78<0.5),"-",IFERROR('Tabel 4 ØJ'!F78/'Tabel 4F ØJ'!F78*100,"-")) -> - | G78: =IF(OR('Tabel 4F ØJ'!G78<5,'Tabel 4 ØJ'!G78<0.5),"-",IFERROR('Tabel 4 ØJ'!G78/'Tabel 4F ØJ'!G78*100,"-")) -> - | I78: =IF(OR('Tabel 4F ØJ'!I78<5,'Tabel 4 ØJ'!I78<0.5),"-",IFERROR('Tabel 4 ØJ'!I78/'Tabel 4F ØJ'!I78*100,"-")) -> 1.941747573
A79: Tandlæge | C79: =IF(OR('Tabel 4F ØJ'!C79<5,'Tabel 4 ØJ'!C79<0.5),"-",IFERROR('Tabel 4 ØJ'!C79/'Tabel 4F ØJ'!C79*100,"-")) -> - | D79: =IF(OR('Tabel 4F ØJ'!D79<5,'Tabel 4 ØJ'!D79<0.5),"-",IFERROR('Tabel 4 ØJ'!D79/'Tabel 4F ØJ'!D79*100,"-")) -> - | E79: =IF(OR('Tabel 4F ØJ'!E79<5,'Tabel 4 ØJ'!E79<0.5),"-",IFERROR('Tabel 4 ØJ'!E79/'Tabel 4F ØJ'!E79*100,"-")) -> - | F79: =IF(OR('Tabel 4F ØJ'!F79<5,'Tabel 4 ØJ'!F79<0.5),"-",IFERROR('Tabel 4 ØJ'!F79/'Tabel 4F ØJ'!F79*100,"-")) -> - | G79: =IF(OR('Tabel 4F ØJ'!G79<5,'Tabel 4 ØJ'!G79<0.5),"-",IFERROR('Tabel 4 ØJ'!G79/'Tabel 4F ØJ'!G79*100,"-")) -> - | I79: =IF(OR('Tabel 4F ØJ'!I79<5,'Tabel 4 ØJ'!I79<0.5),"-",IFERROR('Tabel 4 ØJ'!I79/'Tabel 4F ØJ'!I79*100,"-")) -> -
A80: Arkitekt | C80: =IF(OR('Tabel 4F ØJ'!C80<5,'Tabel 4 ØJ'!C80<0.5),"-",IFERROR('Tabel 4 ØJ'!C80/'Tabel 4F ØJ'!C80*100,"-")) -> 14.28571429 | D80: =IF(OR('Tabel 4F ØJ'!D80<5,'Tabel 4 ØJ'!D80<0.5),"-",IFERROR('Tabel 4 ØJ'!D80/'Tabel 4F ØJ'!D80*100,"-")) -> - | E80: =IF(OR('Tabel 4F ØJ'!E80<5,'Tabel 4 ØJ'!E80<0.5),"-",IFERROR('Tabel 4 ØJ'!E80/'Tabel 4F ØJ'!E80*100,"-")) -> - | F80: =IF(OR('Tabel 4F ØJ'!F80<5,'Tabel 4 ØJ'!F80<0.5),"-",IFERROR('Tabel 4 ØJ'!F80/'Tabel 4F ØJ'!F80*100,"-")) -> 11.11111111 | G80: =IF(OR('Tabel 4F ØJ'!G80<5,'Tabel 4 ØJ'!G80<0.5),"-",IFERROR('Tabel 4 ØJ'!G80/'Tabel 4F ØJ'!G80*100,"-")) -> - | I80: =IF(OR('Tabel 4F ØJ'!I80<5,'Tabel 4 ØJ'!I80<0.5),"-",IFERROR('Tabel 4 ØJ'!I80/'Tabel 4F ØJ'!I80*100,"-")) -> 2.985074627
A81: Landinspek. | C81: =IF(OR('Tabel 4F ØJ'!C81<5,'Tabel 4 ØJ'!C81<0.5),"-",IFERROR('Tabel 4 ØJ'!C81/'Tabel 4F ØJ'!C81*100,"-")) -> - | D81: =IF(OR('Tabel 4F ØJ'!D81<5,'Tabel 4 ØJ'!D81<0.5),"-",IFERROR('Tabel 4 ØJ'!D81/'Tabel 4F ØJ'!D81*100,"-")) -> - | E81: =IF(OR('Tabel 4F ØJ'!E81<5,'Tabel 4 ØJ'!E81<0.5),"-",IFERROR('Tabel 4 ØJ'!E81/'Tabel 4F ØJ'!E81*100,"-")) -> - | F81: =IF(OR('Tabel 4F ØJ'!F81<5,'Tabel 4 ØJ'!F81<0.5),"-",IFERROR('Tabel 4 ØJ'!F81/'Tabel 4F ØJ'!F81*100,"-")) -> - | G81: =IF(OR('Tabel 4F ØJ'!G81<5,'Tabel 4 ØJ'!G81<0.5),"-",IFERROR('Tabel 4 ØJ'!G81/'Tabel 4F ØJ'!G81*100,"-")) -> - | I81: =IF(OR('Tabel 4F ØJ'!I81<5,'Tabel 4 ØJ'!I81<0.5),"-",IFERROR('Tabel 4 ØJ'!I81/'Tabel 4F ØJ'!I81*100,"-")) -> -
A82: Bibliotekar | C82: =IF(OR('Tabel 4F ØJ'!C82<5,'Tabel 4 ØJ'!C82<0.5),"-",IFERROR('Tabel 4 ØJ'!C82/'Tabel 4F ØJ'!C82*100,"-")) -> - | D82: =IF(OR('Tabel 4F ØJ'!D82<5,'Tabel 4 ØJ'!D82<0.5),"-",IFERROR('Tabel 4 ØJ'!D82/'Tabel 4F ØJ'!D82*100,"-")) -> - | E82: =IF(OR('Tabel 4F ØJ'!E82<5,'Tabel 4 ØJ'!E82<0.5),"-",IFERROR('Tabel 4 ØJ'!E82/'Tabel 4F ØJ'!E82*100,"-")) -> 9.090909091 | F82: =IF(OR('Tabel 4F ØJ'!F82<5,'Tabel 4 ØJ'!F82<0.5),"-",IFERROR('Tabel 4 ØJ'!F82/'Tabel 4F ØJ'!F82*100,"-")) -> - | G82: =IF(OR('Tabel 4F ØJ'!G82<5,'Tabel 4 ØJ'!G82<0.5),"-",IFERROR('Tabel 4 ØJ'!G82/'Tabel 4F ØJ'!G82*100,"-")) -> - | I82: =IF(OR('Tabel 4F ØJ'!I82<5,'Tabel 4 ØJ'!I82<0.5),"-",IFERROR('Tabel 4 ØJ'!I82/'Tabel 4F ØJ'!I82*100,"-")) -> 3.225806452
A83: Musikudd. | C83: =IF(OR('Tabel 4F ØJ'!C83<5,'Tabel 4 ØJ'!C83<0.5),"-",IFERROR('Tabel 4 ØJ'!C83/'Tabel 4F ØJ'!C83*100,"-")) -> - | D83: =IF(OR('Tabel 4F ØJ'!D83<5,'Tabel 4 ØJ'!D83<0.5),"-",IFERROR('Tabel 4 ØJ'!D83/'Tabel 4F ØJ'!D83*100,"-")) -> - | E83: =IF(OR('Tabel 4F ØJ'!E83<5,'Tabel 4 ØJ'!E83<0.5),"-",IFERROR('Tabel 4 ØJ'!E83/'Tabel 4F ØJ'!E83*100,"-")) -> - | F83: =IF(OR('Tabel 4F ØJ'!F83<5,'Tabel 4 ØJ'!F83<0.5),"-",IFERROR('Tabel 4 ØJ'!F83/'Tabel 4F ØJ'!F83*100,"-")) -> - | G83: =IF(OR('Tabel 4F ØJ'!G83<5,'Tabel 4 ØJ'!G83<0.5),"-",IFERROR('Tabel 4 ØJ'!G83/'Tabel 4F ØJ'!G83*100,"-")) -> - | I83: =IF(OR('Tabel 4F ØJ'!I83<5,'Tabel 4 ØJ'!I83<0.5),"-",IFERROR('Tabel 4 ØJ'!I83/'Tabel 4F ØJ'!I83*100,"-")) -> 25
A84: Teolog | C84: =IF(OR('Tabel 4F ØJ'!C84<5,'Tabel 4 ØJ'!C84<0.5),"-",IFERROR('Tabel 4 ØJ'!C84/'Tabel 4F ØJ'!C84*100,"-")) -> - | D84: =IF(OR('Tabel 4F ØJ'!D84<5,'Tabel 4 ØJ'!D84<0.5),"-",IFERROR('Tabel 4 ØJ'!D84/'Tabel 4F ØJ'!D84*100,"-")) -> - | E84: =IF(OR('Tabel 4F ØJ'!E84<5,'Tabel 4 ØJ'!E84<0.5),"-",IFERROR('Tabel 4 ØJ'!E84/'Tabel 4F ØJ'!E84*100,"-")) -> - | F84: =IF(OR('Tabel 4F ØJ'!F84<5,'Tabel 4 ØJ'!F84<0.5),"-",IFERROR('Tabel 4 ØJ'!F84/'Tabel 4F ØJ'!F84*100,"-")) -> - | G84: =IF(OR('Tabel 4F ØJ'!G84<5,'Tabel 4 ØJ'!G84<0.5),"-",IFERROR('Tabel 4 ØJ'!G84/'Tabel 4F ØJ'!G84*100,"-")) -> - | I84: =IF(OR('Tabel 4F ØJ'!I84<5,'Tabel 4 ØJ'!I84<0.5),"-",IFERROR('Tabel 4 ØJ'!I84/'Tabel 4F ØJ'!I84*100,"-")) -> -
A85: Psykolog | C85: =IF(OR('Tabel 4F ØJ'!C85<5,'Tabel 4 ØJ'!C85<0.5),"-",IFERROR('Tabel 4 ØJ'!C85/'Tabel 4F ØJ'!C85*100,"-")) -> 26.66666667 | D85: =IF(OR('Tabel 4F ØJ'!D85<5,'Tabel 4 ØJ'!D85<0.5),"-",IFERROR('Tabel 4 ØJ'!D85/'Tabel 4F ØJ'!D85*100,"-")) -> 11.42857143 | E85: =IF(OR('Tabel 4F ØJ'!E85<5,'Tabel 4 ØJ'!E85<0.5),"-",IFERROR('Tabel 4 ØJ'!E85/'Tabel 4F ØJ'!E85*100,"-")) -> 5.128205128 | F85: =IF(OR('Tabel 4F ØJ'!F85<5,'Tabel 4 ØJ'!F85<0.5),"-",IFERROR('Tabel 4 ØJ'!F85/'Tabel 4F ØJ'!F85*100,"-")) -> - | G85: =IF(OR('Tabel 4F ØJ'!G85<5,'Tabel 4 ØJ'!G85<0.5),"-",IFERROR('Tabel 4 ØJ'!G85/'Tabel 4F ØJ'!G85*100,"-")) -> - | I85: =IF(OR('Tabel 4F ØJ'!I85<5,'Tabel 4 ØJ'!I85<0.5),"-",IFERROR('Tabel 4 ØJ'!I85/'Tabel 4F ØJ'!I85*100,"-")) -> 9.900990099
A86: Jurist | C86: =IF(OR('Tabel 4F ØJ'!C86<5,'Tabel 4 ØJ'!C86<0.5),"-",IFERROR('Tabel 4 ØJ'!C86/'Tabel 4F ØJ'!C86*100,"-")) -> - | D86: =IF(OR('Tabel 4F ØJ'!D86<5,'Tabel 4 ØJ'!D86<0.5),"-",IFERROR('Tabel 4 ØJ'!D86/'Tabel 4F ØJ'!D86*100,"-")) -> 3.389830508 | E86: =IF(OR('Tabel 4F ØJ'!E86<5,'Tabel 4 ØJ'!E86<0.5),"-",IFERROR('Tabel 4 ØJ'!E86/'Tabel 4F ØJ'!E86*100,"-")) -> - | F86: =IF(OR('Tabel 4F ØJ'!F86<5,'Tabel 4 ØJ'!F86<0.5),"-",IFERROR('Tabel 4 ØJ'!F86/'Tabel 4F ØJ'!F86*100,"-")) -> - | G86: =IF(OR('Tabel 4F ØJ'!G86<5,'Tabel 4 ØJ'!G86<0.5),"-",IFERROR('Tabel 4 ØJ'!G86/'Tabel 4F ØJ'!G86*100,"-")) -> - | I86: =IF(OR('Tabel 4F ØJ'!I86<5,'Tabel 4 ØJ'!I86<0.5),"-",IFERROR('Tabel 4 ØJ'!I86/'Tabel 4F ØJ'!I86*100,"-")) -> 1.265822785
A87: Økonom | C87: =IF(OR('Tabel 4F ØJ'!C87<5,'Tabel 4 ØJ'!C87<0.5),"-",IFERROR('Tabel 4 ØJ'!C87/'Tabel 4F ØJ'!C87*100,"-")) -> - | D87: =IF(OR('Tabel 4F ØJ'!D87<5,'Tabel 4 ØJ'!D87<0.5),"-",IFERROR('Tabel 4 ØJ'!D87/'Tabel 4F ØJ'!D87*100,"-")) -> - | E87: =IF(OR('Tabel 4F ØJ'!E87<5,'Tabel 4 ØJ'!E87<0.5),"-",IFERROR('Tabel 4 ØJ'!E87/'Tabel 4F ØJ'!E87*100,"-")) -> - | F87: =IF(OR('Tabel 4F ØJ'!F87<5,'Tabel 4 ØJ'!F87<0.5),"-",IFERROR('Tabel 4 ØJ'!F87/'Tabel 4F ØJ'!F87*100,"-")) -> - | G87: =IF(OR('Tabel 4F ØJ'!G87<5,'Tabel 4 ØJ'!G87<0.5),"-",IFERROR('Tabel 4 ØJ'!G87/'Tabel 4F ØJ'!G87*100,"-")) -> - | I87: =IF(OR('Tabel 4F ØJ'!I87<5,'Tabel 4 ØJ'!I87<0.5),"-",IFERROR('Tabel 4 ØJ'!I87/'Tabel 4F ØJ'!I87*100,"-")) -> -
A88: Samf. Adm. | C88: =IF(OR('Tabel 4F ØJ'!C88<5,'Tabel 4 ØJ'!C88<0.5),"-",IFERROR('Tabel 4 ØJ'!C88/'Tabel 4F ØJ'!C88*100,"-")) -> 10 | D88: =IF(OR('Tabel 4F ØJ'!D88<5,'Tabel 4 ØJ'!D88<0.5),"-",IFERROR('Tabel 4 ØJ'!D88/'Tabel 4F ØJ'!D88*100,"-")) -> 7.228915663 | E88: =IF(OR('Tabel 4F ØJ'!E88<5,'Tabel 4 ØJ'!E88<0.5),"-",IFERROR('Tabel 4 ØJ'!E88/'Tabel 4F ØJ'!E88*100,"-")) -> - | F88: =IF(OR('Tabel 4F ØJ'!F88<5,'Tabel 4 ØJ'!F88<0.5),"-",IFERROR('Tabel 4 ØJ'!F88/'Tabel 4F ØJ'!F88*100,"-")) -> 6.25 | G88: =IF(OR('Tabel 4F ØJ'!G88<5,'Tabel 4 ØJ'!G88<0.5),"-",IFERROR('Tabel 4 ØJ'!G88/'Tabel 4F ØJ'!G88*100,"-")) -> - | I88: =IF(OR('Tabel 4F ØJ'!I88<5,'Tabel 4 ØJ'!I88<0.5),"-",IFERROR('Tabel 4 ØJ'!I88/'Tabel 4F ØJ'!I88*100,"-")) -> 4.736842105
A89: Cand. Merc. | C89: =IF(OR('Tabel 4F ØJ'!C89<5,'Tabel 4 ØJ'!C89<0.5),"-",IFERROR('Tabel 4 ØJ'!C89/'Tabel 4F ØJ'!C89*100,"-")) -> 5.952380952 | D89: =IF(OR('Tabel 4F ØJ'!D89<5,'Tabel 4 ØJ'!D89<0.5),"-",IFERROR('Tabel 4 ØJ'!D89/'Tabel 4F ØJ'!D89*100,"-")) -> 2.553191489 | E89: =IF(OR('Tabel 4F ØJ'!E89<5,'Tabel 4 ØJ'!E89<0.5),"-",IFERROR('Tabel 4 ØJ'!E89/'Tabel 4F ØJ'!E89*100,"-")) -> 0.8620689655 | F89: =IF(OR('Tabel 4F ØJ'!F89<5,'Tabel 4 ØJ'!F89<0.5),"-",IFERROR('Tabel 4 ØJ'!F89/'Tabel 4F ØJ'!F89*100,"-")) -> 1.470588235 | G89: =IF(OR('Tabel 4F ØJ'!G89<5,'Tabel 4 ØJ'!G89<0.5),"-",IFERROR('Tabel 4 ØJ'!G89/'Tabel 4F ØJ'!G89*100,"-")) -> - | I89: =IF(OR('Tabel 4F ØJ'!I89<5,'Tabel 4 ØJ'!I89<0.5),"-",IFERROR('Tabel 4 ØJ'!I89/'Tabel 4F ØJ'!I89*100,"-")) -> 2.554027505
A90: HA | C90: =IF(OR('Tabel 4F ØJ'!C90<5,'Tabel 4 ØJ'!C90<0.5),"-",IFERROR('Tabel 4 ØJ'!C90/'Tabel 4F ØJ'!C90*100,"-")) -> 19.23076923 | D90: =IF(OR('Tabel 4F ØJ'!D90<5,'Tabel 4 ØJ'!D90<0.5),"-",IFERROR('Tabel 4 ØJ'!D90/'Tabel 4F ØJ'!D90*100,"-")) -> - | E90: =IF(OR('Tabel 4F ØJ'!E90<5,'Tabel 4 ØJ'!E90<0.5),"-",IFERROR('Tabel 4 ØJ'!E90/'Tabel 4F ØJ'!E90*100,"-")) -> 5.882352941 | F90: =IF(OR('Tabel 4F ØJ'!F90<5,'Tabel 4 ØJ'!F90<0.5),"-",IFERROR('Tabel 4 ØJ'!F90/'Tabel 4F ØJ'!F90*100,"-")) -> - | G90: =IF(OR('Tabel 4F ØJ'!G90<5,'Tabel 4 ØJ'!G90<0.5),"-",IFERROR('Tabel 4 ØJ'!G90/'Tabel 4F ØJ'!G90*100,"-")) -> 16.66666667 | I90: =IF(OR('Tabel 4F ØJ'!I90<5,'Tabel 4 ØJ'!I90<0.5),"-",IFERROR('Tabel 4 ØJ'!I90/'Tabel 4F ØJ'!I90*100,"-")) -> 7.368421053
A91: HD | C91: =IF(OR('Tabel 4F ØJ'!C91<5,'Tabel 4 ØJ'!C91<0.5),"-",IFERROR('Tabel 4 ØJ'!C91/'Tabel 4F ØJ'!C91*100,"-")) -> 28.57142857 | D91: =IF(OR('Tabel 4F ØJ'!D91<5,'Tabel 4 ØJ'!D91<0.5),"-",IFERROR('Tabel 4 ØJ'!D91/'Tabel 4F ØJ'!D91*100,"-")) -> 6.666666667 | E91: =IF(OR('Tabel 4F ØJ'!E91<5,'Tabel 4 ØJ'!E91<0.5),"-",IFERROR('Tabel 4 ØJ'!E91/'Tabel 4F ØJ'!E91*100,"-")) -> - | F91: =IF(OR('Tabel 4F ØJ'!F91<5,'Tabel 4 ØJ'!F91<0.5),"-",IFERROR('Tabel 4 ØJ'!F91/'Tabel 4F ØJ'!F91*100,"-")) -> 8.695652174 | G91: =IF(OR('Tabel 4F ØJ'!G91<5,'Tabel 4 ØJ'!G91<0.5),"-",IFERROR('Tabel 4 ØJ'!G91/'Tabel 4F ØJ'!G91*100,"-")) -> - | I91: =IF(OR('Tabel 4F ØJ'!I91<5,'Tabel 4 ØJ'!I91<0.5),"-",IFERROR('Tabel 4 ØJ'!I91/'Tabel 4F ØJ'!I91*100,"-")) -> 7.8125
A92: Komm. og Sprog | C92: =IF(OR('Tabel 4F ØJ'!C92<5,'Tabel 4 ØJ'!C92<0.5),"-",IFERROR('Tabel 4 ØJ'!C92/'Tabel 4F ØJ'!C92*100,"-")) -> 25 | D92: =IF(OR('Tabel 4F ØJ'!D92<5,'Tabel 4 ØJ'!D92<0.5),"-",IFERROR('Tabel 4 ØJ'!D92/'Tabel 4F ØJ'!D92*100,"-")) -> - | E92: =IF(OR('Tabel 4F ØJ'!E92<5,'Tabel 4 ØJ'!E92<0.5),"-",IFERROR('Tabel 4 ØJ'!E92/'Tabel 4F ØJ'!E92*100,"-")) -> 4.545454545 | F92: =IF(OR('Tabel 4F ØJ'!F92<5,'Tabel 4 ØJ'!F92<0.5),"-",IFERROR('Tabel 4 ØJ'!F92/'Tabel 4F ØJ'!F92*100,"-")) -> 4.761904762 | G92: =IF(OR('Tabel 4F ØJ'!G92<5,'Tabel 4 ØJ'!G92<0.5),"-",IFERROR('Tabel 4 ØJ'!G92/'Tabel 4F ØJ'!G92*100,"-")) -> - | I92: =IF(OR('Tabel 4F ØJ'!I92<5,'Tabel 4 ØJ'!I92<0.5),"-",IFERROR('Tabel 4 ØJ'!I92/'Tabel 4F ØJ'!I92*100,"-")) -> 6.329113924
A93: Bygningskonst. | C93: =IF(OR('Tabel 4F ØJ'!C93<5,'Tabel 4 ØJ'!C93<0.5),"-",IFERROR('Tabel 4 ØJ'!C93/'Tabel 4F ØJ'!C93*100,"-")) -> 10.78431373 | D93: =IF(OR('Tabel 4F ØJ'!D93<5,'Tabel 4 ØJ'!D93<0.5),"-",IFERROR('Tabel 4 ØJ'!D93/'Tabel 4F ØJ'!D93*100,"-")) -> 3.51758794 | E93: =IF(OR('Tabel 4F ØJ'!E93<5,'Tabel 4 ØJ'!E93<0.5),"-",IFERROR('Tabel 4 ØJ'!E93/'Tabel 4F ØJ'!E93*100,"-")) -> 1.6 | F93: =IF(OR('Tabel 4F ØJ'!F93<5,'Tabel 4 ØJ'!F93<0.5),"-",IFERROR('Tabel 4 ØJ'!F93/'Tabel 4F ØJ'!F93*100,"-")) -> 1.694915254 | G93: =IF(OR('Tabel 4F ØJ'!G93<5,'Tabel 4 ØJ'!G93<0.5),"-",IFERROR('Tabel 4 ØJ'!G93/'Tabel 4F ØJ'!G93*100,"-")) -> - | I93: =IF(OR('Tabel 4F ØJ'!I93<5,'Tabel 4 ØJ'!I93<0.5),"-",IFERROR('Tabel 4 ØJ'!I93/'Tabel 4F ØJ'!I93*100,"-")) -> 4.183266932
A94: Cand. IT. | C94: =IF(OR('Tabel 4F ØJ'!C94<5,'Tabel 4 ØJ'!C94<0.5),"-",IFERROR('Tabel 4 ØJ'!C94/'Tabel 4F ØJ'!C94*100,"-")) -> 9.090909091 | D94: =IF(OR('Tabel 4F ØJ'!D94<5,'Tabel 4 ØJ'!D94<0.5),"-",IFERROR('Tabel 4 ØJ'!D94/'Tabel 4F ØJ'!D94*100,"-")) -> 11.11111111 | E94: =IF(OR('Tabel 4F ØJ'!E94<5,'Tabel 4 ØJ'!E94<0.5),"-",IFERROR('Tabel 4 ØJ'!E94/'Tabel 4F ØJ'!E94*100,"-")) -> - | F94: =IF(OR('Tabel 4F ØJ'!F94<5,'Tabel 4 ØJ'!F94<0.5),"-",IFERROR('Tabel 4 ØJ'!F94/'Tabel 4F ØJ'!F94*100,"-")) -> - | G94: =IF(OR('Tabel 4F ØJ'!G94<5,'Tabel 4 ØJ'!G94<0.5),"-",IFERROR('Tabel 4 ØJ'!G94/'Tabel 4F ØJ'!G94*100,"-")) -> - | I94: =IF(OR('Tabel 4F ØJ'!I94<5,'Tabel 4 ØJ'!I94<0.5),"-",IFERROR('Tabel 4 ØJ'!I94/'Tabel 4F ØJ'!I94*100,"-")) -> 8
A95: Bac. Samf. | C95: =IF(OR('Tabel 4F ØJ'!C95<5,'Tabel 4 ØJ'!C95<0.5),"-",IFERROR('Tabel 4 ØJ'!C95/'Tabel 4F ØJ'!C95*100,"-")) -> - | D95: =IF(OR('Tabel 4F ØJ'!D95<5,'Tabel 4 ØJ'!D95<0.5),"-",IFERROR('Tabel 4 ØJ'!D95/'Tabel 4F ØJ'!D95*100,"-")) -> - | E95: =IF(OR('Tabel 4F ØJ'!E95<5,'Tabel 4 ØJ'!E95<0.5),"-",IFERROR('Tabel 4 ØJ'!E95/'Tabel 4F ØJ'!E95*100,"-")) -> 12.5 | F95: =IF(OR('Tabel 4F ØJ'!F95<5,'Tabel 4 ØJ'!F95<0.5),"-",IFERROR('Tabel 4 ØJ'!F95/'Tabel 4F ØJ'!F95*100,"-")) -> - | G95: =IF(OR('Tabel 4F ØJ'!G95<5,'Tabel 4 ØJ'!G95<0.5),"-",IFERROR('Tabel 4 ØJ'!G95/'Tabel 4F ØJ'!G95*100,"-")) -> - | I95: =IF(OR('Tabel 4F ØJ'!I95<5,'Tabel 4 ØJ'!I95<0.5),"-",IFERROR('Tabel 4 ØJ'!I95/'Tabel 4F ØJ'!I95*100,"-")) -> 5.882352941
A96: Bac. Hum. | C96: =IF(OR('Tabel 4F ØJ'!C96<5,'Tabel 4 ØJ'!C96<0.5),"-",IFERROR('Tabel 4 ØJ'!C96/'Tabel 4F ØJ'!C96*100,"-")) -> 23.07692308 | D96: =IF(OR('Tabel 4F ØJ'!D96<5,'Tabel 4 ØJ'!D96<0.5),"-",IFERROR('Tabel 4 ØJ'!D96/'Tabel 4F ØJ'!D96*100,"-")) -> 9.090909091 | E96: =IF(OR('Tabel 4F ØJ'!E96<5,'Tabel 4 ØJ'!E96<0.5),"-",IFERROR('Tabel 4 ØJ'!E96/'Tabel 4F ØJ'!E96*100,"-")) -> 18.18181818 | F96: =IF(OR('Tabel 4F ØJ'!F96<5,'Tabel 4 ØJ'!F96<0.5),"-",IFERROR('Tabel 4 ØJ'!F96/'Tabel 4F ØJ'!F96*100,"-")) -> 11.11111111 | G96: =IF(OR('Tabel 4F ØJ'!G96<5,'Tabel 4 ØJ'!G96<0.5),"-",IFERROR('Tabel 4 ØJ'!G96/'Tabel 4F ØJ'!G96*100,"-")) -> - | I96: =IF(OR('Tabel 4F ØJ'!I96<5,'Tabel 4 ØJ'!I96<0.5),"-",IFERROR('Tabel 4 ØJ'!I96/'Tabel 4F ØJ'!I96*100,"-")) -> 14.89361702
A97: Bac. Nat. | C97: =IF(OR('Tabel 4F ØJ'!C97<5,'Tabel 4 ØJ'!C97<0.5),"-",IFERROR('Tabel 4 ØJ'!C97/'Tabel 4F ØJ'!C97*100,"-")) -> 16.88311688 | D97: =IF(OR('Tabel 4F ØJ'!D97<5,'Tabel 4 ØJ'!D97<0.5),"-",IFERROR('Tabel 4 ØJ'!D97/'Tabel 4F ØJ'!D97*100,"-")) -> 4.444444444 | E97: =IF(OR('Tabel 4F ØJ'!E97<5,'Tabel 4 ØJ'!E97<0.5),"-",IFERROR('Tabel 4 ØJ'!E97/'Tabel 4F ØJ'!E97*100,"-")) -> - | F97: =IF(OR('Tabel 4F ØJ'!F97<5,'Tabel 4 ØJ'!F97<0.5),"-",IFERROR('Tabel 4 ØJ'!F97/'Tabel 4F ØJ'!F97*100,"-")) -> - | G97: =IF(OR('Tabel 4F ØJ'!G97<5,'Tabel 4 ØJ'!G97<0.5),"-",IFERROR('Tabel 4 ØJ'!G97/'Tabel 4F ØJ'!G97*100,"-")) -> - | I97: =IF(OR('Tabel 4F ØJ'!I97<5,'Tabel 4 ØJ'!I97<0.5),"-",IFERROR('Tabel 4 ØJ'!I97/'Tabel 4F ØJ'!I97*100,"-")) -> 11.02941176
A98: Andre | C98: =IF(OR('Tabel 4F ØJ'!C98<5,'Tabel 4 ØJ'!C98<0.5),"-",IFERROR('Tabel 4 ØJ'!C98/'Tabel 4F ØJ'!C98*100,"-")) -> 21.42857143 | D98: =IF(OR('Tabel 4F ØJ'!D98<5,'Tabel 4 ØJ'!D98<0.5),"-",IFERROR('Tabel 4 ØJ'!D98/'Tabel 4F ØJ'!D98*100,"-")) -> 4.761904762 | E98: =IF(OR('Tabel 4F ØJ'!E98<5,'Tabel 4 ØJ'!E98<0.5),"-",IFERROR('Tabel 4 ØJ'!E98/'Tabel 4F ØJ'!E98*100,"-")) -> 5.454545455 | F98: =IF(OR('Tabel 4F ØJ'!F98<5,'Tabel 4 ØJ'!F98<0.5),"-",IFERROR('Tabel 4 ØJ'!F98/'Tabel 4F ØJ'!F98*100,"-")) -> 4 | G98: =IF(OR('Tabel 4F ØJ'!G98<5,'Tabel 4 ØJ'!G98<0.5),"-",IFERROR('Tabel 4 ØJ'!G98/'Tabel 4F ØJ'!G98*100,"-")) -> - | I98: =IF(OR('Tabel 4F ØJ'!I98<5,'Tabel 4 ØJ'!I98<0.5),"-",IFERROR('Tabel 4 ØJ'!I98/'Tabel 4F ØJ'!I98*100,"-")) -> 8.203125
A100: Total | C100: =IF(OR('Tabel 4F ØJ'!C100<5,'Tabel 4 ØJ'!C100<0.5),"-",IFERROR('Tabel 4 ØJ'!C100/'Tabel 4F ØJ'!C100*100,"-")) -> 12.51664447 | D100: =IF(OR('Tabel 4F ØJ'!D100<5,'Tabel 4 ØJ'!D100<0.5),"-",IFERROR('Tabel 4 ØJ'!D100/'Tabel 4F ØJ'!D100*100,"-")) -> 4.196642686 | E100: =IF(OR('Tabel 4F ØJ'!E100<5,'Tabel 4 ØJ'!E100<0.5),"-",IFERROR('Tabel 4 ØJ'!E100/'Tabel 4F ØJ'!E100*100,"-")) -> 1.471727343 | F100: =IF(OR('Tabel 4F ØJ'!F100<5,'Tabel 4 ØJ'!F100<0.5),"-",IFERROR('Tabel 4 ØJ'!F100/'Tabel 4F ØJ'!F100*100,"-")) -> 1.673101673 | G100: =IF(OR('Tabel 4F ØJ'!G100<5,'Tabel 4 ØJ'!G100<0.5),"-",IFERROR('Tabel 4 ØJ'!G100/'Tabel 4F ØJ'!G100*100,"-")) -> 2.892561983 | I100: =IF(OR('Tabel 4F ØJ'!I100<5,'Tabel 4 ØJ'!I100<0.5),"-",IFERROR('Tabel 4 ØJ'!I100/'Tabel 4F ØJ'!I100*100,"-")) -> 4.292662296
A102: Ingeniører i alt | C102: =IF(OR('Tabel 4F ØJ'!C102<5,'Tabel 4 ØJ'!C102<0.5),"-",IFERROR('Tabel 4 ØJ'!C102/'Tabel 4F ØJ'!C102*100,"-")) -> 11.48648649 | D102: =IF(OR('Tabel 4F ØJ'!D102<5,'Tabel 4 ØJ'!D102<0.5),"-",IFERROR('Tabel 4 ØJ'!D102/'Tabel 4F ØJ'!D102*100,"-")) -> 1.690140845 | E102: =IF(OR('Tabel 4F ØJ'!E102<5,'Tabel 4 ØJ'!E102<0.5),"-",IFERROR('Tabel 4 ØJ'!E102/'Tabel 4F ØJ'!E102*100,"-")) -> - | F102: =IF(OR('Tabel 4F ØJ'!F102<5,'Tabel 4 ØJ'!F102<0.5),"-",IFERROR('Tabel 4 ØJ'!F102/'Tabel 4F ØJ'!F102*100,"-")) -> - | G102: =IF(OR('Tabel 4F ØJ'!G102<5,'Tabel 4 ØJ'!G102<0.5),"-",IFERROR('Tabel 4 ØJ'!G102/'Tabel 4F ØJ'!G102*100,"-")) -> 4.166666667 | I102: =IF(OR('Tabel 4F ØJ'!I102<5,'Tabel 4 ØJ'!I102<0.5),"-",IFERROR('Tabel 4 ØJ'!I102/'Tabel 4F ØJ'!I102*100,"-")) -> 2.127659574
A103: Magistre i alt | C103: =IF(OR('Tabel 4F ØJ'!C103<5,'Tabel 4 ØJ'!C103<0.5),"-",IFERROR('Tabel 4 ØJ'!C103/'Tabel 4F ØJ'!C103*100,"-")) -> 15.625 | D103: =IF(OR('Tabel 4F ØJ'!D103<5,'Tabel 4 ØJ'!D103<0.5),"-",IFERROR('Tabel 4 ØJ'!D103/'Tabel 4F ØJ'!D103*100,"-")) -> 8.372093023 | E103: =IF(OR('Tabel 4F ØJ'!E103<5,'Tabel 4 ØJ'!E103<0.5),"-",IFERROR('Tabel 4 ØJ'!E103/'Tabel 4F ØJ'!E103*100,"-")) -> 1.801801802 | F103: =IF(OR('Tabel 4F ØJ'!F103<5,'Tabel 4 ØJ'!F103<0.5),"-",IFERROR('Tabel 4 ØJ'!F103/'Tabel 4F ØJ'!F103*100,"-")) -> 2.608695652 | G103: =IF(OR('Tabel 4F ØJ'!G103<5,'Tabel 4 ØJ'!G103<0.5),"-",IFERROR('Tabel 4 ØJ'!G103/'Tabel 4F ØJ'!G103*100,"-")) -> - | I103: =IF(OR('Tabel 4F ØJ'!I103<5,'Tabel 4 ØJ'!I103<0.5),"-",IFERROR('Tabel 4 ØJ'!I103/'Tabel 4F ØJ'!I103*100,"-")) -> 5.401234568
A104: DJØF'ere i alt | C104: =IF(OR('Tabel 4F ØJ'!C104<5,'Tabel 4 ØJ'!C104<0.5),"-",IFERROR('Tabel 4 ØJ'!C104/'Tabel 4F ØJ'!C104*100,"-")) -> 7.272727273 | D104: =IF(OR('Tabel 4F ØJ'!D104<5,'Tabel 4 ØJ'!D104<0.5),"-",IFERROR('Tabel 4 ØJ'!D104/'Tabel 4F ØJ'!D104*100,"-")) -> 3.294117647 | E104: =IF(OR('Tabel 4F ØJ'!E104<5,'Tabel 4 ØJ'!E104<0.5),"-",IFERROR('Tabel 4 ØJ'!E104/'Tabel 4F ØJ'!E104*100,"-")) -> 0.7490636704 | F104: =IF(OR('Tabel 4F ØJ'!F104<5,'Tabel 4 ØJ'!F104<0.5),"-",IFERROR('Tabel 4 ØJ'!F104/'Tabel 4F ØJ'!F104*100,"-")) -> 1.449275362 | G104: =IF(OR('Tabel 4F ØJ'!G104<5,'Tabel 4 ØJ'!G104<0.5),"-",IFERROR('Tabel 4 ØJ'!G104/'Tabel 4F ØJ'!G104*100,"-")) -> 3.571428571 | I104: =IF(OR('Tabel 4F ØJ'!I104<5,'Tabel 4 ØJ'!I104<0.5),"-",IFERROR('Tabel 4 ØJ'!I104/'Tabel 4F ØJ'!I104*100,"-")) -> 3.03030303
A111: Syddjurs
C113: Under 30 år | D113: 30 - 39 år | E113: 40 - 49 år | F113: 50 - 59 år | G113: Over 60 år | I113: I alt
A115: Civ. ing. | C115: =IF(OR('Tabel 4F ØJ'!C115<5,'Tabel 4 ØJ'!C115<0.5),"-",IFERROR('Tabel 4 ØJ'!C115/'Tabel 4F ØJ'!C115*100,"-")) -> - | D115: =IF(OR('Tabel 4F ØJ'!D115<5,'Tabel 4 ØJ'!D115<0.5),"-",IFERROR('Tabel 4 ØJ'!D115/'Tabel 4F ØJ'!D115*100,"-")) -> 3.333333333 | E115: =IF(OR('Tabel 4F ØJ'!E115<5,'Tabel 4 ØJ'!E115<0.5),"-",IFERROR('Tabel 4 ØJ'!E115/'Tabel 4F ØJ'!E115*100,"-")) -> - | F115: =IF(OR('Tabel 4F ØJ'!F115<5,'Tabel 4 ØJ'!F115<0.5),"-",IFERROR('Tabel 4 ØJ'!F115/'Tabel 4F ØJ'!F115*100,"-")) -> 3.846153846 | G115: =IF(OR('Tabel 4F ØJ'!G115<5,'Tabel 4 ØJ'!G115<0.5),"-",IFERROR('Tabel 4 ØJ'!G115/'Tabel 4F ØJ'!G115*100,"-")) -> - | I115: =IF(OR('Tabel 4F ØJ'!I115<5,'Tabel 4 ØJ'!I115<0.5),"-",IFERROR('Tabel 4 ØJ'!I115/'Tabel 4F ØJ'!I115*100,"-")) -> 2.197802198
A116: Diplom ing. | C116: =IF(OR('Tabel 4F ØJ'!C116<5,'Tabel 4 ØJ'!C116<0.5),"-",IFERROR('Tabel 4 ØJ'!C116/'Tabel 4F ØJ'!C116*100,"-")) -> - | D116: =IF(OR('Tabel 4F ØJ'!D116<5,'Tabel 4 ØJ'!D116<0.5),"-",IFERROR('Tabel 4 ØJ'!D116/'Tabel 4F ØJ'!D116*100,"-")) -> 5.714285714 | E116: =IF(OR('Tabel 4F ØJ'!E116<5,'Tabel 4 ØJ'!E116<0.5),"-",IFERROR('Tabel 4 ØJ'!E116/'Tabel 4F ØJ'!E116*100,"-")) -> - | F116: =IF(OR('Tabel 4F ØJ'!F116<5,'Tabel 4 ØJ'!F116<0.5),"-",IFERROR('Tabel 4 ØJ'!F116/'Tabel 4F ØJ'!F116*100,"-")) -> 2.298850575 | G116: =IF(OR('Tabel 4F ØJ'!G116<5,'Tabel 4 ØJ'!G116<0.5),"-",IFERROR('Tabel 4 ØJ'!G116/'Tabel 4F ØJ'!G116*100,"-")) -> 7.5 | I116: =IF(OR('Tabel 4F ØJ'!I116<5,'Tabel 4 ØJ'!I116<0.5),"-",IFERROR('Tabel 4 ØJ'!I116/'Tabel 4F ØJ'!I116*100,"-")) -> 2.904564315
A117: Cand. Scient. Tek | C117: =IF(OR('Tabel 4F ØJ'!C117<5,'Tabel 4 ØJ'!C117<0.5),"-",IFERROR('Tabel 4 ØJ'!C117/'Tabel 4F ØJ'!C117*100,"-")) -> - | D117: =IF(OR('Tabel 4F ØJ'!D117<5,'Tabel 4 ØJ'!D117<0.5),"-",IFERROR('Tabel 4 ØJ'!D117/'Tabel 4F ØJ'!D117*100,"-")) -> 16.32653061 | E117: =IF(OR('Tabel 4F ØJ'!E117<5,'Tabel 4 ØJ'!E117<0.5),"-",IFERROR('Tabel 4 ØJ'!E117/'Tabel 4F ØJ'!E117*100,"-")) -> 5 | F117: =IF(OR('Tabel 4F ØJ'!F117<5,'Tabel 4 ØJ'!F117<0.5),"-",IFERROR('Tabel 4 ØJ'!F117/'Tabel 4F ØJ'!F117*100,"-")) -> - | G117: =IF(OR('Tabel 4F ØJ'!G117<5,'Tabel 4 ØJ'!G117<0.5),"-",IFERROR('Tabel 4 ØJ'!G117/'Tabel 4F ØJ'!G117*100,"-")) -> - | I117: =IF(OR('Tabel 4F ØJ'!I117<5,'Tabel 4 ØJ'!I117<0.5),"-",IFERROR('Tabel 4 ØJ'!I117/'Tabel 4F ØJ'!I117*100,"-")) -> 10.46511628
A118: MA. Hum. | C118: =IF(OR('Tabel 4F ØJ'!C118<5,'Tabel 4 ØJ'!C118<0.5),"-",IFERROR('Tabel 4 ØJ'!C118/'Tabel 4F ØJ'!C118*100,"-")) -> 35.71428571 | D118: =IF(OR('Tabel 4F ØJ'!D118<5,'Tabel 4 ØJ'!D118<0.5),"-",IFERROR('Tabel 4 ØJ'!D118/'Tabel 4F ØJ'!D118*100,"-")) -> 15.78947368 | E118: =IF(OR('Tabel 4F ØJ'!E118<5,'Tabel 4 ØJ'!E118<0.5),"-",IFERROR('Tabel 4 ØJ'!E118/'Tabel 4F ØJ'!E118*100,"-")) -> 2.197802198 | F118: =IF(OR('Tabel 4F ØJ'!F118<5,'Tabel 4 ØJ'!F118<0.5),"-",IFERROR('Tabel 4 ØJ'!F118/'Tabel 4F ØJ'!F118*100,"-")) -> 5.263157895 | G118: =IF(OR('Tabel 4F ØJ'!G118<5,'Tabel 4 ØJ'!G118<0.5),"-",IFERROR('Tabel 4 ØJ'!G118/'Tabel 4F ØJ'!G118*100,"-")) -> - | I118: =IF(OR('Tabel 4F ØJ'!I118<5,'Tabel 4 ØJ'!I118<0.5),"-",IFERROR('Tabel 4 ØJ'!I118/'Tabel 4F ØJ'!I118*100,"-")) -> 9.157509158
A119: MA. Nat. | C119: =IF(OR('Tabel 4F ØJ'!C119<5,'Tabel 4 ØJ'!C119<0.5),"-",IFERROR('Tabel 4 ØJ'!C119/'Tabel 4F ØJ'!C119*100,"-")) -> - | D119: =IF(OR('Tabel 4F ØJ'!D119<5,'Tabel 4 ØJ'!D119<0.5),"-",IFERROR('Tabel 4 ØJ'!D119/'Tabel 4F ØJ'!D119*100,"-")) -> 4.545454545 | E119: =IF(OR('Tabel 4F ØJ'!E119<5,'Tabel 4 ØJ'!E119<0.5),"-",IFERROR('Tabel 4 ØJ'!E119/'Tabel 4F ØJ'!E119*100,"-")) -> 3.03030303 | F119: =IF(OR('Tabel 4F ØJ'!F119<5,'Tabel 4 ØJ'!F119<0.5),"-",IFERROR('Tabel 4 ØJ'!F119/'Tabel 4F ØJ'!F119*100,"-")) -> - | G119: =IF(OR('Tabel 4F ØJ'!G119<5,'Tabel 4 ØJ'!G119<0.5),"-",IFERROR('Tabel 4 ØJ'!G119/'Tabel 4F ØJ'!G119*100,"-")) -> 5.555555556 | I119: =IF(OR('Tabel 4F ØJ'!I119<5,'Tabel 4 ØJ'!I119<0.5),"-",IFERROR('Tabel 4 ØJ'!I119/'Tabel 4F ØJ'!I119*100,"-")) -> 2.564102564
A120: MA. Ph.d. | C120: =IF(OR('Tabel 4F ØJ'!C120<5,'Tabel 4 ØJ'!C120<0.5),"-",IFERROR('Tabel 4 ØJ'!C120/'Tabel 4F ØJ'!C120*100,"-")) -> - | D120: =IF(OR('Tabel 4F ØJ'!D120<5,'Tabel 4 ØJ'!D120<0.5),"-",IFERROR('Tabel 4 ØJ'!D120/'Tabel 4F ØJ'!D120*100,"-")) -> - | E120: =IF(OR('Tabel 4F ØJ'!E120<5,'Tabel 4 ØJ'!E120<0.5),"-",IFERROR('Tabel 4 ØJ'!E120/'Tabel 4F ØJ'!E120*100,"-")) -> - | F120: =IF(OR('Tabel 4F ØJ'!F120<5,'Tabel 4 ØJ'!F120<0.5),"-",IFERROR('Tabel 4 ØJ'!F120/'Tabel 4F ØJ'!F120*100,"-")) -> - | G120: =IF(OR('Tabel 4F ØJ'!G120<5,'Tabel 4 ØJ'!G120<0.5),"-",IFERROR('Tabel 4 ØJ'!G120/'Tabel 4F ØJ'!G120*100,"-")) -> - | I120: =IF(OR('Tabel 4F ØJ'!I120<5,'Tabel 4 ØJ'!I120<0.5),"-",IFERROR('Tabel 4 ØJ'!I120/'Tabel 4F ØJ'!I120*100,"-")) -> -
A121: MA. Samf. | C121: =IF(OR('Tabel 4F ØJ'!C121<5,'Tabel 4 ØJ'!C121<0.5),"-",IFERROR('Tabel 4 ØJ'!C121/'Tabel 4F ØJ'!C121*100,"-")) -> - | D121: =IF(OR('Tabel 4F ØJ'!D121<5,'Tabel 4 ØJ'!D121<0.5),"-",IFERROR('Tabel 4 ØJ'!D121/'Tabel 4F ØJ'!D121*100,"-")) -> 20 | E121: =IF(OR('Tabel 4F ØJ'!E121<5,'Tabel 4 ØJ'!E121<0.5),"-",IFERROR('Tabel 4 ØJ'!E121/'Tabel 4F ØJ'!E121*100,"-")) -> - | F121: =IF(OR('Tabel 4F ØJ'!F121<5,'Tabel 4 ØJ'!F121<0.5),"-",IFERROR('Tabel 4 ØJ'!F121/'Tabel 4F ØJ'!F121*100,"-")) -> - | G121: =IF(OR('Tabel 4F ØJ'!G121<5,'Tabel 4 ØJ'!G121<0.5),"-",IFERROR('Tabel 4 ØJ'!G121/'Tabel 4F ØJ'!G121*100,"-")) -> - | I121: =IF(OR('Tabel 4F ØJ'!I121<5,'Tabel 4 ØJ'!I121<0.5),"-",IFERROR('Tabel 4 ØJ'!I121/'Tabel 4F ØJ'!I121*100,"-")) -> 16
A122: Øvrige Mag. | C122: =IF(OR('Tabel 4F ØJ'!C122<5,'Tabel 4 ØJ'!C122<0.5),"-",IFERROR('Tabel 4 ØJ'!C122/'Tabel 4F ØJ'!C122*100,"-")) -> - | D122: =IF(OR('Tabel 4F ØJ'!D122<5,'Tabel 4 ØJ'!D122<0.5),"-",IFERROR('Tabel 4 ØJ'!D122/'Tabel 4F ØJ'!D122*100,"-")) -> 16.66666667 | E122: =IF(OR('Tabel 4F ØJ'!E122<5,'Tabel 4 ØJ'!E122<0.5),"-",IFERROR('Tabel 4 ØJ'!E122/'Tabel 4F ØJ'!E122*100,"-")) -> - | F122: =IF(OR('Tabel 4F ØJ'!F122<5,'Tabel 4 ØJ'!F122<0.5),"-",IFERROR('Tabel 4 ØJ'!F122/'Tabel 4F ØJ'!F122*100,"-")) -> - | G122: =IF(OR('Tabel 4F ØJ'!G122<5,'Tabel 4 ØJ'!G122<0.5),"-",IFERROR('Tabel 4 ØJ'!G122/'Tabel 4F ØJ'!G122*100,"-")) -> - | I122: =IF(OR('Tabel 4F ØJ'!I122<5,'Tabel 4 ØJ'!I122<0.5),"-",IFERROR('Tabel 4 ØJ'!I122/'Tabel 4F ØJ'!I122*100,"-")) -> 4
A123: Agronom | C123: =IF(OR('Tabel 4F ØJ'!C123<5,'Tabel 4 ØJ'!C123<0.5),"-",IFERROR('Tabel 4 ØJ'!C123/'Tabel 4F ØJ'!C123*100,"-")) -> - | D123: =IF(OR('Tabel 4F ØJ'!D123<5,'Tabel 4 ØJ'!D123<0.5),"-",IFERROR('Tabel 4 ØJ'!D123/'Tabel 4F ØJ'!D123*100,"-")) -> - | E123: =IF(OR('Tabel 4F ØJ'!E123<5,'Tabel 4 ØJ'!E123<0.5),"-",IFERROR('Tabel 4 ØJ'!E123/'Tabel 4F ØJ'!E123*100,"-")) -> - | F123: =IF(OR('Tabel 4F ØJ'!F123<5,'Tabel 4 ØJ'!F123<0.5),"-",IFERROR('Tabel 4 ØJ'!F123/'Tabel 4F ØJ'!F123*100,"-")) -> - | G123: =IF(OR('Tabel 4F ØJ'!G123<5,'Tabel 4 ØJ'!G123<0.5),"-",IFERROR('Tabel 4 ØJ'!G123/'Tabel 4F ØJ'!G123*100,"-")) -> - | I123: =IF(OR('Tabel 4F ØJ'!I123<5,'Tabel 4 ØJ'!I123<0.5),"-",IFERROR('Tabel 4 ØJ'!I123/'Tabel 4F ØJ'!I123*100,"-")) -> 3.571428571
A124: Landsk. Arkt. | C124: =IF(OR('Tabel 4F ØJ'!C124<5,'Tabel 4 ØJ'!C124<0.5),"-",IFERROR('Tabel 4 ØJ'!C124/'Tabel 4F ØJ'!C124*100,"-")) -> - | D124: =IF(OR('Tabel 4F ØJ'!D124<5,'Tabel 4 ØJ'!D124<0.5),"-",IFERROR('Tabel 4 ØJ'!D124/'Tabel 4F ØJ'!D124*100,"-")) -> - | E124: =IF(OR('Tabel 4F ØJ'!E124<5,'Tabel 4 ØJ'!E124<0.5),"-",IFERROR('Tabel 4 ØJ'!E124/'Tabel 4F ØJ'!E124*100,"-")) -> - | F124: =IF(OR('Tabel 4F ØJ'!F124<5,'Tabel 4 ØJ'!F124<0.5),"-",IFERROR('Tabel 4 ØJ'!F124/'Tabel 4F ØJ'!F124*100,"-")) -> - | G124: =IF(OR('Tabel 4F ØJ'!G124<5,'Tabel 4 ØJ'!G124<0.5),"-",IFERROR('Tabel 4 ØJ'!G124/'Tabel 4F ØJ'!G124*100,"-")) -> - | I124: =IF(OR('Tabel 4F ØJ'!I124<5,'Tabel 4 ØJ'!I124<0.5),"-",IFERROR('Tabel 4 ØJ'!I124/'Tabel 4F ØJ'!I124*100,"-")) -> -
A125: Hortonom | C125: =IF(OR('Tabel 4F ØJ'!C125<5,'Tabel 4 ØJ'!C125<0.5),"-",IFERROR('Tabel 4 ØJ'!C125/'Tabel 4F ØJ'!C125*100,"-")) -> - | D125: =IF(OR('Tabel 4F ØJ'!D125<5,'Tabel 4 ØJ'!D125<0.5),"-",IFERROR('Tabel 4 ØJ'!D125/'Tabel 4F ØJ'!D125*100,"-")) -> - | E125: =IF(OR('Tabel 4F ØJ'!E125<5,'Tabel 4 ØJ'!E125<0.5),"-",IFERROR('Tabel 4 ØJ'!E125/'Tabel 4F ØJ'!E125*100,"-")) -> - | F125: =IF(OR('Tabel 4F ØJ'!F125<5,'Tabel 4 ØJ'!F125<0.5),"-",IFERROR('Tabel 4 ØJ'!F125/'Tabel 4F ØJ'!F125*100,"-")) -> - | G125: =IF(OR('Tabel 4F ØJ'!G125<5,'Tabel 4 ØJ'!G125<0.5),"-",IFERROR('Tabel 4 ØJ'!G125/'Tabel 4F ØJ'!G125*100,"-")) -> - | I125: =IF(OR('Tabel 4F ØJ'!I125<5,'Tabel 4 ØJ'!I125<0.5),"-",IFERROR('Tabel 4 ØJ'!I125/'Tabel 4F ØJ'!I125*100,"-")) -> -
A126: Forstkand. | C126: =IF(OR('Tabel 4F ØJ'!C126<5,'Tabel 4 ØJ'!C126<0.5),"-",IFERROR('Tabel 4 ØJ'!C126/'Tabel 4F ØJ'!C126*100,"-")) -> - | D126: =IF(OR('Tabel 4F ØJ'!D126<5,'Tabel 4 ØJ'!D126<0.5),"-",IFERROR('Tabel 4 ØJ'!D126/'Tabel 4F ØJ'!D126*100,"-")) -> - | E126: =IF(OR('Tabel 4F ØJ'!E126<5,'Tabel 4 ØJ'!E126<0.5),"-",IFERROR('Tabel 4 ØJ'!E126/'Tabel 4F ØJ'!E126*100,"-")) -> - | F126: =IF(OR('Tabel 4F ØJ'!F126<5,'Tabel 4 ØJ'!F126<0.5),"-",IFERROR('Tabel 4 ØJ'!F126/'Tabel 4F ØJ'!F126*100,"-")) -> - | G126: =IF(OR('Tabel 4F ØJ'!G126<5,'Tabel 4 ØJ'!G126<0.5),"-",IFERROR('Tabel 4 ØJ'!G126/'Tabel 4F ØJ'!G126*100,"-")) -> - | I126: =IF(OR('Tabel 4F ØJ'!I126<5,'Tabel 4 ØJ'!I126<0.5),"-",IFERROR('Tabel 4 ØJ'!I126/'Tabel 4F ØJ'!I126*100,"-")) -> 16.66666667
A127: Jordbrugsakad. | C127: =IF(OR('Tabel 4F ØJ'!C127<5,'Tabel 4 ØJ'!C127<0.5),"-",IFERROR('Tabel 4 ØJ'!C127/'Tabel 4F ØJ'!C127*100,"-")) -> - | D127: =IF(OR('Tabel 4F ØJ'!D127<5,'Tabel 4 ØJ'!D127<0.5),"-",IFERROR('Tabel 4 ØJ'!D127/'Tabel 4F ØJ'!D127*100,"-")) -> - | E127: =IF(OR('Tabel 4F ØJ'!E127<5,'Tabel 4 ØJ'!E127<0.5),"-",IFERROR('Tabel 4 ØJ'!E127/'Tabel 4F ØJ'!E127*100,"-")) -> 14.28571429 | F127: =IF(OR('Tabel 4F ØJ'!F127<5,'Tabel 4 ØJ'!F127<0.5),"-",IFERROR('Tabel 4 ØJ'!F127/'Tabel 4F ØJ'!F127*100,"-")) -> - | G127: =IF(OR('Tabel 4F ØJ'!G127<5,'Tabel 4 ØJ'!G127<0.5),"-",IFERROR('Tabel 4 ØJ'!G127/'Tabel 4F ØJ'!G127*100,"-")) -> 10 | I127: =IF(OR('Tabel 4F ØJ'!I127<5,'Tabel 4 ØJ'!I127<0.5),"-",IFERROR('Tabel 4 ØJ'!I127/'Tabel 4F ØJ'!I127*100,"-")) -> 4.87804878
A128: Mejeriing. | C128: =IF(OR('Tabel 4F ØJ'!C128<5,'Tabel 4 ØJ'!C128<0.5),"-",IFERROR('Tabel 4 ØJ'!C128/'Tabel 4F ØJ'!C128*100,"-")) -> - | D128: =IF(OR('Tabel 4F ØJ'!D128<5,'Tabel 4 ØJ'!D128<0.5),"-",IFERROR('Tabel 4 ØJ'!D128/'Tabel 4F ØJ'!D128*100,"-")) -> - | E128: =IF(OR('Tabel 4F ØJ'!E128<5,'Tabel 4 ØJ'!E128<0.5),"-",IFERROR('Tabel 4 ØJ'!E128/'Tabel 4F ØJ'!E128*100,"-")) -> - | F128: =IF(OR('Tabel 4F ØJ'!F128<5,'Tabel 4 ØJ'!F128<0.5),"-",IFERROR('Tabel 4 ØJ'!F128/'Tabel 4F ØJ'!F128*100,"-")) -> - | G128: =IF(OR('Tabel 4F ØJ'!G128<5,'Tabel 4 ØJ'!G128<0.5),"-",IFERROR('Tabel 4 ØJ'!G128/'Tabel 4F ØJ'!G128*100,"-")) -> - | I128: =IF(OR('Tabel 4F ØJ'!I128<5,'Tabel 4 ØJ'!I128<0.5),"-",IFERROR('Tabel 4 ØJ'!I128/'Tabel 4F ØJ'!I128*100,"-")) -> -
A129: Levn.m.kand. | C129: =IF(OR('Tabel 4F ØJ'!C129<5,'Tabel 4 ØJ'!C129<0.5),"-",IFERROR('Tabel 4 ØJ'!C129/'Tabel 4F ØJ'!C129*100,"-")) -> - | D129: =IF(OR('Tabel 4F ØJ'!D129<5,'Tabel 4 ØJ'!D129<0.5),"-",IFERROR('Tabel 4 ØJ'!D129/'Tabel 4F ØJ'!D129*100,"-")) -> - | E129: =IF(OR('Tabel 4F ØJ'!E129<5,'Tabel 4 ØJ'!E129<0.5),"-",IFERROR('Tabel 4 ØJ'!E129/'Tabel 4F ØJ'!E129*100,"-")) -> - | F129: =IF(OR('Tabel 4F ØJ'!F129<5,'Tabel 4 ØJ'!F129<0.5),"-",IFERROR('Tabel 4 ØJ'!F129/'Tabel 4F ØJ'!F129*100,"-")) -> - | G129: =IF(OR('Tabel 4F ØJ'!G129<5,'Tabel 4 ØJ'!G129<0.5),"-",IFERROR('Tabel 4 ØJ'!G129/'Tabel 4F ØJ'!G129*100,"-")) -> - | I129: =IF(OR('Tabel 4F ØJ'!I129<5,'Tabel 4 ØJ'!I129<0.5),"-",IFERROR('Tabel 4 ØJ'!I129/'Tabel 4F ØJ'!I129*100,"-")) -> -
A130: Dyrlæge | C130: =IF(OR('Tabel 4F ØJ'!C130<5,'Tabel 4 ØJ'!C130<0.5),"-",IFERROR('Tabel 4 ØJ'!C130/'Tabel 4F ØJ'!C130*100,"-")) -> - | D130: =IF(OR('Tabel 4F ØJ'!D130<5,'Tabel 4 ØJ'!D130<0.5),"-",IFERROR('Tabel 4 ØJ'!D130/'Tabel 4F ØJ'!D130*100,"-")) -> 16.66666667 | E130: =IF(OR('Tabel 4F ØJ'!E130<5,'Tabel 4 ØJ'!E130<0.5),"-",IFERROR('Tabel 4 ØJ'!E130/'Tabel 4F ØJ'!E130*100,"-")) -> - | F130: =IF(OR('Tabel 4F ØJ'!F130<5,'Tabel 4 ØJ'!F130<0.5),"-",IFERROR('Tabel 4 ØJ'!F130/'Tabel 4F ØJ'!F130*100,"-")) -> - | G130: =IF(OR('Tabel 4F ØJ'!G130<5,'Tabel 4 ØJ'!G130<0.5),"-",IFERROR('Tabel 4 ØJ'!G130/'Tabel 4F ØJ'!G130*100,"-")) -> - | I130: =IF(OR('Tabel 4F ØJ'!I130<5,'Tabel 4 ØJ'!I130<0.5),"-",IFERROR('Tabel 4 ØJ'!I130/'Tabel 4F ØJ'!I130*100,"-")) -> 9.090909091
A131: Farmaceut | C131: =IF(OR('Tabel 4F ØJ'!C131<5,'Tabel 4 ØJ'!C131<0.5),"-",IFERROR('Tabel 4 ØJ'!C131/'Tabel 4F ØJ'!C131*100,"-")) -> - | D131: =IF(OR('Tabel 4F ØJ'!D131<5,'Tabel 4 ØJ'!D131<0.5),"-",IFERROR('Tabel 4 ØJ'!D131/'Tabel 4F ØJ'!D131*100,"-")) -> - | E131: =IF(OR('Tabel 4F ØJ'!E131<5,'Tabel 4 ØJ'!E131<0.5),"-",IFERROR('Tabel 4 ØJ'!E131/'Tabel 4F ØJ'!E131*100,"-")) -> - | F131: =IF(OR('Tabel 4F ØJ'!F131<5,'Tabel 4 ØJ'!F131<0.5),"-",IFERROR('Tabel 4 ØJ'!F131/'Tabel 4F ØJ'!F131*100,"-")) -> - | G131: =IF(OR('Tabel 4F ØJ'!G131<5,'Tabel 4 ØJ'!G131<0.5),"-",IFERROR('Tabel 4 ØJ'!G131/'Tabel 4F ØJ'!G131*100,"-")) -> - | I131: =IF(OR('Tabel 4F ØJ'!I131<5,'Tabel 4 ØJ'!I131<0.5),"-",IFERROR('Tabel 4 ØJ'!I131/'Tabel 4F ØJ'!I131*100,"-")) -> -
A132: Læge | C132: =IF(OR('Tabel 4F ØJ'!C132<5,'Tabel 4 ØJ'!C132<0.5),"-",IFERROR('Tabel 4 ØJ'!C132/'Tabel 4F ØJ'!C132*100,"-")) -> - | D132: =IF(OR('Tabel 4F ØJ'!D132<5,'Tabel 4 ØJ'!D132<0.5),"-",IFERROR('Tabel 4 ØJ'!D132/'Tabel 4F ØJ'!D132*100,"-")) -> - | E132: =IF(OR('Tabel 4F ØJ'!E132<5,'Tabel 4 ØJ'!E132<0.5),"-",IFERROR('Tabel 4 ØJ'!E132/'Tabel 4F ØJ'!E132*100,"-")) -> - | F132: =IF(OR('Tabel 4F ØJ'!F132<5,'Tabel 4 ØJ'!F132<0.5),"-",IFERROR('Tabel 4 ØJ'!F132/'Tabel 4F ØJ'!F132*100,"-")) -> - | G132: =IF(OR('Tabel 4F ØJ'!G132<5,'Tabel 4 ØJ'!G132<0.5),"-",IFERROR('Tabel 4 ØJ'!G132/'Tabel 4F ØJ'!G132*100,"-")) -> - | I132: =IF(OR('Tabel 4F ØJ'!I132<5,'Tabel 4 ØJ'!I132<0.5),"-",IFERROR('Tabel 4 ØJ'!I132/'Tabel 4F ØJ'!I132*100,"-")) -> -
A133: Tandlæge | C133: =IF(OR('Tabel 4F ØJ'!C133<5,'Tabel 4 ØJ'!C133<0.5),"-",IFERROR('Tabel 4 ØJ'!C133/'Tabel 4F ØJ'!C133*100,"-")) -> - | D133: =IF(OR('Tabel 4F ØJ'!D133<5,'Tabel 4 ØJ'!D133<0.5),"-",IFERROR('Tabel 4 ØJ'!D133/'Tabel 4F ØJ'!D133*100,"-")) -> - | E133: =IF(OR('Tabel 4F ØJ'!E133<5,'Tabel 4 ØJ'!E133<0.5),"-",IFERROR('Tabel 4 ØJ'!E133/'Tabel 4F ØJ'!E133*100,"-")) -> - | F133: =IF(OR('Tabel 4F ØJ'!F133<5,'Tabel 4 ØJ'!F133<0.5),"-",IFERROR('Tabel 4 ØJ'!F133/'Tabel 4F ØJ'!F133*100,"-")) -> - | G133: =IF(OR('Tabel 4F ØJ'!G133<5,'Tabel 4 ØJ'!G133<0.5),"-",IFERROR('Tabel 4 ØJ'!G133/'Tabel 4F ØJ'!G133*100,"-")) -> - | I133: =IF(OR('Tabel 4F ØJ'!I133<5,'Tabel 4 ØJ'!I133<0.5),"-",IFERROR('Tabel 4 ØJ'!I133/'Tabel 4F ØJ'!I133*100,"-")) -> -
A134: Arkitekt | C134: =IF(OR('Tabel 4F ØJ'!C134<5,'Tabel 4 ØJ'!C134<0.5),"-",IFERROR('Tabel 4 ØJ'!C134/'Tabel 4F ØJ'!C134*100,"-")) -> - | D134: =IF(OR('Tabel 4F ØJ'!D134<5,'Tabel 4 ØJ'!D134<0.5),"-",IFERROR('Tabel 4 ØJ'!D134/'Tabel 4F ØJ'!D134*100,"-")) -> 9.090909091 | E134: =IF(OR('Tabel 4F ØJ'!E134<5,'Tabel 4 ØJ'!E134<0.5),"-",IFERROR('Tabel 4 ØJ'!E134/'Tabel 4F ØJ'!E134*100,"-")) -> - | F134: =IF(OR('Tabel 4F ØJ'!F134<5,'Tabel 4 ØJ'!F134<0.5),"-",IFERROR('Tabel 4 ØJ'!F134/'Tabel 4F ØJ'!F134*100,"-")) -> 5 | G134: =IF(OR('Tabel 4F ØJ'!G134<5,'Tabel 4 ØJ'!G134<0.5),"-",IFERROR('Tabel 4 ØJ'!G134/'Tabel 4F ØJ'!G134*100,"-")) -> - | I134: =IF(OR('Tabel 4F ØJ'!I134<5,'Tabel 4 ØJ'!I134<0.5),"-",IFERROR('Tabel 4 ØJ'!I134/'Tabel 4F ØJ'!I134*100,"-")) -> 3.896103896
A135: Landinspek. | C135: =IF(OR('Tabel 4F ØJ'!C135<5,'Tabel 4 ØJ'!C135<0.5),"-",IFERROR('Tabel 4 ØJ'!C135/'Tabel 4F ØJ'!C135*100,"-")) -> - | D135: =IF(OR('Tabel 4F ØJ'!D135<5,'Tabel 4 ØJ'!D135<0.5),"-",IFERROR('Tabel 4 ØJ'!D135/'Tabel 4F ØJ'!D135*100,"-")) -> - | E135: =IF(OR('Tabel 4F ØJ'!E135<5,'Tabel 4 ØJ'!E135<0.5),"-",IFERROR('Tabel 4 ØJ'!E135/'Tabel 4F ØJ'!E135*100,"-")) -> - | F135: =IF(OR('Tabel 4F ØJ'!F135<5,'Tabel 4 ØJ'!F135<0.5),"-",IFERROR('Tabel 4 ØJ'!F135/'Tabel 4F ØJ'!F135*100,"-")) -> - | G135: =IF(OR('Tabel 4F ØJ'!G135<5,'Tabel 4 ØJ'!G135<0.5),"-",IFERROR('Tabel 4 ØJ'!G135/'Tabel 4F ØJ'!G135*100,"-")) -> - | I135: =IF(OR('Tabel 4F ØJ'!I135<5,'Tabel 4 ØJ'!I135<0.5),"-",IFERROR('Tabel 4 ØJ'!I135/'Tabel 4F ØJ'!I135*100,"-")) -> -
